Workbook

Sheet Accueil
K3: To run EskeTiva, You must ENABLE macros in Excel
K5: 1. Select the File tab and choose Options.
K6: 2. Select Trust Center, and then choose Trust Center Settings.
K7: 3. In the Trust Center, select Macro Settings.
B12: KPTiva release 2.00. Georges Mion © 2026
C18: if macros are
C19: already enabled
E22: OR

Sheet HELP
Q4: Enable macros!
D5: KPTiva release 2.00. Georges Mion © 2025
Q6: Use the correct decimal separator!
C9: Before starting KPTiva (Ketamine Propofol Total intravenous anesthesia) | P9: Zoom value
P10: 115 | R10: You can use this control to adjust the zoom
B11: KPTiva simulates hypnotics and narcotics plasmatic concentrations after IV administration (bolus or infusion)
D12: Calculations mirror those of RUGLOOP | I12: DEMED Models downloads
D13: Like RUGLOOP/DEMED models, KPTIVA is for educational purpose,
D14: and should NOT be used for therapeutic management
B16: BEWARE: KPTiva has been written with Microsoft Excel 2016.
B18: With another software, malfunction may affect macrocommands. Unfortunately, Excel viewer cannot run macros
B22: STEPS | C22: 1 | D22: First, enter patient weight, height, age and gender (M=1, F=2)
D23: You are in Excel environment: do not forget to press the "enter" key !
C25: 2 | D25: Check drug concentration
D26: You can convert mg, mL, mg/kg, mg/kg/h, µg/kg/min with the calculator
C28: 3 | D28: Time is displayed as minutes (zero cannot be changed)
C30: 4 | D30: You may inject selected drug either as IV boluses, or infusions
C32: 5 | D32: Be careful with the parameters units (they are indicated: for alfentanil, bolus in mg)
C34: 6 | D34: To stop an infusion, you must enter a "zero" value at the time (min) it is stopped
D35: Infused volume is the incremental quantity of administered solution (depends on drug concentration)
F37: The spreadsheet gives a view of your decisions: boluses and infusions (Color assigned to the drug)
F38: The control panel displays plasmatic drug concentrations (µg or ng/mL)
F40: Plasmatic concentration within usual action range displays the color assigned to the drug
F42: If concentration exceeds the usual value, background color turns to red (black for Dexmed)
C44: 7 | D44: BEWARE: It is advised to erase all entered data between each simulation (New simulation)
B48: OFA | D48: If you choose the OFA page, you can simulate YOUR OWN DRUG PK
D50: You will be asked to enter the A, B, C and a,b, or g constants of the PK model
D51: and, of course, the dose of the drug used to build the model.
D53: ENJOY !
F55: GM | G55: georgesmion.com

Sheet KPTIVA
E6: zoom value: | G6: 101
B12: PATIENT
C14: Age | E14: 40 | F14: years
C16: Weight | E16: 70 | F16: Kg
C18: Height | E18: 170 | F18: cm
C20: BMI | E20: =10000*Poids/(E18*E18) -> 24.22145329
C22: Gender | E22: 1 | F22: M=1 F=2
G25: TIME | I25: (Min) | J25: To | K25: 5 | L25: 10 | M25: 15 | N25: 20 | O25: 25 | P25: 30 | Q25: 35 | R25: 40 | S25: 45 | T25: 50 | U25: 55 | V25: 60 | W25: 65 | X25: 70 | Y25: 75 | Z25: 80 | AA25: 85 | AB25: 90 | AC25: 95 | AD25: 100 | AE25: 105 | AF25: 110 | AG25: 115 | AH25: 120 | AI25: 125 | AJ25: 130 | AK25: 135 | AL25: 140 | AM25: 145 | AN25: 150 | AO25: 155 | AP25: 160 | AQ25: 165 | AR25: 170 | AS25: 175 | AT25: 180 | AU25: 185 | AV25: 190 | AW25: 195 | AX25: 200 | AY25: 205 | AZ25: 210 | BA25: 215 | BB25: 220 | BC25: 225 | BD25: 230 | BE25: 235 | BF25: 240 | BG25: 245 | BH25: 250 | BI25: 255 | BJ25: 260 | BK25: 265 | BL25: 270 | BM25: 275 | BN25: 280 | BO25: 285 | BP25: 290 | BQ25: 295 | BR25: 300 | BV25: BORNES VALIDATION
F26: Ketamine | I26: Bolus | M26: 20
I27: Infusion | L27: 0.3
BV28: inf (0) | BW28: sup
B29: C o n c e n t r a t i o n C o n c e n t r a t i o n C o n c e n t r a t i o n | C29: 10 | D29: Ketamine | I29: Bolus mg | J29: 0 | BV29: 0 | BW29: 300 | BX29: bolus mg
D30: mg/kg/h | I30: Infusion | J30: 0 | K30: =J30 -> 0 | L30: =K30 -> 0 | M30: 0 | N30: 0 | O30: 0 | P30: 0 | Q30: 0 | R30: 0 | S30: 0 | T30: 0 | U30: 0 | V30: 0 | W30: 0 | X30: 0 | Y30: 0 | Z30: 0 | AA30: 0 | AB30: 0 | AC30: 0 | AD30: 0 | AE30: 0 | AF30: 0 | AG30: 0 | AH30: 0 | AI30: 0 | AJ30: 0 | AK30: 0 | AL30: 0 | AM30: 0 | AN30: 0 | AO30: 0 | AP30: 0 | AQ30: 0 | AR30: 0 | AS30: 0 | AT30: 0 | AU30: 0 | AV30: 0 | AW30: 0 | AX30: 0 | AY30: 0 | AZ30: 0 | BA30: 0 | BB30: 0 | BC30: 0 | BD30: 0 | BE30: 0 | BF30: 0 | BG30: 0 | BH30: 0 | BI30: 0 | BJ30: 0 | BK30: 0 | BL30: 0 | BM30: 0 | BN30: 0 | BO30: 0 | BP30: 0 | BQ30: 0 | BR30: 0 | BV30: 0 | BW30: 5 | BX30: mg/kg/h | CA30: mise en forme conditionnelle Cp
D31: µg/kg/min | I31: Infusion | J31: 0 | K31: =J31 -> 0 | L31: =K31 -> 0 | M31: 0 | N31: 0 | O31: 0 | P31: 0 | Q31: 0 | R31: 0 | S31: 0 | T31: 0 | U31: 0 | V31: 0 | W31: 0 | X31: 0 | Y31: 0 | Z31: 0 | AA31: 0 | AB31: 0 | AC31: 0 | AD31: 0 | AE31: 0 | AF31: 0 | AG31: 0 | AH31: 0 | AI31: 0 | AJ31: 0 | AK31: 0 | AL31: 0 | AM31: 0 | AN31: 0 | AO31: 0 | AP31: 0 | AQ31: 0 | AR31: 0 | AS31: 0 | AT31: 0 | AU31: 0 | AV31: 0 | AW31: 0 | AX31: 0 | AY31: 0 | AZ31: 0 | BA31: 0 | BB31: 0 | BC31: 0 | BD31: 0 | BE31: 0 | BF31: 0 | BG31: 0 | BH31: 0 | BI31: 0 | BJ31: 0 | BK31: 0 | BL31: 0 | BM31: 0 | BN31: 0 | BO31: 0 | BP31: 0 | BQ31: 0 | BR31: 0 | BS31: =BR31 -> 0 | BV31: 0 | BW31: 12 | BX31: µg/kg/min
C32: Scale | G32: mL | I32: Volume | J32: 0 | K32: =J32 + (K29/Concentration_Ketamine) + ( (5*K30*Poids)/(60*Concentration_Ketamine) ) + ( (5*K31*Poids)/(1000*Concentration_Ketamine) ) -> 0 | L32: 0 | M32: 0 | N32: 0 | O32: 0 | P32: 0 | Q32: 0 | R32: 0 | S32: 0 | T32: 0 | U32: 0 | V32: 0 | W32: 0 | X32: 0 | Y32: 0 | Z32: 0 | AA32: 0 | AB32: 0 | AC32: 0 | AD32: 0 | AE32: 0 | AF32: 0 | AG32: 0 | AH32: 0 | AI32: 0 | AJ32: 0 | AK32: 0 | AL32: 0 | AM32: 0 | AN32: 0 | AO32: 0 | AP32: 0 | AQ32: =AP32 + (AQ29/Concentration_Ketamine) + ( (5*AQ30*Poids)/(60*Concentration_Ketamine) ) + ( (5*AQ31*Poids)/(1000*Concentration_Ketamine) ) -> 0 | AR32: 0 | AS32: 0 | AT32: 0 | AU32: 0 | AV32: 0 | AW32: 0 | AX32: 0 | AY32: 0 | AZ32: 0 | BA32: 0 | BB32: 0 | BC32: 0 | BD32: 0 | BE32: 0 | BF32: 0 | BG32: 0 | BH32: 0 | BI32: 0 | BJ32: 0 | BK32: 0 | BL32: 0 | BM32: 0 | BN32: 0 | BO32: 0 | BP32: 0 | BQ32: 0 | BR32: 0
E33: Labels | G33: ng/mL | I33: Cp | J33: 0 | K33: =Ket!W108*1000 -> 0 | L33: =Ket!X108*1000 -> 0 | M33: =Ket!Y108*1000 -> 0 | N33: =Ket!Z108*1000 -> 0 | O33: =Ket!AA108*1000 -> 0 | P33: =Ket!AB108*1000 -> 0 | Q33: =Ket!AC108*1000 -> 0 | R33: =Ket!AD108*1000 -> 0 | S33: =Ket!AE108*1000 -> 0 | T33: =Ket!AF108*1000 -> 0 | U33: =Ket!AG108*1000 -> 0 | V33: =Ket!AH108*1000 -> 0 | W33: =Ket!AI108*1000 -> 0 | X33: =Ket!AJ108*1000 -> 0 | Y33: =Ket!AK108*1000 -> 0 | Z33: =Ket!AL108*1000 -> 0 | AA33: =Ket!AM108*1000 -> 0 | AB33: =Ket!AN108*1000 -> 0 | AC33: =Ket!AO108*1000 -> 0 | AD33: =Ket!AP108*1000 -> 0 | AE33: =Ket!AQ108*1000 -> 0 | AF33: =Ket!AR108*1000 -> 0 | AG33: =Ket!AS108*1000 -> 0 | AH33: =Ket!AT108*1000 -> 0 | AI33: =Ket!AU108*1000 -> 0 | AJ33: =Ket!AV108*1000 -> 0 | AK33: =Ket!AW108*1000 -> 0 | AL33: =Ket!AX108*1000 -> 0 | AM33: =Ket!AY108*1000 -> 0 | AN33: =Ket!AZ108*1000 -> 0 | AO33: =Ket!BA108*1000 -> 0 | AP33: =Ket!BB108*1000 -> 0 | AQ33: =Ket!BC108*1000 -> 0 | AR33: =Ket!BD108*1000 -> 0 | AS33: =Ket!BE108*1000 -> 0 | AT33: =Ket!BF108*1000 -> 0 | AU33: =Ket!BG108*1000 -> 0 | AV33: =Ket!BH108*1000 -> 0 | AW33: =Ket!BI108*1000 -> 0 | AX33: =Ket!BJ108*1000 -> 0 | AY33: =Ket!BK108*1000 -> 0 | AZ33: =Ket!BL108*1000 -> 0 | BA33: =Ket!BM108*1000 -> 0 | BB33: =Ket!BN108*1000 -> 0 | BC33: =Ket!BO108*1000 -> 0 | BD33: =Ket!BP108*1000 -> 0 | BE33: =Ket!BQ108*1000 -> 0 | BF33: =Ket!BR108*1000 -> 0 | BG33: =Ket!BS108*1000 -> 0 | BH33: =Ket!BT108*1000 -> 0 | BI33: =Ket!BU108*1000 -> 0 | BJ33: =Ket!BV108*1000 -> 0 | BK33: =Ket!BW108*1000 -> 0 | BL33: =Ket!BX108*1000 -> 0 | BM33: =Ket!BY108*1000 -> 0 | BN33: =Ket!BZ108*1000 -> 0 | BO33: =Ket!CA108*1000 -> 0 | BP33: =Ket!CB108*1000 -> 0 | BQ33: =Ket!CC108*1000 -> 0 | BR33: =Ket!CD108*1000 -> 0 | BY33: Ketamine | BZ33: ng/mL | CB33: 1 | CC33: 21 | CD33: 101 | CE33: 401 | CF33: 701 | CG33: 1001 | CH33: 3001
C35: 10 | D35: Propofol | I35: Bolus mg | J35: 0 | BV35: 0 | BW35: 600 | BX35: bolus mg
D36: mg/kg/h | I36: Infusion | J36: 0 | K36: =J36 -> 0 | L36: =K36 -> 0 | M36: 0 | N36: 0 | O36: 0 | P36: 0 | Q36: 0 | R36: 0 | S36: 0 | T36: 0 | U36: 0 | V36: 0 | W36: 0 | X36: 0 | Y36: 0 | Z36: 0 | AA36: 0 | AB36: 0 | AC36: 0 | AD36: 0 | AE36: 0 | AF36: 0 | AG36: 0 | AH36: 0 | AI36: 0 | AJ36: 0 | AK36: 0 | AL36: 0 | AM36: 0 | AN36: 0 | AO36: 0 | AP36: 0 | AQ36: 0 | AR36: 0 | AS36: 0 | AT36: 0 | AU36: 0 | AV36: 0 | AW36: 0 | AX36: 0 | AY36: 0 | AZ36: 0 | BA36: 0 | BB36: 0 | BC36: 0 | BD36: 0 | BE36: 0 | BF36: 0 | BG36: 0 | BH36: 0 | BI36: 0 | BJ36: 0 | BK36: 0 | BL36: 0 | BM36: 0 | BN36: 0 | BO36: 0 | BP36: 0 | BQ36: 0 | BR36: 0 | BV36: 0 | BW36: 20 | BX36: mg/kg/h
G37: mL | I37: Volume | J37: 0 | K37: =J37 + (K35/Concentration_propofol) + (5*K36*Poids)/(60*Concentration_propofol) -> 0 | L37: 0 | M37: 0 | N37: 0 | O37: 0 | P37: 0 | Q37: 0 | R37: 0 | S37: 0 | T37: 0 | U37: 0 | V37: 0 | W37: 0 | X37: 0 | Y37: 0 | Z37: 0 | AA37: 0 | AB37: 0 | AC37: 0 | AD37: 0 | AE37: 0 | AF37: 0 | AG37: 0 | AH37: 0 | AI37: 0 | AJ37: 0 | AK37: 0 | AL37: 0 | AM37: 0 | AN37: 0 | AO37: 0 | AP37: 0 | AQ37: =AP37 + (AQ35/Concentration_propofol) + (5*AQ36*Poids)/(60*Concentration_propofol) -> 0 | AR37: 0 | AS37: 0 | AT37: 0 | AU37: 0 | AV37: 0 | AW37: 0 | AX37: 0 | AY37: 0 | AZ37: 0 | BA37: 0 | BB37: 0 | BC37: 0 | BD37: 0 | BE37: 0 | BF37: 0 | BG37: 0 | BH37: 0 | BI37: 0 | BJ37: 0 | BK37: 0 | BL37: 0 | BM37: 0 | BN37: 0 | BO37: 0 | BP37: 0 | BQ37: 0 | BR37: 0 | CC37: 4 | CD37: 6
C38: Scale | E38: Labels | G38: µg/mL | I38: Cp | J38: 0 | K38: =Propofol!W113 -> 0 | L38: =Propofol!X113 -> 0 | M38: =Propofol!Y113 -> 0 | N38: =Propofol!Z113 -> 0 | O38: =Propofol!AA113 -> 0 | P38: =Propofol!AB113 -> 0 | Q38: =Propofol!AC113 -> 0 | R38: =Propofol!AD113 -> 0 | S38: =Propofol!AE113 -> 0 | T38: =Propofol!AF113 -> 0 | U38: =Propofol!AG113 -> 0 | V38: =Propofol!AH113 -> 0 | W38: =Propofol!AI113 -> 0 | X38: =Propofol!AJ113 -> 0 | Y38: =Propofol!AK113 -> 0 | Z38: =Propofol!AL113 -> 0 | AA38: =Propofol!AM113 -> 0 | AB38: =Propofol!AN113 -> 0 | AC38: =Propofol!AO113 -> 0 | AD38: =Propofol!AP113 -> 0 | AE38: =Propofol!AQ113 -> 0 | AF38: =Propofol!AR113 -> 0 | AG38: =Propofol!AS113 -> 0 | AH38: =Propofol!AT113 -> 0 | AI38: =Propofol!AU113 -> 0 | AJ38: =Propofol!AV113 -> 0 | AK38: =Propofol!AW113 -> 0 | AL38: =Propofol!AX113 -> 0 | AM38: =Propofol!AY113 -> 0 | AN38: =Propofol!AZ113 -> 0 | AO38: =Propofol!BA113 -> 0 | AP38: =Propofol!BB113 -> 0 | AQ38: =Propofol!BC113 -> 0 | AR38: =Propofol!BD113 -> 0 | AS38: =Propofol!BE113 -> 0 | AT38: =Propofol!BF113 -> 0 | AU38: =Propofol!BG113 -> 0 | AV38: =Propofol!BH113 -> 0 | AW38: =Propofol!BI113 -> 0 | AX38: =Propofol!BJ113 -> 0 | AY38: =Propofol!BK113 -> 0 | AZ38: =Propofol!BL113 -> 0 | BA38: =Propofol!BM113 -> 0 | BB38: =Propofol!BN113 -> 0 | BC38: =Propofol!BO113 -> 0 | BD38: =Propofol!BP113 -> 0 | BE38: =Propofol!BQ113 -> 0 | BF38: =Propofol!BR113 -> 0 | BG38: =Propofol!BS113 -> 0 | BH38: =Propofol!BT113 -> 0 | BI38: =Propofol!BU113 -> 0 | BJ38: =Propofol!BV113 -> 0 | BK38: =Propofol!BW113 -> 0 | BL38: =Propofol!BX113 -> 0 | BM38: =Propofol!BY113 -> 0 | BN38: =Propofol!BZ113 -> 0 | BO38: =Propofol!CA113 -> 0 | BP38: =Propofol!CB113 -> 0 | BQ38: =Propofol!CC113 -> 0 | BR38: =Propofol!CD113 -> 0 | BY38: Propofol | BZ38: µg/mL | CB38: 1 | CC38: 4.1 | CD38: 6.1 | CE38: µg/mL
G39: µg/mL | I39: Ce | J39: 0 | K39: =Propofol!W114 -> 0 | L39: =Propofol!X114 -> 0 | M39: =Propofol!Y114 -> 0 | N39: =Propofol!Z114 -> 0 | O39: =Propofol!AA114 -> 0 | P39: =Propofol!AB114 -> 0 | Q39: =Propofol!AC114 -> 0 | R39: =Propofol!AD114 -> 0 | S39: =Propofol!AE114 -> 0 | T39: =Propofol!AF114 -> 0 | U39: =Propofol!AG114 -> 0 | V39: =Propofol!AH114 -> 0 | W39: =Propofol!AI114 -> 0 | X39: =Propofol!AJ114 -> 0 | Y39: =Propofol!AK114 -> 0 | Z39: =Propofol!AL114 -> 0 | AA39: =Propofol!AM114 -> 0 | AB39: =Propofol!AN114 -> 0 | AC39: =Propofol!AO114 -> 0 | AD39: =Propofol!AP114 -> 0 | AE39: =Propofol!AQ114 -> 0 | AF39: =Propofol!AR114 -> 0 | AG39: =Propofol!AS114 -> 0 | AH39: =Propofol!AT114 -> 0 | AI39: =Propofol!AU114 -> 0 | AJ39: =Propofol!AV114 -> 0 | AK39: =Propofol!AW114 -> 0 | AL39: =Propofol!AX114 -> 0 | AM39: =Propofol!AY114 -> 0 | AN39: =Propofol!AZ114 -> 0 | AO39: =Propofol!BA114 -> 0 | AP39: =Propofol!BB114 -> 0 | AQ39: =Propofol!BC114 -> 0 | AR39: =Propofol!BD114 -> 0 | AS39: =Propofol!BE114 -> 0 | AT39: =Propofol!BF114 -> 0 | AU39: =Propofol!BG114 -> 0 | AV39: =Propofol!BH114 -> 0 | AW39: =Propofol!BI114 -> 0 | AX39: =Propofol!BJ114 -> 0 | AY39: =Propofol!BK114 -> 0 | AZ39: =Propofol!BL114 -> 0 | BA39: =Propofol!BM114 -> 0 | BB39: =Propofol!BN114 -> 0 | BC39: =Propofol!BO114 -> 0 | BD39: =Propofol!BP114 -> 0 | BE39: =Propofol!BQ114 -> 0 | BF39: =Propofol!BR114 -> 0 | BG39: =Propofol!BS114 -> 0 | BH39: =Propofol!BT114 -> 0 | BI39: =Propofol!BU114 -> 0 | BJ39: =Propofol!BV114 -> 0 | BK39: =Propofol!BW114 -> 0 | BL39: =Propofol!BX114 -> 0 | BM39: =Propofol!BY114 -> 0 | BN39: =Propofol!BZ114 -> 0 | BO39: =Propofol!CA114 -> 0 | BP39: =Propofol!CB114 -> 0 | BQ39: =Propofol!CC114 -> 0 | BR39: =Propofol!CD114 -> 0
C41: 5 | D41: Sufentanil | I41: Bolus µg | J41: 0 | BV41: 0 | BW41: 50 | BX41: bolus µg
D42: µg/kg/h | I42: Infusion | J42: 0 | K42: =J42 -> 0 | L42: =K42 -> 0 | M42: 0 | N42: 0 | O42: 0 | P42: 0 | Q42: 0 | R42: 0 | S42: 0 | T42: 0 | U42: 0 | V42: 0 | W42: 0 | X42: 0 | Y42: 0 | Z42: 0 | AA42: 0 | AB42: 0 | AC42: 0 | AD42: 0 | AE42: 0 | AF42: 0 | AG42: 0 | AH42: 0 | AI42: 0 | AJ42: 0 | AK42: 0 | AL42: 0 | AM42: 0 | AN42: 0 | AO42: 0 | AP42: 0 | AQ42: 0 | AR42: 0 | AS42: 0 | AT42: 0 | AU42: 0 | AV42: 0 | AW42: 0 | AX42: 0 | AY42: 0 | AZ42: 0 | BA42: 0 | BB42: 0 | BC42: 0 | BD42: 0 | BE42: 0 | BF42: 0 | BG42: 0 | BH42: 0 | BI42: 0 | BJ42: 0 | BK42: 0 | BL42: 0 | BM42: 0 | BN42: 0 | BO42: 0 | BP42: 0 | BQ42: 0 | BR42: 0 | BV42: 0 | BW42: 10 | BX42: µg/kg/h
G43: mL | I43: Volume | J43: 0 | K43: =J43 + (K41/Concentration_Sufenta) + (5*K42*Poids)/(60*Concentration_Sufenta) -> 0 | L43: 0 | M43: 0 | N43: 0 | O43: 0 | P43: 0 | Q43: 0 | R43: 0 | S43: 0 | T43: 0 | U43: 0 | V43: 0 | W43: 0 | X43: 0 | Y43: 0 | Z43: 0 | AA43: 0 | AB43: 0 | AC43: 0 | AD43: 0 | AE43: 0 | AF43: 0 | AG43: 0 | AH43: 0 | AI43: 0 | AJ43: 0 | AK43: 0 | AL43: 0 | AM43: 0 | AN43: 0 | AO43: 0 | AP43: 0 | AQ43: =AP43 + (AQ41/Concentration_Sufenta) + (5*AQ42*Poids)/(60*Concentration_Sufenta) -> 0 | AR43: 0 | AS43: 0 | AT43: 0 | AU43: 0 | AV43: 0 | AW43: 0 | AX43: 0 | AY43: 0 | AZ43: 0 | BA43: 0 | BB43: 0 | BC43: 0 | BD43: 0 | BE43: 0 | BF43: 0 | BG43: 0 | BH43: 0 | BI43: 0 | BJ43: 0 | BK43: 0 | BL43: 0 | BM43: 0 | BN43: 0 | BO43: 0 | BP43: 0 | BQ43: 0 | BR43: 0 | CC43: 0.1 | CD43: 0.6
C44: Scale | E44: Labels | G44: ng/mL | I44: Cp | J44: 0 | K44: =Sufenta!W113 -> 0 | L44: =Sufenta!X113 -> 0 | M44: =Sufenta!Y113 -> 0 | N44: =Sufenta!Z113 -> 0 | O44: =Sufenta!AA113 -> 0 | P44: =Sufenta!AB113 -> 0 | Q44: =Sufenta!AC113 -> 0 | R44: =Sufenta!AD113 -> 0 | S44: =Sufenta!AE113 -> 0 | T44: =Sufenta!AF113 -> 0 | U44: =Sufenta!AG113 -> 0 | V44: =Sufenta!AH113 -> 0 | W44: =Sufenta!AI113 -> 0 | X44: =Sufenta!AJ113 -> 0 | Y44: =Sufenta!AK113 -> 0 | Z44: =Sufenta!AL113 -> 0 | AA44: =Sufenta!AM113 -> 0 | AB44: =Sufenta!AN113 -> 0 | AC44: =Sufenta!AO113 -> 0 | AD44: =Sufenta!AP113 -> 0 | AE44: =Sufenta!AQ113 -> 0 | AF44: =Sufenta!AR113 -> 0 | AG44: =Sufenta!AS113 -> 0 | AH44: =Sufenta!AT113 -> 0 | AI44: =Sufenta!AU113 -> 0 | AJ44: =Sufenta!AV113 -> 0 | AK44: =Sufenta!AW113 -> 0 | AL44: =Sufenta!AX113 -> 0 | AM44: =Sufenta!AY113 -> 0 | AN44: =Sufenta!AZ113 -> 0 | AO44: =Sufenta!BA113 -> 0 | AP44: =Sufenta!BB113 -> 0 | AQ44: =Sufenta!BC113 -> 0 | AR44: =Sufenta!BD113 -> 0 | AS44: =Sufenta!BE113 -> 0 | AT44: =Sufenta!BF113 -> 0 | AU44: =Sufenta!BG113 -> 0 | AV44: =Sufenta!BH113 -> 0 | AW44: =Sufenta!BI113 -> 0 | AX44: =Sufenta!BJ113 -> 0 | AY44: =Sufenta!BK113 -> 0 | AZ44: =Sufenta!BL113 -> 0 | BA44: =Sufenta!BM113 -> 0 | BB44: =Sufenta!BN113 -> 0 | BC44: =Sufenta!BO113 -> 0 | BD44: =Sufenta!BP113 -> 0 | BE44: =Sufenta!BQ113 -> 0 | BF44: =Sufenta!BR113 -> 0 | BG44: =Sufenta!BS113 -> 0 | BH44: =Sufenta!BT113 -> 0 | BI44: =Sufenta!BU113 -> 0 | BJ44: =Sufenta!BV113 -> 0 | BK44: =Sufenta!BW113 -> 0 | BL44: =Sufenta!BX113 -> 0 | BM44: =Sufenta!BY113 -> 0 | BN44: =Sufenta!BZ113 -> 0 | BO44: =Sufenta!CA113 -> 0 | BP44: =Sufenta!CB113 -> 0 | BQ44: =Sufenta!CC113 -> 0 | BR44: =Sufenta!CD113 -> 0 | BY44: Sufentanil | BZ44: ng/mL | CB44: 0.005 | CC44: 0.11 | CD44: 0.61 | CE44: ng/mL
G45: ng/mL | I45: Ce | J45: 0 | K45: =Sufenta!W114 -> 0 | L45: =Sufenta!X114 -> 0 | M45: =Sufenta!Y114 -> 0 | N45: =Sufenta!Z114 -> 0 | O45: =Sufenta!AA114 -> 0 | P45: =Sufenta!AB114 -> 0 | Q45: =Sufenta!AC114 -> 0 | R45: =Sufenta!AD114 -> 0 | S45: =Sufenta!AE114 -> 0 | T45: =Sufenta!AF114 -> 0 | U45: =Sufenta!AG114 -> 0 | V45: =Sufenta!AH114 -> 0 | W45: =Sufenta!AI114 -> 0 | X45: =Sufenta!AJ114 -> 0 | Y45: =Sufenta!AK114 -> 0 | Z45: =Sufenta!AL114 -> 0 | AA45: =Sufenta!AM114 -> 0 | AB45: =Sufenta!AN114 -> 0 | AC45: =Sufenta!AO114 -> 0 | AD45: =Sufenta!AP114 -> 0 | AE45: =Sufenta!AQ114 -> 0 | AF45: =Sufenta!AR114 -> 0 | AG45: =Sufenta!AS114 -> 0 | AH45: =Sufenta!AT114 -> 0 | AI45: =Sufenta!AU114 -> 0 | AJ45: =Sufenta!AV114 -> 0 | AK45: =Sufenta!AW114 -> 0 | AL45: =Sufenta!AX114 -> 0 | AM45: =Sufenta!AY114 -> 0 | AN45: =Sufenta!AZ114 -> 0 | AO45: =Sufenta!BA114 -> 0 | AP45: =Sufenta!BB114 -> 0 | AQ45: =Sufenta!BC114 -> 0 | AR45: =Sufenta!BD114 -> 0 | AS45: =Sufenta!BE114 -> 0 | AT45: =Sufenta!BF114 -> 0 | AU45: =Sufenta!BG114 -> 0 | AV45: =Sufenta!BH114 -> 0 | AW45: =Sufenta!BI114 -> 0 | AX45: =Sufenta!BJ114 -> 0 | AY45: =Sufenta!BK114 -> 0 | AZ45: =Sufenta!BL114 -> 0 | BA45: =Sufenta!BM114 -> 0 | BB45: =Sufenta!BN114 -> 0 | BC45: =Sufenta!BO114 -> 0 | BD45: =Sufenta!BP114 -> 0 | BE45: =Sufenta!BQ114 -> 0 | BF45: =Sufenta!BR114 -> 0 | BG45: =Sufenta!BS114 -> 0 | BH45: =Sufenta!BT114 -> 0 | BI45: =Sufenta!BU114 -> 0 | BJ45: =Sufenta!BV114 -> 0 | BK45: =Sufenta!BW114 -> 0 | BL45: =Sufenta!BX114 -> 0 | BM45: =Sufenta!BY114 -> 0 | BN45: =Sufenta!BZ114 -> 0 | BO45: =Sufenta!CA114 -> 0 | BP45: =Sufenta!CB114 -> 0 | BQ45: =Sufenta!CC114 -> 0 | BR45: =Sufenta!CD114 -> 0
C47: 100 | D47: Alfentanil | I47: Bolus mg | BV47: 0 | BW47: 5 | BX47: bolus mg
D48: µg/kg/min | I48: Infusion | K48: =J48 -> 0 | L48: =K48 -> 0 | M48: 0 | N48: 0 | O48: 0 | P48: 0 | Q48: 0 | R48: 0 | S48: 0 | T48: 0 | U48: 0 | V48: 0 | W48: 0 | X48: 0 | Y48: 0 | Z48: 0 | AA48: 0 | AB48: 0 | AC48: 0 | AD48: 0 | AE48: 0 | AF48: 0 | AG48: 0 | AH48: 0 | AI48: 0 | AJ48: 0 | AK48: 0 | AL48: 0 | AM48: 0 | AN48: 0 | AO48: 0 | AP48: 0 | AQ48: 0 | AR48: 0 | AS48: 0 | AT48: 0 | AU48: 0 | AV48: 0 | AW48: 0 | AX48: 0 | AY48: 0 | AZ48: 0 | BA48: 0 | BB48: 0 | BC48: 0 | BD48: 0 | BE48: 0 | BF48: 0 | BG48: 0 | BH48: 0 | BI48: 0 | BJ48: 0 | BK48: 0 | BL48: 0 | BM48: 0 | BN48: 0 | BO48: 0 | BP48: 0 | BQ48: 0 | BR48: 0 | BV48: 0 | BW48: 2 | BX48: µg/kg/min
G49: mL | I49: Volume | K49: =J49+((K47*1000)/Concentration_Rapifen)+ ((5*K48*Poids)/Concentration_Rapifen) -> 0 | L49: 0 | M49: 0 | N49: 0 | O49: 0 | P49: 0 | Q49: 0 | R49: 0 | S49: 0 | T49: 0 | U49: 0 | V49: 0 | W49: 0 | X49: 0 | Y49: 0 | Z49: 0 | AA49: 0 | AB49: 0 | AC49: 0 | AD49: 0 | AE49: 0 | AF49: 0 | AG49: 0 | AH49: 0 | AI49: 0 | AJ49: 0 | AK49: 0 | AL49: 0 | AM49: 0 | AN49: 0 | AO49: 0 | AP49: 0 | AQ49: =AP49+((AQ47*1000)/Concentration_Rapifen)+ ((5*AQ48*Poids)/Concentration_Rapifen) -> 0 | AR49: 0 | AS49: 0 | AT49: 0 | AU49: 0 | AV49: 0 | AW49: 0 | AX49: 0 | AY49: 0 | AZ49: 0 | BA49: 0 | BB49: 0 | BC49: 0 | BD49: 0 | BE49: 0 | BF49: 0 | BG49: 0 | BH49: 0 | BI49: 0 | BJ49: 0 | BK49: 0 | BL49: 0 | BM49: 0 | BN49: 0 | BO49: 0 | BP49: 0 | BQ49: 0 | BR49: 0 | CC49: 70 | CD49: 120
C50: Scale | E50: Labels | G50: ng/mL | I50: Cp | J50: 0 | K50: =Rapifen!X113 -> 0 | L50: =Rapifen!Y113 -> 0 | M50: =Rapifen!Z113 -> 0 | N50: =Rapifen!AA113 -> 0 | O50: =Rapifen!AB113 -> 0 | P50: =Rapifen!AC113 -> 0 | Q50: =Rapifen!AD113 -> 0 | R50: =Rapifen!AE113 -> 0 | S50: =Rapifen!AF113 -> 0 | T50: =Rapifen!AG113 -> 0 | U50: =Rapifen!AH113 -> 0 | V50: =Rapifen!AI113 -> 0 | W50: =Rapifen!AJ113 -> 0 | X50: =Rapifen!AK113 -> 0 | Y50: =Rapifen!AL113 -> 0 | Z50: =Rapifen!AM113 -> 0 | AA50: =Rapifen!AN113 -> 0 | AB50: =Rapifen!AO113 -> 0 | AC50: =Rapifen!AP113 -> 0 | AD50: =Rapifen!AQ113 -> 0 | AE50: =Rapifen!AR113 -> 0 | AF50: =Rapifen!AS113 -> 0 | AG50: =Rapifen!AT113 -> 0 | AH50: =Rapifen!AU113 -> 0 | AI50: =Rapifen!AV113 -> 0 | AJ50: =Rapifen!AW113 -> 0 | AK50: =Rapifen!AX113 -> 0 | AL50: =Rapifen!AY113 -> 0 | AM50: =Rapifen!AZ113 -> 0 | AN50: =Rapifen!BA113 -> 0 | AO50: =Rapifen!BB113 -> 0 | AP50: =Rapifen!BC113 -> 0 | AQ50: =Rapifen!BD113 -> 0 | AR50: =Rapifen!BE113 -> 0 | AS50: =Rapifen!BF113 -> 0 | AT50: =Rapifen!BG113 -> 0 | AU50: =Rapifen!BH113 -> 0 | AV50: =Rapifen!BI113 -> 0 | AW50: =Rapifen!BJ113 -> 0 | AX50: =Rapifen!BK113 -> 0 | AY50: =Rapifen!BL113 -> 0 | AZ50: =Rapifen!BM113 -> 0 | BA50: =Rapifen!BN113 -> 0 | BB50: =Rapifen!BO113 -> 0 | BC50: =Rapifen!BP113 -> 0 | BD50: =Rapifen!BQ113 -> 0 | BE50: =Rapifen!BR113 -> 0 | BF50: =Rapifen!BS113 -> 0 | BG50: =Rapifen!BT113 -> 0 | BH50: =Rapifen!BU113 -> 0 | BI50: =Rapifen!BV113 -> 0 | BJ50: =Rapifen!BW113 -> 0 | BK50: =Rapifen!BX113 -> 0 | BL50: =Rapifen!BY113 -> 0 | BM50: =Rapifen!BZ113 -> 0 | BN50: =Rapifen!CA113 -> 0 | BO50: =Rapifen!CB113 -> 0 | BP50: =Rapifen!CC113 -> 0 | BQ50: =Rapifen!CD113 -> 0 | BR50: =Rapifen!CE113 -> 0 | BY50: Alfentanil | BZ50: ng/mL | CB50: 50 | CC50: 71 | CD50: 150 | CE50: ng/mL
G51: ng/mL | I51: Ce | J51: 0 | K51: =Rapifen!X114 -> 0 | L51: =Rapifen!Y114 -> 0 | M51: =Rapifen!Z114 -> 0 | N51: =Rapifen!AA114 -> 0 | O51: =Rapifen!AB114 -> 0 | P51: =Rapifen!AC114 -> 0 | Q51: =Rapifen!AD114 -> 0 | R51: =Rapifen!AE114 -> 0 | S51: =Rapifen!AF114 -> 0 | T51: =Rapifen!AG114 -> 0 | U51: =Rapifen!AH114 -> 0 | V51: =Rapifen!AI114 -> 0 | W51: =Rapifen!AJ114 -> 0 | X51: =Rapifen!AK114 -> 0 | Y51: =Rapifen!AL114 -> 0 | Z51: =Rapifen!AM114 -> 0 | AA51: =Rapifen!AN114 -> 0 | AB51: =Rapifen!AO114 -> 0 | AC51: =Rapifen!AP114 -> 0 | AD51: =Rapifen!AQ114 -> 0 | AE51: =Rapifen!AR114 -> 0 | AF51: =Rapifen!AS114 -> 0 | AG51: =Rapifen!AT114 -> 0 | AH51: =Rapifen!AU114 -> 0 | AI51: =Rapifen!AV114 -> 0 | AJ51: =Rapifen!AW114 -> 0 | AK51: =Rapifen!AX114 -> 0 | AL51: =Rapifen!AY114 -> 0 | AM51: =Rapifen!AZ114 -> 0 | AN51: =Rapifen!BA114 -> 0 | AO51: =Rapifen!BB114 -> 0 | AP51: =Rapifen!BC114 -> 0 | AQ51: =Rapifen!BD114 -> 0 | AR51: =Rapifen!BE114 -> 0 | AS51: =Rapifen!BF114 -> 0 | AT51: =Rapifen!BG114 -> 0 | AU51: =Rapifen!BH114 -> 0 | AV51: =Rapifen!BI114 -> 0 | AW51: =Rapifen!BJ114 -> 0 | AX51: =Rapifen!BK114 -> 0 | AY51: =Rapifen!BL114 -> 0 | AZ51: =Rapifen!BM114 -> 0 | BA51: =Rapifen!BN114 -> 0 | BB51: =Rapifen!BO114 -> 0 | BC51: =Rapifen!BP114 -> 0 | BD51: =Rapifen!BQ114 -> 0 | BE51: =Rapifen!BR114 -> 0 | BF51: =Rapifen!BS114 -> 0 | BG51: =Rapifen!BT114 -> 0 | BH51: =Rapifen!BU114 -> 0 | BI51: =Rapifen!BV114 -> 0 | BJ51: =Rapifen!BW114 -> 0 | BK51: =Rapifen!BX114 -> 0 | BL51: =Rapifen!BY114 -> 0 | BM51: =Rapifen!BZ114 -> 0 | BN51: =Rapifen!CA114 -> 0 | BO51: =Rapifen!CB114 -> 0 | BP51: =Rapifen!CC114 -> 0 | BQ51: =Rapifen!CD114 -> 0 | BR51: =Rapifen!CE114 -> 0
C53: 50 | D53: Remifentanil | I53: Bolus µg | J53: 0 | BV53: 0 | BW53: 750 | BX53: bolus
D54: µg/kg/min | I54: Infusion | J54: 0 | K54: =J54 -> 0 | L54: =K54 -> 0 | M54: 0 | N54: 0 | O54: 0 | P54: 0 | Q54: 0 | R54: 0 | S54: 0 | T54: 0 | U54: 0 | V54: 0 | W54: 0 | X54: 0 | Y54: 0 | Z54: 0 | AA54: 0 | AB54: 0 | AC54: 0 | AD54: 0 | AE54: 0 | AF54: 0 | AG54: 0 | AH54: 0 | AI54: 0 | AJ54: 0 | AK54: 0 | AL54: 0 | AM54: 0 | AN54: 0 | AO54: 0 | AP54: 0 | AQ54: 0 | AR54: 0 | AS54: 0 | AT54: 0 | AU54: 0 | AV54: 0 | AW54: 0 | AX54: 0 | AY54: 0 | AZ54: 0 | BA54: 0 | BB54: 0 | BC54: 0 | BD54: 0 | BE54: 0 | BF54: 0 | BG54: 0 | BH54: 0 | BI54: 0 | BJ54: 0 | BK54: 0 | BL54: 0 | BM54: 0 | BN54: 0 | BO54: 0 | BP54: 0 | BQ54: 0 | BR54: 0 | BV54: 0 | BW54: 5 | BX54: µg/kg/min
G55: mL | I55: Volume | J55: 0 | K55: =J55 + (K53/Concentration_Remi) + (5*K54*Poids)/(Concentration_Remi) -> 0 | L55: 0 | M55: 0 | N55: 0 | O55: 0 | P55: 0 | Q55: 0 | R55: 0 | S55: 0 | T55: 0 | U55: 0 | V55: 0 | W55: 0 | X55: 0 | Y55: 0 | Z55: 0 | AA55: 0 | AB55: 0 | AC55: 0 | AD55: 0 | AE55: 0 | AF55: 0 | AG55: 0 | AH55: 0 | AI55: 0 | AJ55: 0 | AK55: 0 | AL55: 0 | AM55: 0 | AN55: 0 | AO55: 0 | AP55: 0 | AQ55: =AP55 + (AQ53/Concentration_Remi) + (5*AQ54*Poids)/(Concentration_Remi) -> 0 | AR55: 0 | AS55: 0 | AT55: 0 | AU55: 0 | AV55: 0 | AW55: 0 | AX55: 0 | AY55: 0 | AZ55: 0 | BA55: 0 | BB55: 0 | BC55: 0 | BD55: 0 | BE55: 0 | BF55: 0 | BG55: 0 | BH55: 0 | BI55: 0 | BJ55: 0 | BK55: 0 | BL55: 0 | BM55: 0 | BN55: 0 | BO55: 0 | BP55: 0 | BQ55: 0 | BR55: 0 | CC55: 4 | CD55: 10
C56: Scale | E56: Labels | G56: ng/mL | I56: Cp | J56: 0 | K56: =Remi!W113 -> 0 | L56: =Remi!X113 -> 0 | M56: =Remi!Y113 -> 0 | N56: =Remi!Z113 -> 0 | O56: =Remi!AA113 -> 0 | P56: =Remi!AB113 -> 0 | Q56: =Remi!AC113 -> 0 | R56: =Remi!AD113 -> 0 | S56: =Remi!AE113 -> 0 | T56: =Remi!AF113 -> 0 | U56: =Remi!AG113 -> 0 | V56: =Remi!AH113 -> 0 | W56: =Remi!AI113 -> 0 | X56: =Remi!AJ113 -> 0 | Y56: =Remi!AK113 -> 0 | Z56: =Remi!AL113 -> 0 | AA56: =Remi!AM113 -> 0 | AB56: =Remi!AN113 -> 0 | AC56: =Remi!AO113 -> 0 | AD56: =Remi!AP113 -> 0 | AE56: =Remi!AQ113 -> 0 | AF56: =Remi!AR113 -> 0 | AG56: =Remi!AS113 -> 0 | AH56: =Remi!AT113 -> 0 | AI56: =Remi!AU113 -> 0 | AJ56: =Remi!AV113 -> 0 | AK56: =Remi!AW113 -> 0 | AL56: =Remi!AX113 -> 0 | AM56: =Remi!AY113 -> 0 | AN56: =Remi!AZ113 -> 0 | AO56: =Remi!BA113 -> 0 | AP56: =Remi!BB113 -> 0 | AQ56: =Remi!BC113 -> 0 | AR56: =Remi!BD113 -> 0 | AS56: =Remi!BE113 -> 0 | AT56: =Remi!BF113 -> 0 | AU56: =Remi!BG113 -> 0 | AV56: =Remi!BH113 -> 0 | AW56: =Remi!BI113 -> 0 | AX56: =Remi!BJ113 -> 0 | AY56: =Remi!BK113 -> 0 | AZ56: =Remi!BL113 -> 0 | BA56: =Remi!BM113 -> 0 | BB56: =Remi!BN113 -> 0 | BC56: =Remi!BO113 -> 0 | BD56: =Remi!BP113 -> 0 | BE56: =Remi!BQ113 -> 0 | BF56: =Remi!BR113 -> 0 | BG56: =Remi!BS113 -> 0 | BH56: =Remi!BT113 -> 0 | BI56: =Remi!BU113 -> 0 | BJ56: =Remi!BV113 -> 0 | BK56: =Remi!BW113 -> 0 | BL56: =Remi!BX113 -> 0 | BM56: =Remi!BY113 -> 0 | BN56: =Remi!BZ113 -> 0 | BO56: =Remi!CA113 -> 0 | BP56: =Remi!CB113 -> 0 | BQ56: =Remi!CC113 -> 0 | BR56: =Remi!CD113 -> 0 | BY56: Remifentanil | BZ56: ng/mL | CB56: 3 | CC56: 4.1 | CD56: 10.1 | CE56: ng/mL
G57: ng/mL | I57: Ce | J57: 0 | K57: =Remi!W114 -> 0 | L57: =Remi!X114 -> 0 | M57: =Remi!Y114 -> 0 | N57: =Remi!Z114 -> 0 | O57: =Remi!AA114 -> 0 | P57: =Remi!AB114 -> 0 | Q57: =Remi!AC114 -> 0 | R57: =Remi!AD114 -> 0 | S57: =Remi!AE114 -> 0 | T57: =Remi!AF114 -> 0 | U57: =Remi!AG114 -> 0 | V57: =Remi!AH114 -> 0 | W57: =Remi!AI114 -> 0 | X57: =Remi!AJ114 -> 0 | Y57: =Remi!AK114 -> 0 | Z57: =Remi!AL114 -> 0 | AA57: =Remi!AM114 -> 0 | AB57: =Remi!AN114 -> 0 | AC57: =Remi!AO114 -> 0 | AD57: =Remi!AP114 -> 0 | AE57: =Remi!AQ114 -> 0 | AF57: =Remi!AR114 -> 0 | AG57: =Remi!AS114 -> 0 | AH57: =Remi!AT114 -> 0 | AI57: =Remi!AU114 -> 0 | AJ57: =Remi!AV114 -> 0 | AK57: =Remi!AW114 -> 0 | AL57: =Remi!AX114 -> 0 | AM57: =Remi!AY114 -> 0 | AN57: =Remi!AZ114 -> 0 | AO57: =Remi!BA114 -> 0 | AP57: =Remi!BB114 -> 0 | AQ57: =Remi!BC114 -> 0 | AR57: =Remi!BD114 -> 0 | AS57: =Remi!BE114 -> 0 | AT57: =Remi!BF114 -> 0 | AU57: =Remi!BG114 -> 0 | AV57: =Remi!BH114 -> 0 | AW57: =Remi!BI114 -> 0 | AX57: =Remi!BJ114 -> 0 | AY57: =Remi!BK114 -> 0 | AZ57: =Remi!BL114 -> 0 | BA57: =Remi!BM114 -> 0 | BB57: =Remi!BN114 -> 0 | BC57: =Remi!BO114 -> 0 | BD57: =Remi!BP114 -> 0 | BE57: =Remi!BQ114 -> 0 | BF57: =Remi!BR114 -> 0 | BG57: =Remi!BS114 -> 0 | BH57: =Remi!BT114 -> 0 | BI57: =Remi!BU114 -> 0 | BJ57: =Remi!BV114 -> 0 | BK57: =Remi!BW114 -> 0 | BL57: =Remi!BX114 -> 0 | BM57: =Remi!BY114 -> 0 | BN57: =Remi!BZ114 -> 0 | BO57: =Remi!CA114 -> 0 | BP57: =Remi!CB114 -> 0 | BQ57: =Remi!CC114 -> 0 | BR57: =Remi!CD114 -> 0
BY60: code couleur RGB
I61: (Min) | J61: 0 | K61: 5 | L61: 10 | M61: 15 | N61: 20 | O61: 25 | P61: 30 | Q61: 35 | R61: 40 | S61: 45 | T61: 50 | U61: 55 | V61: 60 | W61: 65 | X61: 70 | Y61: 75 | Z61: 80 | AA61: 85 | AB61: 90 | AC61: 95 | AD61: 100 | AE61: 105 | AF61: 110 | AG61: 115 | AH61: 120 | AI61: 125 | AJ61: 130 | AK61: 135 | AL61: 140 | AM61: 145 | AN61: 150 | AO61: 155 | AP61: 160 | AQ61: 165 | AR61: 170 | AS61: 175 | AT61: 180 | AU61: 185 | AV61: 190 | AW61: 195 | AX61: 200 | AY61: 205 | AZ61: 210 | BA61: 215 | BB61: 220 | BC61: 225 | BD61: 230 | BE61: 235 | BF61: 240 | BG61: 245 | BH61: 250 | BI61: 255 | BJ61: 260 | BK61: 265 | BL61: 270 | BM61: 275 | BN61: 280 | BO61: 285 | BP61: 290 | BQ61: 295 | BR61: 300 | BZ61: R | CA61: G | CB61: B
B62: Ketamine | F62: Coeff | G62: =$G$72 -> 2 | I62: Cp (K) | J62: =J33 -> 0 | K62: =((K33)*($G$72))*($G$72) -> 0 | L62: =((L33)*($G$72))*($G$72) -> 0 | M62: 0 | N62: 0 | O62: 0 | P62: 0 | Q62: 0 | R62: 0 | S62: 0 | T62: 0 | U62: 0 | V62: 0 | W62: 0 | X62: 0 | Y62: 0 | Z62: 0 | AA62: 0 | AB62: 0 | AC62: 0 | AD62: 0 | AE62: 0 | AF62: 0 | AG62: 0 | AH62: 0 | AI62: 0 | AJ62: 0 | AK62: 0 | AL62: 0 | AM62: 0 | AN62: 0 | AO62: 0 | AP62: 0 | AQ62: 0 | AR62: 0 | AS62: 0 | AT62: 0 | AU62: 0 | AV62: 0 | AW62: 0 | AX62: 0 | AY62: 0 | AZ62: 0 | BA62: 0 | BB62: 0 | BC62: 0 | BD62: 0 | BE62: 0 | BF62: 0 | BG62: 0 | BH62: 0 | BI62: 0 | BJ62: 0 | BK62: 0 | BL62: 0 | BM62: 0 | BN62: 0 | BO62: 0 | BP62: 0 | BQ62: 0 | BR62: 0 | BY62: =(((((((((((((((((((((((((((((((((((((((((((((((((((((((((((((((J46)*10)*10)*10)*10)*10)*10)*10)*10)*10)*10)*10)*10)*10)*10)*10)*10)*10)*10)*10)*10)*10)*10)*10)*10)*10)*10)*10)*10)*10)*10)*10)*10)*10)*10)*10)*10)*10)*10)*10)*10)*10)*10)*10)*10)*10)*10)*10)*10)*10)*10)*10)*10)*10)*10)*1)*1)*1)*1)*1)*1)*1)*10)*10 -> 0 | BZ62: 255 | CA62: 192 | CB62: _0
B63: Propofol | F63: Coeff | G63: =$G$72 -> 2 | I63: Cp (P) | J63: =J38 -> 0 | K63: =(((K38)*($G$72))*($G$72))*($G$72) -> 0 | L63: =(((L38)*($G$72))*($G$72))*($G$72) -> 0 | M63: 0 | N63: 0 | O63: 0 | P63: 0 | Q63: 0 | R63: 0 | S63: 0 | T63: 0 | U63: 0 | V63: 0 | W63: 0 | X63: 0 | Y63: 0 | Z63: 0 | AA63: 0 | AB63: 0 | AC63: 0 | AD63: 0 | AE63: 0 | AF63: 0 | AG63: 0 | AH63: 0 | AI63: 0 | AJ63: 0 | AK63: 0 | AL63: 0 | AM63: 0 | AN63: 0 | AO63: 0 | AP63: 0 | AQ63: 0 | AR63: 0 | AS63: 0 | AT63: 0 | AU63: 0 | AV63: 0 | AW63: 0 | AX63: 0 | AY63: 0 | AZ63: 0 | BA63: 0 | BB63: 0 | BC63: 0 | BD63: 0 | BE63: 0 | BF63: 0 | BG63: 0 | BH63: 0 | BI63: 0 | BJ63: 0 | BK63: 0 | BL63: 0 | BM63: 0 | BN63: 0 | BO63: 0 | BP63: 0 | BQ63: 0 | BR63: 0 | BY63: =((((J51)*10)*10)*10)*10 -> 0
I64: Ce (P) | J64: =J39 -> 0 | K64: =(((K39)*($G$72))*($G$72))*($G$72) -> 0 | L64: =(((L39)*($G$72))*($G$72))*($G$72) -> 0 | M64: 0 | N64: 0 | O64: 0 | P64: 0 | Q64: 0 | R64: 0 | S64: 0 | T64: 0 | U64: 0 | V64: 0 | W64: 0 | X64: 0 | Y64: 0 | Z64: 0 | AA64: 0 | AB64: 0 | AC64: 0 | AD64: 0 | AE64: 0 | AF64: 0 | AG64: 0 | AH64: 0 | AI64: 0 | AJ64: 0 | AK64: 0 | AL64: 0 | AM64: 0 | AN64: 0 | AO64: 0 | AP64: 0 | AQ64: 0 | AR64: 0 | AS64: 0 | AT64: 0 | AU64: 0 | AV64: 0 | AW64: 0 | AX64: 0 | AY64: 0 | AZ64: 0 | BA64: 0 | BB64: 0 | BC64: 0 | BD64: 0 | BE64: 0 | BF64: 0 | BG64: 0 | BH64: 0 | BI64: 0 | BJ64: 0 | BK64: 0 | BL64: 0 | BM64: 0 | BN64: 0 | BO64: 0 | BP64: 0 | BQ64: 0 | BR64: 0 | BY64: =((((J52)*10)*10)*10)*10 -> 0 | BZ64: 146 | CA64: 208 | CB64: 80
B65: Sufentanil | F65: Coeff | G65: =$G$72 -> 2 | I65: Cp (S) | J65: =J44 -> 0 | K65: =((((((((((((((((K44)*($G$72))*($G$72))*($G$72))*($G$72))*($G$72))*($G$72))/($G$72))/($G$72))/($G$72))*($G$72))*($G$72))/($G$72))/($G$72))/($G$72))/($G$72))/($G$72) -> 0 | L65: =((((((((((((((((L44)*($G$72))*($G$72))*($G$72))*($G$72))*($G$72))*($G$72))/($G$72))/($G$72))/($G$72))*($G$72))*($G$72))/($G$72))/($G$72))/($G$72))/($G$72))/($G$72) -> 0 | M65: 0 | N65: 0 | O65: 0 | P65: 0 | Q65: 0 | R65: 0 | S65: 0 | T65: 0 | U65: 0 | V65: 0 | W65: 0 | X65: 0 | Y65: 0 | Z65: 0 | AA65: 0 | AB65: 0 | AC65: 0 | AD65: 0 | AE65: 0 | AF65: 0 | AG65: 0 | AH65: 0 | AI65: 0 | AJ65: 0 | AK65: 0 | AL65: 0 | AM65: 0 | AN65: 0 | AO65: 0 | AP65: 0 | AQ65: 0 | AR65: 0 | AS65: 0 | AT65: 0 | AU65: 0 | AV65: 0 | AW65: 0 | AX65: 0 | AY65: 0 | AZ65: 0 | BA65: 0 | BB65: 0 | BC65: 0 | BD65: 0 | BE65: 0 | BF65: 0 | BG65: 0 | BH65: 0 | BI65: 0 | BJ65: 0 | BK65: 0 | BL65: 0 | BM65: 0 | BN65: 0 | BO65: 0 | BP65: 0 | BQ65: 0 | BR65: 0 | BY65: =((((((((J57)*10)*10)*10)*10)*10)*10)*10)*10 -> 0
I66: Ce (S) | J66: =J45 -> 0 | K66: =((((((((((((((((K45)*($G$72))*($G$72))*($G$72))*($G$72))*($G$72))*($G$72))/($G$72))/($G$72))/($G$72))*($G$72))*($G$72))/($G$72))/($G$72))/($G$72))/($G$72))/($G$72) -> 0 | L66: =((((((((((((((((L45)*($G$72))*($G$72))*($G$72))*($G$72))*($G$72))*($G$72))/($G$72))/($G$72))/($G$72))*($G$72))*($G$72))/($G$72))/($G$72))/($G$72))/($G$72))/($G$72) -> 0 | M66: 0 | N66: 0 | O66: 0 | P66: 0 | Q66: 0 | R66: 0 | S66: 0 | T66: 0 | U66: 0 | V66: 0 | W66: 0 | X66: 0 | Y66: 0 | Z66: 0 | AA66: 0 | AB66: 0 | AC66: 0 | AD66: 0 | AE66: 0 | AF66: 0 | AG66: 0 | AH66: 0 | AI66: 0 | AJ66: 0 | AK66: 0 | AL66: 0 | AM66: 0 | AN66: 0 | AO66: 0 | AP66: 0 | AQ66: 0 | AR66: 0 | AS66: 0 | AT66: 0 | AU66: 0 | AV66: 0 | AW66: 0 | AX66: 0 | AY66: 0 | AZ66: 0 | BA66: 0 | BB66: 0 | BC66: 0 | BD66: 0 | BE66: 0 | BF66: 0 | BG66: 0 | BH66: 0 | BI66: 0 | BJ66: 0 | BK66: 0 | BL66: 0 | BM66: 0 | BN66: 0 | BO66: 0 | BP66: 0 | BQ66: 0 | BR66: 0 | BY66: =((((((((J58)*10)*10)*10)*10)*10)*10)*10)*10 -> 0 | BZ66: _0 | CA66: 112 | CB66: 192
B67: Alfentanil | F67: Coeff | G67: =$G$72 -> 2 | I67: Cp (A) | J67: =J50 -> 0 | K67: =(((((K50)*($G$72))*($G$72))/($G$72))/($G$72))/($G$72) -> 0 | L67: =(((((L50)*($G$72))*($G$72))/($G$72))/($G$72))/($G$72) -> 0 | M67: 0 | N67: 0 | O67: 0 | P67: 0 | Q67: 0 | R67: 0 | S67: 0 | T67: 0 | U67: 0 | V67: 0 | W67: 0 | X67: 0 | Y67: 0 | Z67: 0 | AA67: 0 | AB67: 0 | AC67: 0 | AD67: 0 | AE67: 0 | AF67: 0 | AG67: 0 | AH67: 0 | AI67: 0 | AJ67: 0 | AK67: 0 | AL67: 0 | AM67: 0 | AN67: 0 | AO67: 0 | AP67: 0 | AQ67: 0 | AR67: 0 | AS67: 0 | AT67: 0 | AU67: 0 | AV67: 0 | AW67: 0 | AX67: 0 | AY67: 0 | AZ67: 0 | BA67: 0 | BB67: 0 | BC67: 0 | BD67: 0 | BE67: 0 | BF67: 0 | BG67: 0 | BH67: 0 | BI67: 0 | BJ67: 0 | BK67: 0 | BL67: 0 | BM67: 0 | BN67: 0 | BO67: 0 | BP67: 0 | BQ67: 0 | BR67: 0 | BY67: =(J63)*10 -> 0
I68: Ce (A) | J68: =J51 -> 0 | K68: =(((((K51)*($G$72))*($G$72))/($G$72))/($G$72))/($G$72) -> 0 | L68: =(((((L51)*($G$72))*($G$72))/($G$72))/($G$72))/($G$72) -> 0 | M68: 0 | N68: 0 | O68: 0 | P68: 0 | Q68: 0 | R68: 0 | S68: 0 | T68: 0 | U68: 0 | V68: 0 | W68: 0 | X68: 0 | Y68: 0 | Z68: 0 | AA68: 0 | AB68: 0 | AC68: 0 | AD68: 0 | AE68: 0 | AF68: 0 | AG68: 0 | AH68: 0 | AI68: 0 | AJ68: 0 | AK68: 0 | AL68: 0 | AM68: 0 | AN68: 0 | AO68: 0 | AP68: 0 | AQ68: 0 | AR68: 0 | AS68: 0 | AT68: 0 | AU68: 0 | AV68: 0 | AW68: 0 | AX68: 0 | AY68: 0 | AZ68: 0 | BA68: 0 | BB68: 0 | BC68: 0 | BD68: 0 | BE68: 0 | BF68: 0 | BG68: 0 | BH68: 0 | BI68: 0 | BJ68: 0 | BK68: 0 | BL68: 0 | BM68: 0 | BN68: 0 | BO68: 0 | BP68: 0 | BQ68: 0 | BR68: 0 | BY68: =(J64)*10 -> 0 | BZ68: _0 | CA68: 153 | CB68: 255
B69: Remifentanil | F69: Coeff | G69: =$G$72 -> 2 | I69: Cp (R) | J69: =J56 -> 0 | K69: =K56 -> 0 | L69: =L56 -> 0 | M69: 0 | N69: 0 | O69: 0 | P69: 0 | Q69: 0 | R69: 0 | S69: 0 | T69: 0 | U69: 0 | V69: 0 | W69: 0 | X69: 0 | Y69: 0 | Z69: 0 | AA69: 0 | AB69: 0 | AC69: 0 | AD69: 0 | AE69: 0 | AF69: 0 | AG69: 0 | AH69: 0 | AI69: 0 | AJ69: 0 | AK69: 0 | AL69: 0 | AM69: 0 | AN69: 0 | AO69: 0 | AP69: 0 | AQ69: 0 | AR69: 0 | AS69: 0 | AT69: 0 | AU69: 0 | AV69: 0 | AW69: 0 | AX69: 0 | AY69: 0 | AZ69: 0 | BA69: 0 | BB69: 0 | BC69: 0 | BD69: 0 | BE69: 0 | BF69: 0 | BG69: 0 | BH69: 0 | BI69: 0 | BJ69: 0 | BK69: 0 | BL69: 0 | BM69: 0 | BN69: 0 | BO69: 0 | BP69: 0 | BQ69: 0 | BR69: 0 | BY69: =(((J69)*10)*10)*10 -> 0
I70: Ce (R) | J70: =J57 -> 0 | K70: =K57 -> 0 | L70: =L57 -> 0 | M70: 0 | N70: 0 | O70: 0 | P70: 0 | Q70: 0 | R70: 0 | S70: 0 | T70: 0 | U70: 0 | V70: 0 | W70: 0 | X70: 0 | Y70: 0 | Z70: 0 | AA70: 0 | AB70: 0 | AC70: 0 | AD70: 0 | AE70: 0 | AF70: 0 | AG70: 0 | AH70: 0 | AI70: 0 | AJ70: 0 | AK70: 0 | AL70: 0 | AM70: 0 | AN70: 0 | AO70: 0 | AP70: 0 | AQ70: 0 | AR70: 0 | AS70: 0 | AT70: 0 | AU70: 0 | AV70: 0 | AW70: 0 | AX70: 0 | AY70: 0 | AZ70: 0 | BA70: 0 | BB70: 0 | BC70: 0 | BD70: 0 | BE70: 0 | BF70: 0 | BG70: 0 | BH70: 0 | BI70: 0 | BJ70: 0 | BK70: 0 | BL70: 0 | BM70: 0 | BN70: 0 | BO70: 0 | BP70: 0 | BQ70: 0 | BR70: 0 | BY70: =(((J70)*10)*10)*10 -> 0 | BZ70: _0 | CA70: 255 | CB70: 255
F72: COEFF | G72: 2

Sheet OFA
E6: zoom value: | G6: 101
B12: PATIENT
C14: Age | E14: 40 | F14: years
C16: Weight | E16: 60 | F16: Kg
C18: Height | E18: 160 | F18: cm
C20: BMI | E20: =10000*Poids/(E18*E18) -> 23.4375
C22: Gender | E22: 2 | F22: M=1 F=2
G25: TIME | I25: (Min) | J25: To | K25: 5 | L25: 10 | M25: 15 | N25: 20 | O25: 25 | P25: 30 | Q25: 35 | R25: 40 | S25: 45 | T25: 50 | U25: 55 | V25: 60 | W25: 65 | X25: 70 | Y25: 75 | Z25: 80 | AA25: 85 | AB25: 90 | AC25: 95 | AD25: 100 | AE25: 105 | AF25: 110 | AG25: 115 | AH25: 120 | AI25: 125 | AJ25: 130 | AK25: 135 | AL25: 140 | AM25: 145 | AN25: 150 | AO25: 155 | AP25: 160 | AQ25: 165 | AR25: 170 | AS25: 175 | AT25: 180 | AU25: 185 | AV25: 190 | AW25: 195 | AX25: 200 | AY25: 205 | AZ25: 210 | BA25: 215 | BB25: 220 | BC25: 225 | BD25: 230 | BE25: 235 | BF25: 240 | BG25: 245 | BH25: 250 | BI25: 255 | BJ25: 260 | BK25: 265 | BL25: 270 | BM25: 275 | BN25: 280 | BO25: 285 | BP25: 290 | BQ25: 295 | BR25: 300 | BV25: BORNES VALIDATION
F26: Ketamine | I26: Bolus | M26: 20
I27: Infusion | L27: 0.3
BV28: inf (0) | BW28: sup
B29: C o n c e n t r a t i o n C o n c e n t r a t i o n C o n c e n t r a t i o n | C29: 10 | D29: Ketamine | I29: Bolus mg | J29: 0 | BV29: 0 | BW29: 300 | BX29: bolus mg
D30: mg/kg/h | I30: Infusion | J30: 0 | K30: =J30 -> 0 | L30: =K30 -> 0 | M30: 0 | N30: 0 | O30: 0 | P30: 0 | Q30: 0 | R30: 0 | S30: 0 | T30: 0 | U30: 0 | V30: 0 | W30: 0 | X30: 0 | Y30: 0 | Z30: 0 | AA30: 0 | AB30: 0 | AC30: 0 | AD30: 0 | AE30: 0 | AF30: 0 | AG30: 0 | AH30: 0 | AI30: 0 | AJ30: 0 | AK30: 0 | AL30: 0 | AM30: 0 | AN30: 0 | AO30: 0 | AP30: 0 | AQ30: 0 | AR30: 0 | AS30: 0 | AT30: 0 | AU30: 0 | AV30: 0 | AW30: 0 | AX30: 0 | AY30: 0 | AZ30: 0 | BA30: 0 | BB30: 0 | BC30: 0 | BD30: 0 | BE30: 0 | BF30: 0 | BG30: 0 | BH30: 0 | BI30: 0 | BJ30: 0 | BK30: 0 | BL30: 0 | BM30: 0 | BN30: 0 | BO30: 0 | BP30: 0 | BQ30: 0 | BR30: 0 | BV30: 0 | BW30: 5 | BX30: mg/kg/h | CA30: mise en forme conditionnelle Cp
D31: µg/kg/min | I31: Infusion | J31: 0 | K31: =J31 -> 0 | L31: =K31 -> 0 | M31: 0 | N31: 0 | O31: 0 | P31: 0 | Q31: 0 | R31: 0 | S31: 0 | T31: 0 | U31: 0 | V31: 0 | W31: 0 | X31: 0 | Y31: 0 | Z31: 0 | AA31: 0 | AB31: 0 | AC31: 0 | AD31: 0 | AE31: 0 | AF31: 0 | AG31: 0 | AH31: 0 | AI31: 0 | AJ31: 0 | AK31: 0 | AL31: 0 | AM31: 0 | AN31: 0 | AO31: 0 | AP31: 0 | AQ31: 0 | AR31: 0 | AS31: 0 | AT31: 0 | AU31: 0 | AV31: 0 | AW31: 0 | AX31: 0 | AY31: 0 | AZ31: 0 | BA31: 0 | BB31: 0 | BC31: 0 | BD31: 0 | BE31: 0 | BF31: 0 | BG31: 0 | BH31: 0 | BI31: 0 | BJ31: 0 | BK31: 0 | BL31: 0 | BM31: 0 | BN31: 0 | BO31: 0 | BP31: 0 | BQ31: 0 | BR31: 0 | BS31: =BR31 -> 0 | BV31: 0 | BW31: 12 | BX31: µg/kg/min
C32: Scale | G32: mL | I32: Volume | J32: 0 | K32: =J32 + (K29/Concentration_Ketamine) + ( (5*K30*Poids)/(60*Concentration_Ketamine) ) + ( (5*K31*Poids)/(1000*Concentration_Ketamine) ) -> 0 | L32: 0 | M32: 0 | N32: 0 | O32: 0 | P32: 0 | Q32: 0 | R32: 0 | S32: 0 | T32: 0 | U32: 0 | V32: 0 | W32: 0 | X32: 0 | Y32: 0 | Z32: 0 | AA32: 0 | AB32: 0 | AC32: 0 | AD32: 0 | AE32: 0 | AF32: 0 | AG32: 0 | AH32: 0 | AI32: 0 | AJ32: 0 | AK32: 0 | AL32: 0 | AM32: 0 | AN32: 0 | AO32: 0 | AP32: 0 | AQ32: =AP32 + (AQ29/Concentration_Ketamine) + ( (5*AQ30*Poids)/(60*Concentration_Ketamine) ) + ( (5*AQ31*Poids)/(1000*Concentration_Ketamine) ) -> 0 | AR32: 0 | AS32: 0 | AT32: 0 | AU32: 0 | AV32: 0 | AW32: 0 | AX32: 0 | AY32: 0 | AZ32: 0 | BA32: 0 | BB32: 0 | BC32: 0 | BD32: 0 | BE32: 0 | BF32: 0 | BG32: 0 | BH32: 0 | BI32: 0 | BJ32: 0 | BK32: 0 | BL32: 0 | BM32: 0 | BN32: 0 | BO32: 0 | BP32: 0 | BQ32: 0 | BR32: 0
E33: Labels | G33: ng/mL | I33: Cp | J33: 0 | K33: =KetOFA!W108*1000 -> 0 | L33: =KetOFA!X108*1000 -> 0 | M33: =KetOFA!Y108*1000 -> 0 | N33: =KetOFA!Z108*1000 -> 0 | O33: =KetOFA!AA108*1000 -> 0 | P33: =KetOFA!AB108*1000 -> 0 | Q33: =KetOFA!AC108*1000 -> 0 | R33: =KetOFA!AD108*1000 -> 0 | S33: =KetOFA!AE108*1000 -> 0 | T33: =KetOFA!AF108*1000 -> 0 | U33: =KetOFA!AG108*1000 -> 0 | V33: =KetOFA!AH108*1000 -> 0 | W33: =KetOFA!AI108*1000 -> 0 | X33: =KetOFA!AJ108*1000 -> 0 | Y33: =KetOFA!AK108*1000 -> 0 | Z33: =KetOFA!AL108*1000 -> 0 | AA33: =KetOFA!AM108*1000 -> 0 | AB33: =KetOFA!AN108*1000 -> 0 | AC33: =KetOFA!AO108*1000 -> 0 | AD33: =KetOFA!AP108*1000 -> 0 | AE33: =KetOFA!AQ108*1000 -> 0 | AF33: =KetOFA!AR108*1000 -> 0 | AG33: =KetOFA!AS108*1000 -> 0 | AH33: =KetOFA!AT108*1000 -> 0 | AI33: =KetOFA!AU108*1000 -> 0 | AJ33: =KetOFA!AV108*1000 -> 0 | AK33: =KetOFA!AW108*1000 -> 0 | AL33: =KetOFA!AX108*1000 -> 0 | AM33: =KetOFA!AY108*1000 -> 0 | AN33: =KetOFA!AZ108*1000 -> 0 | AO33: =KetOFA!BA108*1000 -> 0 | AP33: =KetOFA!BB108*1000 -> 0 | AQ33: =KetOFA!BC108*1000 -> 0 | AR33: =KetOFA!BD108*1000 -> 0 | AS33: =KetOFA!BE108*1000 -> 0 | AT33: =KetOFA!BF108*1000 -> 0 | AU33: =KetOFA!BG108*1000 -> 0 | AV33: =KetOFA!BH108*1000 -> 0 | AW33: =KetOFA!BI108*1000 -> 0 | AX33: =KetOFA!BJ108*1000 -> 0 | AY33: =KetOFA!BK108*1000 -> 0 | AZ33: =KetOFA!BL108*1000 -> 0 | BA33: =KetOFA!BM108*1000 -> 0 | BB33: =KetOFA!BN108*1000 -> 0 | BC33: =KetOFA!BO108*1000 -> 0 | BD33: =KetOFA!BP108*1000 -> 0 | BE33: =KetOFA!BQ108*1000 -> 0 | BF33: =KetOFA!BR108*1000 -> 0 | BG33: =KetOFA!BS108*1000 -> 0 | BH33: =KetOFA!BT108*1000 -> 0 | BI33: =KetOFA!BU108*1000 -> 0 | BJ33: =KetOFA!BV108*1000 -> 0 | BK33: =KetOFA!BW108*1000 -> 0 | BL33: =KetOFA!BX108*1000 -> 0 | BM33: =KetOFA!BY108*1000 -> 0 | BN33: =KetOFA!BZ108*1000 -> 0 | BO33: =KetOFA!CA108*1000 -> 0 | BP33: =KetOFA!CB108*1000 -> 0 | BQ33: =KetOFA!CC108*1000 -> 0 | BR33: =KetOFA!CD108*1000 -> 0 | BY33: Ketamine | BZ33: ng/mL | CB33: 1 | CC33: 21 | CD33: 151 | CE33: 401 | CF33: 701 | CG33: 1001
C35: 10 | D35: Propofol | I35: Bolus mg | J35: 0 | BV35: 0 | BW35: 600 | BX35: bolus mg
D36: mg/kg/h | I36: Infusion | J36: 0 | K36: =J36 -> 0 | L36: =K36 -> 0 | M36: 0 | N36: 0 | O36: 0 | P36: 0 | Q36: 0 | R36: 0 | S36: 0 | T36: 0 | U36: 0 | V36: 0 | W36: 0 | X36: 0 | Y36: 0 | Z36: 0 | AA36: 0 | AB36: 0 | AC36: 0 | AD36: 0 | AE36: 0 | AF36: 0 | AG36: 0 | AH36: 0 | AI36: 0 | AJ36: 0 | AK36: 0 | AL36: 0 | AM36: 0 | AN36: 0 | AO36: 0 | AP36: 0 | AQ36: 0 | AR36: 0 | AS36: 0 | AT36: 0 | AU36: 0 | AV36: 0 | AW36: 0 | AX36: 0 | AY36: 0 | AZ36: 0 | BA36: 0 | BB36: 0 | BC36: 0 | BD36: 0 | BE36: 0 | BF36: 0 | BG36: 0 | BH36: 0 | BI36: 0 | BJ36: 0 | BK36: 0 | BL36: 0 | BM36: 0 | BN36: 0 | BO36: 0 | BP36: 0 | BQ36: 0 | BR36: 0 | BV36: 0 | BW36: 20 | BX36: mg/kg/h
G37: mL | I37: Volume | J37: 0 | K37: =J37 + (K35/Concentration_propofol) + (5*K36*Poids)/(60*Concentration_propofol) -> 0 | L37: 0 | M37: 0 | N37: 0 | O37: 0 | P37: 0 | Q37: 0 | R37: 0 | S37: 0 | T37: 0 | U37: 0 | V37: 0 | W37: 0 | X37: 0 | Y37: 0 | Z37: 0 | AA37: 0 | AB37: 0 | AC37: 0 | AD37: 0 | AE37: 0 | AF37: 0 | AG37: 0 | AH37: 0 | AI37: 0 | AJ37: 0 | AK37: 0 | AL37: 0 | AM37: 0 | AN37: 0 | AO37: 0 | AP37: 0 | AQ37: =AP37 + (AQ35/Concentration_propofol) + (5*AQ36*Poids)/(60*Concentration_propofol) -> 0 | AR37: 0 | AS37: 0 | AT37: 0 | AU37: 0 | AV37: 0 | AW37: 0 | AX37: 0 | AY37: 0 | AZ37: 0 | BA37: 0 | BB37: 0 | BC37: 0 | BD37: 0 | BE37: 0 | BF37: 0 | BG37: 0 | BH37: 0 | BI37: 0 | BJ37: 0 | BK37: 0 | BL37: 0 | BM37: 0 | BN37: 0 | BO37: 0 | BP37: 0 | BQ37: 0 | BR37: 0 | CC37: 4 | CD37: 6
C38: Scale | E38: Labels | G38: µg/mL | I38: Cp | J38: 0 | K38: =ProFA!W113 -> 0 | L38: =ProFA!X113 -> 0 | M38: =ProFA!Y113 -> 0 | N38: =ProFA!Z113 -> 0 | O38: =ProFA!AA113 -> 0 | P38: =ProFA!AB113 -> 0 | Q38: =ProFA!AC113 -> 0 | R38: =ProFA!AD113 -> 0 | S38: =ProFA!AE113 -> 0 | T38: =ProFA!AF113 -> 0 | U38: =ProFA!AG113 -> 0 | V38: =ProFA!AH113 -> 0 | W38: =ProFA!AI113 -> 0 | X38: =ProFA!AJ113 -> 0 | Y38: =ProFA!AK113 -> 0 | Z38: =ProFA!AL113 -> 0 | AA38: =ProFA!AM113 -> 0 | AB38: =ProFA!AN113 -> 0 | AC38: =ProFA!AO113 -> 0 | AD38: =ProFA!AP113 -> 0 | AE38: =ProFA!AQ113 -> 0 | AF38: =ProFA!AR113 -> 0 | AG38: =ProFA!AS113 -> 0 | AH38: =ProFA!AT113 -> 0 | AI38: =ProFA!AU113 -> 0 | AJ38: =ProFA!AV113 -> 0 | AK38: =ProFA!AW113 -> 0 | AL38: =ProFA!AX113 -> 0 | AM38: =ProFA!AY113 -> 0 | AN38: =ProFA!AZ113 -> 0 | AO38: =ProFA!BA113 -> 0 | AP38: =ProFA!BB113 -> 0 | AQ38: =ProFA!BC113 -> 0 | AR38: =ProFA!BD113 -> 0 | AS38: =ProFA!BE113 -> 0 | AT38: =ProFA!BF113 -> 0 | AU38: =ProFA!BG113 -> 0 | AV38: =ProFA!BH113 -> 0 | AW38: =ProFA!BI113 -> 0 | AX38: =ProFA!BJ113 -> 0 | AY38: =ProFA!BK113 -> 0 | AZ38: =ProFA!BL113 -> 0 | BA38: =ProFA!BM113 -> 0 | BB38: =ProFA!BN113 -> 0 | BC38: =ProFA!BO113 -> 0 | BD38: =ProFA!BP113 -> 0 | BE38: =ProFA!BQ113 -> 0 | BF38: =ProFA!BR113 -> 0 | BG38: =ProFA!BS113 -> 0 | BH38: =ProFA!BT113 -> 0 | BI38: =ProFA!BU113 -> 0 | BJ38: =ProFA!BV113 -> 0 | BK38: =ProFA!BW113 -> 0 | BL38: =ProFA!BX113 -> 0 | BM38: =ProFA!BY113 -> 0 | BN38: =ProFA!BZ113 -> 0 | BO38: =ProFA!CA113 -> 0 | BP38: =ProFA!CB113 -> 0 | BQ38: =ProFA!CC113 -> 0 | BR38: =ProFA!CD113 -> 0 | BY38: Propofol | BZ38: µg/mL | CB38: 1 | CC38: 4.1 | CD38: 6.1 | CE38: µg/mL
G39: µg/mL | I39: Ce | J39: 0 | K39: =ProFA!W114 -> 0 | L39: =ProFA!X114 -> 0 | M39: =ProFA!Y114 -> 0 | N39: =ProFA!Z114 -> 0 | O39: =ProFA!AA114 -> 0 | P39: =ProFA!AB114 -> 0 | Q39: =ProFA!AC114 -> 0 | R39: =ProFA!AD114 -> 0 | S39: =ProFA!AE114 -> 0 | T39: =ProFA!AF114 -> 0 | U39: =ProFA!AG114 -> 0 | V39: =ProFA!AH114 -> 0 | W39: =ProFA!AI114 -> 0 | X39: =ProFA!AJ114 -> 0 | Y39: =ProFA!AK114 -> 0 | Z39: =ProFA!AL114 -> 0 | AA39: =ProFA!AM114 -> 0 | AB39: =ProFA!AN114 -> 0 | AC39: =ProFA!AO114 -> 0 | AD39: =ProFA!AP114 -> 0 | AE39: =ProFA!AQ114 -> 0 | AF39: =ProFA!AR114 -> 0 | AG39: =ProFA!AS114 -> 0 | AH39: =ProFA!AT114 -> 0 | AI39: =ProFA!AU114 -> 0 | AJ39: =ProFA!AV114 -> 0 | AK39: =ProFA!AW114 -> 0 | AL39: =ProFA!AX114 -> 0 | AM39: =ProFA!AY114 -> 0 | AN39: =ProFA!AZ114 -> 0 | AO39: =ProFA!BA114 -> 0 | AP39: =ProFA!BB114 -> 0 | AQ39: =ProFA!BC114 -> 0 | AR39: =ProFA!BD114 -> 0 | AS39: =ProFA!BE114 -> 0 | AT39: =ProFA!BF114 -> 0 | AU39: =ProFA!BG114 -> 0 | AV39: =ProFA!BH114 -> 0 | AW39: =ProFA!BI114 -> 0 | AX39: =ProFA!BJ114 -> 0 | AY39: =ProFA!BK114 -> 0 | AZ39: =ProFA!BL114 -> 0 | BA39: =ProFA!BM114 -> 0 | BB39: =ProFA!BN114 -> 0 | BC39: =ProFA!BO114 -> 0 | BD39: =ProFA!BP114 -> 0 | BE39: =ProFA!BQ114 -> 0 | BF39: =ProFA!BR114 -> 0 | BG39: =ProFA!BS114 -> 0 | BH39: =ProFA!BT114 -> 0 | BI39: =ProFA!BU114 -> 0 | BJ39: =ProFA!BV114 -> 0 | BK39: =ProFA!BW114 -> 0 | BL39: =ProFA!BX114 -> 0 | BM39: =ProFA!BY114 -> 0 | BN39: =ProFA!BZ114 -> 0 | BO39: =ProFA!CA114 -> 0 | BP39: =ProFA!CB114 -> 0 | BQ39: =ProFA!CC114 -> 0 | BR39: =ProFA!CD114 -> 0
C41: 10 | D41: Dexmedetomidine | I41: Bolus µg | J41: 0 | BV41: 0 | BW41: 250 | BX41: bolus µg
D42: µg/kg/min | I42: Infusion | J42: 0 | K42: =J42 -> 0 | L42: =K42 -> 0 | M42: 0 | N42: 0 | O42: 0 | P42: 0 | Q42: 0 | R42: 0 | S42: 0 | T42: 0 | U42: 0 | V42: 0 | W42: 0 | X42: 0 | Y42: 0 | Z42: 0 | AA42: 0 | AB42: 0 | AC42: 0 | AD42: 0 | AE42: 0 | AF42: 0 | AG42: 0 | AH42: 0 | AI42: 0 | AJ42: 0 | AK42: 0 | AL42: 0 | AM42: 0 | AN42: 0 | AO42: 0 | AP42: 0 | AQ42: 0 | AR42: 0 | AS42: 0 | AT42: 0 | AU42: 0 | AV42: 0 | AW42: 0 | AX42: 0 | AY42: 0 | AZ42: 0 | BA42: 0 | BB42: 0 | BC42: 0 | BD42: 0 | BE42: 0 | BF42: 0 | BG42: 0 | BH42: 0 | BI42: 0 | BJ42: 0 | BK42: 0 | BL42: 0 | BM42: 0 | BN42: 0 | BO42: 0 | BP42: 0 | BQ42: 0 | BR42: 0 | BV42: 0 | BW42: 10 | BX42: µg/kg/h
G43: mL | I43: Volume | J43: 0 | K43: =J43 + (K41/Concentration_Sufenta) + (5*K42*Poids)/(Concentration_Sufenta) -> 0 | L43: 0 | M43: 0 | N43: 0 | O43: 0 | P43: 0 | Q43: 0 | R43: 0 | S43: 0 | T43: 0 | U43: 0 | V43: 0 | W43: 0 | X43: 0 | Y43: 0 | Z43: 0 | AA43: 0 | AB43: 0 | AC43: 0 | AD43: 0 | AE43: 0 | AF43: 0 | AG43: 0 | AH43: 0 | AI43: 0 | AJ43: 0 | AK43: 0 | AL43: 0 | AM43: 0 | AN43: 0 | AO43: 0 | AP43: 0 | AQ43: =AP43 + (AQ41/Concentration_Sufenta) + (5*AQ42*Poids)/(Concentration_Sufenta) -> 0 | AR43: 0 | AS43: 0 | AT43: 0 | AU43: 0 | AV43: 0 | AW43: 0 | AX43: 0 | AY43: 0 | AZ43: 0 | BA43: 0 | BB43: 0 | BC43: 0 | BD43: 0 | BE43: 0 | BF43: 0 | BG43: 0 | BH43: 0 | BI43: 0 | BJ43: 0 | BK43: 0 | BL43: 0 | BM43: 0 | BN43: 0 | BO43: 0 | BP43: 0 | BQ43: 0 | BR43: 0 | CC43: 0.1 | CD43: 0.6
C44: Scale | E44: Labels | G44: ng/mL | I44: Cp | J44: 0 | K44: =Dexmed!W113 -> 0 | L44: =Dexmed!X113 -> 0 | M44: =Dexmed!Y113 -> 0 | N44: =Dexmed!Z113 -> 0 | O44: =Dexmed!AA113 -> 0 | P44: =Dexmed!AB113 -> 0 | Q44: =Dexmed!AC113 -> 0 | R44: =Dexmed!AD113 -> 0 | S44: =Dexmed!AE113 -> 0 | T44: =Dexmed!AF113 -> 0 | U44: =Dexmed!AG113 -> 0 | V44: =Dexmed!AH113 -> 0 | W44: =Dexmed!AI113 -> 0 | X44: =Dexmed!AJ113 -> 0 | Y44: =Dexmed!AK113 -> 0 | Z44: =Dexmed!AL113 -> 0 | AA44: =Dexmed!AM113 -> 0 | AB44: =Dexmed!AN113 -> 0 | AC44: =Dexmed!AO113 -> 0 | AD44: =Dexmed!AP113 -> 0 | AE44: =Dexmed!AQ113 -> 0 | AF44: =Dexmed!AR113 -> 0 | AG44: =Dexmed!AS113 -> 0 | AH44: =Dexmed!AT113 -> 0 | AI44: =Dexmed!AU113 -> 0 | AJ44: =Dexmed!AV113 -> 0 | AK44: =Dexmed!AW113 -> 0 | AL44: =Dexmed!AX113 -> 0 | AM44: =Dexmed!AY113 -> 0 | AN44: =Dexmed!AZ113 -> 0 | AO44: =Dexmed!BA113 -> 0 | AP44: =Dexmed!BB113 -> 0 | AQ44: =Dexmed!BC113 -> 0 | AR44: =Dexmed!BD113 -> 0 | AS44: =Dexmed!BE113 -> 0 | AT44: =Dexmed!BF113 -> 0 | AU44: =Dexmed!BG113 -> 0 | AV44: =Dexmed!BH113 -> 0 | AW44: =Dexmed!BI113 -> 0 | AX44: =Dexmed!BJ113 -> 0 | AY44: =Dexmed!BK113 -> 0 | AZ44: =Dexmed!BL113 -> 0 | BA44: =Dexmed!BM113 -> 0 | BB44: =Dexmed!BN113 -> 0 | BC44: =Dexmed!BO113 -> 0 | BD44: =Dexmed!BP113 -> 0 | BE44: =Dexmed!BQ113 -> 0 | BF44: =Dexmed!BR113 -> 0 | BG44: =Dexmed!BS113 -> 0 | BH44: =Dexmed!BT113 -> 0 | BI44: =Dexmed!BU113 -> 0 | BJ44: =Dexmed!BV113 -> 0 | BK44: =Dexmed!BW113 -> 0 | BL44: =Dexmed!BX113 -> 0 | BM44: =Dexmed!BY113 -> 0 | BN44: =Dexmed!BZ113 -> 0 | BO44: =Dexmed!CA113 -> 0 | BP44: =Dexmed!CB113 -> 0 | BQ44: =Dexmed!CC113 -> 0 | BR44: =Dexmed!CD113 -> 0 | BY44: Dexmedetomidine | CB44: 0.005 | CC44: 2 | CD44: 6.1 | CE44: ng/mL
J45: 0 | K45: =Dexmed!W114 -> 0 | L45: =Dexmed!X114 -> 0 | M45: =Dexmed!Y114 -> 0 | N45: =Dexmed!Z114 -> 0 | O45: =Dexmed!AA114 -> 0 | P45: =Dexmed!AB114 -> 0 | Q45: =Dexmed!AC114 -> 0 | R45: =Dexmed!AD114 -> 0 | S45: =Dexmed!AE114 -> 0 | T45: =Dexmed!AF114 -> 0 | U45: =Dexmed!AG114 -> 0 | V45: =Dexmed!AH114 -> 0 | W45: =Dexmed!AI114 -> 0 | X45: =Dexmed!AJ114 -> 0 | Y45: =Dexmed!AK114 -> 0 | Z45: =Dexmed!AL114 -> 0 | AA45: =Dexmed!AM114 -> 0 | AB45: =Dexmed!AN114 -> 0 | AC45: =Dexmed!AO114 -> 0 | AD45: =Dexmed!AP114 -> 0 | AE45: =Dexmed!AQ114 -> 0 | AF45: =Dexmed!AR114 -> 0 | AG45: =Dexmed!AS114 -> 0 | AH45: =Dexmed!AT114 -> 0 | AI45: =Dexmed!AU114 -> 0 | AJ45: =Dexmed!AV114 -> 0 | AK45: =Dexmed!AW114 -> 0 | AL45: =Dexmed!AX114 -> 0 | AM45: =Dexmed!AY114 -> 0 | AN45: =Dexmed!AZ114 -> 0 | AO45: =Dexmed!BA114 -> 0 | AP45: =Dexmed!BB114 -> 0 | AQ45: =Dexmed!BC114 -> 0 | AR45: =Dexmed!BD114 -> 0 | AS45: =Dexmed!BE114 -> 0 | AT45: =Dexmed!BF114 -> 0 | AU45: =Dexmed!BG114 -> 0 | AV45: =Dexmed!BH114 -> 0 | AW45: =Dexmed!BI114 -> 0 | AX45: =Dexmed!BJ114 -> 0 | AY45: =Dexmed!BK114 -> 0 | AZ45: =Dexmed!BL114 -> 0 | BA45: =Dexmed!BM114 -> 0 | BB45: =Dexmed!BN114 -> 0 | BC45: =Dexmed!BO114 -> 0 | BD45: =Dexmed!BP114 -> 0 | BE45: =Dexmed!BQ114 -> 0 | BF45: =Dexmed!BR114 -> 0 | BG45: =Dexmed!BS114 -> 0 | BH45: =Dexmed!BT114 -> 0 | BI45: =Dexmed!BU114 -> 0 | BJ45: =Dexmed!BV114 -> 0 | BK45: =Dexmed!BW114 -> 0 | BL45: =Dexmed!BX114 -> 0 | BM45: =Dexmed!BY114 -> 0 | BN45: =Dexmed!BZ114 -> 0 | BO45: =Dexmed!CA114 -> 0 | BP45: =Dexmed!CB114 -> 0 | BQ45: =Dexmed!CC114 -> 0 | BR45: =Dexmed!CD114 -> 0
C47: 10 | D47: Lidocaine | I47: Bolus mg | BV47: 0 | BW47: 400 | BX47: bolus mg
D48: mg/kg/h | I48: Infusion | K48: =J48 -> 0 | L48: =K48 -> 0 | M48: 0 | N48: 0 | O48: 0 | P48: 0 | Q48: 0 | R48: 0 | S48: 0 | T48: 0 | U48: 0 | V48: 0 | W48: 0 | X48: 0 | Y48: 0 | Z48: 0 | AA48: 0 | AB48: 0 | AC48: 0 | AD48: 0 | AE48: 0 | AF48: 0 | AG48: 0 | AH48: 0 | AI48: 0 | AJ48: 0 | AK48: 0 | AL48: 0 | AM48: 0 | AN48: 0 | AO48: 0 | AP48: 0 | AQ48: 0 | AR48: 0 | AS48: 0 | AT48: 0 | AU48: 0 | AV48: 0 | AW48: 0 | AX48: 0 | AY48: 0 | AZ48: 0 | BA48: 0 | BB48: 0 | BC48: 0 | BD48: 0 | BE48: 0 | BF48: 0 | BG48: 0 | BH48: 0 | BI48: 0 | BJ48: 0 | BK48: 0 | BL48: 0 | BM48: 0 | BN48: 0 | BO48: 0 | BP48: 0 | BQ48: 0 | BR48: 0 | BS48: =BR48 -> 0 | BV48: 0 | BW48: 5 | BX48: mg/kg/h
G49: mL | I49: Volume | K49: =J49+(K47/Concentration_Lido)+ ((5*K48*Poids)/(60*Concentration_Lido)) -> 0 | L49: 0 | M49: 0 | N49: 0 | O49: 0 | P49: 0 | Q49: 0 | R49: 0 | S49: 0 | T49: 0 | U49: 0 | V49: 0 | W49: 0 | X49: 0 | Y49: 0 | Z49: 0 | AA49: 0 | AB49: 0 | AC49: 0 | AD49: 0 | AE49: 0 | AF49: 0 | AG49: 0 | AH49: 0 | AI49: 0 | AJ49: 0 | AK49: 0 | AL49: 0 | AM49: 0 | AN49: 0 | AO49: 0 | AP49: 0 | AQ49: =AP49+(AQ47/Concentration_Lido)+ ((5*AQ48*Poids)/(60*Concentration_Lido)) -> 0 | AR49: 0 | AS49: 0 | AT49: 0 | AU49: 0 | AV49: 0 | AW49: 0 | AX49: 0 | AY49: 0 | AZ49: 0 | BA49: 0 | BB49: 0 | BC49: 0 | BD49: 0 | BE49: 0 | BF49: 0 | BG49: 0 | BH49: 0 | BI49: 0 | BJ49: 0 | BK49: 0 | BL49: 0 | BM49: 0 | BN49: 0 | BO49: 0 | BP49: 0 | BQ49: 0 | BR49: 0 | CC49: 70 | CD49: 120
C50: Scale | E50: Labels | G50: µg/mL | I50: Cp | K50: =LIDO!H74 -> 0 | L50: =LIDO!I74 -> 0 | M50: =LIDO!J74 -> 0 | N50: =LIDO!K74 -> 0 | O50: =LIDO!L74 -> 0 | P50: =LIDO!M74 -> 0 | Q50: =LIDO!N74 -> 0 | R50: =LIDO!O74 -> 0 | S50: =LIDO!P74 -> 0 | T50: =LIDO!Q74 -> 0 | U50: =LIDO!R74 -> 0 | V50: =LIDO!S74 -> 0 | W50: =LIDO!T74 -> 0 | X50: =LIDO!U74 -> 0 | Y50: =LIDO!V74 -> 0 | Z50: =LIDO!W74 -> 0 | AA50: =LIDO!X74 -> 0 | AB50: =LIDO!Y74 -> 0 | AC50: =LIDO!Z74 -> 0 | AD50: =LIDO!AA74 -> 0 | AE50: =LIDO!AB74 -> 0 | AF50: =LIDO!AC74 -> 0 | AG50: =LIDO!AD74 -> 0 | AH50: =LIDO!AE74 -> 0 | AI50: =LIDO!AF74 -> 0 | AJ50: =LIDO!AG74 -> 0 | AK50: =LIDO!AH74 -> 0 | AL50: =LIDO!AI74 -> 0 | AM50: =LIDO!AJ74 -> 0 | AN50: =LIDO!AK74 -> 0 | AO50: =LIDO!AL74 -> 0 | AP50: =LIDO!AM74 -> 0 | AQ50: =LIDO!AN74 -> 0 | AR50: =LIDO!AO74 -> 0 | AS50: =LIDO!AP74 -> 0 | AT50: =LIDO!AQ74 -> 0 | AU50: =LIDO!AR74 -> 0 | AV50: =LIDO!AS74 -> 0 | AW50: =LIDO!AT74 -> 0 | AX50: =LIDO!AU74 -> 0 | AY50: =LIDO!AV74 -> 0 | AZ50: =LIDO!AW74 -> 0 | BA50: =LIDO!AX74 -> 0 | BB50: =LIDO!AY74 -> 0 | BC50: =LIDO!AZ74 -> 0 | BD50: =LIDO!BA74 -> 0 | BE50: =LIDO!BB74 -> 0 | BF50: =LIDO!BC74 -> 0 | BG50: =LIDO!BD74 -> 0 | BH50: =LIDO!BE74 -> 0 | BI50: =LIDO!BF74 -> 0 | BJ50: =LIDO!BG74 -> 0 | BK50: =LIDO!BH74 -> 0 | BL50: =LIDO!BI74 -> 0 | BM50: =LIDO!BJ74 -> 0 | BN50: =LIDO!BK74 -> 0 | BO50: =LIDO!BL74 -> 0 | BP50: =LIDO!BM74 -> 0 | BQ50: =LIDO!BN74 -> 0 | BR50: =LIDO!BO74 -> 0 | BY50: Lidocaine | CB50: 1 | CC50: 2.1 | CD50: 5.1 | CE50: ng/mL
E53: Your Drug | I53: Bolus mg | J53: 0 | BV53: 0
E54: mg/Kg/h | I54: Infusion | J54: 0 | K54: =J54 -> 0 | L54: =K54 -> 0 | M54: 0 | N54: 0 | O54: 0 | P54: 0 | Q54: 0 | R54: 0 | S54: 0 | T54: 0 | U54: 0 | V54: 0 | W54: 0 | X54: 0 | Y54: 0 | Z54: 0 | AA54: 0 | AB54: 0 | AC54: 0 | AD54: 0 | AE54: 0 | AF54: 0 | AG54: 0 | AH54: 0 | AI54: 0 | AJ54: 0 | AK54: 0 | AL54: 0 | AM54: 0 | AN54: 0 | AO54: 0 | AP54: 0 | AQ54: 0 | AR54: 0 | AS54: 0 | AT54: 0 | AU54: 0 | AV54: 0 | AW54: 0 | AX54: 0 | AY54: 0 | AZ54: 0 | BA54: 0 | BB54: 0 | BC54: 0 | BD54: 0 | BE54: 0 | BF54: 0 | BG54: 0 | BH54: 0 | BI54: 0 | BJ54: 0 | BK54: 0 | BL54: 0 | BM54: 0 | BN54: 0 | BO54: 0 | BP54: 0 | BQ54: 0 | BR54: 0 | BV54: 0
J55: 0 | CC55: 4 | CD55: 10
C56: Scale | E56: Labels | G56: U/mL | I56: Cp | J56: 0 | K56: =YourDrug!H74 -> 0 | L56: =YourDrug!I74 -> 0 | M56: =YourDrug!J74 -> 0 | N56: =YourDrug!K74 -> 0 | O56: =YourDrug!L74 -> 0 | P56: =YourDrug!M74 -> 0 | Q56: =YourDrug!N74 -> 0 | R56: =YourDrug!O74 -> 0 | S56: =YourDrug!P74 -> 0 | T56: =YourDrug!Q74 -> 0 | U56: =YourDrug!R74 -> 0 | V56: =YourDrug!S74 -> 0 | W56: =YourDrug!T74 -> 0 | X56: =YourDrug!U74 -> 0 | Y56: =YourDrug!V74 -> 0 | Z56: =YourDrug!W74 -> 0 | AA56: =YourDrug!X74 -> 0 | AB56: =YourDrug!Y74 -> 0 | AC56: =YourDrug!Z74 -> 0 | AD56: =YourDrug!AA74 -> 0 | AE56: =YourDrug!AB74 -> 0 | AF56: =YourDrug!AC74 -> 0 | AG56: =YourDrug!AD74 -> 0 | AH56: =YourDrug!AE74 -> 0 | AI56: =YourDrug!AF74 -> 0 | AJ56: =YourDrug!AG74 -> 0 | AK56: =YourDrug!AH74 -> 0 | AL56: =YourDrug!AI74 -> 0 | AM56: =YourDrug!AJ74 -> 0 | AN56: =YourDrug!AK74 -> 0 | AO56: =YourDrug!AL74 -> 0 | AP56: =YourDrug!AM74 -> 0 | AQ56: =YourDrug!AN74 -> 0 | AR56: =YourDrug!AO74 -> 0 | AS56: =YourDrug!AP74 -> 0 | AT56: =YourDrug!AQ74 -> 0 | AU56: =YourDrug!AR74 -> 0 | AV56: =YourDrug!AS74 -> 0 | AW56: =YourDrug!AT74 -> 0 | AX56: =YourDrug!AU74 -> 0 | AY56: =YourDrug!AV74 -> 0 | AZ56: =YourDrug!AW74 -> 0 | BA56: =YourDrug!AX74 -> 0 | BB56: =YourDrug!AY74 -> 0 | BC56: =YourDrug!AZ74 -> 0 | BD56: =YourDrug!BA74 -> 0 | BE56: =YourDrug!BB74 -> 0 | BF56: =YourDrug!BC74 -> 0 | BG56: =YourDrug!BD74 -> 0 | BH56: =YourDrug!BE74 -> 0 | BI56: =YourDrug!BF74 -> 0 | BJ56: =YourDrug!BG74 -> 0 | BK56: =YourDrug!BH74 -> 0 | BL56: =YourDrug!BI74 -> 0 | BM56: =YourDrug!BJ74 -> 0 | BN56: =YourDrug!BK74 -> 0 | BO56: =YourDrug!BL74 -> 0 | BP56: =YourDrug!BM74 -> 0 | BQ56: =YourDrug!BN74 -> 0 | BR56: =YourDrug!BO74 -> 0 | BY56: Your Drug | CE56: ng/mL
J57: 0
BY60: code couleur RGB
I61: (Min) | J61: 0 | K61: 5 | L61: 10 | M61: 15 | N61: 20 | O61: 25 | P61: 30 | Q61: 35 | R61: 40 | S61: 45 | T61: 50 | U61: 55 | V61: 60 | W61: 65 | X61: 70 | Y61: 75 | Z61: 80 | AA61: 85 | AB61: 90 | AC61: 95 | AD61: 100 | AE61: 105 | AF61: 110 | AG61: 115 | AH61: 120 | AI61: 125 | AJ61: 130 | AK61: 135 | AL61: 140 | AM61: 145 | AN61: 150 | AO61: 155 | AP61: 160 | AQ61: 165 | AR61: 170 | AS61: 175 | AT61: 180 | AU61: 185 | AV61: 190 | AW61: 195 | AX61: 200 | AY61: 205 | AZ61: 210 | BA61: 215 | BB61: 220 | BC61: 225 | BD61: 230 | BE61: 235 | BF61: 240 | BG61: 245 | BH61: 250 | BI61: 255 | BJ61: 260 | BK61: 265 | BL61: 270 | BM61: 275 | BN61: 280 | BO61: 285 | BP61: 290 | BQ61: 295 | BR61: 300 | BZ61: R | CA61: G | CB61: B
B62: Ketamine | F62: Coeff | G62: =$G$72 -> 2 | I62: Cp (K) | J62: =J33 -> 0 | K62: =(((((K33)*($G$72))*($G$72))*($G$72))*($G$72))*($G$72) -> 0 | L62: =(((((L33)*($G$72))*($G$72))*($G$72))*($G$72))*($G$72) -> 0 | M62: 0 | N62: 0 | O62: 0 | P62: 0 | Q62: 0 | R62: 0 | S62: 0 | T62: 0 | U62: 0 | V62: 0 | W62: 0 | X62: 0 | Y62: 0 | Z62: 0 | AA62: 0 | AB62: 0 | AC62: 0 | AD62: 0 | AE62: 0 | AF62: 0 | AG62: 0 | AH62: 0 | AI62: 0 | AJ62: 0 | AK62: 0 | AL62: 0 | AM62: 0 | AN62: 0 | AO62: 0 | AP62: 0 | AQ62: 0 | AR62: 0 | AS62: 0 | AT62: 0 | AU62: 0 | AV62: 0 | AW62: 0 | AX62: 0 | AY62: 0 | AZ62: 0 | BA62: 0 | BB62: 0 | BC62: 0 | BD62: 0 | BE62: 0 | BF62: 0 | BG62: 0 | BH62: 0 | BI62: 0 | BJ62: 0 | BK62: 0 | BL62: 0 | BM62: 0 | BN62: 0 | BO62: 0 | BP62: 0 | BQ62: 0 | BR62: 0 | BY62: =(((((((((((((((((((((((((((((((((((((((((((((((((((((((((((((((J46)*10)*10)*10)*10)*10)*10)*10)*10)*10)*10)*10)*10)*10)*10)*10)*10)*10)*10)*10)*10)*10)*10)*10)*10)*10)*10)*10)*10)*10)*10)*10)*10)*10)*10)*10)*10)*10)*10)*10)*10)*10)*10)*10)*10)*10)*10)*10)*10)*10)*10)*10)*10)*10)*10)*1)*1)*1)*1)*1)*1)*1)*10)*10 -> 0 | BZ62: 255 | CA62: 192 | CB62: _0
B63: Propofol | F63: Coeff | G63: =$G$72 -> 2 | I63: Cp (P) | J63: =J38 -> 0 | K63: =K38 -> 0 | L63: =L38 -> 0 | M63: 0 | N63: 0 | O63: 0 | P63: 0 | Q63: 0 | R63: 0 | S63: 0 | T63: 0 | U63: 0 | V63: 0 | W63: 0 | X63: 0 | Y63: 0 | Z63: 0 | AA63: 0 | AB63: 0 | AC63: 0 | AD63: 0 | AE63: 0 | AF63: 0 | AG63: 0 | AH63: 0 | AI63: 0 | AJ63: 0 | AK63: 0 | AL63: 0 | AM63: 0 | AN63: 0 | AO63: 0 | AP63: 0 | AQ63: 0 | AR63: 0 | AS63: 0 | AT63: 0 | AU63: 0 | AV63: 0 | AW63: 0 | AX63: 0 | AY63: 0 | AZ63: 0 | BA63: 0 | BB63: 0 | BC63: 0 | BD63: 0 | BE63: 0 | BF63: 0 | BG63: 0 | BH63: 0 | BI63: 0 | BJ63: 0 | BK63: 0 | BL63: 0 | BM63: 0 | BN63: 0 | BO63: 0 | BP63: 0 | BQ63: 0 | BR63: 0 | BY63: =((((J51)*10)*10)*10)*10 -> 0
I64: Ce (P) | J64: =J39 -> 0 | K64: =K39 -> 0 | L64: =L39 -> 0 | M64: 0 | N64: 0 | O64: 0 | P64: 0 | Q64: 0 | R64: 0 | S64: 0 | T64: 0 | U64: 0 | V64: 0 | W64: 0 | X64: 0 | Y64: 0 | Z64: 0 | AA64: 0 | AB64: 0 | AC64: 0 | AD64: 0 | AE64: 0 | AF64: 0 | AG64: 0 | AH64: 0 | AI64: 0 | AJ64: 0 | AK64: 0 | AL64: 0 | AM64: 0 | AN64: 0 | AO64: 0 | AP64: 0 | AQ64: 0 | AR64: 0 | AS64: 0 | AT64: 0 | AU64: 0 | AV64: 0 | AW64: 0 | AX64: 0 | AY64: 0 | AZ64: 0 | BA64: 0 | BB64: 0 | BC64: 0 | BD64: 0 | BE64: 0 | BF64: 0 | BG64: 0 | BH64: 0 | BI64: 0 | BJ64: 0 | BK64: 0 | BL64: 0 | BM64: 0 | BN64: 0 | BO64: 0 | BP64: 0 | BQ64: 0 | BR64: 0 | BY64: =((((J52)*10)*10)*10)*10 -> 0 | BZ64: 146 | CA64: 208 | CB64: 80
B65: Dexmed | F65: Coeff | G65: =$G$72 -> 2 | I65: Cp (D) | J65: =J44 -> 0 | K65: =((((((((((((((((((K44)*($G$72))*($G$72))*($G$72))*($G$72))*($G$72))*($G$72))/($G$72))/($G$72))/($G$72))/($G$72))/($G$72))/($G$72))*($G$72))*($G$72))/($G$72))/($G$72))/($G$72))*($G$72) -> 0 | L65: =((((((((((((((((((L44)*($G$72))*($G$72))*($G$72))*($G$72))*($G$72))*($G$72))/($G$72))/($G$72))/($G$72))/($G$72))/($G$72))/($G$72))*($G$72))*($G$72))/($G$72))/($G$72))/($G$72))*($G$72) -> 0 | M65: 0 | N65: 0 | O65: 0 | P65: 0 | Q65: 0 | R65: 0 | S65: 0 | T65: 0 | U65: 0 | V65: 0 | W65: 0 | X65: 0 | Y65: 0 | Z65: 0 | AA65: 0 | AB65: 0 | AC65: 0 | AD65: 0 | AE65: 0 | AF65: 0 | AG65: 0 | AH65: 0 | AI65: 0 | AJ65: 0 | AK65: 0 | AL65: 0 | AM65: 0 | AN65: 0 | AO65: 0 | AP65: 0 | AQ65: 0 | AR65: 0 | AS65: 0 | AT65: 0 | AU65: 0 | AV65: 0 | AW65: 0 | AX65: 0 | AY65: 0 | AZ65: 0 | BA65: 0 | BB65: 0 | BC65: 0 | BD65: 0 | BE65: 0 | BF65: 0 | BG65: 0 | BH65: 0 | BI65: 0 | BJ65: 0 | BK65: 0 | BL65: 0 | BM65: 0 | BN65: 0 | BO65: 0 | BP65: 0 | BQ65: 0 | BR65: 0 | BY65: =((((((((J57)*10)*10)*10)*10)*10)*10)*10)*10 -> 0
J66: =J45 -> 0 | K66: =((((((((((((((((((K45)*($G$72))*($G$72))*($G$72))*($G$72))*($G$72))*($G$72))/($G$72))/($G$72))/($G$72))/($G$72))/($G$72))/($G$72))*($G$72))*($G$72))/($G$72))/($G$72))/($G$72))*($G$72) -> 0 | L66: =((((((((((((((((((L45)*($G$72))*($G$72))*($G$72))*($G$72))*($G$72))*($G$72))/($G$72))/($G$72))/($G$72))/($G$72))/($G$72))/($G$72))*($G$72))*($G$72))/($G$72))/($G$72))/($G$72))*($G$72) -> 0 | M66: 0 | N66: 0 | O66: 0 | P66: 0 | Q66: 0 | R66: 0 | S66: 0 | T66: 0 | U66: 0 | V66: 0 | W66: 0 | X66: 0 | Y66: 0 | Z66: 0 | AA66: 0 | AB66: 0 | AC66: 0 | AD66: 0 | AE66: 0 | AF66: 0 | AG66: 0 | AH66: 0 | AI66: 0 | AJ66: 0 | AK66: 0 | AL66: 0 | AM66: 0 | AN66: 0 | AO66: 0 | AP66: 0 | AQ66: 0 | AR66: 0 | AS66: 0 | AT66: 0 | AU66: 0 | AV66: 0 | AW66: 0 | AX66: 0 | AY66: 0 | AZ66: 0 | BA66: 0 | BB66: 0 | BC66: 0 | BD66: 0 | BE66: 0 | BF66: 0 | BG66: 0 | BH66: 0 | BI66: 0 | BJ66: 0 | BK66: 0 | BL66: 0 | BM66: 0 | BN66: 0 | BO66: 0 | BP66: 0 | BQ66: 0 | BR66: 0 | BY66: =((((((((J58)*10)*10)*10)*10)*10)*10)*10)*10 -> 0 | BZ66: 255 | CA66: 51
B67: Lidocaine | F67: Coeff | G67: =$G$72 -> 2 | I67: Cp (L) | J67: =J50 -> 0 | K67: =(((((((((((K50)*($G$72))*($G$72))*($G$72))*($G$72))*($G$72))*($G$72))*($G$72))/($G$72))/($G$72))/($G$72))/($G$72) -> 0 | L67: =(((((((((((L50)*($G$72))*($G$72))*($G$72))*($G$72))*($G$72))*($G$72))*($G$72))/($G$72))/($G$72))/($G$72))/($G$72) -> 0 | M67: 0 | N67: 0 | O67: 0 | P67: 0 | Q67: 0 | R67: 0 | S67: 0 | T67: 0 | U67: 0 | V67: 0 | W67: 0 | X67: 0 | Y67: 0 | Z67: 0 | AA67: 0 | AB67: 0 | AC67: 0 | AD67: 0 | AE67: 0 | AF67: 0 | AG67: 0 | AH67: 0 | AI67: 0 | AJ67: 0 | AK67: 0 | AL67: 0 | AM67: 0 | AN67: 0 | AO67: 0 | AP67: 0 | AQ67: 0 | AR67: 0 | AS67: 0 | AT67: 0 | AU67: 0 | AV67: 0 | AW67: 0 | AX67: 0 | AY67: 0 | AZ67: 0 | BA67: 0 | BB67: 0 | BC67: 0 | BD67: 0 | BE67: 0 | BF67: 0 | BG67: 0 | BH67: 0 | BI67: 0 | BJ67: 0 | BK67: 0 | BL67: 0 | BM67: 0 | BN67: 0 | BO67: 0 | BP67: 0 | BQ67: 0 | BR67: 0 | BY67: =(J63)*10 -> 0
J68: =J51 -> 0 | K68: =(((((((((((K51)*($G$72))*($G$72))*($G$72))*($G$72))*($G$72))*($G$72))*($G$72))/($G$72))/($G$72))/($G$72))/($G$72) -> 0 | L68: =(((((((((((L51)*($G$72))*($G$72))*($G$72))*($G$72))*($G$72))*($G$72))*($G$72))/($G$72))/($G$72))/($G$72))/($G$72) -> 0 | M68: 0 | N68: 0 | O68: 0 | P68: 0 | Q68: 0 | R68: 0 | S68: 0 | T68: 0 | U68: 0 | V68: 0 | W68: 0 | X68: 0 | Y68: 0 | Z68: 0 | AA68: 0 | AB68: 0 | AC68: 0 | AD68: 0 | AE68: 0 | AF68: 0 | AG68: 0 | AH68: 0 | AI68: 0 | AJ68: 0 | AK68: 0 | AL68: 0 | AM68: 0 | AN68: 0 | AO68: 0 | AP68: 0 | AQ68: 0 | AR68: 0 | AS68: 0 | AT68: 0 | AU68: 0 | AV68: 0 | AW68: 0 | AX68: 0 | AY68: 0 | AZ68: 0 | BA68: 0 | BB68: 0 | BC68: 0 | BD68: 0 | BE68: 0 | BF68: 0 | BG68: 0 | BH68: 0 | BI68: 0 | BJ68: 0 | BK68: 0 | BL68: 0 | BM68: 0 | BN68: 0 | BO68: 0 | BP68: 0 | BQ68: 0 | BR68: 0 | BY68: =(J64)*10 -> 0 | BZ68: _0 | CA68: 153 | CB68: 255
B69: Your Drug | F69: Coeff | G69: =$G$72 -> 2 | I69: Cp (y) | J69: =J56 -> 0 | K69: =K56 -> 0 | L69: =L56 -> 0 | M69: 0 | N69: 0 | O69: 0 | P69: 0 | Q69: 0 | R69: 0 | S69: 0 | T69: 0 | U69: 0 | V69: 0 | W69: 0 | X69: 0 | Y69: 0 | Z69: 0 | AA69: 0 | AB69: 0 | AC69: 0 | AD69: 0 | AE69: 0 | AF69: 0 | AG69: 0 | AH69: 0 | AI69: 0 | AJ69: 0 | AK69: 0 | AL69: 0 | AM69: 0 | AN69: 0 | AO69: 0 | AP69: 0 | AQ69: 0 | AR69: 0 | AS69: 0 | AT69: 0 | AU69: 0 | AV69: 0 | AW69: 0 | AX69: 0 | AY69: 0 | AZ69: 0 | BA69: 0 | BB69: 0 | BC69: 0 | BD69: 0 | BE69: 0 | BF69: 0 | BG69: 0 | BH69: 0 | BI69: 0 | BJ69: 0 | BK69: 0 | BL69: 0 | BM69: 0 | BN69: 0 | BO69: 0 | BP69: 0 | BQ69: 0 | BR69: 0 | BY69: =(((J69)*10)*10)*10 -> 0
J70: =J57 -> 0 | K70: =K57 -> 0 | L70: =L57 -> 0 | M70: 0 | N70: 0 | O70: 0 | P70: 0 | Q70: 0 | R70: 0 | S70: 0 | T70: 0 | U70: 0 | V70: 0 | W70: 0 | X70: 0 | Y70: 0 | Z70: 0 | AA70: 0 | AB70: 0 | AC70: 0 | AD70: 0 | AE70: 0 | AF70: 0 | AG70: 0 | AH70: 0 | AI70: 0 | AJ70: 0 | AK70: 0 | AL70: 0 | AM70: 0 | AN70: 0 | AO70: 0 | AP70: 0 | AQ70: 0 | AR70: 0 | AS70: 0 | AT70: 0 | AU70: 0 | AV70: 0 | AW70: 0 | AX70: 0 | AY70: 0 | AZ70: 0 | BA70: 0 | BB70: 0 | BC70: 0 | BD70: 0 | BE70: 0 | BF70: 0 | BG70: 0 | BH70: 0 | BI70: 0 | BJ70: 0 | BK70: 0 | BL70: 0 | BM70: 0 | BN70: 0 | BO70: 0 | BP70: 0 | BQ70: 0 | BR70: 0 | BY70: =(((J70)*10)*10)*10 -> 0 | BZ70: _0 | CA70: 255 | CB70: 255
F72: COEFF | G72: 2 | BZ72: 142 | CA72: 169 | CB72: 219

Sheet Calculator
I3: KPTiva CALCULATOR
E5: Enter data in yellow cells and read the equivalent values in the right appropriated colomn
E7: Weight = | G7: =Poids -> 70 | H7: Kg
L9: BOLUS
J10: mg/kg | K10: mg | M10: mg | N10: mg/kg
K11: =Poids*J11 -> 0 | N11: =M11/G7 -> 0
L13: INFUSION
G14: Speed | I14: Unit | J14: mg/kg/h | K14: µg/kg/min | L14: µg/min | M14: mg/min | N14: mg/h
I15: mg/kg/h | J15: . | K15: =(G15*1000)/60 -> 0 | L15: =(G15*Poids*1000)/60 -> 0 | M15: =L15/1000 -> 0 | N15: =M15*60 -> 0
I16: µg/kg/min | J16: =(G16*60)/(1000) -> 0 | K16: . | L16: =G7*G16 -> 0 | M16: =L16/1000 -> 0 | N16: =M16*60 -> 0
I19: Ketamine | J19: Propofol | K19: Sufentanil | L19: Alfentanil | M19: Remifentanil | N19: Dexmed | O19: Lidocaine
E21: Concentration | I21: =Concentration_Ketamine -> 10 | J21: =Concentration_propofol -> 10 | K21: =Concentration_Sufenta -> 5 | L21: =Concentration_Rapifen -> 100 | M21: =Concentration_Remi -> 50 | N21: =OFA!Concentration_Sufenta -> 10 | O21: =OFA!Concentration_Rapifen -> 10
I22: Convert mg into mL
G24: mg | I24: =$E$24/I21 -> 0 | J24: =$E$24/J21 -> 0 | K24: =$E$24*1000/K21 -> 0 | L24: =$E$24*1000/L21 -> 0 | M24: =$E$24*1000/M21 -> 0 | N24: =$E$24*1000/N21 -> 0 | O24: =$E$24/O21 -> 0 | Q24: mL
I25: Convert mL into mg
G27: mL | I27: =$E$27*I21 -> 0 | J27: =$E$27*J21 -> 0 | K27: =$E$27*K21/1000 -> 0 | L27: =$E$27*L21/1000 -> 0 | M27: =$E$27*M21/1000 -> 0 | N27: =$E$27*N21/1000 -> 0 | O27: =$E$27*O21 -> 0 | Q27: mg

Sheet DRUGS
H5: Common therapeutic ranges (from light sedation to deep anesthesia) | V5: PKPD Multi - Exponential models | AN5: PKPD Compartmental models
V6: A | X6: B | Z6: C | AB6: Alpha | AD6: Beta | AF6: Gamma | AH6: dose | AN6: K10 | AP6: K12 | AR6: K13 | AT6: K21 | AV6: K31 | AX6: Vc
J7: BOLUS | L7: INFUSION | O7: Cp | T7: Model | V7: U/mL | AB7: min-1 | AH7: mg/kg | AL7: Model | AN7: L/min | AX7: L
C9: Ketamine: Cp / effect | I9: Ketamine | J9: 0.05-2 | K9: mg/kg | L9: 0.15-1 | M9: mg/kg/h | O9: 20-1000 | P9: ng/mL | T9: Domino | V9: 14300 | X9: 2340 | Z9: 197 | AB9: 81.1 | AD9: 5.71 | AF9: 0.227 | AH9: 2 | AL9: Domino | AN9: 0.438 | AP9: 0.592 | AR9: 0.59 | AT9: 0.247 | AV9: 0.0146 | AX9: =Ket!E74 -> 4.41
D11: ng/mL | E11: Corresponding effect | I11: Propofol | J11: 0.5-4 | K11: mg/kg | L11: 3-12 | M11: mg/kg/h | O11: 1-10 | P11: µg/mL | T11: Clements | V11: 108 | X11: 39 | Z11: 0 | AB11: 0.0394 | AD11: 0.0038 | AF11: 0 | AH11: 0.25 | AL11: Schnider | AN11: =Propofol!K79 -> 0.3836381611 | AP11: =Propofol!K80 -> 0.375175644 | AR11: =Propofol!K81 -> 0.1957845433 | AT11: =Propofol!K82 -> 0.06679731476 | AV11: =Propofol!K83 -> 0.003512605042 | AX11: =Propofol!K78 -> 4.27
C12: 1 | D12: 0-20 | E12: None
C13: 21 | D13: 20-100 | E13: Anti-hyperalgesic | I13: Sufentanil | J13: 0.05-0.5 | K13: µg/kg | L13: 0.1-0.6 | M13: µg/kg/h | O13: 0.1-0.6 | P13: ng/mL | T13: Gepts | AL13: Gepts | AN13: 0.0645 | AP13: 0.1086 | AR13: 0.0229 | AT13: 0.0245 | AV13: 0.0013 | AX13: =Sufenta!K78 -> 14.3
C14: 151 | D14: 100-300 | E14: Analgesic
C15: 401 | D15: 300-700 | E15: Psychedelic | I15: Alfentanil | J15: 2.5-50 | K15: µg/kg | L15: 0.15-1 | M15: µg/kg/min | O15: 50-150 | P15: ng/mL | T15: Shafer | AL15: Shafer | AN15: 0.0748 | AP15: 0.515 | AR15: 0.231 | AT15: 0.142 | AV15: 0.0185 | AX15: =Rapifen!K78 -> 1.493008936
C16: 701 | D16: 700-1000 | E16: Emergence
C17: 1001 | D17: > 1000 | E17: Narcosis | I17: Remifentanil | J17: 0.5-2 | K17: µg/kg | L17: 0.05-0.4 | M17: µg/kg/min | O17: 2-10 | P17: ng/mL | T17: Minto | AL17: Minto | AN17: =Remi!K79 -> 0.5087809406 | AP17: =Remi!K80 -> 0.4002791718 | AR17: =Remi!K81 -> 0.01483961808 | AT17: =Remi!K82 -> 0.2080766545 | AV17: =Remi!K83 -> 0.01402214022 | AX17: =Remi!K78 -> 5.121425606
C18: 2201 | D18: > 2200 | E18: Excessive
I19: Dexmed | J19: 0.5-1 | K19: µg/kg | L19: 0.1-1 | M19: µg/kg/h | O19: 0.35-6 | P19: ng/mL | T19: Dyck | AL19: Dyck | AN19: =Dexmed!K79 -> 0.04237797247 | AP19: =Dexmed!K80 -> 0.282853567 | AR19: =Dexmed!K81 -> 0.2490613267 | AT19: =Dexmed!K82 -> 0.1637681159 | AV19: =Dexmed!K83 -> 0.01064171123 | AX19: =Dexmed!K78 -> 7.99
I21: Lidocaine | J21: 1.5 | K21: mg/kg | L21: 1.3-2 | M21: mg/kg/h | O21: 3 | P21: µg/mL | T21: Schnider | V21: 8.77 | X21: 1.14 | Z21: 0 | AB21: 0.895 | AD21: 0.0309 | AF21: 0 | AH21: 1 | AL21: Schnider | AN21: 0.213 | AP21: 0.583 | AT21: 0.13 | AX21: =_V1 -> 6.06
I24: KPTiva uses the Domino model for ketamine concentrations. | T24: Your Drug | V24: 108 | X24: 39 | Z24: 0 | AB24: 0.0394 | AD24: 0.0038 | AF24: 0 | AH24: 0.25
I25: If you prefer the Clements model, enter the constants in "your drug"
I27: Clements JA, Nimmo WS. Br J Anaesth. 1981;53(1):27-30.
T28: For your own drug, be sure to indicate the dose (mg/kg) used to establish the model
I29: Domino EF et al. Anesth Analg. 1982;61(2):87-92. | T29: (by default, I copied the constants from Clements' ketamine model)

Sheet Ket (hidden)
C4: Document n. | F4: 001/006 002 004 | K4: Revision | M4: 1
A6: Rugloop II© Ketamine calculations validation
A7: Drug model: Domino et al
A9: This spreadsheet will calculate the resulting Cp & Ce, starting from the Vc-k41, and the infused volume. Fill in the boxed rectangles, and you are ready to compare the concentration as calculated by your program with the values as calculated by the spreadsheet.
A12: REMARK: this spreadsheet is for information purpose only, and should NOT be used to derive therapeutical decisions! This file is delivered AS IS, without guarantee for reliability.
A15: Reference from the literature : Domino et al.: Clin. Pharmacol Ther 1991, 36, 645-653
A20: Revision history
D21: Rev. | E21: Description | I21: ORG | J21: CHK | K21: APP | L21: Date (dd/mm/yy)
D22: 1 | E22: Release | I22: TDS | L22: 2002-07-18
A34: Procedure: | C34: * Fill in the yellow-colored boxes with your patient's weight, age,…
C37: * Fill in the orange boxes with the Time, infused volume, cp & ce series from your RGL file for ketamine. You can use either the time column in 25ms units (RGLII format) or the time column. Only the latter one will be used, and contains by default the formula to calculate the time from the first column.
C40: * The time intervals do not have to be constant. The only relevant thing is that the time entered and the infused volume entered match. E.g. : Time 0s -> infused volume 0ml ; T = 10s-> infused volume 1.5ml; T = 15s -> infused volume 2ml; … The spreadsheet will recalculate the corresponding infusion rates to get Cp & Ce
C43: * Important remark: when entering time, … data, make sure to leave the first row (which is read-only) and that your first entered line has infused volume zero. This will give the correct offset; otherwise, the first interval will not be correct, and the calculations will be wrong as well.
C46: * The spreadsheet will calculate the realised Cp values at the entered time, using the model specified. Use the columns Cp, calculated & Ce, calculated to read the calculated Cp & Ce for this specific model.
C49: * if you also have the already calculated Cp & Ce but, for example, if you wanted to verify two different models for the same drug, you can enter them as well in the specified orange columns for Cp & Ce. The spreadsheet will then immedicately give you the procentual difference between your own calculations & the results calculated by this model in the green columns.
C52: * the fields input table, root calculation, Pcoeff calculation, Root verification & Modelling results are only for information.
C57: Unit of concentration : µg/ml
C58: Vc = 0.063*mass
A68: Patient data
A70: Enter patient weight | F70: =Poids -> 70 | G70: kg
A71: Enter drug conc | F71: =Concentration_Ketamine -> 10 | G71: mg/ml
D74: Vc | E74: =0.063*F70 -> 4.41
D75: K10 | E75: 0.438 | F75: 1/min
D76: K12 | E76: =0.592 -> 0.592 | F76: 1/min
D77: K13 | E77: =0.59 -> 0.59 | F77: 1/min
D78: K21 | E78: 0.247 | F78: 1/min
D79: K31 | E79: 0.0146 | F79: 1/min
A81: Drug conc[mg/ml] | C81: =F71 -> 10
A84: Input table | E84: Root calculation | L84: Pcoeff calculation
D85: Value | E85: K31>0 | F85: K21>0 | G85: Else | I85: K31>0 | J85: K21>0 | K85: Else
A86: Vc | C86: =E74 -> 4.41 | D86: a0 | E86: =K_K10*K_K21*K_K31 -> 7.312572222e-09 | F86: =K_K10*K_K21 -> 3.005166667e-05 | G86: _ | H86: PCoef1 | I86: =(K_K21-K_Lambda1)*(K_K31-K_Lambda1)/(K_Lambda1-K_Lambda2)/(K_Lambda1-K_Lambda3)/K_PK_Vc/K_Lambda1 -> 7.375531804 | J86: =(K_K21-K_Lambda1)/(K_Lambda2-K_Lambda1)/K_PK_Vc/K_Lambda1 -> 7.412435826 | K86: =1/K_PK_Vc/K_Lambda1 -> 7.891617227
A87: K10 | C87: =E75/60 -> 0.0073 | D87: a1 | E87: =K_K10*K_K31+K_K21*K_K31+K_K21*K_K13+K_K10*K_K21+K_K31*K_K12 -> 7.571116667e-05 | F87: =(K_K10+K_K12+K_K21) -> 0.02128333333 | G87: _ | H87: PCoef2 | I87: =(K_K21-K_Lambda2)*(K_K31-K_Lambda2)/(K_Lambda2-K_Lambda1)/(K_Lambda2-K_Lambda3)/K_PK_Vc/K_Lambda2 -> 5.131813735 | J87: =(K_K21-K_Lambda2)/(K_Lambda1-K_Lambda2)/K_PK_Vc/K_Lambda2 -> 5.452403831 | K87: 0
A88: K12 | C88: =E76/60 -> 0.009866666667 | D88: a2 | E88: =K_K10+K_K12+K_K13+K_K31+K_K21 -> 0.03136 | F88: _ | G88: _ | H88: PCoef3 | I88: =(K_K21-K_Lambda3)*(K_K31-K_Lambda3)/(K_Lambda3-K_Lambda2)/(K_Lambda3-K_Lambda1)/K_PK_Vc/K_Lambda3 -> 18.55530783 | J88: 0 | K88: 0
A89: K13 | C89: =E77/60 -> 0.009833333333 | D89: p | E89: =K_a1-(K_a2*K_a2/3) -> -0.0002521053667 | F89: _ | G89: _
A90: K21 | C90: =E78/60 -> 0.004116666667 | D90: q | E90: =(2*K_a2*K_a2*K_a2/27)-(K_a1*K_a2/3)+K_a0 -> 1.500395507e-06 | F90: _ | G90: _
A91: K31 | C91: =E79/60 -> 0.0002433333333 | D91: r1 | E91: =SQRT(-(K_p*K_p*K_p)/27) -> 7.703556179e-07 | F91: _ | G91: _ | T91: Ctrl F3 | V91: permet de renommer tous les noms d'une feuille
J92: Modelling results
D93: Phi | E93: =(ACOS(MIN(MAX((-K_q/2)/K_r1,-1),1)))/3 -> 0.9707749233 | F93: _ | G93: _ | J93: Lambda1 | K93: =IF(K_K31>0,E98,IF(K_K21>0,F98,G98)) -> 0.02873395441
A94: Root verification | D94: r1_Use | E94: =2*EXP(LN(K_r1)/3) -> 0.01833413453 | F94: _ | G94: _ | J94: Lambda2 | K94: =IF(K_K31>0,E99,IF(K_K21>0,F99,G99)) -> 0.002525267197
A95: L1 | B95: =(POWER(-E95,3)+POWER(E95,2)*K_a2-E95*K_a1+K_a0)<0.000000000000001 -> TRUE | C95: =POWER(F95,2)-K__a1*F95+K__a0 -> 0 | D95: L1 | E95: =-(COS(K_Phi)*K_r1_Use-K_a2/3) -> 0.0001007783939 | F95: =-(-K__a1+SQRT(K__a1*K__a1-4*K__a0))/2 -> 0.001520624907 | G95: =K_K10 -> 0.0073 | J95: Lambda3 | K95: =IF(K_K31>0,E100,IF(K_K21>0,F100,G100)) -> 0.0001007783939
A96: L2 | B96: =(POWER(-E96,3)+POWER(E96,2)*K_a2-E96*K_a1+K_a0)<0.000000000000001 -> TRUE | C96: =POWER(F96,2)-F96*K__a1+K__a0 -> 0 | D96: L2 | E96: =-(COS(K_Phi+PI()*2/3)*K_r1_Use-K_a2/3) -> 0.02873395441 | F96: =-(-K__a1-SQRT(K__a1*K__a1-4*K__a0))/2 -> 0.01976270843 | G96: 0
A97: L3 | B97: =(POWER(-E97,3)+POWER(E97,2)*K_a2-E97*K_a1+K_a0)<0.000000000000001 -> TRUE | D97: L3 | E97: =-(COS(K_Phi+PI()*4/3)*K_r1_Use-K_a2/3) -> 0.002525267197 | F97: 0 | G97: 0 | J97: PCoef1 | K97: =IF(K_K31>0,I86,IF(K_K21>0,J86,K86)) -> 7.375531804 | V97: Colonne des zéros
D98: L1_SORT | E98: =MAX(MAX(E95,E96),E97) -> 0.02873395441 | F98: =MAX(MAX(F95,F96),F97) -> 0.01976270843 | G98: =MAX(MAX(G95,G96),G97) -> 0.0073 | J98: PCoef2 | K98: =IF(K_K31>0,I87,IF(K_K21>0,J87,K87)) -> 5.131813735
D99: L2_SORT | E99: =IF(AND(E98<>E95,E100<>E95),E95,IF(AND(E98<>E96,E100<>E96),E96,E97)) -> 0.002525267197 | F99: =IF(AND(F98<>F95,F100<>F95),F95,IF(AND(F98<>F96,F100<>F96),F96,F97)) -> 0.001520624907 | G99: =IF(AND(G98<>G95,G100<>G95),G95,IF(AND(G98<>G96,G100<>G96),G96,G97)) -> 0 | J99: PCoef3 | K99: =IF(K_K31>0,I88,IF(K_K21>0,J88,K88)) -> 18.55530783 | V99: Colonne liée à la première ligne de formules
D100: L3_SORT | E100: =MIN(MIN(E95,E96),E97) -> 0.0001007783939 | F100: =MIN(MIN(F95,F96),F97) -> 0 | G100: =MIN(MIN(G95,G96),G97) -> 0
V101: colonne bleue: c'est un copié collé spécial transposé des formules
V103: Les autres colonnes sont des recopies à dte
A105: Time | B105: Time | C105: Infused volume | D105: Cp, calculated | E105: DeltaTime | F105: InfusionRate | G105: I1 | H105: I2 | I105: I3 | J105: I4 | K105: PState1 | L105: PState2 | M105: PState3 | N105: eState1 | O105: eState2 | P105: eState3 | Q105: eState4 | S105: Time | T105: MINUTES | V105: 0 | W105: 5 | X105: 10 | Y105: 15 | Z105: 20 | AA105: 25 | AB105: 30 | AC105: 35 | AD105: 40 | AE105: 45 | AF105: 50 | AG105: 55 | AH105: 60 | AI105: 65 | AJ105: 70 | AK105: 75 | AL105: 80 | AM105: 85 | AN105: 90 | AO105: 95 | AP105: 100 | AQ105: 105 | AR105: 110 | AS105: 115 | AT105: 120 | AU105: 125 | AV105: 130 | AW105: 135 | AX105: 140 | AY105: 145 | AZ105: 150 | BA105: 155 | BB105: 160 | BC105: 165 | BD105: 170 | BE105: 175 | BF105: 180 | BG105: 185 | BH105: 190 | BI105: 195 | BJ105: 200 | BK105: 205 | BL105: 210 | BM105: 215 | BN105: 220 | BO105: 225 | BP105: 230 | BQ105: 235 | BR105: 240 | BS105: 245 | BT105: 250 | BU105: 255 | BV105: 260 | BW105: 265 | BX105: 270 | BY105: 275 | BZ105: 280 | CA105: 285 | CB105: 290 | CC105: 295 | CD105: 300
A106: MIN | B106: s | C106: mls | D106: µg/ml | E106: DeltaTime,s | F106: InfusionRate, amt/s | G106: I1 | H106: I2 | I106: I3 | J106: I4 | K106: PState1 | L106: PState2 | M106: PState3 | N106: eState1 | O106: eState2 | P106: eState3 | Q106: eState4 | S106: Time | T106: SECONDES | V106: =V105*60 -> 0 | W106: 300 | X106: =X105*60 -> 600 | Y106: =Y105*60 -> 900 | Z106: 1200 | AA106: 1500 | AB106: 1800 | AC106: 2100 | AD106: 2400 | AE106: 2700 | AF106: 3000 | AG106: 3300 | AH106: 3600 | AI106: 3900 | AJ106: 4200 | AK106: 4500 | AL106: 4800 | AM106: 5100 | AN106: 5400 | AO106: 5700 | AP106: 6000 | AQ106: 6300 | AR106: 6600 | AS106: 6900 | AT106: 7200 | AU106: 7500 | AV106: 7800 | AW106: 8100 | AX106: 8400 | AY106: 8700 | AZ106: 9000 | BA106: 9300 | BB106: 9600 | BC106: 9900 | BD106: 10200 | BE106: 10500 | BF106: 10800 | BG106: 11100 | BH106: 11400 | BI106: 11700 | BJ106: 12000 | BK106: 12300 | BL106: 12600 | BM106: 12900 | BN106: 13200 | BO106: 13500 | BP106: 13800 | BQ106: 14100 | BR106: 14400 | BS106: 14700 | BT106: 15000 | BU106: 15300 | BV106: 15600 | BW106: 15900 | BX106: 16200 | BY106: 16500 | BZ106: 16800 | CA106: 17100 | CB106: 17400 | CC106: 17700 | CD106: 18000
S107: Infused volume | T107: mls | V107: 0 | W107: =KPTIVA!K32 -> 0 | X107: =KPTIVA!L32 -> 0 | Y107: =KPTIVA!M32 -> 0 | Z107: =KPTIVA!N32 -> 0 | AA107: =KPTIVA!O32 -> 0 | AB107: =KPTIVA!P32 -> 0 | AC107: =KPTIVA!Q32 -> 0 | AD107: =KPTIVA!R32 -> 0 | AE107: =KPTIVA!S32 -> 0 | AF107: =KPTIVA!T32 -> 0 | AG107: =KPTIVA!U32 -> 0 | AH107: =KPTIVA!V32 -> 0 | AI107: =KPTIVA!W32 -> 0 | AJ107: =KPTIVA!X32 -> 0 | AK107: =KPTIVA!Y32 -> 0 | AL107: =KPTIVA!Z32 -> 0 | AM107: =KPTIVA!AA32 -> 0 | AN107: =KPTIVA!AB32 -> 0 | AO107: =KPTIVA!AC32 -> 0 | AP107: =KPTIVA!AD32 -> 0 | AQ107: =KPTIVA!AE32 -> 0 | AR107: =KPTIVA!AF32 -> 0 | AS107: =KPTIVA!AG32 -> 0 | AT107: =KPTIVA!AH32 -> 0 | AU107: =KPTIVA!AI32 -> 0 | AV107: =KPTIVA!AJ32 -> 0 | AW107: =KPTIVA!AK32 -> 0 | AX107: =KPTIVA!AL32 -> 0 | AY107: =KPTIVA!AM32 -> 0 | AZ107: =KPTIVA!AN32 -> 0 | BA107: =KPTIVA!AO32 -> 0 | BB107: =KPTIVA!AP32 -> 0 | BC107: =KPTIVA!AQ32 -> 0 | BD107: =KPTIVA!AR32 -> 0 | BE107: =KPTIVA!AS32 -> 0 | BF107: =KPTIVA!AT32 -> 0 | BG107: =KPTIVA!AU32 -> 0 | BH107: =KPTIVA!AV32 -> 0 | BI107: =KPTIVA!AW32 -> 0 | BJ107: =KPTIVA!AX32 -> 0 | BK107: =KPTIVA!AY32 -> 0 | BL107: =KPTIVA!AZ32 -> 0 | BM107: =KPTIVA!BA32 -> 0 | BN107: =KPTIVA!BB32 -> 0 | BO107: =KPTIVA!BC32 -> 0 | BP107: =KPTIVA!BD32 -> 0 | BQ107: =KPTIVA!BE32 -> 0 | BR107: =KPTIVA!BF32 -> 0 | BS107: =KPTIVA!BG32 -> 0 | BT107: =KPTIVA!BH32 -> 0 | BU107: =KPTIVA!BI32 -> 0 | BV107: =KPTIVA!BJ32 -> 0 | BW107: =KPTIVA!BK32 -> 0 | BX107: =KPTIVA!BL32 -> 0 | BY107: =KPTIVA!BM32 -> 0 | BZ107: =KPTIVA!BN32 -> 0 | CA107: =KPTIVA!BO32 -> 0 | CB107: =KPTIVA!BP32 -> 0 | CC107: =KPTIVA!BQ32 -> 0 | CD107: =KPTIVA!BR32 -> 0
A108: 0 | B108: =A108*60 -> 0 | C108: 0 | D108: 0 | E108: 0 | F108: 0 | G108: 0 | H108: 0 | I108: 0 | J108: 0 | K108: 0 | L108: 0 | M108: 0 | N108: 0 | O108: 0 | P108: 0 | Q108: 0 | S108: Cp, calculated | T108: µg/ml | V108: 0 | W108: =D109 -> 0 | X108: =X115+X116+X117 -> 0 | Y108: =Y115+Y116+Y117 -> 0 | Z108: 0 | AA108: 0 | AB108: 0 | AC108: 0 | AD108: 0 | AE108: 0 | AF108: 0 | AG108: 0 | AH108: 0 | AI108: 0 | AJ108: 0 | AK108: 0 | AL108: 0 | AM108: 0 | AN108: 0 | AO108: 0 | AP108: 0 | AQ108: 0 | AR108: 0 | AS108: 0 | AT108: 0 | AU108: 0 | AV108: 0 | AW108: 0 | AX108: 0 | AY108: 0 | AZ108: 0 | BA108: 0 | BB108: 0 | BC108: 0 | BD108: 0 | BE108: 0 | BF108: 0 | BG108: 0 | BH108: 0 | BI108: 0 | BJ108: 0 | BK108: 0 | BL108: 0 | BM108: 0 | BN108: 0 | BO108: 0 | BP108: 0 | BQ108: 0 | BR108: 0 | BS108: 0 | BT108: 0 | BU108: 0 | BV108: 0 | BW108: 0 | BX108: 0 | BY108: 0 | BZ108: 0 | CA108: 0 | CB108: 0 | CC108: 0 | CD108: 0
A109: 5 | B109: =A109*60 -> 300 | C109: =KPTIVA!K32 -> 0 | D109: =K109+L109+M109 -> 0 | E109: =B109-B108 -> 300 | F109: =(C109-C108)/E109*$C$81 -> 0 | G109: =EXP(-K_Lambda1*$E109) -> 0.000180426634 | H109: =EXP(-K_Lambda2*$E109) -> 0.4687994757 | I109: =EXP(-K_Lambda3*$E109) -> 0.9702189433 | J109: =EXP(-K_Lambda4*$E109) -> 1 | K109: =K108*G109+(1-G109)*$F109*K_PCoef1 -> 0 | L109: =L108*H109+(1-H109)*$F109*K_PCoef2 -> 0 | M109: =M108*I109+(1-I109)*$F109*K_PCoef3 -> 0 | N109: =N108*G109+(1-G109)*$F109*K_ECoef1 -> 0 | O109: =O108*H109+(1-H109)*$F109*K_ECoef2 -> 0 | P109: =P108*I109+(1-I109)*$F109*K_ECoef3 -> 0 | Q109: =Q108*J109+(1-J109)*$F109*K_ECoef4 -> 0 | S109: DeltaTime | T109: DeltaTime,s | V109: 0 | W109: =E109 -> 300 | X109: =X106-W106 -> 300 | Y109: =Y106-X106 -> 300 | Z109: 300 | AA109: 300 | AB109: 300 | AC109: 300 | AD109: 300 | AE109: 300 | AF109: 300 | AG109: 300 | AH109: 300 | AI109: 300 | AJ109: 300 | AK109: 300 | AL109: 300 | AM109: 300 | AN109: 300 | AO109: 300 | AP109: 300 | AQ109: 300 | AR109: 300 | AS109: 300 | AT109: 300 | AU109: 300 | AV109: 300 | AW109: 300 | AX109: 300 | AY109: 300 | AZ109: 300 | BA109: 300 | BB109: 300 | BC109: 300 | BD109: 300 | BE109: 300 | BF109: 300 | BG109: 300 | BH109: 300 | BI109: 300 | BJ109: 300 | BK109: 300 | BL109: 300 | BM109: 300 | BN109: 300 | BO109: 300 | BP109: 300 | BQ109: 300 | BR109: 300 | BS109: 300 | BT109: 300 | BU109: 300 | BV109: 300 | BW109: 300 | BX109: 300 | BY109: 300 | BZ109: 300 | CA109: 300 | CB109: 300 | CC109: 300 | CD109: 300
A110: 10 | B110: 600 | C110: 5 | D110: =K110+L110+M110 -> 1.77546998 | E110: =B110-B109 -> 300 | F110: =(C110-C109)/E110*$C$81 -> 0.1666666667 | G110: =EXP(-K_Lambda1*$E110) -> 0.000180426634 | H110: =EXP(-K_Lambda2*$E110) -> 0.4687994757 | I110: =EXP(-K_Lambda3*$E110) -> 0.9702189433 | J110: =EXP(-K_Lambda4*$E110) -> 1 | K110: =K109*G110+(1-G110)*$F110*K_PCoef1 -> 1.22903351 | L110: =L109*H110+(1-H110)*$F110*K_PCoef2 -> 0.4543370245 | M110: =M109*I110+(1-I110)*$F110*K_PCoef3 -> 0.09209944563 | N110: =N109*G110+(1-G110)*$F110*K_ECoef1 -> 0 | O110: =O109*H110+(1-H110)*$F110*K_ECoef2 -> 0 | P110: =P109*I110+(1-I110)*$F110*K_ECoef3 -> 0 | Q110: =Q109*J110+(1-J110)*$F110*K_ECoef4 -> 0 | S110: InfusionRate | T110: InfusionRate, amt/s | V110: 0 | W110: =F109 -> 0 | X110: =(X107-W107)/X109*$C$81 -> 0 | Y110: =(Y107-X107)/Y109*$C$81 -> 0 | Z110: 0 | AA110: 0 | AB110: 0 | AC110: 0 | AD110: 0 | AE110: 0 | AF110: 0 | AG110: 0 | AH110: 0 | AI110: 0 | AJ110: 0 | AK110: 0 | AL110: 0 | AM110: 0 | AN110: 0 | AO110: 0 | AP110: 0 | AQ110: 0 | AR110: 0 | AS110: 0 | AT110: 0 | AU110: 0 | AV110: 0 | AW110: 0 | AX110: 0 | AY110: 0 | AZ110: 0 | BA110: 0 | BB110: 0 | BC110: 0 | BD110: 0 | BE110: 0 | BF110: 0 | BG110: 0 | BH110: 0 | BI110: 0 | BJ110: 0 | BK110: 0 | BL110: 0 | BM110: 0 | BN110: 0 | BO110: 0 | BP110: 0 | BQ110: 0 | BR110: 0 | BS110: 0 | BT110: 0 | BU110: 0 | BV110: 0 | BW110: 0 | BX110: 0 | BY110: 0 | BZ110: 0 | CA110: 0 | CB110: 0 | CC110: 0 | CD110: 0
S111: I1 | T111: I1 | V111: 0 | W111: =G109 -> 0.000180426634 | X111: =EXP(-K_Lambda1*X$109) -> 0.000180426634 | Y111: 0.000180426634 | Z111: 0.000180426634 | AA111: 0.000180426634 | AB111: 0.000180426634 | AC111: 0.000180426634 | AD111: 0.000180426634 | AE111: 0.000180426634 | AF111: 0.000180426634 | AG111: 0.000180426634 | AH111: 0.000180426634 | AI111: 0.000180426634 | AJ111: 0.000180426634 | AK111: 0.000180426634 | AL111: 0.000180426634 | AM111: 0.000180426634 | AN111: 0.000180426634 | AO111: 0.000180426634 | AP111: 0.000180426634 | AQ111: 0.000180426634 | AR111: 0.000180426634 | AS111: 0.000180426634 | AT111: 0.000180426634 | AU111: 0.000180426634 | AV111: 0.000180426634 | AW111: 0.000180426634 | AX111: 0.000180426634 | AY111: 0.000180426634 | AZ111: 0.000180426634 | BA111: 0.000180426634 | BB111: 0.000180426634 | BC111: 0.000180426634 | BD111: =EXP(-K_Lambda1*BD$109) -> 0.000180426634 | BE111: 0.000180426634 | BF111: 0.000180426634 | BG111: 0.000180426634 | BH111: 0.000180426634 | BI111: 0.000180426634 | BJ111: 0.000180426634 | BK111: 0.000180426634 | BL111: 0.000180426634 | BM111: 0.000180426634 | BN111: 0.000180426634 | BO111: 0.000180426634 | BP111: 0.000180426634 | BQ111: 0.000180426634 | BR111: 0.000180426634 | BS111: 0.000180426634 | BT111: 0.000180426634 | BU111: 0.000180426634 | BV111: 0.000180426634 | BW111: 0.000180426634 | BX111: 0.000180426634 | BY111: 0.000180426634 | BZ111: 0.000180426634 | CA111: 0.000180426634 | CB111: 0.000180426634 | CC111: 0.000180426634 | CD111: 0.000180426634
S112: I2 | T112: I2 | V112: 0 | W112: =H109 -> 0.4687994757 | X112: =EXP(-K_Lambda2*X$109) -> 0.4687994757 | Y112: 0.4687994757 | Z112: 0.4687994757 | AA112: 0.4687994757 | AB112: 0.4687994757 | AC112: 0.4687994757 | AD112: 0.4687994757 | AE112: 0.4687994757 | AF112: 0.4687994757 | AG112: 0.4687994757 | AH112: 0.4687994757 | AI112: 0.4687994757 | AJ112: 0.4687994757 | AK112: 0.4687994757 | AL112: 0.4687994757 | AM112: 0.4687994757 | AN112: 0.4687994757 | AO112: 0.4687994757 | AP112: 0.4687994757 | AQ112: 0.4687994757 | AR112: 0.4687994757 | AS112: 0.4687994757 | AT112: 0.4687994757 | AU112: 0.4687994757 | AV112: 0.4687994757 | AW112: 0.4687994757 | AX112: 0.4687994757 | AY112: 0.4687994757 | AZ112: 0.4687994757 | BA112: 0.4687994757 | BB112: 0.4687994757 | BC112: 0.4687994757 | BD112: =EXP(-K_Lambda2*BD$109) -> 0.4687994757 | BE112: 0.4687994757 | BF112: 0.4687994757 | BG112: 0.4687994757 | BH112: 0.4687994757 | BI112: 0.4687994757 | BJ112: 0.4687994757 | BK112: 0.4687994757 | BL112: 0.4687994757 | BM112: 0.4687994757 | BN112: 0.4687994757 | BO112: 0.4687994757 | BP112: 0.4687994757 | BQ112: 0.4687994757 | BR112: 0.4687994757 | BS112: 0.4687994757 | BT112: 0.4687994757 | BU112: 0.4687994757 | BV112: 0.4687994757 | BW112: 0.4687994757 | BX112: 0.4687994757 | BY112: 0.4687994757 | BZ112: 0.4687994757 | CA112: 0.4687994757 | CB112: 0.4687994757 | CC112: 0.4687994757 | CD112: 0.4687994757
S113: I3 | T113: I3 | V113: 0 | W113: =I109 -> 0.9702189433 | X113: =EXP(-K_Lambda3*X$109) -> 0.9702189433 | Y113: 0.9702189433 | Z113: 0.9702189433 | AA113: 0.9702189433 | AB113: 0.9702189433 | AC113: 0.9702189433 | AD113: 0.9702189433 | AE113: 0.9702189433 | AF113: 0.9702189433 | AG113: 0.9702189433 | AH113: 0.9702189433 | AI113: 0.9702189433 | AJ113: 0.9702189433 | AK113: 0.9702189433 | AL113: 0.9702189433 | AM113: 0.9702189433 | AN113: 0.9702189433 | AO113: 0.9702189433 | AP113: 0.9702189433 | AQ113: 0.9702189433 | AR113: 0.9702189433 | AS113: 0.9702189433 | AT113: 0.9702189433 | AU113: 0.9702189433 | AV113: 0.9702189433 | AW113: 0.9702189433 | AX113: 0.9702189433 | AY113: 0.9702189433 | AZ113: 0.9702189433 | BA113: 0.9702189433 | BB113: 0.9702189433 | BC113: 0.9702189433 | BD113: =EXP(-K_Lambda3*BD$109) -> 0.9702189433 | BE113: 0.9702189433 | BF113: 0.9702189433 | BG113: 0.9702189433 | BH113: 0.9702189433 | BI113: 0.9702189433 | BJ113: 0.9702189433 | BK113: 0.9702189433 | BL113: 0.9702189433 | BM113: 0.9702189433 | BN113: 0.9702189433 | BO113: 0.9702189433 | BP113: 0.9702189433 | BQ113: 0.9702189433 | BR113: 0.9702189433 | BS113: 0.9702189433 | BT113: 0.9702189433 | BU113: 0.9702189433 | BV113: 0.9702189433 | BW113: 0.9702189433 | BX113: 0.9702189433 | BY113: 0.9702189433 | BZ113: 0.9702189433 | CA113: 0.9702189433 | CB113: 0.9702189433 | CC113: 0.9702189433 | CD113: 0.9702189433
D114: la colonne Ce a été retirée | S114: I4 | T114: I4 | V114: 0 | W114: =J109 -> 1 | X114: =EXP(-K_Lambda4*X$109) -> 1 | Y114: 1 | Z114: 1 | AA114: 1 | AB114: 1 | AC114: 1 | AD114: 1 | AE114: 1 | AF114: 1 | AG114: 1 | AH114: 1 | AI114: 1 | AJ114: 1 | AK114: 1 | AL114: 1 | AM114: 1 | AN114: 1 | AO114: 1 | AP114: 1 | AQ114: 1 | AR114: 1 | AS114: 1 | AT114: 1 | AU114: 1 | AV114: 1 | AW114: 1 | AX114: 1 | AY114: 1 | AZ114: 1 | BA114: 1 | BB114: 1 | BC114: 1 | BD114: =EXP(-K_Lambda4*BD$109) -> 1 | BE114: 1 | BF114: 1 | BG114: 1 | BH114: 1 | BI114: 1 | BJ114: 1 | BK114: 1 | BL114: 1 | BM114: 1 | BN114: 1 | BO114: 1 | BP114: 1 | BQ114: 1 | BR114: 1 | BS114: 1 | BT114: 1 | BU114: 1 | BV114: 1 | BW114: 1 | BX114: 1 | BY114: 1 | BZ114: 1 | CA114: 1 | CB114: 1 | CC114: 1 | CD114: 1
S115: PState1 | T115: PState1 | V115: 0 | W115: =K109 -> 0 | X115: =W115*X111+(1-X111)*X$110*K_PCoef1 -> 0 | Y115: 0 | Z115: 0 | AA115: 0 | AB115: 0 | AC115: 0 | AD115: 0 | AE115: 0 | AF115: 0 | AG115: 0 | AH115: 0 | AI115: 0 | AJ115: 0 | AK115: 0 | AL115: 0 | AM115: 0 | AN115: 0 | AO115: 0 | AP115: 0 | AQ115: 0 | AR115: 0 | AS115: 0 | AT115: 0 | AU115: 0 | AV115: 0 | AW115: 0 | AX115: 0 | AY115: 0 | AZ115: 0 | BA115: 0 | BB115: 0 | BC115: 0 | BD115: =BC115*BD111+(1-BD111)*BD$110*K_PCoef1 -> 0 | BE115: 0 | BF115: 0 | BG115: 0 | BH115: 0 | BI115: 0 | BJ115: 0 | BK115: 0 | BL115: 0 | BM115: 0 | BN115: 0 | BO115: 0 | BP115: 0 | BQ115: 0 | BR115: 0 | BS115: 0 | BT115: 0 | BU115: 0 | BV115: 0 | BW115: 0 | BX115: 0 | BY115: 0 | BZ115: 0 | CA115: 0 | CB115: 0 | CC115: 0 | CD115: 0
S116: PState2 | T116: PState2 | V116: 0 | W116: =L109 -> 0 | X116: =W116*X112+(1-X112)*X$110*K_PCoef2 -> 0 | Y116: 0 | Z116: 0 | AA116: 0 | AB116: 0 | AC116: 0 | AD116: 0 | AE116: 0 | AF116: 0 | AG116: 0 | AH116: 0 | AI116: 0 | AJ116: 0 | AK116: 0 | AL116: 0 | AM116: 0 | AN116: 0 | AO116: 0 | AP116: 0 | AQ116: 0 | AR116: 0 | AS116: 0 | AT116: 0 | AU116: 0 | AV116: 0 | AW116: 0 | AX116: 0 | AY116: 0 | AZ116: 0 | BA116: 0 | BB116: 0 | BC116: 0 | BD116: =BC116*BD112+(1-BD112)*BD$110*K_PCoef2 -> 0 | BE116: 0 | BF116: 0 | BG116: 0 | BH116: 0 | BI116: 0 | BJ116: 0 | BK116: 0 | BL116: 0 | BM116: 0 | BN116: 0 | BO116: 0 | BP116: 0 | BQ116: 0 | BR116: 0 | BS116: 0 | BT116: 0 | BU116: 0 | BV116: 0 | BW116: 0 | BX116: 0 | BY116: 0 | BZ116: 0 | CA116: 0 | CB116: 0 | CC116: 0 | CD116: 0
S117: PState3 | T117: PState3 | V117: 0 | W117: =M109 -> 0 | X117: =W117*X113+(1-X113)*X$110*K_PCoef3 -> 0 | Y117: 0 | Z117: 0 | AA117: 0 | AB117: 0 | AC117: 0 | AD117: 0 | AE117: 0 | AF117: 0 | AG117: 0 | AH117: 0 | AI117: 0 | AJ117: 0 | AK117: 0 | AL117: 0 | AM117: 0 | AN117: 0 | AO117: 0 | AP117: 0 | AQ117: 0 | AR117: 0 | AS117: 0 | AT117: 0 | AU117: 0 | AV117: 0 | AW117: 0 | AX117: 0 | AY117: 0 | AZ117: 0 | BA117: 0 | BB117: 0 | BC117: 0 | BD117: =BC117*BD113+(1-BD113)*BD$110*K_PCoef3 -> 0 | BE117: 0 | BF117: 0 | BG117: 0 | BH117: 0 | BI117: 0 | BJ117: 0 | BK117: 0 | BL117: 0 | BM117: 0 | BN117: 0 | BO117: 0 | BP117: 0 | BQ117: 0 | BR117: 0 | BS117: 0 | BT117: 0 | BU117: 0 | BV117: 0 | BW117: 0 | BX117: 0 | BY117: 0 | BZ117: 0 | CA117: 0 | CB117: 0 | CC117: 0 | CD117: 0
S118: eState1 | T118: eState1 | V118: 0 | W118: =N109 -> 0 | X118: =W118*X111+(1-X111)*X$110*K_ECoef1 -> 0 | Y118: 0 | Z118: 0 | AA118: 0 | AB118: 0 | AC118: 0 | AD118: 0 | AE118: 0 | AF118: 0 | AG118: 0 | AH118: 0 | AI118: 0 | AJ118: 0 | AK118: 0 | AL118: 0 | AM118: 0 | AN118: 0 | AO118: 0 | AP118: 0 | AQ118: 0 | AR118: 0 | AS118: 0 | AT118: 0 | AU118: 0 | AV118: 0 | AW118: 0 | AX118: 0 | AY118: 0 | AZ118: 0 | BA118: 0 | BB118: 0 | BC118: 0 | BD118: =BC118*BD111+(1-BD111)*BD$110*K_ECoef1 -> 0 | BE118: 0 | BF118: 0 | BG118: 0 | BH118: 0 | BI118: 0 | BJ118: 0 | BK118: 0 | BL118: 0 | BM118: 0 | BN118: 0 | BO118: 0 | BP118: 0 | BQ118: 0 | BR118: 0 | BS118: 0 | BT118: 0 | BU118: 0 | BV118: 0 | BW118: 0 | BX118: 0 | BY118: 0 | BZ118: 0 | CA118: 0 | CB118: 0 | CC118: 0 | CD118: 0
S119: eState2 | T119: eState2 | V119: 0 | W119: =O109 -> 0 | X119: =W119*X112+(1-X112)*X$110*K_ECoef2 -> 0 | Y119: 0 | Z119: 0 | AA119: 0 | AB119: 0 | AC119: 0 | AD119: 0 | AE119: 0 | AF119: 0 | AG119: 0 | AH119: 0 | AI119: 0 | AJ119: 0 | AK119: 0 | AL119: 0 | AM119: 0 | AN119: 0 | AO119: 0 | AP119: 0 | AQ119: 0 | AR119: 0 | AS119: 0 | AT119: 0 | AU119: 0 | AV119: 0 | AW119: 0 | AX119: 0 | AY119: 0 | AZ119: 0 | BA119: 0 | BB119: 0 | BC119: 0 | BD119: =BC119*BD112+(1-BD112)*BD$110*K_ECoef2 -> 0 | BE119: 0 | BF119: 0 | BG119: 0 | BH119: 0 | BI119: 0 | BJ119: 0 | BK119: 0 | BL119: 0 | BM119: 0 | BN119: 0 | BO119: 0 | BP119: 0 | BQ119: 0 | BR119: 0 | BS119: 0 | BT119: 0 | BU119: 0 | BV119: 0 | BW119: 0 | BX119: 0 | BY119: 0 | BZ119: 0 | CA119: 0 | CB119: 0 | CC119: 0 | CD119: 0
S120: eState3 | T120: eState3 | V120: 0 | W120: =P109 -> 0 | X120: =W120*X113+(1-X113)*X$110*K_ECoef3 -> 0 | Y120: 0 | Z120: 0 | AA120: 0 | AB120: 0 | AC120: 0 | AD120: 0 | AE120: 0 | AF120: 0 | AG120: 0 | AH120: 0 | AI120: 0 | AJ120: 0 | AK120: 0 | AL120: 0 | AM120: 0 | AN120: 0 | AO120: 0 | AP120: 0 | AQ120: 0 | AR120: 0 | AS120: 0 | AT120: 0 | AU120: 0 | AV120: 0 | AW120: 0 | AX120: 0 | AY120: 0 | AZ120: 0 | BA120: 0 | BB120: 0 | BC120: 0 | BD120: =BC120*BD113+(1-BD113)*BD$110*K_ECoef3 -> 0 | BE120: 0 | BF120: 0 | BG120: 0 | BH120: 0 | BI120: 0 | BJ120: 0 | BK120: 0 | BL120: 0 | BM120: 0 | BN120: 0 | BO120: 0 | BP120: 0 | BQ120: 0 | BR120: 0 | BS120: 0 | BT120: 0 | BU120: 0 | BV120: 0 | BW120: 0 | BX120: 0 | BY120: 0 | BZ120: 0 | CA120: 0 | CB120: 0 | CC120: 0 | CD120: 0
S121: eState4 | T121: eState4 | V121: 0 | W121: =Q109 -> 0 | X121: =W121*X114+(1-X114)*X$110*K_ECoef4 -> 0 | Y121: 0 | Z121: 0 | AA121: 0 | AB121: 0 | AC121: 0 | AD121: 0 | AE121: 0 | AF121: 0 | AG121: 0 | AH121: 0 | AI121: 0 | AJ121: 0 | AK121: 0 | AL121: 0 | AM121: 0 | AN121: 0 | AO121: 0 | AP121: 0 | AQ121: 0 | AR121: 0 | AS121: 0 | AT121: 0 | AU121: 0 | AV121: 0 | AW121: 0 | AX121: 0 | AY121: 0 | AZ121: 0 | BA121: 0 | BB121: 0 | BC121: 0 | BD121: =BC121*BD114+(1-BD114)*BD$110*K_ECoef4 -> 0 | BE121: 0 | BF121: 0 | BG121: 0 | BH121: 0 | BI121: 0 | BJ121: 0 | BK121: 0 | BL121: 0 | BM121: 0 | BN121: 0 | BO121: 0 | BP121: 0 | BQ121: 0 | BR121: 0 | BS121: 0 | BT121: 0 | BU121: 0 | BV121: 0 | BW121: 0 | BX121: 0 | BY121: 0 | BZ121: 0 | CA121: 0 | CB121: 0 | CC121: 0 | CD121: 0

Sheet Propofol (hidden)
C4: Document n. | F4: 001/006 002 001 | K4: Revision | M4: 1.01
A6: Rugloop II© Propofol calculations validation
A7: Drug model: Propofol Schnider
A9: This spreadsheet will calculate the resulting Cp & Ce, starting from the Vc-k41, and the infused volume. Fill in the boxed rectangles, and you are ready to compare the concentration as calculated by your program with the values as calculated by the spreadsheet.
A12: REMARK: this spreadsheet is for information purpose only, and should NOT be used to derive therapeutical decisions! This file is delivered AS IS, without guarantee for reliability.
A15: Reference from the literature : Schnider et al.: Anesthesiology 1998, 88, 1170-1182 Adjustment tpeak = 1.6min: Schnider et al.: “The influence of age on propofol pharmacodynamics”, Anesthesiology, 1999, 90,1502-1516
A19: Revision history
D20: Rev. | E20: Description | I20: ORG | J20: CHK | K20: APP | L20: Date (dd/mm/yy)
D21: 1 | E21: Release | I21: TDS | L21: 2002-02-01
D22: 1.01 | E22: Update with references | I22: TDS | L22: 2002-02-07
A35: Procedure: | C35: * Fill in the yellow-colored boxes with your patient's weight, age,… REMEMBER: press the CalculateK41 button after entering your patient's data to match the k41 with the specified patient data.
C38: * Fill in the orange boxes with the Time, infused volume, cp & ce series from your RGL file for remifentanil. You can use either the time column in 25ms units (RGLII format) or the time column. Only the latter one will be used, and contains by default the formula to calculate the time from the first column.
C41: * The time intervals do not have to be constant. The only relevant thing is that the time entered and the infused volume entered match. E.g. : Time 0s -> infused volume 0ml ; T = 10s-> infused volume 1.5ml; T = 15s -> infused volume 2ml; … The spreadsheet will recalculate the corresponding infusion rates to get Cp & Ce
C44: * Important remark: when entering time, … data, make sure to leave the first row (which is read-only) and that your first entered line has infused volume zero. This will give the correct offset; otherwise, the first interval will not be correct, and the calculations will be wrong as well.
C47: * The spreadsheet will calculate the realised Cp & Ce values at the entered time, using the model specified. Use the columns Cp, calculated & Ce, calculated to read the calculated Cp & Ce for this specific model.
C50: * if you also have the already calculated Cp & Ce but, for example, if you wanted to verify two different models for the same drug, you can enter them as well in the specified orange columns for Cp & Ce. The spreadsheet will then immedicately give you the procentual difference between your own calculations & the results calculated by this model in the green columns.
C53: * the fields input table, root calculation, Pcoeff calculation, Root verification & Modelling results are only for information.
A58: Model: | C58: Unit of concentration : µg/ml
C60: Vc = 4.27
C61: V2 = 18.9 – 0.391 * (age – 53) | L61: k10 = Cl 1/ Vc
C62: V3 = 238 | L62: k12 = Cl 2/Vc
C63: Cl 1 = 1.89 + 0.0456 * (mass – 77) – 0.0681 * (lbm – 59) + 0.0264 * (height – 177) | L63: k13 = Cl 3/Vc
C64: Cl 2 = 1.29 – 0.024 * (age – 53) | L64: k21 = Cl 2/ V2
C65: Cl 3 = 0.836 | L65: k31 = Cl 3/V3
A68: Patient data | F68: Les entrées viennent de KPTIVA
A70: Enter patient age | F70: =KPTIVA!E14 -> 40 | G70: years
A71: Enter patient weight | F71: =Poids -> 70 | G71: kg
A72: Enter patient height | F72: =KPTIVA!E18 -> 170 | G72: cm
A73: Enter patient gender | F73: =KPTIVA!E22 -> 1 | G73: (1 = MALE, 2 = FEMALE)
A74: Enter drug conc | F74: =KPTIVA!C35 -> 10 | G74: mg/ml
A76: Schnider model covariates | G76: ------> | J76: Schnider model K-values
E77: Male | F77: Female | K77: 0.5
A78: Lbm | C78: =IF((F73=1),E78,IF((F73=2),F78,1/0)) -> 55.29757785 | E78: =1.1*F71-128*F71/F72*F71/F72 -> 55.29757785 | F78: =1.07*F71-148*F71/F72*F71/F72 -> 49.80657439 | J78: Vc | K78: 4.27
A79: BSA | C79: =POWER(F71,0.425)*POWER(F72,0.725)*0.007184 -> 1.809707802 | J79: K10 | K79: =$C$82/P_Vc -> 0.3836381611 | L79: 1/min
A80: v2 | C80: =18.9-0.391*(F70-53) -> 23.983 | J80: K12 | K80: =$C$83/P_Vc -> 0.375175644 | L80: 1/min
A81: v3 | C81: 238 | J81: K13 | K81: =$C$84/P_Vc -> 0.1957845433 | L81: 1/min
A82: cl1 | C82: =1.89+0.0456*(F71-77)-0.0681*(C78-59)+0.0264*(F72-177) -> 1.638134948 | J82: K21 | K82: =$C$83/$C$80 -> 0.06679731476 | L82: 1/min
A83: cl2 | C83: =1.29-0.024*(F70-53) -> 1.602 | J83: K31 | K83: =$C$84/$C$81 -> 0.003512605042 | L83: 1/min
A84: cl3 | C84: 0.836 | J84: K41 | K84: 0.3387794495 | L84: 1/min
A85: Vc | C85: 4.27
A86: Tpeak | C86: 1.6 | D86: min
A87: Drug conc[mg/ml] | C87: =F74 -> 10
A89: Input table | E89: Root calculation | L89: Pcoeff calculation | Q89: K41 determinations - estimate for tpeak.
D90: Value | E90: K31>0 | F90: K21>0 | G90: Else | I90: K31>0 | J90: K21>0 | K90: Else | M90: K31>0 | N90: K21>0 | O90: Else
A91: Vc | C91: =K78 -> 4.27 | D91: a0 | E91: =P_K10*P_K21*P_K31 -> 4.167315431e-10 | F91: =P_K10*P_K21 -> 7.118333057e-06 | G91: _ | H91: PCoef1 | I91: =(P_K21-P_Lambda1)*(P_K31-P_Lambda1)/(P_Lambda1-P_Lambda2)/(P_Lambda1-P_Lambda3)/P_Vc/P_Lambda1 -> 13.87493616 | J91: =(P_K21-P_Lambda1)/(P_Lambda2-P_Lambda1)/P_Vc/P_Lambda1 -> 13.89222112 | K91: =1/P_Vc/P_Lambda1 -> 14.29942317 | L91: ECoef1 | M91: =P_PCoef1/(P_K41-P_Lambda1)*P_K41 -> -7.300293753 | N91: =J91/(P_K41-P_Lambda1)*P_K41 -> -7.30938823 | O91: =K91/(P_K41-P_Lambda1)*P_K41 -> -7.523637473 | Q91: Table calculating dirac-impulse concentration result at time tpeak for a certain set of Kvalues
A92: K10 | C92: =K79/60 -> 0.006393969352 | D92: a1 | E92: =P_K10*P_K31+P_K21*P_K31+P_K21*P_K13+P_K10*P_K21+P_K31*P_K12 -> 1.155664627e-05 | F92: =(P_K10+P_K12+P_K21) -> 0.01376018533 | G92: _ | H92: PCoef2 | I92: =(P_K21-P_Lambda2)*(P_K31-P_Lambda2)/(P_Lambda2-P_Lambda1)/(P_Lambda2-P_Lambda3)/P_Vc/P_Lambda2 -> 9.691202006 | J92: =(P_K21-P_Lambda2)/(P_Lambda1-P_Lambda2)/P_Vc/P_Lambda2 -> 10.01561249 | K92: 0 | L92: ECoef2 | M92: =P_PCoef2/(P_K41-P_Lambda2)*P_K41 -> 10.98687168 | N92: =J92/(P_K41-P_Lambda2)*P_K41 -> 11.35465437 | O92: 0 | Q92: When the results Ceff have a peak it is what we want.
A93: K12 | C93: 0.0062529274 | D93: a2 | E93: =P_K10+P_K12+P_K13+P_K31+P_K21 -> 0.01708180447 | F93: _ | G93: _ | H93: PCoef3 | I93: =(P_K21-P_Lambda3)*(P_K31-P_Lambda3)/(P_Lambda3-P_Lambda2)/(P_Lambda3-P_Lambda1)/P_Vc/P_Lambda3 -> 13.06088091 | J93: 0 | K93: 0 | L93: ECoef3 | M93: =P_PCoef3/(P_K41-P_Lambda3)*P_K41 -> 13.14987735 | N93: 0 | O93: 0 | Q93: If the values keep increasing, k41 must increase.
A94: K13 | C94: 0.003263075722 | D94: p | E94: =P_a1-(P_a2*P_a2/3) -> -8.570603507e-05 | F94: _ | G94: _ | L94: ECoef4 | M94: =(P_K41-P_K21)*(P_K41-P_K31)/(P_Lambda1-P_K41)/(P_Lambda2-P_K41)/(P_Lambda3-P_K41)/P_Vc -> 19.79056381 | N94: =(P_K21-P_K41)/(P_Lambda1-P_K41)/(P_Lambda2-P_K41)/P_Vc -> 19.86256748 | O94: =1/(P_Lambda1-P_K41)/P_Vc -> 21.82306065 | Q94: If the values keep decreasing, k41 must decrease.
A95: K21 | C95: 0.001113288579 | D95: q | E95: =(2*P_a2*P_a2*P_a2/27)-(P_a1*P_a2/3)+P_a0 -> 3.038188531e-07 | F95: _ | G95: _ | T95: E1' | U95: E2' | V95: E3' | W95: E4'
A96: K31 | C96: 5.854341737e-05 | D96: r1 | E96: =SQRT(-(P_p*P_p*P_p)/27) -> 1.526986594e-07 | F96: _ | G96: _ | T96: =P_ECoef1*P_Lambda1 -> -0.1195622122 | U96: =P_ECoef2*P_Lambda2 -> 0.007315770956 | V96: =P_ECoef3*P_Lambda3 -> 0.0005025027259 | W96: =P_ECoef4*P_Lambda4 -> 0.1117439385
A97: K41 | C97: 0.005646324158 | E97: =(MIN(MAX(-P_q/2/P_r1,-1),1)) -> -0.9948314356 | J97: Modelling results | S97: Ceff | T97: I1' | U97: I2' | V97: I3' | W97: I4'
D98: Phi | E98: =(ACOS(MIN(MAX((-P_q/2)/P_r1,-1),1)))/3 -> 1.01329238 | F98: _ | G98: _ | J98: Lambda1 | K98: =IF(P_K31>0,E103,IF(P_K21>0,F103,G103)) -> 0.01637772619 | Q98: T1 | R98: =C86*60*0.99 -> 95.04 | S98: =T98*$T$96+U98*$U$96+V98*$V$96+W98*$W$96 -> 0.04749501402 | T98: =EXP(-P_Lambda1*$R$98) -> 0.2108645916 | U98: =EXP(-P_Lambda2*$R$98) -> 0.9386770494 | V98: =EXP(-P_Lambda3*$R$98) -> 0.9963747768 | W98: =EXP(-P_Lambda4*$R$98) -> 0.5847173868
A99: Root verification | D99: r1_Use | E99: =2*EXP(LN(P_r1)/3) -> 0.01068993515 | F99: _ | G99: _ | J99: Lambda2 | K99: =IF(P_K31>0,E104,IF(P_K21>0,F104,G104)) -> 0.0006658647859 | Q99: T2 | R99: =C86*60 -> 96 | S99: =T99*$T$96+U99*$U$96+V99*$V$96+W99*$W$96 -> 0.04753068928 | T99: =EXP(-P_Lambda1*$R$99) -> 0.2075751752 | U99: =EXP(-P_Lambda2*$R$99) -> 0.9380772105 | V99: =EXP(-P_Lambda3*$R$99) -> 0.9963382255 | W99: =EXP(-P_Lambda4*$R$99) -> 0.5815565175
A100: L1 | B100: =(POWER(-E100,3)+POWER(E100,2)*P_a2-E100*P_a1+P_a0)<0.000000000000001 -> TRUE | C100: =POWER(F100,2)-P__a1*F100+P__a0 -> 0 | D100: L1 | E100: =-(COS(P_Phi)*P_r1_Use-P_a2/3) -> 3.821349148e-05 | F100: =-(-P__a1+SQRT(P__a1*P__a1-4*P__a0))/2 -> 0.0005383782262 | G100: =P_K10 -> 0.006393969352 | J100: Lambda3 | K100: =IF(P_K31>0,E105,IF(P_K21>0,F105,G105)) -> 3.821349148e-05 | Q100: T3 | R100: =C86*60*1.01 -> 96.96 | S100: =T100*$T$96+U100*$U$96+V100*$V$96+W100*$W$96 -> 0.04756214153 | T100: =EXP(-P_Lambda1*$R$100) -> 0.2043370726 | U100: =EXP(-P_Lambda2*$R$100) -> 0.9374777548 | V100: =EXP(-P_Lambda3*$R$100) -> 0.9963016756 | W100: =EXP(-P_Lambda4*$R$100) -> 0.5784127352
A101: L2 | B101: =(POWER(-E101,3)+POWER(E101,2)*P_a2-E101*P_a1+P_a0)<0.000000000000001 -> TRUE | C101: =POWER(F101,2)-F101*P__a1+P__a0 -> 0 | D101: L2 | E101: =-(COS(P_Phi+PI()*2/3)*P_r1_Use-P_a2/3) -> 0.01637772619 | F101: =-(-P__a1-SQRT(P__a1*P__a1-4*P__a0))/2 -> 0.01322180711 | G101: 0 | J101: Lambda4 | K101: =P_K41 -> 0.005646324158 | X101: Colonne des zéros
A102: L3 | B102: =(POWER(-E102,3)+POWER(E102,2)*P_a2-E102*P_a1+P_a0)<0.000000000000001 -> TRUE | D102: L3 | E102: =-(COS(P_Phi+PI()*4/3)*P_r1_Use-P_a2/3) -> 0.0006658647859 | F102: 0 | G102: 0 | J102: PCoef1 | K102: =IF(P_K31>0,I91,IF(P_K21>0,J91,K91)) -> 13.87493616
D103: L1_SORT | E103: =MAX(MAX(E100,E101),E102) -> 0.01637772619 | F103: =MAX(MAX(F100,F101),F102) -> 0.01322180711 | G103: =MAX(MAX(G100,G101),G102) -> 0.006393969352 | J103: PCoef2 | K103: =IF(P_K31>0,I92,IF(P_K21>0,J92,K92)) -> 9.691202006 | X103: Colonne liée à la première ligne de formules
D104: L2_SORT | E104: =IF(AND(E103<>E100,E105<>E100),E100,IF(AND(E103<>E101,E105<>E101),E101,E102)) -> 0.0006658647859 | F104: =IF(AND(F103<>F100,F105<>F100),F100,IF(AND(F103<>F101,F105<>F101),F101,F102)) -> 0.0005383782262 | G104: =IF(AND(G103<>G100,G105<>G100),G100,IF(AND(G103<>G101,G105<>G101),G101,G102)) -> 0 | J104: PCoef3 | K104: =IF(P_K31>0,I93,IF(P_K21>0,J93,K93)) -> 13.06088091
D105: L3_SORT | E105: =MIN(MIN(E100,E101),E102) -> 3.821349148e-05 | F105: =MIN(MIN(F100,F101),F102) -> 0 | G105: =MIN(MIN(G100,G101),G102) -> 0 | J105: ECoef1 | K105: =IF(P_K31>0,M91,IF(P_K21>0,N91,O91)) -> -7.300293753 | M105: Ctrl F3 | N105: permet de renommer tous les noms d'une feuille | X105: Première colonne de formules copiée par transposition de l'horizontale bleue
J106: ECoef2 | K106: =IF(P_K31>0,M92,IF(P_K21>0,N92,O92)) -> 10.98687168
J107: ECoef3 | K107: =IF(P_K31>0,M93,IF(P_K21>0,N93,O93)) -> 13.14987735 | X107: Les autres colonnes sont des recopies à dte
J108: ECoef4 | K108: =IF(P_K31>0,M94,IF(P_K21>0,N94,O94)) -> 19.79056381
A110: Time | B110: Time | C110: Infused volume | D110: Cp, calculated | E110: Ce,calculated | F110: DeltaTime | G110: InfusionRate | H110: I1 | I110: I2 | J110: I3 | K110: I4 | L110: PState1 | M110: PState2 | N110: PState3 | O110: eState1 | P110: eState2 | Q110: eState3 | R110: eState4 | T110: Time | U110: MINUTES | V110: 0 | W110: 5 | X110: 10 | Y110: 15 | Z110: 20 | AA110: 25 | AB110: 30 | AC110: 35 | AD110: 40 | AE110: 45 | AF110: 50 | AG110: 55 | AH110: 60 | AI110: 65 | AJ110: 70 | AK110: 75 | AL110: 80 | AM110: 85 | AN110: 90 | AO110: 95 | AP110: 100 | AQ110: 105 | AR110: 110 | AS110: 115 | AT110: 120 | AU110: 125 | AV110: 130 | AW110: 135 | AX110: 140 | AY110: 145 | AZ110: 150 | BA110: 155 | BB110: 160 | BC110: 165 | BD110: 170 | BE110: 175 | BF110: 180 | BG110: 185 | BH110: 190 | BI110: 195 | BJ110: 200 | BK110: 205 | BL110: 210 | BM110: 215 | BN110: 220 | BO110: 225 | BP110: 230 | BQ110: 235 | BR110: 240 | BS110: 245 | BT110: 250 | BU110: 255 | BV110: 260 | BW110: 265 | BX110: 270 | BY110: 275 | BZ110: 280 | CA110: 285 | CB110: 290 | CC110: 295 | CD110: 300
A111: MINUTES | B111: s | C111: mls | D111: µg/ml | E111: µg/ml | F111: DeltaTime,s | G111: InfusionRate, amt/s | H111: I1 | I111: I2 | J111: I3 | K111: I4 | L111: PState1 | M111: PState2 | N111: PState3 | O111: eState1 | P111: eState2 | Q111: eState3 | R111: eState4 | T111: Time | U111: s | V111: 0 | W111: =W110*60 -> 300 | X111: =X110*60 -> 600 | Y111: 900 | Z111: 1200 | AA111: 1500 | AB111: 1800 | AC111: 2100 | AD111: 2400 | AE111: 2700 | AF111: 3000 | AG111: 3300 | AH111: 3600 | AI111: 3900 | AJ111: 4200 | AK111: 4500 | AL111: 4800 | AM111: 5100 | AN111: 5400 | AO111: 5700 | AP111: 6000 | AQ111: 6300 | AR111: 6600 | AS111: 6900 | AT111: 7200 | AU111: 7500 | AV111: 7800 | AW111: 8100 | AX111: 8400 | AY111: 8700 | AZ111: 9000 | BA111: 9300 | BB111: 9600 | BC111: 9900 | BD111: 10200 | BE111: 10500 | BF111: 10800 | BG111: 11100 | BH111: 11400 | BI111: 11700 | BJ111: 12000 | BK111: 12300 | BL111: 12600 | BM111: 12900 | BN111: 13200 | BO111: 13500 | BP111: 13800 | BQ111: 14100 | BR111: 14400 | BS111: 14700 | BT111: 15000 | BU111: 15300 | BV111: 15600 | BW111: 15900 | BX111: 16200 | BY111: 16500 | BZ111: 16800 | CA111: 17100 | CB111: 17400 | CC111: 17700 | CD111: 18000
T112: Infused volume | U112: mls | V112: 0 | W112: =KPTIVA!K37 -> 0 | X112: =KPTIVA!L37 -> 0 | Y112: =KPTIVA!M37 -> 0 | Z112: =KPTIVA!N37 -> 0 | AA112: =KPTIVA!O37 -> 0 | AB112: =KPTIVA!P37 -> 0 | AC112: =KPTIVA!Q37 -> 0 | AD112: =KPTIVA!R37 -> 0 | AE112: =KPTIVA!S37 -> 0 | AF112: =KPTIVA!T37 -> 0 | AG112: =KPTIVA!U37 -> 0 | AH112: =KPTIVA!V37 -> 0 | AI112: =KPTIVA!W37 -> 0 | AJ112: =KPTIVA!X37 -> 0 | AK112: =KPTIVA!Y37 -> 0 | AL112: =KPTIVA!Z37 -> 0 | AM112: =KPTIVA!AA37 -> 0 | AN112: =KPTIVA!AB37 -> 0 | AO112: =KPTIVA!AC37 -> 0 | AP112: =KPTIVA!AD37 -> 0 | AQ112: =KPTIVA!AE37 -> 0 | AR112: =KPTIVA!AF37 -> 0 | AS112: =KPTIVA!AG37 -> 0 | AT112: =KPTIVA!AH37 -> 0 | AU112: =KPTIVA!AI37 -> 0 | AV112: =KPTIVA!AJ37 -> 0 | AW112: =KPTIVA!AK37 -> 0 | AX112: =KPTIVA!AL37 -> 0 | AY112: =KPTIVA!AM37 -> 0 | AZ112: =KPTIVA!AN37 -> 0 | BA112: =KPTIVA!AO37 -> 0 | BB112: =KPTIVA!AP37 -> 0 | BC112: =KPTIVA!AQ37 -> 0 | BD112: =KPTIVA!AR37 -> 0 | BE112: =KPTIVA!AS37 -> 0 | BF112: =KPTIVA!AT37 -> 0 | BG112: =KPTIVA!AU37 -> 0 | BH112: =KPTIVA!AV37 -> 0 | BI112: =KPTIVA!AW37 -> 0 | BJ112: =KPTIVA!AX37 -> 0 | BK112: =KPTIVA!AY37 -> 0 | BL112: =KPTIVA!AZ37 -> 0 | BM112: =KPTIVA!BA37 -> 0 | BN112: =KPTIVA!BB37 -> 0 | BO112: =KPTIVA!BC37 -> 0 | BP112: =KPTIVA!BD37 -> 0 | BQ112: =KPTIVA!BE37 -> 0 | BR112: =KPTIVA!BF37 -> 0 | BS112: =KPTIVA!BG37 -> 0 | BT112: =KPTIVA!BH37 -> 0 | BU112: =KPTIVA!BI37 -> 0 | BV112: =KPTIVA!BJ37 -> 0 | BW112: =KPTIVA!BK37 -> 0 | BX112: =KPTIVA!BL37 -> 0 | BY112: =KPTIVA!BM37 -> 0 | BZ112: =KPTIVA!BN37 -> 0 | CA112: =KPTIVA!BO37 -> 0 | CB112: =KPTIVA!BP37 -> 0 | CC112: =KPTIVA!BQ37 -> 0 | CD112: =KPTIVA!BR37 -> 0
A113: 0 | B113: 0 | C113: 0 | D113: 0 | E113: 0 | F113: 0 | G113: 0 | H113: 0 | I113: 0 | J113: 0 | K113: 0 | L113: 0 | M113: 0 | N113: 0 | O113: 0 | P113: 0 | Q113: 0 | R113: 0 | T113: Cp, calculated | U113: µg/ml | V113: 0 | W113: =D114 -> 0 | X113: =X121+X122+X123 -> 0 | Y113: =Y121+Y122+Y123 -> 0 | Z113: 0 | AA113: 0 | AB113: 0 | AC113: 0 | AD113: 0 | AE113: 0 | AF113: 0 | AG113: 0 | AH113: 0 | AI113: 0 | AJ113: 0 | AK113: 0 | AL113: 0 | AM113: 0 | AN113: 0 | AO113: 0 | AP113: 0 | AQ113: 0 | AR113: 0 | AS113: 0 | AT113: 0 | AU113: 0 | AV113: 0 | AW113: 0 | AX113: 0 | AY113: 0 | AZ113: 0 | BA113: 0 | BB113: 0 | BC113: 0 | BD113: 0 | BE113: 0 | BF113: 0 | BG113: 0 | BH113: 0 | BI113: 0 | BJ113: 0 | BK113: 0 | BL113: 0 | BM113: 0 | BN113: 0 | BO113: 0 | BP113: 0 | BQ113: 0 | BR113: 0 | BS113: 0 | BT113: 0 | BU113: 0 | BV113: 0 | BW113: 0 | BX113: 0 | BY113: 0 | BZ113: 0 | CA113: 0 | CB113: 0 | CC113: 0 | CD113: 0
A114: 5 | B114: =A114*60 -> 300 | C114: =KPTIVA!K37 -> 0 | D114: =L114+M114+N114 -> 0 | E114: =O114+P114+Q114+R114 -> 0 | F114: =B114-B113 -> 300 | G114: =(C114-C113)/F114*$C$87 -> 0 | H114: =EXP(-P_Lambda1*$F114) -> 0.007348067994 | I114: =EXP(-P_Lambda2*$F114) -> 0.8189277341 | J114: =EXP(-P_Lambda3*$F114) -> 0.9886014144 | K114: =EXP(-P_Lambda4*$F114) -> 0.1838018052 | L114: =L113*H114+(1-H114)*$G114*P_PCoef1 -> 0 | M114: =M113*I114+(1-I114)*$G114*P_PCoef2 -> 0 | N114: =N113*J114+(1-J114)*$G114*P_PCoef3 -> 0 | O114: =O113*H114+(1-H114)*$G114*P_ECoef1 -> 0 | P114: =P113*I114+(1-I114)*$G114*P_ECoef2 -> 0 | Q114: =Q113*J114+(1-J114)*$G114*P_ECoef3 -> 0 | R114: =R113*K114+(1-K114)*$G114*P_ECoef4 -> 0 | T114: Ce,calculated | U114: µg/ml | V114: 0 | W114: =E114 -> 0 | X114: =X124+X125+X126+X127 -> 0 | Y114: =Y124+Y125+Y126+Y127 -> 0 | Z114: 0 | AA114: 0 | AB114: 0 | AC114: 0 | AD114: 0 | AE114: 0 | AF114: 0 | AG114: 0 | AH114: 0 | AI114: 0 | AJ114: 0 | AK114: 0 | AL114: 0 | AM114: 0 | AN114: 0 | AO114: 0 | AP114: 0 | AQ114: 0 | AR114: 0 | AS114: 0 | AT114: 0 | AU114: 0 | AV114: 0 | AW114: 0 | AX114: 0 | AY114: 0 | AZ114: 0 | BA114: 0 | BB114: 0 | BC114: 0 | BD114: 0 | BE114: 0 | BF114: 0 | BG114: 0 | BH114: 0 | BI114: 0 | BJ114: 0 | BK114: 0 | BL114: 0 | BM114: 0 | BN114: 0 | BO114: 0 | BP114: 0 | BQ114: 0 | BR114: 0 | BS114: 0 | BT114: 0 | BU114: 0 | BV114: 0 | BW114: 0 | BX114: 0 | BY114: 0 | BZ114: 0 | CA114: 0 | CB114: 0 | CC114: 0 | CD114: 0
A115: 10 | B115: =A115*60 -> 600 | C115: 20 | D115: =L115+M115+N115 -> 10.45111044 | E115: 7.36378634 | F115: =B115-B114 -> 300 | G115: =(C115-C114)/F115*$C$87 -> 0.6666666667 | H115: 0.007348067994 | I115: 0.8189277341 | J115: 0.9886014144 | K115: 0.1838018052 | L115: =L114*H115+(1-H115)*$G115*P_PCoef1 -> 9.181988127 | M115: 1.169871938 | N115: 0.09925037975 | O115: -4.831100465 | P115: 1.3262785 | Q115: 0.09992666875 | R115: 10.76868164 | T115: DeltaTime | U115: DeltaTime,s | V115: 0 | W115: =F114 -> 300 | X115: =X111-W111 -> 300 | Y115: =Y111-X111 -> 300 | Z115: 300 | AA115: 300 | AB115: 300 | AC115: 300 | AD115: 300 | AE115: 300 | AF115: 300 | AG115: 300 | AH115: 300 | AI115: 300 | AJ115: 300 | AK115: 300 | AL115: 300 | AM115: 300 | AN115: 300 | AO115: 300 | AP115: 300 | AQ115: 300 | AR115: 300 | AS115: 300 | AT115: 300 | AU115: 300 | AV115: 300 | AW115: 300 | AX115: 300 | AY115: 300 | AZ115: 300 | BA115: 300 | BB115: 300 | BC115: 300 | BD115: 300 | BE115: 300 | BF115: 300 | BG115: 300 | BH115: 300 | BI115: 300 | BJ115: 300 | BK115: 300 | BL115: 300 | BM115: 300 | BN115: 300 | BO115: 300 | BP115: 300 | BQ115: 300 | BR115: 300 | BS115: 300 | BT115: 300 | BU115: 300 | BV115: 300 | BW115: 300 | BX115: 300 | BY115: 300 | BZ115: 300 | CA115: 300 | CB115: 300 | CC115: 300 | CD115: 300
T116: InfusionRate | U116: InfusionRate, amt/s | V116: 0 | W116: =G114 -> 0 | X116: =(X112-W112)/X115*$C$87 -> 0 | Y116: =(Y112-X112)/Y115*$C$87 -> 0 | Z116: 0 | AA116: 0 | AB116: 0 | AC116: 0 | AD116: 0 | AE116: 0 | AF116: 0 | AG116: 0 | AH116: 0 | AI116: 0 | AJ116: 0 | AK116: 0 | AL116: 0 | AM116: 0 | AN116: 0 | AO116: 0 | AP116: 0 | AQ116: 0 | AR116: 0 | AS116: 0 | AT116: 0 | AU116: 0 | AV116: 0 | AW116: 0 | AX116: 0 | AY116: 0 | AZ116: 0 | BA116: 0 | BB116: 0 | BC116: 0 | BD116: 0 | BE116: 0 | BF116: 0 | BG116: 0 | BH116: 0 | BI116: 0 | BJ116: 0 | BK116: 0 | BL116: 0 | BM116: 0 | BN116: 0 | BO116: 0 | BP116: 0 | BQ116: 0 | BR116: 0 | BS116: 0 | BT116: 0 | BU116: 0 | BV116: 0 | BW116: 0 | BX116: 0 | BY116: 0 | BZ116: 0 | CA116: 0 | CB116: 0 | CC116: 0 | CD116: 0
T117: I1 | U117: I1 | V117: 0 | W117: =H114 -> 0.007348067994 | X117: =EXP(-P_Lambda1*X$115) -> 0.007348067994 | Y117: 0.007348067994 | Z117: 0.007348067994 | AA117: 0.007348067994 | AB117: 0.007348067994 | AC117: 0.007348067994 | AD117: 0.007348067994 | AE117: 0.007348067994 | AF117: 0.007348067994 | AG117: 0.007348067994 | AH117: 0.007348067994 | AI117: 0.007348067994 | AJ117: 0.007348067994 | AK117: 0.007348067994 | AL117: 0.007348067994 | AM117: 0.007348067994 | AN117: 0.007348067994 | AO117: 0.007348067994 | AP117: 0.007348067994 | AQ117: 0.007348067994 | AR117: 0.007348067994 | AS117: 0.007348067994 | AT117: 0.007348067994 | AU117: 0.007348067994 | AV117: 0.007348067994 | AW117: 0.007348067994 | AX117: 0.007348067994 | AY117: 0.007348067994 | AZ117: 0.007348067994 | BA117: 0.007348067994 | BB117: 0.007348067994 | BC117: 0.007348067994 | BD117: =EXP(-P_Lambda1*BD$115) -> 0.007348067994 | BE117: 0.007348067994 | BF117: 0.007348067994 | BG117: 0.007348067994 | BH117: 0.007348067994 | BI117: 0.007348067994 | BJ117: 0.007348067994 | BK117: 0.007348067994 | BL117: 0.007348067994 | BM117: 0.007348067994 | BN117: 0.007348067994 | BO117: 0.007348067994 | BP117: 0.007348067994 | BQ117: 0.007348067994 | BR117: 0.007348067994 | BS117: 0.007348067994 | BT117: 0.007348067994 | BU117: 0.007348067994 | BV117: 0.007348067994 | BW117: 0.007348067994 | BX117: 0.007348067994 | BY117: 0.007348067994 | BZ117: 0.007348067994 | CA117: 0.007348067994 | CB117: 0.007348067994 | CC117: 0.007348067994 | CD117: 0.007348067994
B118: 4 colonnes ont été retirées (comparaisons) | T118: I2 | U118: I2 | V118: 0 | W118: =I114 -> 0.8189277341 | X118: =EXP(-P_Lambda2*X$115) -> 0.8189277341 | Y118: 0.8189277341 | Z118: 0.8189277341 | AA118: 0.8189277341 | AB118: 0.8189277341 | AC118: 0.8189277341 | AD118: 0.8189277341 | AE118: 0.8189277341 | AF118: 0.8189277341 | AG118: 0.8189277341 | AH118: 0.8189277341 | AI118: 0.8189277341 | AJ118: 0.8189277341 | AK118: 0.8189277341 | AL118: 0.8189277341 | AM118: 0.8189277341 | AN118: 0.8189277341 | AO118: 0.8189277341 | AP118: 0.8189277341 | AQ118: 0.8189277341 | AR118: 0.8189277341 | AS118: 0.8189277341 | AT118: 0.8189277341 | AU118: 0.8189277341 | AV118: 0.8189277341 | AW118: 0.8189277341 | AX118: 0.8189277341 | AY118: 0.8189277341 | AZ118: 0.8189277341 | BA118: 0.8189277341 | BB118: 0.8189277341 | BC118: 0.8189277341 | BD118: =EXP(-P_Lambda2*BD$115) -> 0.8189277341 | BE118: 0.8189277341 | BF118: 0.8189277341 | BG118: 0.8189277341 | BH118: 0.8189277341 | BI118: 0.8189277341 | BJ118: 0.8189277341 | BK118: 0.8189277341 | BL118: 0.8189277341 | BM118: 0.8189277341 | BN118: 0.8189277341 | BO118: 0.8189277341 | BP118: 0.8189277341 | BQ118: 0.8189277341 | BR118: 0.8189277341 | BS118: 0.8189277341 | BT118: 0.8189277341 | BU118: 0.8189277341 | BV118: 0.8189277341 | BW118: 0.8189277341 | BX118: 0.8189277341 | BY118: 0.8189277341 | BZ118: 0.8189277341 | CA118: 0.8189277341 | CB118: 0.8189277341 | CC118: 0.8189277341 | CD118: 0.8189277341
T119: I3 | U119: I3 | V119: 0 | W119: =J114 -> 0.9886014144 | X119: =EXP(-P_Lambda3*X$115) -> 0.9886014144 | Y119: 0.9886014144 | Z119: 0.9886014144 | AA119: 0.9886014144 | AB119: 0.9886014144 | AC119: 0.9886014144 | AD119: 0.9886014144 | AE119: 0.9886014144 | AF119: 0.9886014144 | AG119: 0.9886014144 | AH119: 0.9886014144 | AI119: 0.9886014144 | AJ119: 0.9886014144 | AK119: 0.9886014144 | AL119: 0.9886014144 | AM119: 0.9886014144 | AN119: 0.9886014144 | AO119: 0.9886014144 | AP119: 0.9886014144 | AQ119: 0.9886014144 | AR119: 0.9886014144 | AS119: 0.9886014144 | AT119: 0.9886014144 | AU119: 0.9886014144 | AV119: 0.9886014144 | AW119: 0.9886014144 | AX119: 0.9886014144 | AY119: 0.9886014144 | AZ119: 0.9886014144 | BA119: 0.9886014144 | BB119: 0.9886014144 | BC119: 0.9886014144 | BD119: =EXP(-P_Lambda3*BD$115) -> 0.9886014144 | BE119: 0.9886014144 | BF119: 0.9886014144 | BG119: 0.9886014144 | BH119: 0.9886014144 | BI119: 0.9886014144 | BJ119: 0.9886014144 | BK119: 0.9886014144 | BL119: 0.9886014144 | BM119: 0.9886014144 | BN119: 0.9886014144 | BO119: 0.9886014144 | BP119: 0.9886014144 | BQ119: 0.9886014144 | BR119: 0.9886014144 | BS119: 0.9886014144 | BT119: 0.9886014144 | BU119: 0.9886014144 | BV119: 0.9886014144 | BW119: 0.9886014144 | BX119: 0.9886014144 | BY119: 0.9886014144 | BZ119: 0.9886014144 | CA119: 0.9886014144 | CB119: 0.9886014144 | CC119: 0.9886014144 | CD119: 0.9886014144
T120: I4 | U120: I4 | V120: 0 | W120: =K114 -> 0.1838018052 | X120: =EXP(-P_Lambda4*X$115) -> 0.1838018052 | Y120: 0.1838018052 | Z120: 0.1838018052 | AA120: 0.1838018052 | AB120: 0.1838018052 | AC120: 0.1838018052 | AD120: 0.1838018052 | AE120: 0.1838018052 | AF120: 0.1838018052 | AG120: 0.1838018052 | AH120: 0.1838018052 | AI120: 0.1838018052 | AJ120: 0.1838018052 | AK120: 0.1838018052 | AL120: 0.1838018052 | AM120: 0.1838018052 | AN120: 0.1838018052 | AO120: 0.1838018052 | AP120: 0.1838018052 | AQ120: 0.1838018052 | AR120: 0.1838018052 | AS120: 0.1838018052 | AT120: 0.1838018052 | AU120: 0.1838018052 | AV120: 0.1838018052 | AW120: 0.1838018052 | AX120: 0.1838018052 | AY120: 0.1838018052 | AZ120: 0.1838018052 | BA120: 0.1838018052 | BB120: 0.1838018052 | BC120: 0.1838018052 | BD120: =EXP(-P_Lambda4*BD$115) -> 0.1838018052 | BE120: 0.1838018052 | BF120: 0.1838018052 | BG120: 0.1838018052 | BH120: 0.1838018052 | BI120: 0.1838018052 | BJ120: 0.1838018052 | BK120: 0.1838018052 | BL120: 0.1838018052 | BM120: 0.1838018052 | BN120: 0.1838018052 | BO120: 0.1838018052 | BP120: 0.1838018052 | BQ120: 0.1838018052 | BR120: 0.1838018052 | BS120: 0.1838018052 | BT120: 0.1838018052 | BU120: 0.1838018052 | BV120: 0.1838018052 | BW120: 0.1838018052 | BX120: 0.1838018052 | BY120: 0.1838018052 | BZ120: 0.1838018052 | CA120: 0.1838018052 | CB120: 0.1838018052 | CC120: 0.1838018052 | CD120: 0.1838018052
T121: PState1 | U121: PState1 | V121: 0 | W121: =L114 -> 0 | X121: =W121*X117+(1-X117)*X$116*P_PCoef1 -> 0 | Y121: 0 | Z121: 0 | AA121: 0 | AB121: 0 | AC121: 0 | AD121: 0 | AE121: 0 | AF121: 0 | AG121: 0 | AH121: 0 | AI121: 0 | AJ121: 0 | AK121: 0 | AL121: 0 | AM121: 0 | AN121: 0 | AO121: 0 | AP121: 0 | AQ121: 0 | AR121: 0 | AS121: 0 | AT121: 0 | AU121: 0 | AV121: 0 | AW121: 0 | AX121: 0 | AY121: 0 | AZ121: 0 | BA121: 0 | BB121: 0 | BC121: 0 | BD121: =BC121*BD117+(1-BD117)*BD$116*P_PCoef1 -> 0 | BE121: 0 | BF121: 0 | BG121: 0 | BH121: 0 | BI121: 0 | BJ121: 0 | BK121: 0 | BL121: 0 | BM121: 0 | BN121: 0 | BO121: 0 | BP121: 0 | BQ121: 0 | BR121: 0 | BS121: 0 | BT121: 0 | BU121: 0 | BV121: 0 | BW121: 0 | BX121: 0 | BY121: 0 | BZ121: 0 | CA121: 0 | CB121: 0 | CC121: 0 | CD121: 0
T122: PState2 | U122: PState2 | V122: 0 | W122: =M114 -> 0 | X122: =W122*X118+(1-X118)*X$116*P_PCoef2 -> 0 | Y122: 0 | Z122: 0 | AA122: 0 | AB122: 0 | AC122: 0 | AD122: 0 | AE122: 0 | AF122: 0 | AG122: 0 | AH122: 0 | AI122: 0 | AJ122: 0 | AK122: 0 | AL122: 0 | AM122: 0 | AN122: 0 | AO122: 0 | AP122: 0 | AQ122: 0 | AR122: 0 | AS122: 0 | AT122: 0 | AU122: 0 | AV122: 0 | AW122: 0 | AX122: 0 | AY122: 0 | AZ122: 0 | BA122: 0 | BB122: 0 | BC122: 0 | BD122: =BC122*BD118+(1-BD118)*BD$116*P_PCoef2 -> 0 | BE122: 0 | BF122: 0 | BG122: 0 | BH122: 0 | BI122: 0 | BJ122: 0 | BK122: 0 | BL122: 0 | BM122: 0 | BN122: 0 | BO122: 0 | BP122: 0 | BQ122: 0 | BR122: 0 | BS122: 0 | BT122: 0 | BU122: 0 | BV122: 0 | BW122: 0 | BX122: 0 | BY122: 0 | BZ122: 0 | CA122: 0 | CB122: 0 | CC122: 0 | CD122: 0
T123: PState3 | U123: PState3 | V123: 0 | W123: =N114 -> 0 | X123: =W123*X119+(1-X119)*X$116*P_PCoef3 -> 0 | Y123: 0 | Z123: 0 | AA123: 0 | AB123: 0 | AC123: 0 | AD123: 0 | AE123: 0 | AF123: 0 | AG123: 0 | AH123: 0 | AI123: 0 | AJ123: 0 | AK123: 0 | AL123: 0 | AM123: 0 | AN123: 0 | AO123: 0 | AP123: 0 | AQ123: 0 | AR123: 0 | AS123: 0 | AT123: 0 | AU123: 0 | AV123: 0 | AW123: 0 | AX123: 0 | AY123: 0 | AZ123: 0 | BA123: 0 | BB123: 0 | BC123: 0 | BD123: =BC123*BD119+(1-BD119)*BD$116*P_PCoef3 -> 0 | BE123: 0 | BF123: 0 | BG123: 0 | BH123: 0 | BI123: 0 | BJ123: 0 | BK123: 0 | BL123: 0 | BM123: 0 | BN123: 0 | BO123: 0 | BP123: 0 | BQ123: 0 | BR123: 0 | BS123: 0 | BT123: 0 | BU123: 0 | BV123: 0 | BW123: 0 | BX123: 0 | BY123: 0 | BZ123: 0 | CA123: 0 | CB123: 0 | CC123: 0 | CD123: 0
T124: eState1 | U124: eState1 | V124: 0 | W124: =O114 -> 0 | X124: =W124*X117+(1-X117)*X$116*P_ECoef1 -> 0 | Y124: 0 | Z124: 0 | AA124: 0 | AB124: 0 | AC124: 0 | AD124: 0 | AE124: 0 | AF124: 0 | AG124: 0 | AH124: 0 | AI124: 0 | AJ124: 0 | AK124: 0 | AL124: 0 | AM124: 0 | AN124: 0 | AO124: 0 | AP124: 0 | AQ124: 0 | AR124: 0 | AS124: 0 | AT124: 0 | AU124: 0 | AV124: 0 | AW124: 0 | AX124: 0 | AY124: 0 | AZ124: 0 | BA124: 0 | BB124: 0 | BC124: 0 | BD124: =BC124*BD117+(1-BD117)*BD$116*P_ECoef1 -> 0 | BE124: 0 | BF124: 0 | BG124: 0 | BH124: 0 | BI124: 0 | BJ124: 0 | BK124: 0 | BL124: 0 | BM124: 0 | BN124: 0 | BO124: 0 | BP124: 0 | BQ124: 0 | BR124: 0 | BS124: 0 | BT124: 0 | BU124: 0 | BV124: 0 | BW124: 0 | BX124: 0 | BY124: 0 | BZ124: 0 | CA124: 0 | CB124: 0 | CC124: 0 | CD124: 0
T125: eState2 | U125: eState2 | V125: 0 | W125: =P114 -> 0 | X125: =W125*X118+(1-X118)*X$116*P_ECoef2 -> 0 | Y125: 0 | Z125: 0 | AA125: 0 | AB125: 0 | AC125: 0 | AD125: 0 | AE125: 0 | AF125: 0 | AG125: 0 | AH125: 0 | AI125: 0 | AJ125: 0 | AK125: 0 | AL125: 0 | AM125: 0 | AN125: 0 | AO125: 0 | AP125: 0 | AQ125: 0 | AR125: 0 | AS125: 0 | AT125: 0 | AU125: 0 | AV125: 0 | AW125: 0 | AX125: 0 | AY125: 0 | AZ125: 0 | BA125: 0 | BB125: 0 | BC125: 0 | BD125: =BC125*BD118+(1-BD118)*BD$116*P_ECoef2 -> 0 | BE125: 0 | BF125: 0 | BG125: 0 | BH125: 0 | BI125: 0 | BJ125: 0 | BK125: 0 | BL125: 0 | BM125: 0 | BN125: 0 | BO125: 0 | BP125: 0 | BQ125: 0 | BR125: 0 | BS125: 0 | BT125: 0 | BU125: 0 | BV125: 0 | BW125: 0 | BX125: 0 | BY125: 0 | BZ125: 0 | CA125: 0 | CB125: 0 | CC125: 0 | CD125: 0
T126: eState3 | U126: eState3 | V126: 0 | W126: =Q114 -> 0 | X126: =W126*X119+(1-X119)*X$116*P_ECoef3 -> 0 | Y126: 0 | Z126: 0 | AA126: 0 | AB126: 0 | AC126: 0 | AD126: 0 | AE126: 0 | AF126: 0 | AG126: 0 | AH126: 0 | AI126: 0 | AJ126: 0 | AK126: 0 | AL126: 0 | AM126: 0 | AN126: 0 | AO126: 0 | AP126: 0 | AQ126: 0 | AR126: 0 | AS126: 0 | AT126: 0 | AU126: 0 | AV126: 0 | AW126: 0 | AX126: 0 | AY126: 0 | AZ126: 0 | BA126: 0 | BB126: 0 | BC126: 0 | BD126: =BC126*BD119+(1-BD119)*BD$116*P_ECoef3 -> 0 | BE126: 0 | BF126: 0 | BG126: 0 | BH126: 0 | BI126: 0 | BJ126: 0 | BK126: 0 | BL126: 0 | BM126: 0 | BN126: 0 | BO126: 0 | BP126: 0 | BQ126: 0 | BR126: 0 | BS126: 0 | BT126: 0 | BU126: 0 | BV126: 0 | BW126: 0 | BX126: 0 | BY126: 0 | BZ126: 0 | CA126: 0 | CB126: 0 | CC126: 0 | CD126: 0
T127: eState4 | U127: eState4 | V127: 0 | W127: =R114 -> 0 | X127: =W127*X120+(1-X120)*X$116*P_ECoef4 -> 0 | Y127: 0 | Z127: 0 | AA127: 0 | AB127: 0 | AC127: 0 | AD127: 0 | AE127: 0 | AF127: 0 | AG127: 0 | AH127: 0 | AI127: 0 | AJ127: 0 | AK127: 0 | AL127: 0 | AM127: 0 | AN127: 0 | AO127: 0 | AP127: 0 | AQ127: 0 | AR127: 0 | AS127: 0 | AT127: 0 | AU127: 0 | AV127: 0 | AW127: 0 | AX127: 0 | AY127: 0 | AZ127: 0 | BA127: 0 | BB127: 0 | BC127: 0 | BD127: =BC127*BD120+(1-BD120)*BD$116*P_ECoef4 -> 0 | BE127: 0 | BF127: 0 | BG127: 0 | BH127: 0 | BI127: 0 | BJ127: 0 | BK127: 0 | BL127: 0 | BM127: 0 | BN127: 0 | BO127: 0 | BP127: 0 | BQ127: 0 | BR127: 0 | BS127: 0 | BT127: 0 | BU127: 0 | BV127: 0 | BW127: 0 | BX127: 0 | BY127: 0 | BZ127: 0 | CA127: 0 | CB127: 0 | CC127: 0 | CD127: 0

Sheet Sufenta (hidden)
C4: Document n. | F4: 001/006 002 010 | K4: Revision | M4: 1
A6: Rugloop II© calculations validation
A7: Drug model: Sufentanil Gepts, not weight adjusted
A9: This spreadsheet will calculate the resulting Cp & Ce, starting from the Vc-k41, and the infused volume. Fill in the boxed rectangles, and you are ready to compare the concentration as calculated by your program with the values as calculated by the spreadsheet.
A12: REMARK: this spreadsheet is for information purpose only, and should NOT be used to derive therapeutical decisions! This file is delivered AS IS, without guarantee for reliability.
A15: Reference from the literature : Gepts et al.: Anesthesiology 1995, 83, 1194-1204 Adjustment tpeak = 5.588 min: from Shafer / Varvel
A19: Revision history
D20: Rev. | E20: Description | I20: ORG | J20: CHK | K20: APP | L20: Date (dd/mm/yy)
D21: 1 | E21: Release | I21: TDS | L21: 2003-01-10
A35: Procedure: | C35: * Fill in the yellow-colored boxes with your patient's weight, age,… AFTER filling in these values, press "Calculate K41" button to update the K41 value to your specifications.
C38: * Fill in the orange boxes with the Time, infused volume, cp & ce series from your RGL file for remifentanil. You can use either the time column in 25ms units (RGLII format) or the time column. Only the latter one will be used, and contains by default the formula to calculate the time from the first column.
C41: * The time intervals do not have to be constant. The only relevant thing is that the time entered and the infused volume entered match. E.g. : Time 0s -> infused volume 0ml ; T = 10s-> infused volume 1.5ml; T = 15s -> infused volume 2ml; … The spreadsheet will recalculate the corresponding infusion rates to get Cp & Ce
C44: * Important remark: when entering time, … data, make sure to leave the first row (which is read-only) and that your first entered line has infused volume zero. This will give the correct offset; otherwise, the first interval will not be correct, and the calculations will be wrong as well.
C47: * The spreadsheet will calculate the realised Cp & Ce values at the entered time, using the model specified. Use the columns Cp, calculated & Ce, calculated to read the calculated Cp & Ce for this specific model.
C50: * if you also have the already calculated Cp & Ce but, for example, if you wanted to verify two different models for the same drug, you can enter them as well in the specified orange columns for Cp & Ce. The spreadsheet will then immedicately give you the procentual difference between your own calculations & the results calculated by this model in the green columns.
C53: * the fields input table, root calculation, Pcoeff calculation, Root verification & Modelling results are only for information.
A58: Model: | C58: Unit of concentration : ng/ml
C60: Vc = 14.3
C61: k10 = 0.0645
C62: k12 = 0.1086
C63: k13 = 0.0229
C64: k21 = 0.0245
C65: k31 = 0.0013
A68: Patient data
A70: Enter patient age | F70: =KPTIVA!E14 -> 40 | G70: years
A71: Enter patient weight | F71: =Poids -> 70 | G71: kg
A72: Enter patient height | F72: =KPTIVA!E18 -> 170 | G72: cm
A73: Enter patient gender | F73: =KPTIVA!E22 -> 1 | G73: (1 = MALE, 2 = FEMALE)
A74: Enter drug conc | F74: =Concentration_Sufenta -> 5 | G74: µg/ml
A76: Model covariates | G76: ------> | J76: Model K-values
E77: Male | F77: Female | K77: 0.5
A78: Lbm | C78: =IF((F73=1),E78,IF((F73=2),F78,1/0)) -> 55.29757785 | E78: =1.1*F71-128*F71/F72*F71/F72 -> 55.29757785 | F78: =1.07*F71-148*F71/F72*F71/F72 -> 49.80657439 | J78: Vc | K78: 14.3
A79: BSA | C79: =POWER(F71,0.425)*POWER(F72,0.725)*0.007184 -> 1.809707802 | J79: K10 | K79: 0.0645 | L79: 1/min
J80: K12 | K80: 0.1086 | L80: 1/min
J81: K13 | K81: 0.0229 | L81: 1/min
J82: K21 | K82: 0.0245 | L82: 1/min
J83: K31 | K83: 0.0013 | L83: 1/min
J84: K41 | K84: 0.1763095856 | L84: 1/min
A86: Tpeak | C86: 5.588 | D86: min
A87: Drug conc[µg/ml] | C87: =F74 -> 5
A89: Input table | E89: Root calculation | L89: Pcoeff calculation | Q89: K41 determinations - estimate for tpeak.
D90: Value | E90: K31>0 | F90: K21>0 | G90: Else | I90: K31>0 | J90: K21>0 | K90: Else | M90: K31>0 | N90: K21>0 | O90: Else
A91: Vc | C91: =K78 -> 14.3 | D91: a0 | E91: =S_K10*S_K21*S_K31 -> 9.510763889e-12 | F91: =S_K10*S_K21 -> 4.389583333e-07 | G91: _ | H91: PCoef1 | I91: =(S_K21-S_Lambda1)*(S_K31-S_Lambda1)/(S_Lambda1-S_Lambda2)/(S_Lambda1-S_Lambda3)/S_Vc/S_Lambda1 -> 18.50099598 | J91: =(S_K21-S_Lambda1)/(S_Lambda2-S_Lambda1)/S_Vc/S_Lambda1 -> 18.53305524 | K91: =1/S_Vc/S_Lambda1 -> 19.93720725 | L91: ECoef1 | M91: =S_PCoef1/(S_K41-S_Lambda1)*S_K41 -> -95.54108452 | N91: =J91/(S_K41-S_Lambda1)*S_K41 -> -95.70664192 | O91: =K91/(S_K41-S_Lambda1)*S_K41 -> -102.9578303 | Q91: Table calculating dirac-impulse concentration result at time tpeak for a certain set of Kvalues
A92: K10 | C92: =K79/60 -> 0.001075 | D92: a1 | E92: =S_K10*S_K31+S_K21*S_K31+S_K21*S_K13+S_K10*S_K21+S_K31*S_K12 -> 6.661611111e-07 | F92: =(S_K10+S_K12+S_K21) -> 0.003293333333 | G92: _ | H92: PCoef2 | I92: =(S_K21-S_Lambda2)*(S_K31-S_Lambda2)/(S_Lambda2-S_Lambda1)/(S_Lambda2-S_Lambda3)/S_Vc/S_Lambda2 -> 27.29685533 | J92: =(S_K21-S_Lambda2)/(S_Lambda1-S_Lambda2)/S_Vc/S_Lambda2 -> 28.38263614 | K92: 0 | L92: ECoef2 | M92: =S_PCoef2/(S_K41-S_Lambda2)*S_K41 -> 29.0099583 | N92: =J92/(S_K41-S_Lambda2)*S_K41 -> 30.16388081 | O92: 0 | Q92: When the results Ceff have a peak it is what we want.
A93: K12 | C93: 0.00181 | D93: a2 | E93: =S_K10+S_K12+S_K13+S_K31+S_K21 -> 0.003696666667 | F93: _ | G93: _ | H93: PCoef3 | I93: =(S_K21-S_Lambda3)*(S_K31-S_Lambda3)/(S_Lambda3-S_Lambda2)/(S_Lambda3-S_Lambda1)/S_Vc/S_Lambda3 -> 19.25337654 | J93: 0 | K93: 0 | L93: ECoef3 | M93: =S_PCoef3/(S_K41-S_Lambda3)*S_K41 -> 19.35630905 | N93: 0 | O93: 0 | Q93: If the values keep increasing, k41 must increase.
A94: K13 | C94: 0.0003816666667 | D94: p | E94: =S_a1-(S_a2*S_a2/3) -> -3.888953704e-06 | F94: _ | G94: _ | L94: ECoef4 | M94: =(S_K41-S_K21)*(S_K41-S_K31)/(S_Lambda1-S_K41)/(S_Lambda2-S_K41)/(S_Lambda3-S_K41)/S_Vc -> 112.226045 | N94: =(S_K21-S_K41)/(S_Lambda1-S_K41)/(S_Lambda2-S_K41)/S_Vc -> 112.4584525 | O94: =1/(S_Lambda1-S_K41)/S_Vc -> 122.8950375 | Q94: If the values keep decreasing, k41 must decrease.
A95: K21 | C95: 0.0004083333333 | D95: q | E95: =(2*S_a2*S_a2*S_a2/27)-(S_a1*S_a2/3)+S_a0 -> 2.930594706e-09 | F95: _ | G95: _ | T95: E1' | U95: E2' | V95: E3' | W95: E4'
A96: K31 | C96: 2.166666667e-05 | D96: r1 | E96: =SQRT(-(S_p*S_p*S_p)/27) -> 1.475935156e-09 | F96: _ | G96: _ | T96: =S_ECoef1*S_Lambda1 -> -0.3351118658 | U96: =S_ECoef2*S_Lambda2 -> 0.005033941233 | V96: =S_ECoef3*S_Lambda3 -> 0.0003024664938 | W96: =S_ECoef4*S_Lambda4 -> 0.3297754581
A97: K41 | C97: 0.002938493093 | E97: =(MIN(MAX(-S_q/2/S_r1,-1),1)) -> -0.9927924996 | J97: Modelling results | S97: Ceff | T97: I1' | U97: I2' | V97: I3' | W97: I4'
D98: Phi | E98: =(ACOS(MIN(MAX((-S_q/2)/S_r1,-1),1)))/3 -> 1.007152645 | F98: _ | G98: _ | J98: Lambda1 | K98: =IF(S_K31>0,E103,IF(S_K21>0,F103,G103)) -> 0.003507515824 | Q98: T1 | R98: =C86*60*0.99 -> 331.9272 | S98: =T98*$T$96+U98*$U$96+V98*$V$96+W98*$W$96 -> 0.02478791507 | T98: =EXP(-S_Lambda1*$R$98) -> 0.3121598425 | U98: =EXP(-S_Lambda2*$R$98) -> 0.9440298122 | V98: =EXP(-S_Lambda3*$R$98) -> 0.9948266512 | W98: =EXP(-S_Lambda4*$R$98) -> 0.3770544077
A99: Root verification | D99: r1_Use | E99: =2*EXP(LN(S_r1)/3) -> 0.002277119146 | F99: _ | G99: _ | J99: Lambda2 | K99: =IF(S_K31>0,E104,IF(S_K21>0,F104,G104)) -> 0.0001735245939 | Q99: T2 | R99: =C86*60 -> 335.28 | S99: =T99*$T$96+U99*$U$96+V99*$V$96+W99*$W$96 -> 0.02478908804 | T99: =EXP(-S_Lambda1*$R$99) -> 0.3085103442 | U99: =EXP(-S_Lambda2*$R$99) -> 0.9434807418 | V99: =EXP(-S_Lambda3*$R$99) -> 0.9947745319 | W99: =EXP(-S_Lambda4*$R$99) -> 0.3733578394
A100: L1 | B100: =(POWER(-E100,3)+POWER(E100,2)*S_a2-E100*S_a1+S_a0)<0.000000000000001 -> TRUE | C100: =POWER(F100,2)-S__a1*F100+S__a0 -> 0 | D100: L1 | E100: =-(COS(S_Phi)*S_r1_Use-S_a2/3) -> 1.562624842e-05 | F100: =-(-S__a1+SQRT(S__a1*S__a1-4*S__a0))/2 -> 0.0001391678183 | G100: =S_K10 -> 0.001075 | J100: Lambda3 | K100: =IF(S_K31>0,E105,IF(S_K21>0,F105,G105)) -> 1.562624842e-05 | Q100: T3 | R100: =C86*60*1.01 -> 338.6328 | S100: =T100*$T$96+U100*$U$96+V100*$V$96+W100*$W$96 -> 0.02478791569 | T100: =EXP(-S_Lambda1*$R$100) -> 0.3049035126 | U100: =EXP(-S_Lambda2*$R$100) -> 0.9429319907 | V100: =EXP(-S_Lambda3*$R$100) -> 0.9947224154 | W100: =EXP(-S_Lambda4*$R$100) -> 0.3696975116
A101: L2 | B101: =(POWER(-E101,3)+POWER(E101,2)*S_a2-E101*S_a1+S_a0)<0.000000000000001 -> TRUE | C101: =POWER(F101,2)-F101*S__a1+S__a0 -> 0 | D101: L2 | E101: =-(COS(S_Phi+PI()*2/3)*S_r1_Use-S_a2/3) -> 0.003507515824 | F101: =-(-S__a1-SQRT(S__a1*S__a1-4*S__a0))/2 -> 0.003154165515 | G101: 0 | J101: Lambda4 | K101: =S_K41 -> 0.002938493093
A102: L3 | B102: =(POWER(-E102,3)+POWER(E102,2)*S_a2-E102*S_a1+S_a0)<0.000000000000001 -> TRUE | D102: L3 | E102: =-(COS(S_Phi+PI()*4/3)*S_r1_Use-S_a2/3) -> 0.0001735245939 | F102: 0 | G102: 0 | J102: PCoef1 | K102: =IF(S_K31>0,I91,IF(S_K21>0,J91,K91)) -> 18.50099598
D103: L1_SORT | E103: =MAX(MAX(E100,E101),E102) -> 0.003507515824 | F103: =MAX(MAX(F100,F101),F102) -> 0.003154165515 | G103: =MAX(MAX(G100,G101),G102) -> 0.001075 | J103: PCoef2 | K103: =IF(S_K31>0,I92,IF(S_K21>0,J92,K92)) -> 27.29685533
D104: L2_SORT | E104: =IF(AND(E103<>E100,E105<>E100),E100,IF(AND(E103<>E101,E105<>E101),E101,E102)) -> 0.0001735245939 | F104: =IF(AND(F103<>F100,F105<>F100),F100,IF(AND(F103<>F101,F105<>F101),F101,F102)) -> 0.0001391678183 | G104: =IF(AND(G103<>G100,G105<>G100),G100,IF(AND(G103<>G101,G105<>G101),G101,G102)) -> 0 | J104: PCoef3 | K104: =IF(S_K31>0,I93,IF(S_K21>0,J93,K93)) -> 19.25337654
D105: L3_SORT | E105: =MIN(MIN(E100,E101),E102) -> 1.562624842e-05 | F105: =MIN(MIN(F100,F101),F102) -> 0 | G105: =MIN(MIN(G100,G101),G102) -> 0 | J105: ECoef1 | K105: =IF(S_K31>0,M91,IF(S_K21>0,N91,O91)) -> -95.54108452
J106: ECoef2 | K106: =IF(S_K31>0,M92,IF(S_K21>0,N92,O92)) -> 29.0099583
J107: ECoef3 | K107: =IF(S_K31>0,M93,IF(S_K21>0,N93,O93)) -> 19.35630905
J108: ECoef4 | K108: =IF(S_K31>0,M94,IF(S_K21>0,N94,O94)) -> 112.226045
A110: Time | B110: Time | C110: Infused volume | D110: Cp, calculated | E110: Ce,calculated | F110: DeltaTime | G110: InfusionRate | H110: I1 | I110: I2 | J110: I3 | K110: I4 | L110: PState1 | M110: PState2 | N110: PState3 | O110: eState1 | P110: eState2 | Q110: eState3 | R110: eState4 | T110: Time | U110: MIN | V110: 0 | W110: 5 | X110: 10 | Y110: 15 | Z110: 20 | AA110: 25 | AB110: 30 | AC110: 35 | AD110: 40 | AE110: 45 | AF110: 50 | AG110: 55 | AH110: 60 | AI110: 65 | AJ110: 70 | AK110: 75 | AL110: 80 | AM110: 85 | AN110: 90 | AO110: 95 | AP110: 100 | AQ110: 105 | AR110: 110 | AS110: 115 | AT110: 120 | AU110: 125 | AV110: 130 | AW110: 135 | AX110: 140 | AY110: 145 | AZ110: 150 | BA110: 155 | BB110: 160 | BC110: 165 | BD110: 170 | BE110: 175 | BF110: 180 | BG110: 185 | BH110: 190 | BI110: 195 | BJ110: 200 | BK110: 205 | BL110: 210 | BM110: 215 | BN110: 220 | BO110: 225 | BP110: 230 | BQ110: 235 | BR110: 240 | BS110: 245 | BT110: 250 | BU110: 255 | BV110: 260 | BW110: 265 | BX110: 270 | BY110: 275 | BZ110: 280 | CA110: 285 | CB110: 290 | CC110: 295 | CD110: 300
A111: MIN | B111: s | C111: mls | D111: ng/ml | E111: ng/ml | F111: DeltaTime,s | G111: InfusionRate, amt/s | H111: I1 | I111: I2 | J111: I3 | K111: I4 | L111: PState1 | M111: PState2 | N111: PState3 | O111: eState1 | P111: eState2 | Q111: eState3 | R111: eState4 | T111: Time | U111: s | V111: 0 | W111: =W110*60 -> 300 | X111: =X110*60 -> 600 | Y111: =Y110*60 -> 900 | Z111: 1200 | AA111: 1500 | AB111: 1800 | AC111: 2100 | AD111: 2400 | AE111: 2700 | AF111: 3000 | AG111: 3300 | AH111: 3600 | AI111: 3900 | AJ111: 4200 | AK111: 4500 | AL111: 4800 | AM111: 5100 | AN111: 5400 | AO111: 5700 | AP111: 6000 | AQ111: 6300 | AR111: 6600 | AS111: 6900 | AT111: 7200 | AU111: 7500 | AV111: 7800 | AW111: 8100 | AX111: 8400 | AY111: 8700 | AZ111: 9000 | BA111: 9300 | BB111: 9600 | BC111: 9900 | BD111: 10200 | BE111: 10500 | BF111: 10800 | BG111: 11100 | BH111: 11400 | BI111: 11700 | BJ111: 12000 | BK111: 12300 | BL111: 12600 | BM111: 12900 | BN111: 13200 | BO111: 13500 | BP111: 13800 | BQ111: 14100 | BR111: 14400 | BS111: 14700 | BT111: 15000 | BU111: 15300 | BV111: 15600 | BW111: 15900 | BX111: 16200 | BY111: 16500 | BZ111: 16800 | CA111: 17100 | CB111: 17400 | CC111: 17700 | CD111: 18000
T112: Infused volume | U112: mls | V112: 0 | W112: =KPTIVA!K43 -> 0 | X112: =KPTIVA!L43 -> 0 | Y112: =KPTIVA!M43 -> 0 | Z112: =KPTIVA!N43 -> 0 | AA112: =KPTIVA!O43 -> 0 | AB112: =KPTIVA!P43 -> 0 | AC112: =KPTIVA!Q43 -> 0 | AD112: =KPTIVA!R43 -> 0 | AE112: =KPTIVA!S43 -> 0 | AF112: =KPTIVA!T43 -> 0 | AG112: =KPTIVA!U43 -> 0 | AH112: =KPTIVA!V43 -> 0 | AI112: =KPTIVA!W43 -> 0 | AJ112: =KPTIVA!X43 -> 0 | AK112: =KPTIVA!Y43 -> 0 | AL112: =KPTIVA!Z43 -> 0 | AM112: =KPTIVA!AA43 -> 0 | AN112: =KPTIVA!AB43 -> 0 | AO112: =KPTIVA!AC43 -> 0 | AP112: =KPTIVA!AD43 -> 0 | AQ112: =KPTIVA!AE43 -> 0 | AR112: =KPTIVA!AF43 -> 0 | AS112: =KPTIVA!AG43 -> 0 | AT112: =KPTIVA!AH43 -> 0 | AU112: =KPTIVA!AI43 -> 0 | AV112: =KPTIVA!AJ43 -> 0 | AW112: =KPTIVA!AK43 -> 0 | AX112: =KPTIVA!AL43 -> 0 | AY112: =KPTIVA!AM43 -> 0 | AZ112: =KPTIVA!AN43 -> 0 | BA112: =KPTIVA!AO43 -> 0 | BB112: =KPTIVA!AP43 -> 0 | BC112: =KPTIVA!AQ43 -> 0 | BD112: =KPTIVA!AR43 -> 0 | BE112: =KPTIVA!AS43 -> 0 | BF112: =KPTIVA!AT43 -> 0 | BG112: =KPTIVA!AU43 -> 0 | BH112: =KPTIVA!AV43 -> 0 | BI112: =KPTIVA!AW43 -> 0 | BJ112: =KPTIVA!AX43 -> 0 | BK112: =KPTIVA!AY43 -> 0 | BL112: =KPTIVA!AZ43 -> 0 | BM112: =KPTIVA!BA43 -> 0 | BN112: =KPTIVA!BB43 -> 0 | BO112: =KPTIVA!BC43 -> 0 | BP112: =KPTIVA!BD43 -> 0 | BQ112: =KPTIVA!BE43 -> 0 | BR112: =KPTIVA!BF43 -> 0 | BS112: =KPTIVA!BG43 -> 0 | BT112: =KPTIVA!BH43 -> 0 | BU112: =KPTIVA!BI43 -> 0 | BV112: =KPTIVA!BJ43 -> 0 | BW112: =KPTIVA!BK43 -> 0 | BX112: =KPTIVA!BL43 -> 0 | BY112: =KPTIVA!BM43 -> 0 | BZ112: =KPTIVA!BN43 -> 0 | CA112: =KPTIVA!BO43 -> 0 | CB112: =KPTIVA!BP43 -> 0 | CC112: =KPTIVA!BQ43 -> 0 | CD112: =KPTIVA!BR43 -> 0
A113: 0 | B113: 0 | C113: 0 | D113: 0 | E113: 0 | F113: 0 | G113: 0 | H113: 0 | I113: 0 | J113: 0 | K113: 0 | L113: 0 | M113: 0 | N113: 0 | O113: 0 | P113: 0 | Q113: 0 | R113: 0 | T113: Cp, calculated | U113: ng/ml | V113: 0 | W113: =D114 -> 0 | X113: =X121+X122+X123 -> 0 | Y113: =Y121+Y122+Y123 -> 0 | Z113: 0 | AA113: 0 | AB113: 0 | AC113: 0 | AD113: 0 | AE113: 0 | AF113: 0 | AG113: 0 | AH113: 0 | AI113: 0 | AJ113: 0 | AK113: 0 | AL113: 0 | AM113: 0 | AN113: 0 | AO113: 0 | AP113: 0 | AQ113: 0 | AR113: 0 | AS113: 0 | AT113: 0 | AU113: 0 | AV113: 0 | AW113: 0 | AX113: 0 | AY113: 0 | AZ113: 0 | BA113: 0 | BB113: 0 | BC113: 0 | BD113: 0 | BE113: 0 | BF113: 0 | BG113: 0 | BH113: 0 | BI113: 0 | BJ113: 0 | BK113: 0 | BL113: 0 | BM113: 0 | BN113: 0 | BO113: 0 | BP113: 0 | BQ113: 0 | BR113: 0 | BS113: 0 | BT113: 0 | BU113: 0 | BV113: 0 | BW113: 0 | BX113: 0 | BY113: 0 | BZ113: 0 | CA113: 0 | CB113: 0 | CC113: 0 | CD113: 0
A114: 5 | B114: =A114*60 -> 300 | C114: =KPTIVA!K43 -> 0 | D114: =L114+M114+N114 -> 0 | E114: =O114+P114+Q114+R114 -> 0 | F114: =B114-B113 -> 300 | G114: =IF(F114>0,(C114-C113)/F114*$C$87,#N/A) -> 0 | H114: =EXP(-S_Lambda1*$F114) -> 0.3491496168 | I114: =EXP(-S_Lambda2*$F114) -> 0.9492743976 | J114: =EXP(-S_Lambda3*$F114) -> 0.9953230964 | K114: =EXP(-S_Lambda4*$F114) -> 0.4141413543 | L114: =L113*H114+(1-H114)*$G114*S_PCoef1 -> 0 | M114: =M113*I114+(1-I114)*$G114*S_PCoef2 -> 0 | N114: =N113*J114+(1-J114)*$G114*S_PCoef3 -> 0 | O114: =O113*H114+(1-H114)*$G114*S_ECoef1 -> 0 | P114: =P113*I114+(1-I114)*$G114*S_ECoef2 -> 0 | Q114: =Q113*J114+(1-J114)*$G114*S_ECoef3 -> 0 | R114: =R113*K114+(1-K114)*$G114*S_ECoef4 -> 0 | T114: Ce,calculated | U114: ng/ml | V114: 0 | W114: =E114 -> 0 | X114: =X124+X125+X126+X127 -> 0 | Y114: =Y124+Y125+Y126+Y127 -> 0 | Z114: 0 | AA114: 0 | AB114: 0 | AC114: 0 | AD114: 0 | AE114: 0 | AF114: 0 | AG114: 0 | AH114: 0 | AI114: 0 | AJ114: 0 | AK114: 0 | AL114: 0 | AM114: 0 | AN114: 0 | AO114: 0 | AP114: 0 | AQ114: 0 | AR114: 0 | AS114: 0 | AT114: 0 | AU114: 0 | AV114: 0 | AW114: 0 | AX114: 0 | AY114: 0 | AZ114: 0 | BA114: 0 | BB114: 0 | BC114: 0 | BD114: 0 | BE114: 0 | BF114: 0 | BG114: 0 | BH114: 0 | BI114: 0 | BJ114: 0 | BK114: 0 | BL114: 0 | BM114: 0 | BN114: 0 | BO114: 0 | BP114: 0 | BQ114: 0 | BR114: 0 | BS114: 0 | BT114: 0 | BU114: 0 | BV114: 0 | BW114: 0 | BX114: 0 | BY114: 0 | BZ114: 0 | CA114: 0 | CB114: 0 | CC114: 0 | CD114: 0
A115: 10 | B115: 600 | D115: 0 | E115: 0 | F115: =B115-B114 -> 300 | G115: =IF(F115>0,(C115-C114)/F115*$C$87,#N/A) -> 0 | H115: 0.3491496168 | I115: 0.9492743976 | J115: 0.9953230964 | K115: 0.4141413543 | L115: 0 | M115: 0 | N115: 0 | O115: 0 | P115: 0 | Q115: 0 | R115: 0 | T115: DeltaTime | U115: DeltaTime,s | V115: 0 | W115: =F114 -> 300 | X115: =X111-W111 -> 300 | Y115: =Y111-X111 -> 300 | Z115: 300 | AA115: 300 | AB115: 300 | AC115: 300 | AD115: 300 | AE115: 300 | AF115: 300 | AG115: 300 | AH115: 300 | AI115: 300 | AJ115: 300 | AK115: 300 | AL115: 300 | AM115: 300 | AN115: 300 | AO115: 300 | AP115: 300 | AQ115: 300 | AR115: 300 | AS115: 300 | AT115: 300 | AU115: 300 | AV115: 300 | AW115: 300 | AX115: 300 | AY115: 300 | AZ115: 300 | BA115: 300 | BB115: 300 | BC115: 300 | BD115: 300 | BE115: 300 | BF115: 300 | BG115: 300 | BH115: 300 | BI115: 300 | BJ115: 300 | BK115: 300 | BL115: 300 | BM115: 300 | BN115: 300 | BO115: 300 | BP115: 300 | BQ115: 300 | BR115: 300 | BS115: 300 | BT115: 300 | BU115: 300 | BV115: 300 | BW115: 300 | BX115: 300 | BY115: 300 | BZ115: 300 | CA115: 300 | CB115: 300 | CC115: 300 | CD115: 300
T116: InfusionRate | U116: InfusionRate, amt/s | V116: 0 | W116: =G114 -> 0 | X116: =IF(X115>0,(X112-W112)/X115*$C$87,#N/A) -> 0 | Y116: =IF(Y115>0,(Y112-X112)/Y115*$C$87,#N/A) -> 0 | Z116: 0 | AA116: 0 | AB116: 0 | AC116: 0 | AD116: 0 | AE116: 0 | AF116: 0 | AG116: 0 | AH116: 0 | AI116: 0 | AJ116: 0 | AK116: 0 | AL116: 0 | AM116: 0 | AN116: 0 | AO116: 0 | AP116: 0 | AQ116: 0 | AR116: 0 | AS116: 0 | AT116: 0 | AU116: 0 | AV116: 0 | AW116: 0 | AX116: 0 | AY116: 0 | AZ116: 0 | BA116: 0 | BB116: 0 | BC116: 0 | BD116: 0 | BE116: 0 | BF116: 0 | BG116: 0 | BH116: 0 | BI116: 0 | BJ116: 0 | BK116: 0 | BL116: 0 | BM116: 0 | BN116: 0 | BO116: 0 | BP116: 0 | BQ116: 0 | BR116: 0 | BS116: 0 | BT116: 0 | BU116: 0 | BV116: 0 | BW116: 0 | BX116: 0 | BY116: 0 | BZ116: 0 | CA116: 0 | CB116: 0 | CC116: 0 | CD116: 0
T117: I1 | U117: I1 | V117: 0 | W117: =H114 -> 0.3491496168 | X117: =EXP(-S_Lambda1*X$115) -> 0.3491496168 | Y117: 0.3491496168 | Z117: 0.3491496168 | AA117: 0.3491496168 | AB117: 0.3491496168 | AC117: 0.3491496168 | AD117: 0.3491496168 | AE117: 0.3491496168 | AF117: 0.3491496168 | AG117: 0.3491496168 | AH117: 0.3491496168 | AI117: 0.3491496168 | AJ117: 0.3491496168 | AK117: 0.3491496168 | AL117: 0.3491496168 | AM117: 0.3491496168 | AN117: 0.3491496168 | AO117: 0.3491496168 | AP117: 0.3491496168 | AQ117: 0.3491496168 | AR117: 0.3491496168 | AS117: 0.3491496168 | AT117: 0.3491496168 | AU117: 0.3491496168 | AV117: 0.3491496168 | AW117: 0.3491496168 | AX117: 0.3491496168 | AY117: 0.3491496168 | AZ117: 0.3491496168 | BA117: 0.3491496168 | BB117: 0.3491496168 | BC117: 0.3491496168 | BD117: =EXP(-S_Lambda1*BD$115) -> 0.3491496168 | BE117: 0.3491496168 | BF117: 0.3491496168 | BG117: 0.3491496168 | BH117: 0.3491496168 | BI117: 0.3491496168 | BJ117: 0.3491496168 | BK117: 0.3491496168 | BL117: 0.3491496168 | BM117: 0.3491496168 | BN117: 0.3491496168 | BO117: 0.3491496168 | BP117: 0.3491496168 | BQ117: 0.3491496168 | BR117: 0.3491496168 | BS117: 0.3491496168 | BT117: 0.3491496168 | BU117: 0.3491496168 | BV117: 0.3491496168 | BW117: 0.3491496168 | BX117: 0.3491496168 | BY117: 0.3491496168 | BZ117: 0.3491496168 | CA117: 0.3491496168 | CB117: 0.3491496168 | CC117: 0.3491496168 | CD117: 0.3491496168
T118: I2 | U118: I2 | V118: 0 | W118: =I114 -> 0.9492743976 | X118: =EXP(-S_Lambda2*X$115) -> 0.9492743976 | Y118: 0.9492743976 | Z118: 0.9492743976 | AA118: 0.9492743976 | AB118: 0.9492743976 | AC118: 0.9492743976 | AD118: 0.9492743976 | AE118: 0.9492743976 | AF118: 0.9492743976 | AG118: 0.9492743976 | AH118: 0.9492743976 | AI118: 0.9492743976 | AJ118: 0.9492743976 | AK118: 0.9492743976 | AL118: 0.9492743976 | AM118: 0.9492743976 | AN118: 0.9492743976 | AO118: 0.9492743976 | AP118: 0.9492743976 | AQ118: 0.9492743976 | AR118: 0.9492743976 | AS118: 0.9492743976 | AT118: 0.9492743976 | AU118: 0.9492743976 | AV118: 0.9492743976 | AW118: 0.9492743976 | AX118: 0.9492743976 | AY118: 0.9492743976 | AZ118: 0.9492743976 | BA118: 0.9492743976 | BB118: 0.9492743976 | BC118: 0.9492743976 | BD118: =EXP(-S_Lambda2*BD$115) -> 0.9492743976 | BE118: 0.9492743976 | BF118: 0.9492743976 | BG118: 0.9492743976 | BH118: 0.9492743976 | BI118: 0.9492743976 | BJ118: 0.9492743976 | BK118: 0.9492743976 | BL118: 0.9492743976 | BM118: 0.9492743976 | BN118: 0.9492743976 | BO118: 0.9492743976 | BP118: 0.9492743976 | BQ118: 0.9492743976 | BR118: 0.9492743976 | BS118: 0.9492743976 | BT118: 0.9492743976 | BU118: 0.9492743976 | BV118: 0.9492743976 | BW118: 0.9492743976 | BX118: 0.9492743976 | BY118: 0.9492743976 | BZ118: 0.9492743976 | CA118: 0.9492743976 | CB118: 0.9492743976 | CC118: 0.9492743976 | CD118: 0.9492743976
T119: I3 | U119: I3 | V119: 0 | W119: =J114 -> 0.9953230964 | X119: =EXP(-S_Lambda3*X$115) -> 0.9953230964 | Y119: 0.9953230964 | Z119: 0.9953230964 | AA119: 0.9953230964 | AB119: 0.9953230964 | AC119: 0.9953230964 | AD119: 0.9953230964 | AE119: 0.9953230964 | AF119: 0.9953230964 | AG119: 0.9953230964 | AH119: 0.9953230964 | AI119: 0.9953230964 | AJ119: 0.9953230964 | AK119: 0.9953230964 | AL119: 0.9953230964 | AM119: 0.9953230964 | AN119: 0.9953230964 | AO119: 0.9953230964 | AP119: 0.9953230964 | AQ119: 0.9953230964 | AR119: 0.9953230964 | AS119: 0.9953230964 | AT119: 0.9953230964 | AU119: 0.9953230964 | AV119: 0.9953230964 | AW119: 0.9953230964 | AX119: 0.9953230964 | AY119: 0.9953230964 | AZ119: 0.9953230964 | BA119: 0.9953230964 | BB119: 0.9953230964 | BC119: 0.9953230964 | BD119: =EXP(-S_Lambda3*BD$115) -> 0.9953230964 | BE119: 0.9953230964 | BF119: 0.9953230964 | BG119: 0.9953230964 | BH119: 0.9953230964 | BI119: 0.9953230964 | BJ119: 0.9953230964 | BK119: 0.9953230964 | BL119: 0.9953230964 | BM119: 0.9953230964 | BN119: 0.9953230964 | BO119: 0.9953230964 | BP119: 0.9953230964 | BQ119: 0.9953230964 | BR119: 0.9953230964 | BS119: 0.9953230964 | BT119: 0.9953230964 | BU119: 0.9953230964 | BV119: 0.9953230964 | BW119: 0.9953230964 | BX119: 0.9953230964 | BY119: 0.9953230964 | BZ119: 0.9953230964 | CA119: 0.9953230964 | CB119: 0.9953230964 | CC119: 0.9953230964 | CD119: 0.9953230964
T120: I4 | U120: I4 | V120: 0 | W120: =K114 -> 0.4141413543 | X120: =EXP(-S_Lambda4*X$115) -> 0.4141413543 | Y120: 0.4141413543 | Z120: 0.4141413543 | AA120: 0.4141413543 | AB120: 0.4141413543 | AC120: 0.4141413543 | AD120: 0.4141413543 | AE120: 0.4141413543 | AF120: 0.4141413543 | AG120: 0.4141413543 | AH120: 0.4141413543 | AI120: 0.4141413543 | AJ120: 0.4141413543 | AK120: 0.4141413543 | AL120: 0.4141413543 | AM120: 0.4141413543 | AN120: 0.4141413543 | AO120: 0.4141413543 | AP120: 0.4141413543 | AQ120: 0.4141413543 | AR120: 0.4141413543 | AS120: 0.4141413543 | AT120: 0.4141413543 | AU120: 0.4141413543 | AV120: 0.4141413543 | AW120: 0.4141413543 | AX120: 0.4141413543 | AY120: 0.4141413543 | AZ120: 0.4141413543 | BA120: 0.4141413543 | BB120: 0.4141413543 | BC120: 0.4141413543 | BD120: =EXP(-S_Lambda4*BD$115) -> 0.4141413543 | BE120: 0.4141413543 | BF120: 0.4141413543 | BG120: 0.4141413543 | BH120: 0.4141413543 | BI120: 0.4141413543 | BJ120: 0.4141413543 | BK120: 0.4141413543 | BL120: 0.4141413543 | BM120: 0.4141413543 | BN120: 0.4141413543 | BO120: 0.4141413543 | BP120: 0.4141413543 | BQ120: 0.4141413543 | BR120: 0.4141413543 | BS120: 0.4141413543 | BT120: 0.4141413543 | BU120: 0.4141413543 | BV120: 0.4141413543 | BW120: 0.4141413543 | BX120: 0.4141413543 | BY120: 0.4141413543 | BZ120: 0.4141413543 | CA120: 0.4141413543 | CB120: 0.4141413543 | CC120: 0.4141413543 | CD120: 0.4141413543
T121: PState1 | U121: PState1 | V121: 0 | W121: =L114 -> 0 | X121: =W121*X117+(1-X117)*X$116*S_PCoef1 -> 0 | Y121: =X121*Y117+(1-Y117)*Y$116*S_PCoef1 -> 0 | Z121: 0 | AA121: 0 | AB121: 0 | AC121: 0 | AD121: 0 | AE121: 0 | AF121: 0 | AG121: 0 | AH121: 0 | AI121: 0 | AJ121: 0 | AK121: 0 | AL121: 0 | AM121: 0 | AN121: 0 | AO121: 0 | AP121: 0 | AQ121: 0 | AR121: 0 | AS121: 0 | AT121: 0 | AU121: 0 | AV121: 0 | AW121: 0 | AX121: 0 | AY121: 0 | AZ121: 0 | BA121: 0 | BB121: 0 | BC121: 0 | BD121: =BC121*BD117+(1-BD117)*BD$116*S_PCoef1 -> 0 | BE121: 0 | BF121: 0 | BG121: 0 | BH121: 0 | BI121: 0 | BJ121: 0 | BK121: 0 | BL121: 0 | BM121: 0 | BN121: 0 | BO121: 0 | BP121: 0 | BQ121: 0 | BR121: 0 | BS121: 0 | BT121: 0 | BU121: 0 | BV121: 0 | BW121: 0 | BX121: 0 | BY121: 0 | BZ121: 0 | CA121: 0 | CB121: 0 | CC121: 0 | CD121: 0
T122: PState2 | U122: PState2 | V122: 0 | W122: =M114 -> 0 | X122: =W122*X118+(1-X118)*X$116*S_PCoef2 -> 0 | Y122: 0 | Z122: 0 | AA122: 0 | AB122: 0 | AC122: 0 | AD122: 0 | AE122: 0 | AF122: 0 | AG122: 0 | AH122: 0 | AI122: 0 | AJ122: 0 | AK122: 0 | AL122: 0 | AM122: 0 | AN122: 0 | AO122: 0 | AP122: 0 | AQ122: 0 | AR122: 0 | AS122: 0 | AT122: 0 | AU122: 0 | AV122: 0 | AW122: 0 | AX122: 0 | AY122: 0 | AZ122: 0 | BA122: 0 | BB122: 0 | BC122: 0 | BD122: =BC122*BD118+(1-BD118)*BD$116*S_PCoef2 -> 0 | BE122: 0 | BF122: 0 | BG122: 0 | BH122: 0 | BI122: 0 | BJ122: 0 | BK122: 0 | BL122: 0 | BM122: 0 | BN122: 0 | BO122: 0 | BP122: 0 | BQ122: 0 | BR122: 0 | BS122: 0 | BT122: 0 | BU122: 0 | BV122: 0 | BW122: 0 | BX122: 0 | BY122: 0 | BZ122: 0 | CA122: 0 | CB122: 0 | CC122: 0 | CD122: 0
T123: PState3 | U123: PState3 | V123: 0 | W123: =N114 -> 0 | X123: =W123*X119+(1-X119)*X$116*S_PCoef3 -> 0 | Y123: 0 | Z123: 0 | AA123: 0 | AB123: 0 | AC123: 0 | AD123: 0 | AE123: 0 | AF123: 0 | AG123: 0 | AH123: 0 | AI123: 0 | AJ123: 0 | AK123: 0 | AL123: 0 | AM123: 0 | AN123: 0 | AO123: 0 | AP123: 0 | AQ123: 0 | AR123: 0 | AS123: 0 | AT123: 0 | AU123: 0 | AV123: 0 | AW123: 0 | AX123: 0 | AY123: 0 | AZ123: 0 | BA123: 0 | BB123: 0 | BC123: 0 | BD123: =BC123*BD119+(1-BD119)*BD$116*S_PCoef3 -> 0 | BE123: 0 | BF123: 0 | BG123: 0 | BH123: 0 | BI123: 0 | BJ123: 0 | BK123: 0 | BL123: 0 | BM123: 0 | BN123: 0 | BO123: 0 | BP123: 0 | BQ123: 0 | BR123: 0 | BS123: 0 | BT123: 0 | BU123: 0 | BV123: 0 | BW123: 0 | BX123: 0 | BY123: 0 | BZ123: 0 | CA123: 0 | CB123: 0 | CC123: 0 | CD123: 0
T124: eState1 | U124: eState1 | V124: 0 | W124: =O114 -> 0 | X124: =W124*X117+(1-X117)*X$116*S_ECoef1 -> 0 | Y124: 0 | Z124: 0 | AA124: 0 | AB124: 0 | AC124: 0 | AD124: 0 | AE124: 0 | AF124: 0 | AG124: 0 | AH124: 0 | AI124: 0 | AJ124: 0 | AK124: 0 | AL124: 0 | AM124: 0 | AN124: 0 | AO124: 0 | AP124: 0 | AQ124: 0 | AR124: 0 | AS124: 0 | AT124: 0 | AU124: 0 | AV124: 0 | AW124: 0 | AX124: 0 | AY124: 0 | AZ124: 0 | BA124: 0 | BB124: 0 | BC124: 0 | BD124: =BC124*BD117+(1-BD117)*BD$116*S_ECoef1 -> 0 | BE124: 0 | BF124: 0 | BG124: 0 | BH124: 0 | BI124: 0 | BJ124: 0 | BK124: 0 | BL124: 0 | BM124: 0 | BN124: 0 | BO124: 0 | BP124: 0 | BQ124: 0 | BR124: 0 | BS124: 0 | BT124: 0 | BU124: 0 | BV124: 0 | BW124: 0 | BX124: 0 | BY124: 0 | BZ124: 0 | CA124: 0 | CB124: 0 | CC124: 0 | CD124: 0
T125: eState2 | U125: eState2 | V125: 0 | W125: =P114 -> 0 | X125: =W125*X118+(1-X118)*X$116*S_ECoef2 -> 0 | Y125: 0 | Z125: 0 | AA125: 0 | AB125: 0 | AC125: 0 | AD125: 0 | AE125: 0 | AF125: 0 | AG125: 0 | AH125: 0 | AI125: 0 | AJ125: 0 | AK125: 0 | AL125: 0 | AM125: 0 | AN125: 0 | AO125: 0 | AP125: 0 | AQ125: 0 | AR125: 0 | AS125: 0 | AT125: 0 | AU125: 0 | AV125: 0 | AW125: 0 | AX125: 0 | AY125: 0 | AZ125: 0 | BA125: 0 | BB125: 0 | BC125: 0 | BD125: =BC125*BD118+(1-BD118)*BD$116*S_ECoef2 -> 0 | BE125: 0 | BF125: 0 | BG125: 0 | BH125: 0 | BI125: 0 | BJ125: 0 | BK125: 0 | BL125: 0 | BM125: 0 | BN125: 0 | BO125: 0 | BP125: 0 | BQ125: 0 | BR125: 0 | BS125: 0 | BT125: 0 | BU125: 0 | BV125: 0 | BW125: 0 | BX125: 0 | BY125: 0 | BZ125: 0 | CA125: 0 | CB125: 0 | CC125: 0 | CD125: 0
T126: eState3 | U126: eState3 | V126: 0 | W126: =Q114 -> 0 | X126: =W126*X119+(1-X119)*X$116*S_ECoef3 -> 0 | Y126: 0 | Z126: 0 | AA126: 0 | AB126: 0 | AC126: 0 | AD126: 0 | AE126: 0 | AF126: 0 | AG126: 0 | AH126: 0 | AI126: 0 | AJ126: 0 | AK126: 0 | AL126: 0 | AM126: 0 | AN126: 0 | AO126: 0 | AP126: 0 | AQ126: 0 | AR126: 0 | AS126: 0 | AT126: 0 | AU126: 0 | AV126: 0 | AW126: 0 | AX126: 0 | AY126: 0 | AZ126: 0 | BA126: 0 | BB126: 0 | BC126: 0 | BD126: =BC126*BD119+(1-BD119)*BD$116*S_ECoef3 -> 0 | BE126: 0 | BF126: 0 | BG126: 0 | BH126: 0 | BI126: 0 | BJ126: 0 | BK126: 0 | BL126: 0 | BM126: 0 | BN126: 0 | BO126: 0 | BP126: 0 | BQ126: 0 | BR126: 0 | BS126: 0 | BT126: 0 | BU126: 0 | BV126: 0 | BW126: 0 | BX126: 0 | BY126: 0 | BZ126: 0 | CA126: 0 | CB126: 0 | CC126: 0 | CD126: 0
T127: eState4 | U127: eState4 | V127: 0 | W127: =R114 -> 0 | X127: =W127*X120+(1-X120)*X$116*S_ECoef4 -> 0 | Y127: 0 | Z127: 0 | AA127: 0 | AB127: 0 | AC127: 0 | AD127: 0 | AE127: 0 | AF127: 0 | AG127: 0 | AH127: 0 | AI127: 0 | AJ127: 0 | AK127: 0 | AL127: 0 | AM127: 0 | AN127: 0 | AO127: 0 | AP127: 0 | AQ127: 0 | AR127: 0 | AS127: 0 | AT127: 0 | AU127: 0 | AV127: 0 | AW127: 0 | AX127: 0 | AY127: 0 | AZ127: 0 | BA127: 0 | BB127: 0 | BC127: 0 | BD127: =BC127*BD120+(1-BD120)*BD$116*S_ECoef4 -> 0 | BE127: 0 | BF127: 0 | BG127: 0 | BH127: 0 | BI127: 0 | BJ127: 0 | BK127: 0 | BL127: 0 | BM127: 0 | BN127: 0 | BO127: 0 | BP127: 0 | BQ127: 0 | BR127: 0 | BS127: 0 | BT127: 0 | BU127: 0 | BV127: 0 | BW127: 0 | BX127: 0 | BY127: 0 | BZ127: 0 | CA127: 0 | CB127: 0 | CC127: 0 | CD127: 0

Sheet Rapifen (hidden)
C4: Document n. | F4: 001/006 002 008 | K4: Revision | M4: 1
A6: Rugloop II© calculations validation
A7: Drug model: Alfentanil Shafer (BSA adjusted)
A9: This spreadsheet will calculate the resulting Cp & Ce, starting from the Vc-k41, and the infused volume. Fill in the boxed rectangles, and you are ready to compare the concentration as calculated by your program with the values as calculated by the spreadsheet.
A12: REMARK: this spreadsheet is for information purpose only, and should NOT be used to derive therapeutical decisions! This file is delivered AS IS, without guarantee for reliability.
A15: Reference from the literature : Shafer A et al.: Anesth & Analg 1986, 65, 1021-1028 Adjustment tpeak = 1.376min: from Shafer / Varvel
A19: Revision history
D20: Rev. | E20: Description | I20: ORG | J20: CHK | K20: APP | L20: Date (dd/mm/yy)
D21: 1 | E21: Release | I21: TDS | L21: 2003-01-10
A35: Procedure: | C35: * Fill in the yellow-colored boxes with your patient's weight, age,… AFTER filling in these values, press "Calculate K41" button to update the K41 value to your specifications.
C38: * Fill in the orange boxes with the Time, infused volume, cp & ce series from your RGL file for remifentanil. You can use either the time column in 25ms units (RGLII format) or the time column. Only the latter one will be used, and contains by default the formula to calculate the time from the first column.
C41: * The time intervals do not have to be constant. The only relevant thing is that the time entered and the infused volume entered match. E.g. : Time 0s -> infused volume 0ml ; T = 10s-> infused volume 1.5ml; T = 15s -> infused volume 2ml; … The spreadsheet will recalculate the corresponding infusion rates to get Cp & Ce
C44: * Important remark: when entering time, … data, make sure to leave the first row (which is read-only) and that your first entered line has infused volume zero. This will give the correct offset; otherwise, the first interval will not be correct, and the calculations will be wrong as well.
C47: * The spreadsheet will calculate the realised Cp & Ce values at the entered time, using the model specified. Use the columns Cp, calculated & Ce, calculated to read the calculated Cp & Ce for this specific model.
C50: * if you also have the already calculated Cp & Ce but, for example, if you wanted to verify two different models for the same drug, you can enter them as well in the specified orange columns for Cp & Ce. The spreadsheet will then immedicately give you the procentual difference between your own calculations & the results calculated by this model in the green columns.
C53: * the fields input table, root calculation, Pcoeff calculation, Root verification & Modelling results are only for information.
A58: Model: | C58: Unit of concentration : ng/ml
C60: Vc = 0.825 * bsa
C61: k10 = 0.0748
C62: k12 = 0.515
C63: k13 = 0.231
C64: k21 = 0.142
C65: k31 = 0.0185
A68: Patient data
A70: Enter patient age | F70: =KPTIVA!E14 -> 40 | G70: years
A71: Enter patient weight | F71: =Poids -> 70 | G71: kg
A72: Enter patient height | F72: =KPTIVA!E18 -> 170 | G72: cm
A73: Enter patient gender | F73: =KPTIVA!E22 -> 1 | G73: (1 = MALE, 2 = FEMALE)
A74: Enter drug conc | F74: =Concentration_Rapifen -> 100 | G74: µg/ml
A76: Model covariates | G76: ------> | J76: Model K-values
E77: Male | F77: Female | K77: 0.5
A78: Lbm | C78: =IF((F73=1),E78,IF((F73=2),F78,1/0)) -> 55.29757785 | E78: =1.1*F71-128*F71/F72*F71/F72 -> 55.29757785 | F78: =1.07*F71-148*F71/F72*F71/F72 -> 49.80657439 | J78: Vc | K78: =0.825*C79 -> 1.493008936
A79: BSA | C79: =POWER(F71,0.425)*POWER(F72,0.725)*0.007184 -> 1.809707802 | J79: K10 | K79: =0.0748 -> 0.0748 | L79: 1/min
J80: K12 | K80: =0.515 -> 0.515 | L80: 1/min
J81: K13 | K81: =0.231 -> 0.231 | L81: 1/min
J82: K21 | K82: 0.142 | L82: 1/min
J83: K31 | K83: 0.0185 | L83: 1/min
J84: K41 | K84: 0.7321395874 | L84: 1/min
A86: Tpeak | C86: 1.376 | D86: min
A87: Drug conc[µg/ml] | C87: =F74 -> 100
A89: Input table | E89: Root calculation | L89: Pcoeff calculation | Q89: K41 determinations - estimate for tpeak.
D90: Value | E90: K31>0 | F90: K21>0 | G90: Else | I90: K31>0 | J90: K21>0 | K90: Else | M90: K31>0 | N90: K21>0 | O90: Else
A91: Vc | C91: =K78 -> 1.493008936 | D91: a0 | E91: =A_K10*A_K21*A_K31 -> 9.097203704e-10 | F91: =A_K10*A_K21 -> 2.950444444e-06 | G91: _ | H91: PCoef1 | I91: =(A_K21-A_Lambda1)*(A_K31-A_Lambda1)/(A_Lambda1-A_Lambda2)/(A_Lambda1-A_Lambda3)/A_Vc/A_Lambda1 -> 38.80390033 | J91: =(A_K21-A_Lambda1)/(A_Lambda2-A_Lambda1)/A_Vc/A_Lambda1 -> 39.4419955 | K91: =1/A_Vc/A_Lambda1 -> 43.70134254 | L91: ECoef1 | M91: =A_PCoef1/(A_K41-A_Lambda1)*A_K41 -> -151.5596983 | N91: =J91/(A_K41-A_Lambda1)*A_K41 -> -154.051961 | O91: =K91/(A_K41-A_Lambda1)*A_K41 -> -170.6880554 | Q91: Table calculating dirac-impulse concentration result at time tpeak for a certain set of Kvalues
A92: K10 | C92: =K79/60 -> 0.001246666667 | D92: a1 | E92: =A_K10*A_K31+A_K21*A_K31+A_K21*A_K13+A_K10*A_K21+A_K31*A_K12 -> 1.582275e-05 | F92: =(A_K10+A_K12+A_K21) -> 0.01219666667 | G92: _ | H92: PCoef2 | I92: =(A_K21-A_Lambda2)*(A_K31-A_Lambda2)/(A_Lambda2-A_Lambda1)/(A_Lambda2-A_Lambda3)/A_Vc/A_Lambda2 -> 49.09530714 | J92: =(A_K21-A_Lambda2)/(A_Lambda1-A_Lambda2)/A_Vc/A_Lambda2 -> 67.49935854 | K92: 0 | L92: ECoef2 | M92: =A_PCoef2/(A_K41-A_Lambda2)*A_K41 -> 53.32146408 | N92: =J92/(A_K41-A_Lambda2)*A_K41 -> 73.30974855 | O92: 0 | Q92: When the results Ceff have a peak it is what we want.
A93: K12 | C93: 0.008583333333 | D93: a2 | E93: =A_K10+A_K12+A_K13+A_K31+A_K21 -> 0.016355 | F93: _ | G93: _ | H93: PCoef3 | I93: =(A_K21-A_Lambda3)*(A_K31-A_Lambda3)/(A_Lambda3-A_Lambda2)/(A_Lambda3-A_Lambda1)/A_Vc/A_Lambda3 -> 449.3641791 | J93: 0 | K93: 0 | L93: ECoef3 | M93: =A_PCoef3/(A_K41-A_Lambda3)*A_K41 -> 451.635741 | N93: 0 | O93: 0 | Q93: If the values keep increasing, k41 must increase.
A94: K13 | C94: 0.00385 | D94: p | E94: =A_a1-(A_a2*A_a2/3) -> -7.333925833e-05 | F94: _ | G94: _ | L94: ECoef4 | M94: =(A_K41-A_K21)*(A_K41-A_K31)/(A_Lambda1-A_K41)/(A_Lambda2-A_K41)/(A_Lambda3-A_K41)/A_Vc -> 183.8658798 | N94: =(A_K21-A_K41)/(A_Lambda1-A_K41)/(A_Lambda2-A_K41)/A_Vc -> 187.6835664 | O94: =1/(A_Lambda1-A_K41)/A_Vc -> 214.389398 | Q94: If the values keep decreasing, k41 must decrease.
A95: K21 | C95: 0.002366666667 | D95: q | E95: =(2*A_a2*A_a2*A_a2/27)-(A_a1*A_a2/3)+A_a0 -> 2.387037275e-07 | F95: _ | G95: _ | T95: E1' | U95: E2' | V95: E3' | W95: E4'
A96: K31 | C96: 0.0003083333333 | D96: r1 | E96: =SQRT(-(A_p*A_p*A_p)/27) -> 1.208712152e-07 | F96: _ | G96: _ | T96: =A_ECoef1*A_Lambda1 -> -2.322878776 | U96: =A_ECoef2*A_Lambda2 -> 0.05156894657 | V96: =A_ECoef3*A_Lambda3 -> 0.02771833981 | W96: =A_ECoef4*A_Lambda4 -> 2.24359149
A97: K41 | C97: 0.01220232646 | E97: =(MIN(MAX(-A_q/2/A_r1,-1),1)) -> -0.9874299974 | J97: Modelling results | S97: Ceff | T97: I1' | U97: I2' | V97: I3' | W97: I4'
D98: Phi | E98: =(ACOS(MIN(MAX((-A_q/2)/A_r1,-1),1)))/3 -> 0.9942900314 | F98: _ | G98: _ | J98: Lambda1 | K98: =IF(A_K31>0,E103,IF(A_K21>0,F103,G103)) -> 0.0153264938 | Q98: T1 | R98: =C86*60*0.99 -> 81.7344 | S98: =T98*$T$96+U98*$U$96+V98*$V$96+W98*$W$96 -> 0.2390703135 | T98: =EXP(-A_Lambda1*$R$98) -> 0.2857317702 | U98: =EXP(-A_Lambda2*$R$98) -> 0.9239955401 | V98: =EXP(-A_Lambda3*$R$98) -> 0.9949962573 | W98: =EXP(-A_Lambda4*$R$98) -> 0.3688556767
A99: Root verification | D99: r1_Use | E99: =2*EXP(LN(A_r1)/3) -> 0.009888664105 | F99: _ | G99: _ | J99: Lambda2 | K99: =IF(A_K31>0,E104,IF(A_K21>0,F104,G104)) -> 0.0009671329823 | Q99: T2 | R99: =C86*60 -> 82.56 | S99: =T99*$T$96+U99*$U$96+V99*$V$96+W99*$W$96 -> 0.2390811938 | T99: =EXP(-A_Lambda1*$R$99) -> 0.2821390265 | U99: =EXP(-A_Lambda2*$R$99) -> 0.9232580565 | V99: =EXP(-A_Lambda3*$R$99) -> 0.9949458424 | W99: =EXP(-A_Lambda4*$R$99) -> 0.3651583908
A100: L1 | B100: =(POWER(-E100,3)+POWER(E100,2)*A_a2-E100*A_a1+A_a0)<0.000000000000001 -> TRUE | C100: =POWER(F100,2)-A__a1*F100+A__a0 -> -3.388131789e-21 | D100: L1 | E100: =-(COS(A_Phi)*A_r1_Use-A_a2/3) -> 6.137322026e-05 | F100: =-(-A__a1+SQRT(A__a1*A__a1-4*A__a0))/2 -> 0.0002469040208 | G100: =A_K10 -> 0.001246666667 | J100: Lambda3 | K100: =IF(A_K31>0,E105,IF(A_K21>0,F105,G105)) -> 6.137322026e-05 | Q100: T3 | R100: =C86*60*1.01 -> 83.3856 | S100: =T100*$T$96+U100*$U$96+V100*$V$96+W100*$W$96 -> 0.2390703178 | T100: =EXP(-A_Lambda1*$R$100) -> 0.2785914573 | U100: =EXP(-A_Lambda2*$R$100) -> 0.9225211615 | V100: =EXP(-A_Lambda3*$R$100) -> 0.99489543 | W100: =EXP(-A_Lambda4*$R$100) -> 0.3614981652
A101: L2 | B101: =(POWER(-E101,3)+POWER(E101,2)*A_a2-E101*A_a1+A_a0)<0.000000000000001 -> TRUE | C101: =POWER(F101,2)-F101*A__a1+A__a0 -> -9.31736242e-21 | D101: L2 | E101: =-(COS(A_Phi+PI()*2/3)*A_r1_Use-A_a2/3) -> 0.0153264938 | F101: =-(-A__a1-SQRT(A__a1*A__a1-4*A__a0))/2 -> 0.01194976265 | G101: 0 | J101: Lambda4 | K101: =A_K41 -> 0.01220232646
A102: L3 | B102: =(POWER(-E102,3)+POWER(E102,2)*A_a2-E102*A_a1+A_a0)<0.000000000000001 -> TRUE | D102: L3 | E102: =-(COS(A_Phi+PI()*4/3)*A_r1_Use-A_a2/3) -> 0.0009671329823 | F102: 0 | G102: 0 | J102: PCoef1 | K102: =IF(A_K31>0,I91,IF(A_K21>0,J91,K91)) -> 38.80390033
D103: L1_SORT | E103: =MAX(MAX(E100,E101),E102) -> 0.0153264938 | F103: =MAX(MAX(F100,F101),F102) -> 0.01194976265 | G103: =MAX(MAX(G100,G101),G102) -> 0.001246666667 | J103: PCoef2 | K103: =IF(A_K31>0,I92,IF(A_K21>0,J92,K92)) -> 49.09530714
D104: L2_SORT | E104: =IF(AND(E103<>E100,E105<>E100),E100,IF(AND(E103<>E101,E105<>E101),E101,E102)) -> 0.0009671329823 | F104: =IF(AND(F103<>F100,F105<>F100),F100,IF(AND(F103<>F101,F105<>F101),F101,F102)) -> 0.0002469040208 | G104: =IF(AND(G103<>G100,G105<>G100),G100,IF(AND(G103<>G101,G105<>G101),G101,G102)) -> 0 | J104: PCoef3 | K104: =IF(A_K31>0,I93,IF(A_K21>0,J93,K93)) -> 449.3641791
D105: L3_SORT | E105: =MIN(MIN(E100,E101),E102) -> 6.137322026e-05 | F105: =MIN(MIN(F100,F101),F102) -> 0 | G105: =MIN(MIN(G100,G101),G102) -> 0 | J105: ECoef1 | K105: =IF(A_K31>0,M91,IF(A_K21>0,N91,O91)) -> -151.5596983
J106: ECoef2 | K106: =IF(A_K31>0,M92,IF(A_K21>0,N92,O92)) -> 53.32146408
J107: ECoef3 | K107: =IF(A_K31>0,M93,IF(A_K21>0,N93,O93)) -> 451.635741
J108: ECoef4 | K108: =IF(A_K31>0,M94,IF(A_K21>0,N94,O94)) -> 183.8658798
A110: Time | B110: Time | C110: Infused volume | D110: Cp, calculated | E110: Ce,calculated | F110: DeltaTime | G110: InfusionRate | H110: I1 | I110: I2 | J110: I3 | K110: I4 | L110: PState1 | M110: PState2 | N110: PState3 | O110: eState1 | P110: eState2 | Q110: eState3 | R110: eState4 | T110: Time | U110: 25ms | W110: 0 | X110: 5 | Y110: 10 | Z110: 15 | AA110: 20 | AB110: 25 | AC110: 30 | AD110: 35 | AE110: 40 | AF110: 45 | AG110: 50 | AH110: 55 | AI110: 60 | AJ110: 65 | AK110: 70 | AL110: 75 | AM110: 80 | AN110: 85 | AO110: 90 | AP110: 95 | AQ110: 100 | AR110: 105 | AS110: 110 | AT110: 115 | AU110: 120 | AV110: 125 | AW110: 130 | AX110: 135 | AY110: 140 | AZ110: 145 | BA110: 150 | BB110: 155 | BC110: 160 | BD110: 165 | BE110: 170 | BF110: 175 | BG110: 180 | BH110: 185 | BI110: 190 | BJ110: 195 | BK110: 200 | BL110: 205 | BM110: 210 | BN110: 215 | BO110: 220 | BP110: 225 | BQ110: 230 | BR110: 235 | BS110: 240 | BT110: 245 | BU110: 250 | BV110: 255 | BW110: 260 | BX110: 265 | BY110: 270 | BZ110: 275 | CA110: 280 | CB110: 285 | CC110: 290 | CD110: 295 | CE110: 300
A111: 25ms | B111: s | C111: mls | D111: ng/ml | E111: ng/ml | F111: DeltaTime,s | G111: InfusionRate, amt/s | H111: I1 | I111: I2 | J111: I3 | K111: I4 | L111: PState1 | M111: PState2 | N111: PState3 | O111: eState1 | P111: eState2 | Q111: eState3 | R111: eState4 | T111: Time | U111: s | W111: 0 | X111: =X110*60 -> 300 | Y111: 600 | Z111: =Z110*60 -> 900 | AA111: 1200 | AB111: 1500 | AC111: 1800 | AD111: 2100 | AE111: 2400 | AF111: 2700 | AG111: 3000 | AH111: 3300 | AI111: 3600 | AJ111: 3900 | AK111: 4200 | AL111: 4500 | AM111: 4800 | AN111: 5100 | AO111: 5400 | AP111: 5700 | AQ111: 6000 | AR111: 6300 | AS111: 6600 | AT111: 6900 | AU111: 7200 | AV111: 7500 | AW111: 7800 | AX111: 8100 | AY111: 8400 | AZ111: 8700 | BA111: 9000 | BB111: 9300 | BC111: 9600 | BD111: 9900 | BE111: 10200 | BF111: 10500 | BG111: 10800 | BH111: 11100 | BI111: 11400 | BJ111: 11700 | BK111: 12000 | BL111: 12300 | BM111: 12600 | BN111: 12900 | BO111: 13200 | BP111: 13500 | BQ111: 13800 | BR111: 14100 | BS111: 14400 | BT111: 14700 | BU111: 15000 | BV111: 15300 | BW111: 15600 | BX111: 15900 | BY111: 16200 | BZ111: 16500 | CA111: 16800 | CB111: 17100 | CC111: 17400 | CD111: 17700 | CE111: 18000
T112: Infused volume | U112: mls | W112: 0 | X112: =C114 -> 0 | Y112: =KPTIVA!L49 -> 0 | Z112: =KPTIVA!M49 -> 0 | AA112: =KPTIVA!N49 -> 0 | AB112: =KPTIVA!O49 -> 0 | AC112: =KPTIVA!P49 -> 0 | AD112: =KPTIVA!Q49 -> 0 | AE112: =KPTIVA!R49 -> 0 | AF112: =KPTIVA!S49 -> 0 | AG112: =KPTIVA!T49 -> 0 | AH112: =KPTIVA!U49 -> 0 | AI112: =KPTIVA!V49 -> 0 | AJ112: =KPTIVA!W49 -> 0 | AK112: =KPTIVA!X49 -> 0 | AL112: =KPTIVA!Y49 -> 0 | AM112: =KPTIVA!Z49 -> 0 | AN112: =KPTIVA!AA49 -> 0 | AO112: =KPTIVA!AB49 -> 0 | AP112: =KPTIVA!AC49 -> 0 | AQ112: =KPTIVA!AD49 -> 0 | AR112: =KPTIVA!AE49 -> 0 | AS112: =KPTIVA!AF49 -> 0 | AT112: =KPTIVA!AG49 -> 0 | AU112: =KPTIVA!AH49 -> 0 | AV112: =KPTIVA!AI49 -> 0 | AW112: =KPTIVA!AJ49 -> 0 | AX112: =KPTIVA!AK49 -> 0 | AY112: =KPTIVA!AL49 -> 0 | AZ112: =KPTIVA!AM49 -> 0 | BA112: =KPTIVA!AN49 -> 0 | BB112: =KPTIVA!AO49 -> 0 | BC112: =KPTIVA!AP49 -> 0 | BD112: =KPTIVA!AQ49 -> 0 | BE112: =KPTIVA!AR49 -> 0 | BF112: =KPTIVA!AS49 -> 0 | BG112: =KPTIVA!AT49 -> 0 | BH112: =KPTIVA!AU49 -> 0 | BI112: =KPTIVA!AV49 -> 0 | BJ112: =KPTIVA!AW49 -> 0 | BK112: =KPTIVA!AX49 -> 0 | BL112: =KPTIVA!AY49 -> 0 | BM112: =KPTIVA!AZ49 -> 0 | BN112: =KPTIVA!BA49 -> 0 | BO112: =KPTIVA!BB49 -> 0 | BP112: =KPTIVA!BC49 -> 0 | BQ112: =KPTIVA!BD49 -> 0 | BR112: =KPTIVA!BE49 -> 0 | BS112: =KPTIVA!BF49 -> 0 | BT112: =KPTIVA!BG49 -> 0 | BU112: =KPTIVA!BH49 -> 0 | BV112: =KPTIVA!BI49 -> 0 | BW112: =KPTIVA!BJ49 -> 0 | BX112: =KPTIVA!BK49 -> 0 | BY112: =KPTIVA!BL49 -> 0 | BZ112: =KPTIVA!BM49 -> 0 | CA112: =KPTIVA!BN49 -> 0 | CB112: =KPTIVA!BO49 -> 0 | CC112: =KPTIVA!BP49 -> 0 | CD112: =KPTIVA!BQ49 -> 0 | CE112: =KPTIVA!BR49 -> 0
A113: 0 | B113: 0 | C113: 0 | D113: 0 | E113: 0 | F113: 0 | G113: 0 | H113: 0 | I113: 0 | J113: 0 | K113: 0 | L113: 0 | M113: 0 | N113: 0 | O113: 0 | P113: 0 | Q113: 0 | R113: 0 | T113: Cp, calculated | U113: ng/ml | W113: 0 | X113: =D114 -> 0 | Y113: =Y121+Y122+Y123 -> 0 | Z113: =Z121+Z122+Z123 -> 0 | AA113: 0 | AB113: 0 | AC113: 0 | AD113: 0 | AE113: 0 | AF113: 0 | AG113: 0 | AH113: 0 | AI113: 0 | AJ113: 0 | AK113: 0 | AL113: 0 | AM113: 0 | AN113: 0 | AO113: 0 | AP113: 0 | AQ113: 0 | AR113: 0 | AS113: 0 | AT113: 0 | AU113: 0 | AV113: 0 | AW113: 0 | AX113: 0 | AY113: 0 | AZ113: 0 | BA113: 0 | BB113: 0 | BC113: 0 | BD113: 0 | BE113: 0 | BF113: 0 | BG113: 0 | BH113: 0 | BI113: 0 | BJ113: 0 | BK113: 0 | BL113: 0 | BM113: 0 | BN113: 0 | BO113: 0 | BP113: 0 | BQ113: 0 | BR113: 0 | BS113: 0 | BT113: 0 | BU113: 0 | BV113: 0 | BW113: 0 | BX113: 0 | BY113: 0 | BZ113: 0 | CA113: 0 | CB113: 0 | CC113: 0 | CD113: 0 | CE113: 0
A114: 5 | B114: =60*A114 -> 300 | C114: =KPTIVA!K49 -> 0 | D114: =L114+M114+N114 -> 0 | E114: =O114+P114+Q114+R114 -> 0 | F114: =B114-B113 -> 300 | G114: =IF(F114>0,(C114-C113)/F114*$C$87,#N/A) -> 0 | H114: =EXP(-A_Lambda1*$F114) -> 0.01007248189 | I114: =EXP(-A_Lambda2*$F114) -> 0.7481588968 | J114: =EXP(-A_Lambda3*$F114) -> 0.9817564987 | K114: =EXP(-A_Lambda4*$F114) -> 0.02571455932 | L114: =L113*H114+(1-H114)*$G114*A_PCoef1 -> 0 | M114: =M113*I114+(1-I114)*$G114*A_PCoef2 -> 0 | N114: =N113*J114+(1-J114)*$G114*A_PCoef3 -> 0 | O114: =O113*H114+(1-H114)*$G114*A_ECoef1 -> 0 | P114: =P113*I114+(1-I114)*$G114*A_ECoef2 -> 0 | Q114: =Q113*J114+(1-J114)*$G114*A_ECoef3 -> 0 | R114: =R113*K114+(1-K114)*$G114*A_ECoef4 -> 0 | T114: Ce,calculated | U114: ng/ml | W114: 0 | X114: =E114 -> 0 | Y114: =Y124+Y125+Y126+Y127 -> 0 | Z114: =Z124+Z125+Z126+Z127 -> 0 | AA114: 0 | AB114: 0 | AC114: 0 | AD114: 0 | AE114: 0 | AF114: 0 | AG114: 0 | AH114: 0 | AI114: 0 | AJ114: 0 | AK114: 0 | AL114: 0 | AM114: 0 | AN114: 0 | AO114: 0 | AP114: 0 | AQ114: 0 | AR114: 0 | AS114: 0 | AT114: 0 | AU114: 0 | AV114: 0 | AW114: 0 | AX114: 0 | AY114: 0 | AZ114: 0 | BA114: 0 | BB114: 0 | BC114: 0 | BD114: 0 | BE114: 0 | BF114: 0 | BG114: 0 | BH114: 0 | BI114: 0 | BJ114: 0 | BK114: 0 | BL114: 0 | BM114: 0 | BN114: 0 | BO114: 0 | BP114: 0 | BQ114: 0 | BR114: 0 | BS114: 0 | BT114: 0 | BU114: 0 | BV114: 0 | BW114: 0 | BX114: 0 | BY114: 0 | BZ114: 0 | CA114: 0 | CB114: 0 | CC114: 0 | CD114: 0 | CE114: 0
A115: 10 | B115: 600 | D115: =L115+M115+N115 -> 0 | E115: =O115+P115+Q115+R115 -> 0 | F115: =B115-B114 -> 300 | G115: =IF(F115>0,(C115-C114)/F115*$C$87,#N/A) -> 0 | H115: =EXP(-A_Lambda1*$F115) -> 0.01007248189 | I115: =EXP(-A_Lambda2*$F115) -> 0.7481588968 | J115: =EXP(-A_Lambda3*$F115) -> 0.9817564987 | K115: =EXP(-A_Lambda4*$F115) -> 0.02571455932 | L115: =L114*H115+(1-H115)*$G115*A_PCoef1 -> 0 | M115: =M114*I115+(1-I115)*$G115*A_PCoef2 -> 0 | N115: =N114*J115+(1-J115)*$G115*A_PCoef3 -> 0 | O115: =O114*H115+(1-H115)*$G115*A_ECoef1 -> 0 | P115: =P114*I115+(1-I115)*$G115*A_ECoef2 -> 0 | Q115: =Q114*J115+(1-J115)*$G115*A_ECoef3 -> 0 | R115: =R114*K115+(1-K115)*$G115*A_ECoef4 -> 0 | T115: DeltaTime | U115: DeltaTime,s | W115: 0 | X115: =F114 -> 300 | Y115: =Y111-X111 -> 300 | Z115: =Z111-Y111 -> 300 | AA115: 300 | AB115: 300 | AC115: 300 | AD115: 300 | AE115: 300 | AF115: 300 | AG115: 300 | AH115: 300 | AI115: 300 | AJ115: 300 | AK115: 300 | AL115: 300 | AM115: 300 | AN115: 300 | AO115: 300 | AP115: 300 | AQ115: 300 | AR115: 300 | AS115: 300 | AT115: 300 | AU115: 300 | AV115: 300 | AW115: 300 | AX115: 300 | AY115: 300 | AZ115: 300 | BA115: 300 | BB115: 300 | BC115: 300 | BD115: 300 | BE115: 300 | BF115: 300 | BG115: 300 | BH115: 300 | BI115: 300 | BJ115: 300 | BK115: 300 | BL115: 300 | BM115: 300 | BN115: 300 | BO115: 300 | BP115: 300 | BQ115: 300 | BR115: 300 | BS115: 300 | BT115: 300 | BU115: 300 | BV115: 300 | BW115: 300 | BX115: 300 | BY115: 300 | BZ115: 300 | CA115: 300 | CB115: 300 | CC115: 300 | CD115: 300 | CE115: 300
T116: InfusionRate | U116: InfusionRate, amt/s | W116: 0 | X116: =G114 -> 0 | Y116: =IF(Y115>0,(Y112-X112)/Y115*$C$87,#N/A) -> 0 | Z116: =IF(Z115>0,(Z112-Y112)/Z115*$C$87,#N/A) -> 0 | AA116: 0 | AB116: 0 | AC116: 0 | AD116: 0 | AE116: 0 | AF116: 0 | AG116: 0 | AH116: 0 | AI116: 0 | AJ116: 0 | AK116: 0 | AL116: 0 | AM116: 0 | AN116: 0 | AO116: 0 | AP116: 0 | AQ116: 0 | AR116: 0 | AS116: 0 | AT116: 0 | AU116: 0 | AV116: 0 | AW116: 0 | AX116: 0 | AY116: 0 | AZ116: 0 | BA116: 0 | BB116: 0 | BC116: 0 | BD116: 0 | BE116: 0 | BF116: 0 | BG116: 0 | BH116: 0 | BI116: 0 | BJ116: 0 | BK116: 0 | BL116: 0 | BM116: 0 | BN116: 0 | BO116: 0 | BP116: 0 | BQ116: 0 | BR116: 0 | BS116: 0 | BT116: 0 | BU116: 0 | BV116: 0 | BW116: 0 | BX116: 0 | BY116: 0 | BZ116: 0 | CA116: 0 | CB116: 0 | CC116: 0 | CD116: 0 | CE116: 0
T117: I1 | U117: I1 | W117: 0 | X117: =H114 -> 0.01007248189 | Y117: =EXP(-A_Lambda1*Y$115) -> 0.01007248189 | Z117: 0.01007248189 | AA117: 0.01007248189 | AB117: 0.01007248189 | AC117: 0.01007248189 | AD117: 0.01007248189 | AE117: 0.01007248189 | AF117: 0.01007248189 | AG117: 0.01007248189 | AH117: 0.01007248189 | AI117: 0.01007248189 | AJ117: 0.01007248189 | AK117: 0.01007248189 | AL117: 0.01007248189 | AM117: 0.01007248189 | AN117: 0.01007248189 | AO117: 0.01007248189 | AP117: 0.01007248189 | AQ117: 0.01007248189 | AR117: 0.01007248189 | AS117: 0.01007248189 | AT117: 0.01007248189 | AU117: 0.01007248189 | AV117: 0.01007248189 | AW117: 0.01007248189 | AX117: 0.01007248189 | AY117: 0.01007248189 | AZ117: 0.01007248189 | BA117: 0.01007248189 | BB117: 0.01007248189 | BC117: 0.01007248189 | BD117: 0.01007248189 | BE117: =EXP(-A_Lambda1*BE$115) -> 0.01007248189 | BF117: 0.01007248189 | BG117: 0.01007248189 | BH117: 0.01007248189 | BI117: 0.01007248189 | BJ117: 0.01007248189 | BK117: 0.01007248189 | BL117: 0.01007248189 | BM117: 0.01007248189 | BN117: 0.01007248189 | BO117: 0.01007248189 | BP117: 0.01007248189 | BQ117: 0.01007248189 | BR117: 0.01007248189 | BS117: 0.01007248189 | BT117: 0.01007248189 | BU117: 0.01007248189 | BV117: 0.01007248189 | BW117: 0.01007248189 | BX117: 0.01007248189 | BY117: 0.01007248189 | BZ117: 0.01007248189 | CA117: 0.01007248189 | CB117: 0.01007248189 | CC117: 0.01007248189 | CD117: 0.01007248189 | CE117: 0.01007248189
T118: I2 | U118: I2 | W118: 0 | X118: =I114 -> 0.7481588968 | Y118: =EXP(-A_Lambda2*Y$115) -> 0.7481588968 | Z118: 0.7481588968 | AA118: 0.7481588968 | AB118: 0.7481588968 | AC118: 0.7481588968 | AD118: 0.7481588968 | AE118: 0.7481588968 | AF118: 0.7481588968 | AG118: 0.7481588968 | AH118: 0.7481588968 | AI118: 0.7481588968 | AJ118: 0.7481588968 | AK118: 0.7481588968 | AL118: 0.7481588968 | AM118: 0.7481588968 | AN118: 0.7481588968 | AO118: 0.7481588968 | AP118: 0.7481588968 | AQ118: 0.7481588968 | AR118: 0.7481588968 | AS118: 0.7481588968 | AT118: 0.7481588968 | AU118: 0.7481588968 | AV118: 0.7481588968 | AW118: 0.7481588968 | AX118: 0.7481588968 | AY118: 0.7481588968 | AZ118: 0.7481588968 | BA118: 0.7481588968 | BB118: 0.7481588968 | BC118: 0.7481588968 | BD118: 0.7481588968 | BE118: =EXP(-A_Lambda2*BE$115) -> 0.7481588968 | BF118: 0.7481588968 | BG118: 0.7481588968 | BH118: 0.7481588968 | BI118: 0.7481588968 | BJ118: 0.7481588968 | BK118: 0.7481588968 | BL118: 0.7481588968 | BM118: 0.7481588968 | BN118: 0.7481588968 | BO118: 0.7481588968 | BP118: 0.7481588968 | BQ118: 0.7481588968 | BR118: 0.7481588968 | BS118: 0.7481588968 | BT118: 0.7481588968 | BU118: 0.7481588968 | BV118: 0.7481588968 | BW118: 0.7481588968 | BX118: 0.7481588968 | BY118: 0.7481588968 | BZ118: 0.7481588968 | CA118: 0.7481588968 | CB118: 0.7481588968 | CC118: 0.7481588968 | CD118: 0.7481588968 | CE118: 0.7481588968
T119: I3 | U119: I3 | W119: 0 | X119: =J114 -> 0.9817564987 | Y119: =EXP(-A_Lambda3*Y$115) -> 0.9817564987 | Z119: 0.9817564987 | AA119: 0.9817564987 | AB119: 0.9817564987 | AC119: 0.9817564987 | AD119: 0.9817564987 | AE119: 0.9817564987 | AF119: 0.9817564987 | AG119: 0.9817564987 | AH119: 0.9817564987 | AI119: 0.9817564987 | AJ119: 0.9817564987 | AK119: 0.9817564987 | AL119: 0.9817564987 | AM119: 0.9817564987 | AN119: 0.9817564987 | AO119: 0.9817564987 | AP119: 0.9817564987 | AQ119: 0.9817564987 | AR119: 0.9817564987 | AS119: 0.9817564987 | AT119: 0.9817564987 | AU119: 0.9817564987 | AV119: 0.9817564987 | AW119: 0.9817564987 | AX119: 0.9817564987 | AY119: 0.9817564987 | AZ119: 0.9817564987 | BA119: 0.9817564987 | BB119: 0.9817564987 | BC119: 0.9817564987 | BD119: 0.9817564987 | BE119: =EXP(-A_Lambda3*BE$115) -> 0.9817564987 | BF119: 0.9817564987 | BG119: 0.9817564987 | BH119: 0.9817564987 | BI119: 0.9817564987 | BJ119: 0.9817564987 | BK119: 0.9817564987 | BL119: 0.9817564987 | BM119: 0.9817564987 | BN119: 0.9817564987 | BO119: 0.9817564987 | BP119: 0.9817564987 | BQ119: 0.9817564987 | BR119: 0.9817564987 | BS119: 0.9817564987 | BT119: 0.9817564987 | BU119: 0.9817564987 | BV119: 0.9817564987 | BW119: 0.9817564987 | BX119: 0.9817564987 | BY119: 0.9817564987 | BZ119: 0.9817564987 | CA119: 0.9817564987 | CB119: 0.9817564987 | CC119: 0.9817564987 | CD119: 0.9817564987 | CE119: 0.9817564987
T120: I4 | U120: I4 | W120: 0 | X120: =K114 -> 0.02571455932 | Y120: =EXP(-A_Lambda4*Y$115) -> 0.02571455932 | Z120: 0.02571455932 | AA120: 0.02571455932 | AB120: 0.02571455932 | AC120: 0.02571455932 | AD120: 0.02571455932 | AE120: 0.02571455932 | AF120: 0.02571455932 | AG120: 0.02571455932 | AH120: 0.02571455932 | AI120: 0.02571455932 | AJ120: 0.02571455932 | AK120: 0.02571455932 | AL120: 0.02571455932 | AM120: 0.02571455932 | AN120: 0.02571455932 | AO120: 0.02571455932 | AP120: 0.02571455932 | AQ120: 0.02571455932 | AR120: 0.02571455932 | AS120: 0.02571455932 | AT120: 0.02571455932 | AU120: 0.02571455932 | AV120: 0.02571455932 | AW120: 0.02571455932 | AX120: 0.02571455932 | AY120: 0.02571455932 | AZ120: 0.02571455932 | BA120: 0.02571455932 | BB120: 0.02571455932 | BC120: 0.02571455932 | BD120: 0.02571455932 | BE120: =EXP(-A_Lambda4*BE$115) -> 0.02571455932 | BF120: 0.02571455932 | BG120: 0.02571455932 | BH120: 0.02571455932 | BI120: 0.02571455932 | BJ120: 0.02571455932 | BK120: 0.02571455932 | BL120: 0.02571455932 | BM120: 0.02571455932 | BN120: 0.02571455932 | BO120: 0.02571455932 | BP120: 0.02571455932 | BQ120: 0.02571455932 | BR120: 0.02571455932 | BS120: 0.02571455932 | BT120: 0.02571455932 | BU120: 0.02571455932 | BV120: 0.02571455932 | BW120: 0.02571455932 | BX120: 0.02571455932 | BY120: 0.02571455932 | BZ120: 0.02571455932 | CA120: 0.02571455932 | CB120: 0.02571455932 | CC120: 0.02571455932 | CD120: 0.02571455932 | CE120: 0.02571455932
T121: PState1 | U121: PState1 | W121: 0 | X121: =L114 -> 0 | Y121: =X121*Y117+(1-Y117)*Y$116*A_PCoef1 -> 0 | Z121: 0 | AA121: 0 | AB121: 0 | AC121: 0 | AD121: 0 | AE121: 0 | AF121: 0 | AG121: 0 | AH121: 0 | AI121: 0 | AJ121: 0 | AK121: 0 | AL121: 0 | AM121: 0 | AN121: 0 | AO121: 0 | AP121: 0 | AQ121: 0 | AR121: 0 | AS121: 0 | AT121: 0 | AU121: 0 | AV121: 0 | AW121: 0 | AX121: 0 | AY121: 0 | AZ121: 0 | BA121: 0 | BB121: 0 | BC121: 0 | BD121: 0 | BE121: =BD121*BE117+(1-BE117)*BE$116*A_PCoef1 -> 0 | BF121: 0 | BG121: 0 | BH121: 0 | BI121: 0 | BJ121: 0 | BK121: 0 | BL121: 0 | BM121: 0 | BN121: 0 | BO121: 0 | BP121: 0 | BQ121: 0 | BR121: 0 | BS121: 0 | BT121: 0 | BU121: 0 | BV121: 0 | BW121: 0 | BX121: 0 | BY121: 0 | BZ121: 0 | CA121: 0 | CB121: 0 | CC121: 0 | CD121: 0 | CE121: 0
T122: PState2 | U122: PState2 | W122: 0 | X122: =M114 -> 0 | Y122: =X122*Y118+(1-Y118)*Y$116*A_PCoef2 -> 0 | Z122: 0 | AA122: 0 | AB122: 0 | AC122: 0 | AD122: 0 | AE122: 0 | AF122: 0 | AG122: 0 | AH122: 0 | AI122: 0 | AJ122: 0 | AK122: 0 | AL122: 0 | AM122: 0 | AN122: 0 | AO122: 0 | AP122: 0 | AQ122: 0 | AR122: 0 | AS122: 0 | AT122: 0 | AU122: 0 | AV122: 0 | AW122: 0 | AX122: 0 | AY122: 0 | AZ122: 0 | BA122: 0 | BB122: 0 | BC122: 0 | BD122: 0 | BE122: =BD122*BE118+(1-BE118)*BE$116*A_PCoef2 -> 0 | BF122: 0 | BG122: 0 | BH122: 0 | BI122: 0 | BJ122: 0 | BK122: 0 | BL122: 0 | BM122: 0 | BN122: 0 | BO122: 0 | BP122: 0 | BQ122: 0 | BR122: 0 | BS122: 0 | BT122: 0 | BU122: 0 | BV122: 0 | BW122: 0 | BX122: 0 | BY122: 0 | BZ122: 0 | CA122: 0 | CB122: 0 | CC122: 0 | CD122: 0 | CE122: 0
T123: PState3 | U123: PState3 | W123: 0 | X123: =N114 -> 0 | Y123: =X123*Y119+(1-Y119)*Y$116*A_PCoef3 -> 0 | Z123: 0 | AA123: 0 | AB123: 0 | AC123: 0 | AD123: 0 | AE123: 0 | AF123: 0 | AG123: 0 | AH123: 0 | AI123: 0 | AJ123: 0 | AK123: 0 | AL123: 0 | AM123: 0 | AN123: 0 | AO123: 0 | AP123: 0 | AQ123: 0 | AR123: 0 | AS123: 0 | AT123: 0 | AU123: 0 | AV123: 0 | AW123: 0 | AX123: 0 | AY123: 0 | AZ123: 0 | BA123: 0 | BB123: 0 | BC123: 0 | BD123: 0 | BE123: =BD123*BE119+(1-BE119)*BE$116*A_PCoef3 -> 0 | BF123: 0 | BG123: 0 | BH123: 0 | BI123: 0 | BJ123: 0 | BK123: 0 | BL123: 0 | BM123: 0 | BN123: 0 | BO123: 0 | BP123: 0 | BQ123: 0 | BR123: 0 | BS123: 0 | BT123: 0 | BU123: 0 | BV123: 0 | BW123: 0 | BX123: 0 | BY123: 0 | BZ123: 0 | CA123: 0 | CB123: 0 | CC123: 0 | CD123: 0 | CE123: 0
T124: eState1 | U124: eState1 | W124: 0 | X124: =O114 -> 0 | Y124: =X124*Y117+(1-Y117)*Y$116*A_ECoef1 -> 0 | Z124: 0 | AA124: 0 | AB124: 0 | AC124: 0 | AD124: 0 | AE124: 0 | AF124: 0 | AG124: 0 | AH124: 0 | AI124: 0 | AJ124: 0 | AK124: 0 | AL124: 0 | AM124: 0 | AN124: 0 | AO124: 0 | AP124: 0 | AQ124: 0 | AR124: 0 | AS124: 0 | AT124: 0 | AU124: 0 | AV124: 0 | AW124: 0 | AX124: 0 | AY124: 0 | AZ124: 0 | BA124: 0 | BB124: 0 | BC124: 0 | BD124: 0 | BE124: =BD124*BE117+(1-BE117)*BE$116*A_ECoef1 -> 0 | BF124: 0 | BG124: 0 | BH124: 0 | BI124: 0 | BJ124: 0 | BK124: 0 | BL124: 0 | BM124: 0 | BN124: 0 | BO124: 0 | BP124: 0 | BQ124: 0 | BR124: 0 | BS124: 0 | BT124: 0 | BU124: 0 | BV124: 0 | BW124: 0 | BX124: 0 | BY124: 0 | BZ124: 0 | CA124: 0 | CB124: 0 | CC124: 0 | CD124: 0 | CE124: 0
T125: eState2 | U125: eState2 | W125: 0 | X125: =P114 -> 0 | Y125: =X125*Y118+(1-Y118)*Y$116*A_ECoef2 -> 0 | Z125: 0 | AA125: 0 | AB125: 0 | AC125: 0 | AD125: 0 | AE125: 0 | AF125: 0 | AG125: 0 | AH125: 0 | AI125: 0 | AJ125: 0 | AK125: 0 | AL125: 0 | AM125: 0 | AN125: 0 | AO125: 0 | AP125: 0 | AQ125: 0 | AR125: 0 | AS125: 0 | AT125: 0 | AU125: 0 | AV125: 0 | AW125: 0 | AX125: 0 | AY125: 0 | AZ125: 0 | BA125: 0 | BB125: 0 | BC125: 0 | BD125: 0 | BE125: =BD125*BE118+(1-BE118)*BE$116*A_ECoef2 -> 0 | BF125: 0 | BG125: 0 | BH125: 0 | BI125: 0 | BJ125: 0 | BK125: 0 | BL125: 0 | BM125: 0 | BN125: 0 | BO125: 0 | BP125: 0 | BQ125: 0 | BR125: 0 | BS125: 0 | BT125: 0 | BU125: 0 | BV125: 0 | BW125: 0 | BX125: 0 | BY125: 0 | BZ125: 0 | CA125: 0 | CB125: 0 | CC125: 0 | CD125: 0 | CE125: 0
T126: eState3 | U126: eState3 | W126: 0 | X126: =Q114 -> 0 | Y126: =X126*Y119+(1-Y119)*Y$116*A_ECoef3 -> 0 | Z126: 0 | AA126: 0 | AB126: 0 | AC126: 0 | AD126: 0 | AE126: 0 | AF126: 0 | AG126: 0 | AH126: 0 | AI126: 0 | AJ126: 0 | AK126: 0 | AL126: 0 | AM126: 0 | AN126: 0 | AO126: 0 | AP126: 0 | AQ126: 0 | AR126: 0 | AS126: 0 | AT126: 0 | AU126: 0 | AV126: 0 | AW126: 0 | AX126: 0 | AY126: 0 | AZ126: 0 | BA126: 0 | BB126: 0 | BC126: 0 | BD126: 0 | BE126: =BD126*BE119+(1-BE119)*BE$116*A_ECoef3 -> 0 | BF126: 0 | BG126: 0 | BH126: 0 | BI126: 0 | BJ126: 0 | BK126: 0 | BL126: 0 | BM126: 0 | BN126: 0 | BO126: 0 | BP126: 0 | BQ126: 0 | BR126: 0 | BS126: 0 | BT126: 0 | BU126: 0 | BV126: 0 | BW126: 0 | BX126: 0 | BY126: 0 | BZ126: 0 | CA126: 0 | CB126: 0 | CC126: 0 | CD126: 0 | CE126: 0
T127: eState4 | U127: eState4 | W127: 0 | X127: =R114 -> 0 | Y127: =X127*Y120+(1-Y120)*Y$116*A_ECoef4 -> 0 | Z127: 0 | AA127: 0 | AB127: 0 | AC127: 0 | AD127: 0 | AE127: 0 | AF127: 0 | AG127: 0 | AH127: 0 | AI127: 0 | AJ127: 0 | AK127: 0 | AL127: 0 | AM127: 0 | AN127: 0 | AO127: 0 | AP127: 0 | AQ127: 0 | AR127: 0 | AS127: 0 | AT127: 0 | AU127: 0 | AV127: 0 | AW127: 0 | AX127: 0 | AY127: 0 | AZ127: 0 | BA127: 0 | BB127: 0 | BC127: 0 | BD127: 0 | BE127: =BD127*BE120+(1-BE120)*BE$116*A_ECoef4 -> 0 | BF127: 0 | BG127: 0 | BH127: 0 | BI127: 0 | BJ127: 0 | BK127: 0 | BL127: 0 | BM127: 0 | BN127: 0 | BO127: 0 | BP127: 0 | BQ127: 0 | BR127: 0 | BS127: 0 | BT127: 0 | BU127: 0 | BV127: 0 | BW127: 0 | BX127: 0 | BY127: 0 | BZ127: 0 | CA127: 0 | CB127: 0 | CC127: 0 | CD127: 0 | CE127: 0

Sheet Remi (hidden)
C4: Document n. | F4: 001/006 002 002 | K4: Revision | M4: 1.01
A6: Rugloop II© Remifentanil calculations validation
A7: Drug model: Remifentanil Minto
A9: This spreadsheet will calculate the resulting Cp & Ce, starting from the Vc-k41, and the infused volume. Fill in the boxed rectangles, and you are ready to compare the concentration as calculated by your program with the values as calculated by the spreadsheet.
A12: REMARK: this spreadsheet is for information purpose only, and should NOT be used to derive therapeutical decisions! This file is delivered AS IS, without guarantee for reliability.
A15: Reference from the literature : Minto et al.: Anesthesiology 1997, 86, 10 - 33 Additional : k41 = 0.595 – 0.007*(age – 40) (reference : Minto et al.: Anesthesiology 1997, 86, 10 - 33)
A20: Revision history
D21: Rev. | E21: Description | I21: ORG | J21: CHK | K21: APP | L21: Date (dd/mm/yy)
D22: 1 | E22: Release | I22: TDS | L22: 2002-02-01
D23: 1.01 | E23: Update with references | I23: TDS | L23: 2002-02-07
A34: Procedure: | C34: * Fill in the yellow-colored boxes with your patient's weight, age,…
C37: * Fill in the orange boxes with the Time, infused volume, cp & ce series from your RGL file for remifentanil. You can use either the time column in 25ms units (RGLII format) or the time column. Only the latter one will be used, and contains by default the formula to calculate the time from the first column.
C40: * The time intervals do not have to be constant. The only relevant thing is that the time entered and the infused volume entered match. E.g. : Time 0s -> infused volume 0ml ; T = 10s-> infused volume 1.5ml; T = 15s -> infused volume 2ml; … The spreadsheet will recalculate the corresponding infusion rates to get Cp & Ce
C43: * Important remark: when entering time, … data, make sure to leave the first row (which is read-only) and that your first entered line has infused volume zero. This will give the correct offset; otherwise, the first interval will not be correct, and the calculations will be wrong as well.
C46: * The spreadsheet will calculate the realised Cp & Ce values at the entered time, using the model specified. Use the columns Cp, calculated & Ce, calculated to read the calculated Cp & Ce for this specific model.
C49: * if you also have the already calculated Cp & Ce but, for example, if you wanted to verify two different models for the same drug, you can enter them as well in the specified orange columns for Cp & Ce. The spreadsheet will then immedicately give you the procentual difference between your own calculations & the results calculated by this model in the green columns.
C52: * the fields input table, root calculation, Pcoeff calculation, Root verification & Modelling results are only for information.
C57: Unit of concentration : ng/ml
C58: Vc = 5.1 – 0.0201*(age-40)+0.072*(lbm-55)
C59: V2 = 9.82 - 0.0811*(age-40)+0.108*(lbm-55) | J59: k10 = Cl1/Vc
C60: V3 = 5.42 | J60: k12 = Cl2/Vc
C61: Cl1 = 2.6-0.0162*(age-40)+0.0191*(lbm-55) | J61: k13 = Cl3/Vc
C62: Cl2 = 2.05-0.0301*(age- 40) | J62: k21 = Cl2/Vc
C63: Cl3 = 0.076 – 0.00113*(age – 40) | J63: k31 = Cl3/Vc
J64: k41 = 0.595 – 0.007*(age – 40)
A68: Patient data
A70: Enter patient age | F70: =KPTIVA!E14 -> 40 | G70: years
A71: Enter patient weight | F71: =Poids -> 70 | G71: kg
A72: Enter patient height | F72: =KPTIVA!E18 -> 170 | G72: cm
A73: Enter patient gender | F73: =KPTIVA!E22 -> 1 | G73: (1 = MALE, 2 = FEMALE)
A74: Enter drug conc | F74: =Concentration_Remi -> 50 | G74: µg/ml
A76: Remifentanil minto | G76: ------> | J76: Schnider model K-values
E77: Male | F77: Female | K77: 0.5
A78: Lbm | C78: =IF((F73=1),E78,IF((F73=2),F78,1/0)) -> 55.29757785 | E78: =1.1*F71-128*F71/F72*F71/F72 -> 55.29757785 | F78: =1.07*F71-148*F71/F72*F71/F72 -> 49.80657439 | J78: Vc | K78: =C85 -> 5.121425606
A79: BSA | C79: =POWER(F71,0.425)*POWER(F72,0.725)*0.007184 -> 1.809707802 | J79: K10 | K79: =$C$82/R_Vc -> 0.5087809406 | L79: 1/min
A80: v2 | C80: =9.82-0.0811*(F70-40)+0.108*(C78-55) -> 9.852138408 | J80: K12 | K80: =$C$83/R_Vc -> 0.4002791718 | L80: 1/min
A81: v3 | C81: 5.42 | J81: K13 | K81: =$C$84/R_Vc -> 0.01483961808 | L81: 1/min
A82: cl1 | C82: =2.6-0.0162*(F70-40)+0.0191*(C78-55) -> 2.605683737 | J82: K21 | K82: =$C$83/$C$80 -> 0.2080766545 | L82: 1/min
A83: cl2 | C83: =2.05-0.0301*(F70-40) -> 2.05 | J83: K31 | K83: =$C$84/$C$81 -> 0.01402214022 | L83: 1/min
A84: cl3 | C84: =0.076-0.00113*(F70-40) -> 0.076 | J84: K41 | K84: =0.595-0.007*(F70-40) -> 0.595 | L84: 1/min
A85: Vc | C85: =5.1-0.0201*(F70-40)+0.072*(C78-55) -> 5.121425606
A86: Drug conc[ug/ml] | C86: =F74 -> 50
A89: Input table | E89: Root calculation | L89: Pcoeff calculation
D90: Value | E90: K31>0 | F90: K21>0 | G90: Else | I90: K31>0 | J90: K21>0 | K90: Else | M90: K31>0 | N90: K21>0 | O90: Else
A91: Vc | C91: =K78 -> 5.121425606 | D91: a0 | E91: =R_K10*R_K21*R_K31 -> 6.872499947e-09 | F91: =R_K10*R_K21 -> 2.940706556e-05 | G91: _ | H91: PCoef1 | I91: =(R_K21-R_Lambda1)*(R_K31-R_Lambda1)/(R_Lambda1-R_Lambda2)/(R_Lambda1-R_Lambda3)/R_Vc/R_Lambda1 -> 10.15298389 | J91: =(R_K21-R_Lambda1)/(R_Lambda2-R_Lambda1)/R_Vc/R_Lambda1 -> 10.15731485 | K91: =1/R_Vc/R_Lambda1 -> 11.41924864 | L91: ECoef1 | M91: =R_PCoef1/(R_K41-R_Lambda1)*R_K41 -> -14.01818336 | N91: =J91/(R_K41-R_Lambda1)*R_K41 -> -14.0241631 | O91: =K91/(R_K41-R_Lambda1)*R_K41 -> -15.76650993
A92: K10 | C92: =K79/60 -> 0.008479682344 | D92: a1 | E92: =R_K10*R_K31+R_K21*R_K31+R_K21*R_K13+R_K10*R_K21+R_K31*R_K12 -> 3.461607292e-05 | F92: =(R_K10+R_K12+R_K21) -> 0.01861894612 | G92: _ | H92: PCoef2 | I92: =(R_K21-R_Lambda2)*(R_K31-R_Lambda2)/(R_Lambda2-R_Lambda1)/(R_Lambda2-R_Lambda3)/R_Vc/R_Lambda2 -> 12.10390687 | J92: =(R_K21-R_Lambda2)/(R_Lambda1-R_Lambda2)/R_Vc/R_Lambda2 -> 12.16042459 | K92: 0 | L92: ECoef2 | M92: =R_PCoef2/(R_K41-R_Lambda2)*R_K41 -> 14.74170409 | N92: =J92/(R_K41-R_Lambda2)*R_K41 -> 14.81053869 | O92: 0
A93: K12 | C93: 0.006671319531 | D93: a2 | E93: =R_K10+R_K12+R_K13+R_K31+R_K21 -> 0.01909997542 | F93: _ | G93: _ | H93: PCoef3 | I93: =(R_K21-R_Lambda3)*(R_K31-R_Lambda3)/(R_Lambda3-R_Lambda2)/(R_Lambda3-R_Lambda1)/R_Vc/R_Lambda3 -> 0.7696949905 | J93: 0 | K93: 0 | L93: ECoef3 | M93: =R_PCoef3/(R_K41-R_Lambda3)*R_K41 -> 0.7876866609 | N93: 0 | O93: 0
A94: K13 | C94: 0.000247326968 | D94: p | E94: =R_a1-(R_a2*R_a2/3) -> -8.698694746e-05 | F94: _ | G94: _ | L94: ECoef4 | M94: =(R_K41-R_K21)*(R_K41-R_K31)/(R_Lambda1-R_K41)/(R_Lambda2-R_K41)/(R_Lambda3-R_K41)/R_Vc -> 21.51537835 | N94: =(R_K21-R_K41)/(R_Lambda1-R_K41)/(R_Lambda2-R_K41)/R_Vc -> 21.53136385 | O94: =1/(R_Lambda1-R_K41)/R_Vc -> 27.18575856
A95: K21 | C95: 0.003467944242 | D95: q | E95: =(2*R_a2*R_a2*R_a2/27)-(R_a1*R_a2/3)+R_a0 -> 3.026203861e-07 | F95: _ | G95: _
A96: K31 | C96: 0.000233702337 | D96: r1 | E96: =SQRT(-(R_p*R_p*R_p)/27) -> 1.561346357e-07 | F96: _ | G96: _
A97: K41 | C97: 0.009916666667 | E97: =(MIN(MAX(-R_q/2/R_r1,-1),1)) -> -0.9691007532 | J97: Modelling results
D98: Phi | E98: =(ACOS(MIN(MAX((-R_q/2)/R_r1,-1),1)))/3 -> 0.9641183408 | F98: _ | G98: _ | J98: Lambda1 | K98: =IF(R_K31>0,E103,IF(R_K21>0,F103,G103)) -> 0.01709903504
A99: Root verification | D99: r1_Use | E99: =2*EXP(LN(R_r1)/3) -> 0.01076952165 | F99: _ | G99: _ | J99: Lambda2 | K99: =IF(R_K31>0,E104,IF(R_K21>0,F104,G104)) -> 0.001774432293
A100: L1 | B100: =(POWER(-E100,3)+POWER(E100,2)*R_a2-E100*R_a1+R_a0)<0.000000000000001 -> TRUE | C100: =POWER(F100,2)-R__a1*F100+R__a0 -> 0 | D100: L1 | E100: =-(COS(R_Phi)*R_r1_Use-R_a2/3) -> 0.000226508086 | F100: =-(-R__a1+SQRT(R__a1*R__a1-4*R__a0))/2 -> 0.00174249063 | G100: =R_K10 -> 0.008479682344 | J100: Lambda3 | K100: =IF(R_K31>0,E105,IF(R_K21>0,F105,G105)) -> 0.000226508086
A101: L2 | B101: =(POWER(-E101,3)+POWER(E101,2)*R_a2-E101*R_a1+R_a0)<0.000000000000001 -> TRUE | C101: =POWER(F101,2)-F101*R__a1+R__a0 -> 0 | D101: L2 | E101: =-(COS(R_Phi+PI()*2/3)*R_r1_Use-R_a2/3) -> 0.01709903504 | F101: =-(-R__a1-SQRT(R__a1*R__a1-4*R__a0))/2 -> 0.01687645549 | G101: 0 | J101: Lambda4 | K101: =R_K41 -> 0.009916666667
A102: L3 | B102: =(POWER(-E102,3)+POWER(E102,2)*R_a2-E102*R_a1+R_a0)<0.000000000000001 -> TRUE | D102: L3 | E102: =-(COS(R_Phi+PI()*4/3)*R_r1_Use-R_a2/3) -> 0.001774432293 | F102: 0 | G102: 0 | J102: PCoef1 | K102: =IF(R_K31>0,I91,IF(R_K21>0,J91,K91)) -> 10.15298389
D103: L1_SORT | E103: =MAX(MAX(E100,E101),E102) -> 0.01709903504 | F103: =MAX(MAX(F100,F101),F102) -> 0.01687645549 | G103: =MAX(MAX(G100,G101),G102) -> 0.008479682344 | J103: PCoef2 | K103: =IF(R_K31>0,I92,IF(R_K21>0,J92,K92)) -> 12.10390687
D104: L2_SORT | E104: =IF(AND(E103<>E100,E105<>E100),E100,IF(AND(E103<>E101,E105<>E101),E101,E102)) -> 0.001774432293 | F104: =IF(AND(F103<>F100,F105<>F100),F100,IF(AND(F103<>F101,F105<>F101),F101,F102)) -> 0.00174249063 | G104: =IF(AND(G103<>G100,G105<>G100),G100,IF(AND(G103<>G101,G105<>G101),G101,G102)) -> 0 | J104: PCoef3 | K104: =IF(R_K31>0,I93,IF(R_K21>0,J93,K93)) -> 0.7696949905
D105: L3_SORT | E105: =MIN(MIN(E100,E101),E102) -> 0.000226508086 | F105: =MIN(MIN(F100,F101),F102) -> 0 | G105: =MIN(MIN(G100,G101),G102) -> 0 | J105: ECoef1 | K105: =IF(R_K31>0,M91,IF(R_K21>0,N91,O91)) -> -14.01818336
J106: ECoef2 | K106: =IF(R_K31>0,M92,IF(R_K21>0,N92,O92)) -> 14.74170409
J107: ECoef3 | K107: =IF(R_K31>0,M93,IF(R_K21>0,N93,O93)) -> 0.7876866609
J108: ECoef4 | K108: =IF(R_K31>0,M94,IF(R_K21>0,N94,O94)) -> 21.51537835
A110: Time | B110: Time | C110: Infused volume | D110: Cp, calculated | E110: Ce,calculated | F110: DeltaTime | G110: InfusionRate | H110: I1 | I110: I2 | J110: I3 | K110: I4 | L110: PState1 | M110: PState2 | N110: PState3 | O110: eState1 | P110: eState2 | Q110: eState3 | R110: eState4 | T110: Time | U110: MIN | V110: 0 | W110: 5 | X110: 10 | Y110: 15 | Z110: 20 | AA110: 25 | AB110: 30 | AC110: 35 | AD110: 40 | AE110: 45 | AF110: 50 | AG110: 55 | AH110: 60 | AI110: 65 | AJ110: 70 | AK110: 75 | AL110: 80 | AM110: 85 | AN110: 90 | AO110: 95 | AP110: 100 | AQ110: 105 | AR110: 110 | AS110: 115 | AT110: 120 | AU110: 125 | AV110: 130 | AW110: 135 | AX110: 140 | AY110: 145 | AZ110: 150 | BA110: 155 | BB110: 160 | BC110: 165 | BD110: 170 | BE110: 175 | BF110: 180 | BG110: 185 | BH110: 190 | BI110: 195 | BJ110: 200 | BK110: 205 | BL110: 210 | BM110: 215 | BN110: 220 | BO110: 225 | BP110: 230 | BQ110: 235 | BR110: 240 | BS110: 245 | BT110: 250 | BU110: 255 | BV110: 260 | BW110: 265 | BX110: 270 | BY110: 275 | BZ110: 280 | CA110: 285 | CB110: 290 | CC110: 295 | CD110: 300
A111: MIN | B111: s | C111: mls | D111: ng/ml | E111: ng/ml | F111: DeltaTime,s | G111: InfusionRate, amt/s | H111: I1 | I111: I2 | J111: I3 | K111: I4 | L111: PState1 | M111: PState2 | N111: PState3 | O111: eState1 | P111: eState2 | Q111: eState3 | R111: eState4 | T111: Time | U111: s | V111: 0 | W111: =W110*60 -> 300 | X111: =X110*60 -> 600 | Y111: =Y110*60 -> 900 | Z111: 1200 | AA111: 1500 | AB111: 1800 | AC111: 2100 | AD111: 2400 | AE111: 2700 | AF111: 3000 | AG111: 3300 | AH111: 3600 | AI111: 3900 | AJ111: 4200 | AK111: 4500 | AL111: 4800 | AM111: 5100 | AN111: 5400 | AO111: 5700 | AP111: 6000 | AQ111: 6300 | AR111: 6600 | AS111: 6900 | AT111: 7200 | AU111: 7500 | AV111: 7800 | AW111: 8100 | AX111: 8400 | AY111: 8700 | AZ111: 9000 | BA111: 9300 | BB111: 9600 | BC111: 9900 | BD111: 10200 | BE111: 10500 | BF111: 10800 | BG111: 11100 | BH111: 11400 | BI111: 11700 | BJ111: 12000 | BK111: 12300 | BL111: 12600 | BM111: 12900 | BN111: 13200 | BO111: 13500 | BP111: 13800 | BQ111: 14100 | BR111: 14400 | BS111: 14700 | BT111: 15000 | BU111: 15300 | BV111: 15600 | BW111: 15900 | BX111: 16200 | BY111: 16500 | BZ111: 16800 | CA111: 17100 | CB111: 17400 | CC111: 17700 | CD111: 18000
T112: Infused volume | U112: mls | V112: 0 | W112: =KPTIVA!K55 -> 0 | X112: =KPTIVA!L55 -> 0 | Y112: =KPTIVA!M55 -> 0 | Z112: =KPTIVA!N55 -> 0 | AA112: =KPTIVA!O55 -> 0 | AB112: =KPTIVA!P55 -> 0 | AC112: =KPTIVA!Q55 -> 0 | AD112: =KPTIVA!R55 -> 0 | AE112: =KPTIVA!S55 -> 0 | AF112: =KPTIVA!T55 -> 0 | AG112: =KPTIVA!U55 -> 0 | AH112: =KPTIVA!V55 -> 0 | AI112: =KPTIVA!W55 -> 0 | AJ112: =KPTIVA!X55 -> 0 | AK112: =KPTIVA!Y55 -> 0 | AL112: =KPTIVA!Z55 -> 0 | AM112: =KPTIVA!AA55 -> 0 | AN112: =KPTIVA!AB55 -> 0 | AO112: =KPTIVA!AC55 -> 0 | AP112: =KPTIVA!AD55 -> 0 | AQ112: =KPTIVA!AE55 -> 0 | AR112: =KPTIVA!AF55 -> 0 | AS112: =KPTIVA!AG55 -> 0 | AT112: =KPTIVA!AH55 -> 0 | AU112: =KPTIVA!AI55 -> 0 | AV112: =KPTIVA!AJ55 -> 0 | AW112: =KPTIVA!AK55 -> 0 | AX112: =KPTIVA!AL55 -> 0 | AY112: =KPTIVA!AM55 -> 0 | AZ112: =KPTIVA!AN55 -> 0 | BA112: =KPTIVA!AO55 -> 0 | BB112: =KPTIVA!AP55 -> 0 | BC112: =KPTIVA!AQ55 -> 0 | BD112: =KPTIVA!AR55 -> 0 | BE112: =KPTIVA!AS55 -> 0 | BF112: =KPTIVA!AT55 -> 0 | BG112: =KPTIVA!AU55 -> 0 | BH112: =KPTIVA!AV55 -> 0 | BI112: =KPTIVA!AW55 -> 0 | BJ112: =KPTIVA!AX55 -> 0 | BK112: =KPTIVA!AY55 -> 0 | BL112: =KPTIVA!AZ55 -> 0 | BM112: =KPTIVA!BA55 -> 0 | BN112: =KPTIVA!BB55 -> 0 | BO112: =KPTIVA!BC55 -> 0 | BP112: =KPTIVA!BD55 -> 0 | BQ112: =KPTIVA!BE55 -> 0 | BR112: =KPTIVA!BF55 -> 0 | BS112: =KPTIVA!BG55 -> 0 | BT112: =KPTIVA!BH55 -> 0 | BU112: =KPTIVA!BI55 -> 0 | BV112: =KPTIVA!BJ55 -> 0 | BW112: =KPTIVA!BK55 -> 0 | BX112: =KPTIVA!BL55 -> 0 | BY112: =KPTIVA!BM55 -> 0 | BZ112: =KPTIVA!BN55 -> 0 | CA112: =KPTIVA!BO55 -> 0 | CB112: =KPTIVA!BP55 -> 0 | CC112: =KPTIVA!BQ55 -> 0 | CD112: =KPTIVA!BR55 -> 0
A113: 0 | B113: 0 | C113: 0 | D113: 0 | E113: 0 | F113: 0 | G113: 0 | H113: 0 | I113: 0 | J113: 0 | K113: 0 | L113: 0 | M113: 0 | N113: 0 | O113: 0 | P113: 0 | Q113: 0 | R113: 0 | T113: Cp, calculated | U113: ng/ml | V113: 0 | W113: =D114 -> 0 | X113: =X121+X122+X123 -> 0 | Y113: =Y121+Y122+Y123 -> 0 | Z113: 0 | AA113: 0 | AB113: 0 | AC113: 0 | AD113: 0 | AE113: 0 | AF113: 0 | AG113: 0 | AH113: 0 | AI113: 0 | AJ113: 0 | AK113: 0 | AL113: 0 | AM113: 0 | AN113: 0 | AO113: 0 | AP113: 0 | AQ113: 0 | AR113: 0 | AS113: 0 | AT113: 0 | AU113: 0 | AV113: 0 | AW113: 0 | AX113: 0 | AY113: 0 | AZ113: 0 | BA113: 0 | BB113: 0 | BC113: 0 | BD113: 0 | BE113: 0 | BF113: 0 | BG113: 0 | BH113: 0 | BI113: 0 | BJ113: 0 | BK113: 0 | BL113: 0 | BM113: 0 | BN113: 0 | BO113: 0 | BP113: 0 | BQ113: 0 | BR113: 0 | BS113: 0 | BT113: 0 | BU113: 0 | BV113: 0 | BW113: 0 | BX113: 0 | BY113: 0 | BZ113: 0 | CA113: 0 | CB113: 0 | CC113: 0 | CD113: 0
A114: 5 | B114: =A114*60 -> 300 | C114: =KPTIVA!K55 -> 0 | D114: =L114+M114+N114 -> 0 | E114: =O114+P114+Q114+R114 -> 0 | F114: =B114-B113 -> 300 | G114: =(C114-C113)/F114*$C$86 -> 0 | H114: =EXP(-R_Lambda1*$F114) -> 0.005918273489 | I114: =EXP(-R_Lambda2*$F114) -> 0.5872352999 | J114: =EXP(-R_Lambda3*$F114) -> 0.9343049213 | K114: =EXP(-R_Lambda4*$F114) -> 0.051047434 | L114: =L113*H114+(1-H114)*$G114*R_PCoef1 -> 0 | M114: =M113*I114+(1-I114)*$G114*R_PCoef2 -> 0 | N114: =N113*J114+(1-J114)*$G114*R_PCoef3 -> 0 | O114: =O113*H114+(1-H114)*$G114*R_ECoef1 -> 0 | P114: =P113*I114+(1-I114)*$G114*R_R_ECoef2 -> 0 | Q114: =Q113*J114+(1-J114)*$G114*R_R_ECoef3 -> 0 | R114: =R113*K114+(1-K114)*$G114*R_R_ECoef4 -> 0 | T114: Ce,calculated | U114: ng/ml | V114: 0 | W114: =E114 -> 0 | X114: =X124+X125+X126+X127 -> 0 | Y114: =Y124+Y125+Y126+Y127 -> 0 | Z114: 0 | AA114: 0 | AB114: 0 | AC114: 0 | AD114: 0 | AE114: 0 | AF114: 0 | AG114: 0 | AH114: 0 | AI114: 0 | AJ114: 0 | AK114: 0 | AL114: 0 | AM114: 0 | AN114: 0 | AO114: 0 | AP114: 0 | AQ114: 0 | AR114: 0 | AS114: 0 | AT114: 0 | AU114: 0 | AV114: 0 | AW114: 0 | AX114: 0 | AY114: 0 | AZ114: 0 | BA114: 0 | BB114: 0 | BC114: 0 | BD114: 0 | BE114: 0 | BF114: 0 | BG114: 0 | BH114: 0 | BI114: 0 | BJ114: 0 | BK114: 0 | BL114: 0 | BM114: 0 | BN114: 0 | BO114: 0 | BP114: 0 | BQ114: 0 | BR114: 0 | BS114: 0 | BT114: 0 | BU114: 0 | BV114: 0 | BW114: 0 | BX114: 0 | BY114: 0 | BZ114: 0 | CA114: 0 | CB114: 0 | CC114: 0 | CD114: 0
A115: 10 | B115: 600 | D115: =L115+M115+N115 -> 0 | E115: =O115+P115+Q115+R115 -> 0 | F115: =B115-B114 -> 300 | G115: =(C115-C114)/F115*$C$86 -> 0 | H115: =EXP(-R_Lambda1*$F115) -> 0.005918273489 | I115: =EXP(-R_Lambda2*$F115) -> 0.5872352999 | J115: =EXP(-R_Lambda3*$F115) -> 0.9343049213 | K115: =EXP(-R_Lambda4*$F115) -> 0.051047434 | L115: =L114*H115+(1-H115)*$G115*R_PCoef1 -> 0 | M115: =M114*I115+(1-I115)*$G115*R_PCoef2 -> 0 | N115: =N114*J115+(1-J115)*$G115*R_PCoef3 -> 0 | O115: =O114*H115+(1-H115)*$G115*R_ECoef1 -> 0 | P115: =P114*I115+(1-I115)*$G115*R_R_ECoef2 -> 0 | Q115: =Q114*J115+(1-J115)*$G115*R_R_ECoef3 -> 0 | R115: =R114*K115+(1-K115)*$G115*R_R_ECoef4 -> 0 | T115: DeltaTime | U115: DeltaTime,s | V115: 0 | W115: =F114 -> 300 | X115: =X111-W111 -> 300 | Y115: =Y111-X111 -> 300 | Z115: 300 | AA115: 300 | AB115: 300 | AC115: 300 | AD115: 300 | AE115: 300 | AF115: 300 | AG115: 300 | AH115: 300 | AI115: 300 | AJ115: 300 | AK115: 300 | AL115: 300 | AM115: 300 | AN115: 300 | AO115: 300 | AP115: 300 | AQ115: 300 | AR115: 300 | AS115: 300 | AT115: 300 | AU115: 300 | AV115: 300 | AW115: 300 | AX115: 300 | AY115: 300 | AZ115: 300 | BA115: 300 | BB115: 300 | BC115: 300 | BD115: 300 | BE115: 300 | BF115: 300 | BG115: 300 | BH115: 300 | BI115: 300 | BJ115: 300 | BK115: 300 | BL115: 300 | BM115: 300 | BN115: 300 | BO115: 300 | BP115: 300 | BQ115: 300 | BR115: 300 | BS115: 300 | BT115: 300 | BU115: 300 | BV115: 300 | BW115: 300 | BX115: 300 | BY115: 300 | BZ115: 300 | CA115: 300 | CB115: 300 | CC115: 300 | CD115: 300
T116: InfusionRate | U116: InfusionRate, amt/s | V116: 0 | W116: =G114 -> 0 | X116: =(X112-W112)/X115*$C$86 -> 0 | Y116: =(Y112-X112)/Y115*$C$86 -> 0 | Z116: 0 | AA116: 0 | AB116: 0 | AC116: 0 | AD116: 0 | AE116: 0 | AF116: 0 | AG116: 0 | AH116: 0 | AI116: 0 | AJ116: 0 | AK116: 0 | AL116: 0 | AM116: 0 | AN116: 0 | AO116: 0 | AP116: 0 | AQ116: 0 | AR116: 0 | AS116: 0 | AT116: 0 | AU116: 0 | AV116: 0 | AW116: 0 | AX116: 0 | AY116: 0 | AZ116: 0 | BA116: 0 | BB116: 0 | BC116: 0 | BD116: 0 | BE116: 0 | BF116: 0 | BG116: 0 | BH116: 0 | BI116: 0 | BJ116: 0 | BK116: 0 | BL116: 0 | BM116: 0 | BN116: 0 | BO116: 0 | BP116: 0 | BQ116: 0 | BR116: 0 | BS116: 0 | BT116: 0 | BU116: 0 | BV116: 0 | BW116: 0 | BX116: 0 | BY116: 0 | BZ116: 0 | CA116: 0 | CB116: 0 | CC116: 0 | CD116: 0
T117: I1 | U117: I1 | V117: 0 | W117: =H114 -> 0.005918273489 | X117: =EXP(-R_Lambda1*X$115) -> 0.005918273489 | Y117: 0.005918273489 | Z117: 0.005918273489 | AA117: 0.005918273489 | AB117: 0.005918273489 | AC117: 0.005918273489 | AD117: 0.005918273489 | AE117: 0.005918273489 | AF117: 0.005918273489 | AG117: 0.005918273489 | AH117: 0.005918273489 | AI117: 0.005918273489 | AJ117: 0.005918273489 | AK117: 0.005918273489 | AL117: 0.005918273489 | AM117: 0.005918273489 | AN117: 0.005918273489 | AO117: 0.005918273489 | AP117: 0.005918273489 | AQ117: 0.005918273489 | AR117: 0.005918273489 | AS117: 0.005918273489 | AT117: 0.005918273489 | AU117: 0.005918273489 | AV117: 0.005918273489 | AW117: 0.005918273489 | AX117: 0.005918273489 | AY117: 0.005918273489 | AZ117: 0.005918273489 | BA117: 0.005918273489 | BB117: 0.005918273489 | BC117: 0.005918273489 | BD117: =EXP(-R_Lambda1*BD$115) -> 0.005918273489 | BE117: 0.005918273489 | BF117: 0.005918273489 | BG117: 0.005918273489 | BH117: 0.005918273489 | BI117: 0.005918273489 | BJ117: 0.005918273489 | BK117: 0.005918273489 | BL117: 0.005918273489 | BM117: 0.005918273489 | BN117: 0.005918273489 | BO117: 0.005918273489 | BP117: 0.005918273489 | BQ117: 0.005918273489 | BR117: 0.005918273489 | BS117: 0.005918273489 | BT117: 0.005918273489 | BU117: 0.005918273489 | BV117: 0.005918273489 | BW117: 0.005918273489 | BX117: 0.005918273489 | BY117: 0.005918273489 | BZ117: 0.005918273489 | CA117: 0.005918273489 | CB117: 0.005918273489 | CC117: 0.005918273489 | CD117: 0.005918273489
T118: I2 | U118: I2 | V118: 0 | W118: =I114 -> 0.5872352999 | X118: =EXP(-R_Lambda2*X$115) -> 0.5872352999 | Y118: 0.5872352999 | Z118: 0.5872352999 | AA118: 0.5872352999 | AB118: 0.5872352999 | AC118: 0.5872352999 | AD118: 0.5872352999 | AE118: 0.5872352999 | AF118: 0.5872352999 | AG118: 0.5872352999 | AH118: 0.5872352999 | AI118: 0.5872352999 | AJ118: 0.5872352999 | AK118: 0.5872352999 | AL118: 0.5872352999 | AM118: 0.5872352999 | AN118: 0.5872352999 | AO118: 0.5872352999 | AP118: 0.5872352999 | AQ118: 0.5872352999 | AR118: 0.5872352999 | AS118: 0.5872352999 | AT118: 0.5872352999 | AU118: 0.5872352999 | AV118: 0.5872352999 | AW118: 0.5872352999 | AX118: 0.5872352999 | AY118: 0.5872352999 | AZ118: 0.5872352999 | BA118: 0.5872352999 | BB118: 0.5872352999 | BC118: 0.5872352999 | BD118: =EXP(-R_Lambda2*BD$115) -> 0.5872352999 | BE118: 0.5872352999 | BF118: 0.5872352999 | BG118: 0.5872352999 | BH118: 0.5872352999 | BI118: 0.5872352999 | BJ118: 0.5872352999 | BK118: 0.5872352999 | BL118: 0.5872352999 | BM118: 0.5872352999 | BN118: 0.5872352999 | BO118: 0.5872352999 | BP118: 0.5872352999 | BQ118: 0.5872352999 | BR118: 0.5872352999 | BS118: 0.5872352999 | BT118: 0.5872352999 | BU118: 0.5872352999 | BV118: 0.5872352999 | BW118: 0.5872352999 | BX118: 0.5872352999 | BY118: 0.5872352999 | BZ118: 0.5872352999 | CA118: 0.5872352999 | CB118: 0.5872352999 | CC118: 0.5872352999 | CD118: 0.5872352999
T119: I3 | U119: I3 | V119: 0 | W119: =J114 -> 0.9343049213 | X119: =EXP(-R_Lambda3*X$115) -> 0.9343049213 | Y119: 0.9343049213 | Z119: 0.9343049213 | AA119: 0.9343049213 | AB119: 0.9343049213 | AC119: 0.9343049213 | AD119: 0.9343049213 | AE119: 0.9343049213 | AF119: 0.9343049213 | AG119: 0.9343049213 | AH119: 0.9343049213 | AI119: 0.9343049213 | AJ119: 0.9343049213 | AK119: 0.9343049213 | AL119: 0.9343049213 | AM119: 0.9343049213 | AN119: 0.9343049213 | AO119: 0.9343049213 | AP119: 0.9343049213 | AQ119: 0.9343049213 | AR119: 0.9343049213 | AS119: 0.9343049213 | AT119: 0.9343049213 | AU119: 0.9343049213 | AV119: 0.9343049213 | AW119: 0.9343049213 | AX119: 0.9343049213 | AY119: 0.9343049213 | AZ119: 0.9343049213 | BA119: 0.9343049213 | BB119: 0.9343049213 | BC119: 0.9343049213 | BD119: =EXP(-R_Lambda3*BD$115) -> 0.9343049213 | BE119: 0.9343049213 | BF119: 0.9343049213 | BG119: 0.9343049213 | BH119: 0.9343049213 | BI119: 0.9343049213 | BJ119: 0.9343049213 | BK119: 0.9343049213 | BL119: 0.9343049213 | BM119: 0.9343049213 | BN119: 0.9343049213 | BO119: 0.9343049213 | BP119: 0.9343049213 | BQ119: 0.9343049213 | BR119: 0.9343049213 | BS119: 0.9343049213 | BT119: 0.9343049213 | BU119: 0.9343049213 | BV119: 0.9343049213 | BW119: 0.9343049213 | BX119: 0.9343049213 | BY119: 0.9343049213 | BZ119: 0.9343049213 | CA119: 0.9343049213 | CB119: 0.9343049213 | CC119: 0.9343049213 | CD119: 0.9343049213
T120: I4 | U120: I4 | V120: 0 | W120: =K114 -> 0.051047434 | X120: =EXP(-R_Lambda4*X$115) -> 0.051047434 | Y120: 0.051047434 | Z120: 0.051047434 | AA120: 0.051047434 | AB120: 0.051047434 | AC120: 0.051047434 | AD120: 0.051047434 | AE120: 0.051047434 | AF120: 0.051047434 | AG120: 0.051047434 | AH120: 0.051047434 | AI120: 0.051047434 | AJ120: 0.051047434 | AK120: 0.051047434 | AL120: 0.051047434 | AM120: 0.051047434 | AN120: 0.051047434 | AO120: 0.051047434 | AP120: 0.051047434 | AQ120: 0.051047434 | AR120: 0.051047434 | AS120: 0.051047434 | AT120: 0.051047434 | AU120: 0.051047434 | AV120: 0.051047434 | AW120: 0.051047434 | AX120: 0.051047434 | AY120: 0.051047434 | AZ120: 0.051047434 | BA120: 0.051047434 | BB120: 0.051047434 | BC120: 0.051047434 | BD120: =EXP(-R_Lambda4*BD$115) -> 0.051047434 | BE120: 0.051047434 | BF120: 0.051047434 | BG120: 0.051047434 | BH120: 0.051047434 | BI120: 0.051047434 | BJ120: 0.051047434 | BK120: 0.051047434 | BL120: 0.051047434 | BM120: 0.051047434 | BN120: 0.051047434 | BO120: 0.051047434 | BP120: 0.051047434 | BQ120: 0.051047434 | BR120: 0.051047434 | BS120: 0.051047434 | BT120: 0.051047434 | BU120: 0.051047434 | BV120: 0.051047434 | BW120: 0.051047434 | BX120: 0.051047434 | BY120: 0.051047434 | BZ120: 0.051047434 | CA120: 0.051047434 | CB120: 0.051047434 | CC120: 0.051047434 | CD120: 0.051047434
T121: PState1 | U121: PState1 | V121: 0 | W121: =L114 -> 0 | X121: =W121*X117+(1-X117)*X$116*R_PCoef1 -> 0 | Y121: 0 | Z121: 0 | AA121: 0 | AB121: 0 | AC121: 0 | AD121: 0 | AE121: 0 | AF121: 0 | AG121: 0 | AH121: 0 | AI121: 0 | AJ121: 0 | AK121: 0 | AL121: 0 | AM121: 0 | AN121: 0 | AO121: 0 | AP121: 0 | AQ121: 0 | AR121: 0 | AS121: 0 | AT121: 0 | AU121: 0 | AV121: 0 | AW121: 0 | AX121: 0 | AY121: 0 | AZ121: 0 | BA121: 0 | BB121: 0 | BC121: 0 | BD121: =BC121*BD117+(1-BD117)*BD$116*R_PCoef1 -> 0 | BE121: 0 | BF121: 0 | BG121: 0 | BH121: 0 | BI121: 0 | BJ121: 0 | BK121: 0 | BL121: 0 | BM121: 0 | BN121: 0 | BO121: 0 | BP121: 0 | BQ121: 0 | BR121: 0 | BS121: 0 | BT121: 0 | BU121: 0 | BV121: 0 | BW121: 0 | BX121: 0 | BY121: 0 | BZ121: 0 | CA121: 0 | CB121: 0 | CC121: 0 | CD121: 0
T122: PState2 | U122: PState2 | V122: 0 | W122: =M114 -> 0 | X122: =W122*X118+(1-X118)*X$116*R_PCoef2 -> 0 | Y122: 0 | Z122: 0 | AA122: 0 | AB122: 0 | AC122: 0 | AD122: 0 | AE122: 0 | AF122: 0 | AG122: 0 | AH122: 0 | AI122: 0 | AJ122: 0 | AK122: 0 | AL122: 0 | AM122: 0 | AN122: 0 | AO122: 0 | AP122: 0 | AQ122: 0 | AR122: 0 | AS122: 0 | AT122: 0 | AU122: 0 | AV122: 0 | AW122: 0 | AX122: 0 | AY122: 0 | AZ122: 0 | BA122: 0 | BB122: 0 | BC122: 0 | BD122: =BC122*BD118+(1-BD118)*BD$116*R_PCoef2 -> 0 | BE122: 0 | BF122: 0 | BG122: 0 | BH122: 0 | BI122: 0 | BJ122: 0 | BK122: 0 | BL122: 0 | BM122: 0 | BN122: 0 | BO122: 0 | BP122: 0 | BQ122: 0 | BR122: 0 | BS122: 0 | BT122: 0 | BU122: 0 | BV122: 0 | BW122: 0 | BX122: 0 | BY122: 0 | BZ122: 0 | CA122: 0 | CB122: 0 | CC122: 0 | CD122: 0
T123: PState3 | U123: PState3 | V123: 0 | W123: =N114 -> 0 | X123: =W123*X119+(1-X119)*X$116*R_PCoef3 -> 0 | Y123: 0 | Z123: 0 | AA123: 0 | AB123: 0 | AC123: 0 | AD123: 0 | AE123: 0 | AF123: 0 | AG123: 0 | AH123: 0 | AI123: 0 | AJ123: 0 | AK123: 0 | AL123: 0 | AM123: 0 | AN123: 0 | AO123: 0 | AP123: 0 | AQ123: 0 | AR123: 0 | AS123: 0 | AT123: 0 | AU123: 0 | AV123: 0 | AW123: 0 | AX123: 0 | AY123: 0 | AZ123: 0 | BA123: 0 | BB123: 0 | BC123: 0 | BD123: =BC123*BD119+(1-BD119)*BD$116*R_PCoef3 -> 0 | BE123: 0 | BF123: 0 | BG123: 0 | BH123: 0 | BI123: 0 | BJ123: 0 | BK123: 0 | BL123: 0 | BM123: 0 | BN123: 0 | BO123: 0 | BP123: 0 | BQ123: 0 | BR123: 0 | BS123: 0 | BT123: 0 | BU123: 0 | BV123: 0 | BW123: 0 | BX123: 0 | BY123: 0 | BZ123: 0 | CA123: 0 | CB123: 0 | CC123: 0 | CD123: 0
T124: eState1 | U124: eState1 | V124: 0 | W124: =O114 -> 0 | X124: =W124*X117+(1-X117)*X$116*R_ECoef1 -> 0 | Y124: 0 | Z124: 0 | AA124: 0 | AB124: 0 | AC124: 0 | AD124: 0 | AE124: 0 | AF124: 0 | AG124: 0 | AH124: 0 | AI124: 0 | AJ124: 0 | AK124: 0 | AL124: 0 | AM124: 0 | AN124: 0 | AO124: 0 | AP124: 0 | AQ124: 0 | AR124: 0 | AS124: 0 | AT124: 0 | AU124: 0 | AV124: 0 | AW124: 0 | AX124: 0 | AY124: 0 | AZ124: 0 | BA124: 0 | BB124: 0 | BC124: 0 | BD124: =BC124*BD117+(1-BD117)*BD$116*R_ECoef1 -> 0 | BE124: 0 | BF124: 0 | BG124: 0 | BH124: 0 | BI124: 0 | BJ124: 0 | BK124: 0 | BL124: 0 | BM124: 0 | BN124: 0 | BO124: 0 | BP124: 0 | BQ124: 0 | BR124: 0 | BS124: 0 | BT124: 0 | BU124: 0 | BV124: 0 | BW124: 0 | BX124: 0 | BY124: 0 | BZ124: 0 | CA124: 0 | CB124: 0 | CC124: 0 | CD124: 0
T125: eState2 | U125: eState2 | V125: 0 | W125: =P114 -> 0 | X125: =W125*X118+(1-X118)*X$116*R_R_ECoef2 -> 0 | Y125: 0 | Z125: 0 | AA125: 0 | AB125: 0 | AC125: 0 | AD125: 0 | AE125: 0 | AF125: 0 | AG125: 0 | AH125: 0 | AI125: 0 | AJ125: 0 | AK125: 0 | AL125: 0 | AM125: 0 | AN125: 0 | AO125: 0 | AP125: 0 | AQ125: 0 | AR125: 0 | AS125: 0 | AT125: 0 | AU125: 0 | AV125: 0 | AW125: 0 | AX125: 0 | AY125: 0 | AZ125: 0 | BA125: 0 | BB125: 0 | BC125: 0 | BD125: =BC125*BD118+(1-BD118)*BD$116*R_R_ECoef2 -> 0 | BE125: 0 | BF125: 0 | BG125: 0 | BH125: 0 | BI125: 0 | BJ125: 0 | BK125: 0 | BL125: 0 | BM125: 0 | BN125: 0 | BO125: 0 | BP125: 0 | BQ125: 0 | BR125: 0 | BS125: 0 | BT125: 0 | BU125: 0 | BV125: 0 | BW125: 0 | BX125: 0 | BY125: 0 | BZ125: 0 | CA125: 0 | CB125: 0 | CC125: 0 | CD125: 0
T126: eState3 | U126: eState3 | V126: 0 | W126: =Q114 -> 0 | X126: =W126*X119+(1-X119)*X$116*R_R_ECoef3 -> 0 | Y126: 0 | Z126: 0 | AA126: 0 | AB126: 0 | AC126: 0 | AD126: 0 | AE126: 0 | AF126: 0 | AG126: 0 | AH126: 0 | AI126: 0 | AJ126: 0 | AK126: 0 | AL126: 0 | AM126: 0 | AN126: 0 | AO126: 0 | AP126: 0 | AQ126: 0 | AR126: 0 | AS126: 0 | AT126: 0 | AU126: 0 | AV126: 0 | AW126: 0 | AX126: 0 | AY126: 0 | AZ126: 0 | BA126: 0 | BB126: 0 | BC126: 0 | BD126: =BC126*BD119+(1-BD119)*BD$116*R_R_ECoef3 -> 0 | BE126: 0 | BF126: 0 | BG126: 0 | BH126: 0 | BI126: 0 | BJ126: 0 | BK126: 0 | BL126: 0 | BM126: 0 | BN126: 0 | BO126: 0 | BP126: 0 | BQ126: 0 | BR126: 0 | BS126: 0 | BT126: 0 | BU126: 0 | BV126: 0 | BW126: 0 | BX126: 0 | BY126: 0 | BZ126: 0 | CA126: 0 | CB126: 0 | CC126: 0 | CD126: 0
T127: eState4 | U127: eState4 | V127: 0 | W127: =R114 -> 0 | X127: =W127*X120+(1-X120)*X$116*R_R_ECoef4 -> 0 | Y127: 0 | Z127: 0 | AA127: 0 | AB127: 0 | AC127: 0 | AD127: 0 | AE127: 0 | AF127: 0 | AG127: 0 | AH127: 0 | AI127: 0 | AJ127: 0 | AK127: 0 | AL127: 0 | AM127: 0 | AN127: 0 | AO127: 0 | AP127: 0 | AQ127: 0 | AR127: 0 | AS127: 0 | AT127: 0 | AU127: 0 | AV127: 0 | AW127: 0 | AX127: 0 | AY127: 0 | AZ127: 0 | BA127: 0 | BB127: 0 | BC127: 0 | BD127: =BC127*BD120+(1-BD120)*BD$116*R_R_ECoef4 -> 0 | BE127: 0 | BF127: 0 | BG127: 0 | BH127: 0 | BI127: 0 | BJ127: 0 | BK127: 0 | BL127: 0 | BM127: 0 | BN127: 0 | BO127: 0 | BP127: 0 | BQ127: 0 | BR127: 0 | BS127: 0 | BT127: 0 | BU127: 0 | BV127: 0 | BW127: 0 | BX127: 0 | BY127: 0 | BZ127: 0 | CA127: 0 | CB127: 0 | CC127: 0 | CD127: 0

Sheet KetOFA (hidden)
C4: Document n. | F4: 001/006 002 004 | K4: Revision | M4: 1
A6: Rugloop II© Ketamine calculations validation
A7: Drug model: Domino et al
A9: This spreadsheet will calculate the resulting Cp & Ce, starting from the Vc-k41, and the infused volume. Fill in the boxed rectangles, and you are ready to compare the concentration as calculated by your program with the values as calculated by the spreadsheet.
A12: REMARK: this spreadsheet is for information purpose only, and should NOT be used to derive therapeutical decisions! This file is delivered AS IS, without guarantee for reliability.
A15: Reference from the literature : Domino et al.: Clin. Pharmacol Ther 1991, 36, 645-653
A20: Revision history
D21: Rev. | E21: Description | I21: ORG | J21: CHK | K21: APP | L21: Date (dd/mm/yy)
D22: 1 | E22: Release | I22: TDS | L22: 2002-07-18
A34: Procedure: | C34: * Fill in the yellow-colored boxes with your patient's weight, age,…
C37: * Fill in the orange boxes with the Time, infused volume, cp & ce series from your RGL file for ketamine. You can use either the time column in 25ms units (RGLII format) or the time column. Only the latter one will be used, and contains by default the formula to calculate the time from the first column.
C40: * The time intervals do not have to be constant. The only relevant thing is that the time entered and the infused volume entered match. E.g. : Time 0s -> infused volume 0ml ; T = 10s-> infused volume 1.5ml; T = 15s -> infused volume 2ml; … The spreadsheet will recalculate the corresponding infusion rates to get Cp & Ce
C43: * Important remark: when entering time, … data, make sure to leave the first row (which is read-only) and that your first entered line has infused volume zero. This will give the correct offset; otherwise, the first interval will not be correct, and the calculations will be wrong as well.
C46: * The spreadsheet will calculate the realised Cp values at the entered time, using the model specified. Use the columns Cp, calculated & Ce, calculated to read the calculated Cp & Ce for this specific model.
C49: * if you also have the already calculated Cp & Ce but, for example, if you wanted to verify two different models for the same drug, you can enter them as well in the specified orange columns for Cp & Ce. The spreadsheet will then immedicately give you the procentual difference between your own calculations & the results calculated by this model in the green columns.
C52: * the fields input table, root calculation, Pcoeff calculation, Root verification & Modelling results are only for information.
C57: Unit of concentration : µg/ml
C58: Vc = 0.063*mass
A68: Patient data
A70: Enter patient weight | F70: =OFA!Poids -> 60 | G70: kg
A71: Enter drug conc | F71: =OFA!Concentration_Ketamine -> 10 | G71: mg/ml
D74: Vc | E74: =0.063*F70 -> 3.78
D75: K10 | E75: 0.438 | F75: 1/min
D76: K12 | E76: =0.592 -> 0.592 | F76: 1/min
D77: K13 | E77: =0.59 -> 0.59 | F77: 1/min
D78: K21 | E78: 0.247 | F78: 1/min
D79: K31 | E79: 0.0146 | F79: 1/min
A81: Drug conc[mg/ml] | C81: =F71 -> 10
A84: Input table | E84: Root calculation | L84: Pcoeff calculation
D85: Value | E85: K31>0 | F85: K21>0 | G85: Else | I85: K31>0 | J85: K21>0 | K85: Else
A86: Vc | C86: =E74 -> 3.78 | D86: a0 | E86: =K_K10*K_K21*K_K31 -> 7.312572222e-09 | F86: =K_K10*K_K21 -> 3.005166667e-05 | G86: _ | H86: PCoef1 | I86: =(K_K21-K_Lambda1)*(K_K31-K_Lambda1)/(K_Lambda1-K_Lambda2)/(K_Lambda1-K_Lambda3)/K_PK_Vc/K_Lambda1 -> 8.604787105 | J86: =(K_K21-K_Lambda1)/(K_Lambda2-K_Lambda1)/K_PK_Vc/K_Lambda1 -> 8.647841797 | K86: =1/K_PK_Vc/K_Lambda1 -> 9.206886765
A87: K10 | C87: =E75/60 -> 0.0073 | D87: a1 | E87: =K_K10*K_K31+K_K21*K_K31+K_K21*K_K13+K_K10*K_K21+K_K31*K_K12 -> 7.571116667e-05 | F87: =(K_K10+K_K12+K_K21) -> 0.02128333333 | G87: _ | H87: PCoef2 | I87: =(K_K21-K_Lambda2)*(K_K31-K_Lambda2)/(K_Lambda2-K_Lambda1)/(K_Lambda2-K_Lambda3)/K_PK_Vc/K_Lambda2 -> 5.987116024 | J87: =(K_K21-K_Lambda2)/(K_Lambda1-K_Lambda2)/K_PK_Vc/K_Lambda2 -> 6.361137803 | K87: 0
A88: K12 | C88: =E76/60 -> 0.009866666667 | D88: a2 | E88: =K_K10+K_K12+K_K13+K_K31+K_K21 -> 0.03136 | F88: _ | G88: _ | H88: PCoef3 | I88: =(K_K21-K_Lambda3)*(K_K31-K_Lambda3)/(K_Lambda3-K_Lambda2)/(K_Lambda3-K_Lambda1)/K_PK_Vc/K_Lambda3 -> 21.64785914 | J88: 0 | K88: 0
A89: K13 | C89: =E77/60 -> 0.009833333333 | D89: p | E89: =K_a1-(K_a2*K_a2/3) -> -0.0002521053667 | F89: _ | G89: _
A90: K21 | C90: =E78/60 -> 0.004116666667 | D90: q | E90: =(2*K_a2*K_a2*K_a2/27)-(K_a1*K_a2/3)+K_a0 -> 1.500395507e-06 | F90: _ | G90: _
A91: K31 | C91: =E79/60 -> 0.0002433333333 | D91: r1 | E91: =SQRT(-(K_p*K_p*K_p)/27) -> 7.703556179e-07 | F91: _ | G91: _ | T91: Ctrl F3 | V91: permet de renommer tous les noms d'une feuille
J92: Modelling results
D93: Phi | E93: =(ACOS(MIN(MAX((-K_q/2)/K_r1,-1),1)))/3 -> 0.9707749233 | F93: _ | G93: _ | J93: Lambda1 | K93: =IF(K_K31>0,E98,IF(K_K21>0,F98,G98)) -> 0.02873395441
A94: Root verification | D94: r1_Use | E94: =2*EXP(LN(K_r1)/3) -> 0.01833413453 | F94: _ | G94: _ | J94: Lambda2 | K94: =IF(K_K31>0,E99,IF(K_K21>0,F99,G99)) -> 0.002525267197
A95: L1 | B95: =(POWER(-E95,3)+POWER(E95,2)*K_a2-E95*K_a1+K_a0)<0.000000000000001 -> TRUE | C95: =POWER(F95,2)-K__a1*F95+K__a0 -> 0 | D95: L1 | E95: =-(COS(K_Phi)*K_r1_Use-K_a2/3) -> 0.0001007783939 | F95: =-(-K__a1+SQRT(K__a1*K__a1-4*K__a0))/2 -> 0.001520624907 | G95: =K_K10 -> 0.0073 | J95: Lambda3 | K95: =IF(K_K31>0,E100,IF(K_K21>0,F100,G100)) -> 0.0001007783939
A96: L2 | B96: =(POWER(-E96,3)+POWER(E96,2)*K_a2-E96*K_a1+K_a0)<0.000000000000001 -> TRUE | C96: =POWER(F96,2)-F96*K__a1+K__a0 -> 0 | D96: L2 | E96: =-(COS(K_Phi+PI()*2/3)*K_r1_Use-K_a2/3) -> 0.02873395441 | F96: =-(-K__a1-SQRT(K__a1*K__a1-4*K__a0))/2 -> 0.01976270843 | G96: 0
A97: L3 | B97: =(POWER(-E97,3)+POWER(E97,2)*K_a2-E97*K_a1+K_a0)<0.000000000000001 -> TRUE | D97: L3 | E97: =-(COS(K_Phi+PI()*4/3)*K_r1_Use-K_a2/3) -> 0.002525267197 | F97: 0 | G97: 0 | J97: PCoef1 | K97: =IF(K_K31>0,I86,IF(K_K21>0,J86,K86)) -> 8.604787105 | V97: Colonne des zéros
D98: L1_SORT | E98: =MAX(MAX(E95,E96),E97) -> 0.02873395441 | F98: =MAX(MAX(F95,F96),F97) -> 0.01976270843 | G98: =MAX(MAX(G95,G96),G97) -> 0.0073 | J98: PCoef2 | K98: =IF(K_K31>0,I87,IF(K_K21>0,J87,K87)) -> 5.987116024
D99: L2_SORT | E99: =IF(AND(E98<>E95,E100<>E95),E95,IF(AND(E98<>E96,E100<>E96),E96,E97)) -> 0.002525267197 | F99: =IF(AND(F98<>F95,F100<>F95),F95,IF(AND(F98<>F96,F100<>F96),F96,F97)) -> 0.001520624907 | G99: =IF(AND(G98<>G95,G100<>G95),G95,IF(AND(G98<>G96,G100<>G96),G96,G97)) -> 0 | J99: PCoef3 | K99: =IF(K_K31>0,I88,IF(K_K21>0,J88,K88)) -> 21.64785914 | V99: Colonne liée à la première ligne de formules
D100: L3_SORT | E100: =MIN(MIN(E95,E96),E97) -> 0.0001007783939 | F100: =MIN(MIN(F95,F96),F97) -> 0 | G100: =MIN(MIN(G95,G96),G97) -> 0
V101: Première colonne de formules
V103: Les autres colonnes sont des recopies à dte
A105: Time | B105: Time | C105: Infused volume | D105: Cp, calculated | E105: DeltaTime | F105: InfusionRate | G105: I1 | H105: I2 | I105: I3 | J105: I4 | K105: PState1 | L105: PState2 | M105: PState3 | N105: eState1 | O105: eState2 | P105: eState3 | Q105: eState4 | S105: Time | T105: MINUTES | V105: 0 | W105: 5 | X105: 10 | Y105: 15 | Z105: 20 | AA105: 25 | AB105: 30 | AC105: 35 | AD105: 40 | AE105: 45 | AF105: 50 | AG105: 55 | AH105: 60 | AI105: 65 | AJ105: 70 | AK105: 75 | AL105: 80 | AM105: 85 | AN105: 90 | AO105: 95 | AP105: 100 | AQ105: 105 | AR105: 110 | AS105: 115 | AT105: 120 | AU105: 125 | AV105: 130 | AW105: 135 | AX105: 140 | AY105: 145 | AZ105: 150 | BA105: 155 | BB105: 160 | BC105: 165 | BD105: 170 | BE105: 175 | BF105: 180 | BG105: 185 | BH105: 190 | BI105: 195 | BJ105: 200 | BK105: 205 | BL105: 210 | BM105: 215 | BN105: 220 | BO105: 225 | BP105: 230 | BQ105: 235 | BR105: 240 | BS105: 245 | BT105: 250 | BU105: 255 | BV105: 260 | BW105: 265 | BX105: 270 | BY105: 275 | BZ105: 280 | CA105: 285 | CB105: 290 | CC105: 295 | CD105: 300
A106: MIN | B106: s | C106: mls | D106: µg/ml | E106: DeltaTime,s | F106: InfusionRate, amt/s | G106: I1 | H106: I2 | I106: I3 | J106: I4 | K106: PState1 | L106: PState2 | M106: PState3 | N106: eState1 | O106: eState2 | P106: eState3 | Q106: eState4 | S106: Time | T106: SECONDES | V106: =V105*60 -> 0 | W106: 300 | X106: =X105*60 -> 600 | Y106: =Y105*60 -> 900 | Z106: 1200 | AA106: 1500 | AB106: 1800 | AC106: 2100 | AD106: 2400 | AE106: 2700 | AF106: 3000 | AG106: 3300 | AH106: 3600 | AI106: 3900 | AJ106: 4200 | AK106: 4500 | AL106: 4800 | AM106: 5100 | AN106: 5400 | AO106: 5700 | AP106: 6000 | AQ106: 6300 | AR106: 6600 | AS106: 6900 | AT106: 7200 | AU106: 7500 | AV106: 7800 | AW106: 8100 | AX106: 8400 | AY106: 8700 | AZ106: 9000 | BA106: 9300 | BB106: 9600 | BC106: 9900 | BD106: 10200 | BE106: 10500 | BF106: 10800 | BG106: 11100 | BH106: 11400 | BI106: 11700 | BJ106: 12000 | BK106: 12300 | BL106: 12600 | BM106: 12900 | BN106: 13200 | BO106: 13500 | BP106: 13800 | BQ106: 14100 | BR106: 14400 | BS106: 14700 | BT106: 15000 | BU106: 15300 | BV106: 15600 | BW106: 15900 | BX106: 16200 | BY106: 16500 | BZ106: 16800 | CA106: 17100 | CB106: 17400 | CC106: 17700 | CD106: 18000
S107: Infused volume | T107: mls | V107: 0 | W107: =OFA!K32 -> 0 | X107: =OFA!L32 -> 0 | Y107: =OFA!M32 -> 0 | Z107: =OFA!N32 -> 0 | AA107: =OFA!O32 -> 0 | AB107: =OFA!P32 -> 0 | AC107: =OFA!Q32 -> 0 | AD107: =OFA!R32 -> 0 | AE107: =OFA!S32 -> 0 | AF107: =OFA!T32 -> 0 | AG107: =OFA!U32 -> 0 | AH107: =OFA!V32 -> 0 | AI107: =OFA!W32 -> 0 | AJ107: =OFA!X32 -> 0 | AK107: =OFA!Y32 -> 0 | AL107: =OFA!Z32 -> 0 | AM107: =OFA!AA32 -> 0 | AN107: =OFA!AB32 -> 0 | AO107: =OFA!AC32 -> 0 | AP107: =OFA!AD32 -> 0 | AQ107: =OFA!AE32 -> 0 | AR107: =OFA!AF32 -> 0 | AS107: =OFA!AG32 -> 0 | AT107: =OFA!AH32 -> 0 | AU107: =OFA!AI32 -> 0 | AV107: =OFA!AJ32 -> 0 | AW107: =OFA!AK32 -> 0 | AX107: =OFA!AL32 -> 0 | AY107: =OFA!AM32 -> 0 | AZ107: =OFA!AN32 -> 0 | BA107: =OFA!AO32 -> 0 | BB107: =OFA!AP32 -> 0 | BC107: =OFA!AQ32 -> 0 | BD107: =OFA!AR32 -> 0 | BE107: =OFA!AS32 -> 0 | BF107: =OFA!AT32 -> 0 | BG107: =OFA!AU32 -> 0 | BH107: =OFA!AV32 -> 0 | BI107: =OFA!AW32 -> 0 | BJ107: =OFA!AX32 -> 0 | BK107: =OFA!AY32 -> 0 | BL107: =OFA!AZ32 -> 0 | BM107: =OFA!BA32 -> 0 | BN107: =OFA!BB32 -> 0 | BO107: =OFA!BC32 -> 0 | BP107: =OFA!BD32 -> 0 | BQ107: =OFA!BE32 -> 0 | BR107: =OFA!BF32 -> 0 | BS107: =OFA!BG32 -> 0 | BT107: =OFA!BH32 -> 0 | BU107: =OFA!BI32 -> 0 | BV107: =OFA!BJ32 -> 0 | BW107: =OFA!BK32 -> 0 | BX107: =OFA!BL32 -> 0 | BY107: =OFA!BM32 -> 0 | BZ107: =OFA!BN32 -> 0 | CA107: =OFA!BO32 -> 0 | CB107: =OFA!BP32 -> 0 | CC107: =OFA!BQ32 -> 0 | CD107: =OFA!BR32 -> 0
A108: 0 | B108: =A108*60 -> 0 | C108: 0 | D108: 0 | E108: 0 | F108: 0 | G108: 0 | H108: 0 | I108: 0 | J108: 0 | K108: 0 | L108: 0 | M108: 0 | N108: 0 | O108: 0 | P108: 0 | Q108: 0 | S108: Cp, calculated | T108: µg/ml | V108: 0 | W108: =D109 -> 0 | X108: =X115+X116+X117 -> 0 | Y108: =Y115+Y116+Y117 -> 0 | Z108: 0 | AA108: 0 | AB108: 0 | AC108: 0 | AD108: 0 | AE108: 0 | AF108: 0 | AG108: 0 | AH108: 0 | AI108: 0 | AJ108: 0 | AK108: 0 | AL108: 0 | AM108: 0 | AN108: 0 | AO108: 0 | AP108: 0 | AQ108: 0 | AR108: 0 | AS108: 0 | AT108: 0 | AU108: 0 | AV108: 0 | AW108: 0 | AX108: 0 | AY108: 0 | AZ108: 0 | BA108: 0 | BB108: 0 | BC108: 0 | BD108: 0 | BE108: 0 | BF108: 0 | BG108: 0 | BH108: 0 | BI108: 0 | BJ108: 0 | BK108: 0 | BL108: 0 | BM108: 0 | BN108: 0 | BO108: 0 | BP108: 0 | BQ108: 0 | BR108: 0 | BS108: 0 | BT108: 0 | BU108: 0 | BV108: 0 | BW108: 0 | BX108: 0 | BY108: 0 | BZ108: 0 | CA108: 0 | CB108: 0 | CC108: 0 | CD108: 0
A109: 5 | B109: =A109*60 -> 300 | C109: =OFA!K32 -> 0 | D109: =K109+L109+M109 -> 0 | E109: =B109-B108 -> 300 | F109: =(C109-C108)/E109*$C$81 -> 0 | G109: =EXP(-K_Lambda1*$E109) -> 0.000180426634 | H109: =EXP(-K_Lambda2*$E109) -> 0.4687994757 | I109: =EXP(-K_Lambda3*$E109) -> 0.9702189433 | J109: =EXP(-K_Lambda4*$E109) -> 1 | K109: =K108*G109+(1-G109)*$F109*K_PCoef1 -> 0 | L109: =L108*H109+(1-H109)*$F109*K_PCoef2 -> 0 | M109: =M108*I109+(1-I109)*$F109*K_PCoef3 -> 0 | N109: =N108*G109+(1-G109)*$F109*K_ECoef1 -> 0 | O109: =O108*H109+(1-H109)*$F109*K_ECoef2 -> 0 | P109: =P108*I109+(1-I109)*$F109*K_ECoef3 -> 0 | Q109: =Q108*J109+(1-J109)*$F109*K_ECoef4 -> 0 | S109: DeltaTime | T109: DeltaTime,s | V109: 0 | W109: =E109 -> 300 | X109: =X106-W106 -> 300 | Y109: =Y106-X106 -> 300 | Z109: 300 | AA109: 300 | AB109: 300 | AC109: 300 | AD109: 300 | AE109: 300 | AF109: 300 | AG109: 300 | AH109: 300 | AI109: 300 | AJ109: 300 | AK109: 300 | AL109: 300 | AM109: 300 | AN109: 300 | AO109: 300 | AP109: 300 | AQ109: 300 | AR109: 300 | AS109: 300 | AT109: 300 | AU109: 300 | AV109: 300 | AW109: 300 | AX109: 300 | AY109: 300 | AZ109: 300 | BA109: 300 | BB109: 300 | BC109: 300 | BD109: 300 | BE109: 300 | BF109: 300 | BG109: 300 | BH109: 300 | BI109: 300 | BJ109: 300 | BK109: 300 | BL109: 300 | BM109: 300 | BN109: 300 | BO109: 300 | BP109: 300 | BQ109: 300 | BR109: 300 | BS109: 300 | BT109: 300 | BU109: 300 | BV109: 300 | BW109: 300 | BX109: 300 | BY109: 300 | BZ109: 300 | CA109: 300 | CB109: 300 | CC109: 300 | CD109: 300
A110: 10 | B110: 600 | C110: 5 | D110: =K110+L110+M110 -> 2.071381644 | E110: =B110-B109 -> 300 | F110: =(C110-C109)/E110*$C$81 -> 0.1666666667 | G110: =EXP(-K_Lambda1*$E110) -> 0.000180426634 | H110: =EXP(-K_Lambda2*$E110) -> 0.4687994757 | I110: =EXP(-K_Lambda3*$E110) -> 0.9702189433 | J110: =EXP(-K_Lambda4*$E110) -> 1 | K110: =K109*G110+(1-G110)*$F110*K_PCoef1 -> 1.433872429 | L110: =L109*H110+(1-H110)*$F110*K_PCoef2 -> 0.5300598619 | M110: =M109*I110+(1-I110)*$F110*K_PCoef3 -> 0.1074493532 | N110: =N109*G110+(1-G110)*$F110*K_ECoef1 -> 0 | O110: =O109*H110+(1-H110)*$F110*K_ECoef2 -> 0 | P110: =P109*I110+(1-I110)*$F110*K_ECoef3 -> 0 | Q110: =Q109*J110+(1-J110)*$F110*K_ECoef4 -> 0 | S110: InfusionRate | T110: InfusionRate, amt/s | V110: 0 | W110: =F109 -> 0 | X110: =(X107-W107)/X109*$C$81 -> 0 | Y110: =(Y107-X107)/Y109*$C$81 -> 0 | Z110: 0 | AA110: 0 | AB110: 0 | AC110: 0 | AD110: 0 | AE110: 0 | AF110: 0 | AG110: 0 | AH110: 0 | AI110: 0 | AJ110: 0 | AK110: 0 | AL110: 0 | AM110: 0 | AN110: 0 | AO110: 0 | AP110: 0 | AQ110: 0 | AR110: 0 | AS110: 0 | AT110: 0 | AU110: 0 | AV110: 0 | AW110: 0 | AX110: 0 | AY110: 0 | AZ110: 0 | BA110: 0 | BB110: 0 | BC110: 0 | BD110: 0 | BE110: 0 | BF110: 0 | BG110: 0 | BH110: 0 | BI110: 0 | BJ110: 0 | BK110: 0 | BL110: 0 | BM110: 0 | BN110: 0 | BO110: 0 | BP110: 0 | BQ110: 0 | BR110: 0 | BS110: 0 | BT110: 0 | BU110: 0 | BV110: 0 | BW110: 0 | BX110: 0 | BY110: 0 | BZ110: 0 | CA110: 0 | CB110: 0 | CC110: 0 | CD110: 0
S111: I1 | T111: I1 | V111: 0 | W111: =G109 -> 0.000180426634 | X111: =EXP(-K_Lambda1*X$109) -> 0.000180426634 | Y111: 0.000180426634 | Z111: 0.000180426634 | AA111: 0.000180426634 | AB111: 0.000180426634 | AC111: 0.000180426634 | AD111: 0.000180426634 | AE111: 0.000180426634 | AF111: 0.000180426634 | AG111: 0.000180426634 | AH111: 0.000180426634 | AI111: 0.000180426634 | AJ111: 0.000180426634 | AK111: 0.000180426634 | AL111: 0.000180426634 | AM111: 0.000180426634 | AN111: 0.000180426634 | AO111: 0.000180426634 | AP111: 0.000180426634 | AQ111: 0.000180426634 | AR111: 0.000180426634 | AS111: 0.000180426634 | AT111: 0.000180426634 | AU111: 0.000180426634 | AV111: 0.000180426634 | AW111: 0.000180426634 | AX111: 0.000180426634 | AY111: 0.000180426634 | AZ111: 0.000180426634 | BA111: 0.000180426634 | BB111: 0.000180426634 | BC111: 0.000180426634 | BD111: =EXP(-K_Lambda1*BD$109) -> 0.000180426634 | BE111: 0.000180426634 | BF111: 0.000180426634 | BG111: 0.000180426634 | BH111: 0.000180426634 | BI111: 0.000180426634 | BJ111: 0.000180426634 | BK111: 0.000180426634 | BL111: 0.000180426634 | BM111: 0.000180426634 | BN111: 0.000180426634 | BO111: 0.000180426634 | BP111: 0.000180426634 | BQ111: 0.000180426634 | BR111: 0.000180426634 | BS111: 0.000180426634 | BT111: 0.000180426634 | BU111: 0.000180426634 | BV111: 0.000180426634 | BW111: 0.000180426634 | BX111: 0.000180426634 | BY111: 0.000180426634 | BZ111: 0.000180426634 | CA111: 0.000180426634 | CB111: 0.000180426634 | CC111: 0.000180426634 | CD111: 0.000180426634
S112: I2 | T112: I2 | V112: 0 | W112: =H109 -> 0.4687994757 | X112: =EXP(-K_Lambda2*X$109) -> 0.4687994757 | Y112: 0.4687994757 | Z112: 0.4687994757 | AA112: 0.4687994757 | AB112: 0.4687994757 | AC112: 0.4687994757 | AD112: 0.4687994757 | AE112: 0.4687994757 | AF112: 0.4687994757 | AG112: 0.4687994757 | AH112: 0.4687994757 | AI112: 0.4687994757 | AJ112: 0.4687994757 | AK112: 0.4687994757 | AL112: 0.4687994757 | AM112: 0.4687994757 | AN112: 0.4687994757 | AO112: 0.4687994757 | AP112: 0.4687994757 | AQ112: 0.4687994757 | AR112: 0.4687994757 | AS112: 0.4687994757 | AT112: 0.4687994757 | AU112: 0.4687994757 | AV112: 0.4687994757 | AW112: 0.4687994757 | AX112: 0.4687994757 | AY112: 0.4687994757 | AZ112: 0.4687994757 | BA112: 0.4687994757 | BB112: 0.4687994757 | BC112: 0.4687994757 | BD112: =EXP(-K_Lambda2*BD$109) -> 0.4687994757 | BE112: 0.4687994757 | BF112: 0.4687994757 | BG112: 0.4687994757 | BH112: 0.4687994757 | BI112: 0.4687994757 | BJ112: 0.4687994757 | BK112: 0.4687994757 | BL112: 0.4687994757 | BM112: 0.4687994757 | BN112: 0.4687994757 | BO112: 0.4687994757 | BP112: 0.4687994757 | BQ112: 0.4687994757 | BR112: 0.4687994757 | BS112: 0.4687994757 | BT112: 0.4687994757 | BU112: 0.4687994757 | BV112: 0.4687994757 | BW112: 0.4687994757 | BX112: 0.4687994757 | BY112: 0.4687994757 | BZ112: 0.4687994757 | CA112: 0.4687994757 | CB112: 0.4687994757 | CC112: 0.4687994757 | CD112: 0.4687994757
S113: I3 | T113: I3 | V113: 0 | W113: =I109 -> 0.9702189433 | X113: =EXP(-K_Lambda3*X$109) -> 0.9702189433 | Y113: 0.9702189433 | Z113: 0.9702189433 | AA113: 0.9702189433 | AB113: 0.9702189433 | AC113: 0.9702189433 | AD113: 0.9702189433 | AE113: 0.9702189433 | AF113: 0.9702189433 | AG113: 0.9702189433 | AH113: 0.9702189433 | AI113: 0.9702189433 | AJ113: 0.9702189433 | AK113: 0.9702189433 | AL113: 0.9702189433 | AM113: 0.9702189433 | AN113: 0.9702189433 | AO113: 0.9702189433 | AP113: 0.9702189433 | AQ113: 0.9702189433 | AR113: 0.9702189433 | AS113: 0.9702189433 | AT113: 0.9702189433 | AU113: 0.9702189433 | AV113: 0.9702189433 | AW113: 0.9702189433 | AX113: 0.9702189433 | AY113: 0.9702189433 | AZ113: 0.9702189433 | BA113: 0.9702189433 | BB113: 0.9702189433 | BC113: 0.9702189433 | BD113: =EXP(-K_Lambda3*BD$109) -> 0.9702189433 | BE113: 0.9702189433 | BF113: 0.9702189433 | BG113: 0.9702189433 | BH113: 0.9702189433 | BI113: 0.9702189433 | BJ113: 0.9702189433 | BK113: 0.9702189433 | BL113: 0.9702189433 | BM113: 0.9702189433 | BN113: 0.9702189433 | BO113: 0.9702189433 | BP113: 0.9702189433 | BQ113: 0.9702189433 | BR113: 0.9702189433 | BS113: 0.9702189433 | BT113: 0.9702189433 | BU113: 0.9702189433 | BV113: 0.9702189433 | BW113: 0.9702189433 | BX113: 0.9702189433 | BY113: 0.9702189433 | BZ113: 0.9702189433 | CA113: 0.9702189433 | CB113: 0.9702189433 | CC113: 0.9702189433 | CD113: 0.9702189433
D114: la colonne Ce a été retirée | S114: I4 | T114: I4 | V114: 0 | W114: =J109 -> 1 | X114: =EXP(-K_Lambda4*X$109) -> 1 | Y114: 1 | Z114: 1 | AA114: 1 | AB114: 1 | AC114: 1 | AD114: 1 | AE114: 1 | AF114: 1 | AG114: 1 | AH114: 1 | AI114: 1 | AJ114: 1 | AK114: 1 | AL114: 1 | AM114: 1 | AN114: 1 | AO114: 1 | AP114: 1 | AQ114: 1 | AR114: 1 | AS114: 1 | AT114: 1 | AU114: 1 | AV114: 1 | AW114: 1 | AX114: 1 | AY114: 1 | AZ114: 1 | BA114: 1 | BB114: 1 | BC114: 1 | BD114: =EXP(-K_Lambda4*BD$109) -> 1 | BE114: 1 | BF114: 1 | BG114: 1 | BH114: 1 | BI114: 1 | BJ114: 1 | BK114: 1 | BL114: 1 | BM114: 1 | BN114: 1 | BO114: 1 | BP114: 1 | BQ114: 1 | BR114: 1 | BS114: 1 | BT114: 1 | BU114: 1 | BV114: 1 | BW114: 1 | BX114: 1 | BY114: 1 | BZ114: 1 | CA114: 1 | CB114: 1 | CC114: 1 | CD114: 1
S115: PState1 | T115: PState1 | V115: 0 | W115: =K109 -> 0 | X115: =W115*X111+(1-X111)*X$110*K_PCoef1 -> 0 | Y115: 0 | Z115: 0 | AA115: 0 | AB115: 0 | AC115: 0 | AD115: 0 | AE115: 0 | AF115: 0 | AG115: 0 | AH115: 0 | AI115: 0 | AJ115: 0 | AK115: 0 | AL115: 0 | AM115: 0 | AN115: 0 | AO115: 0 | AP115: 0 | AQ115: 0 | AR115: 0 | AS115: 0 | AT115: 0 | AU115: 0 | AV115: 0 | AW115: 0 | AX115: 0 | AY115: 0 | AZ115: 0 | BA115: 0 | BB115: 0 | BC115: 0 | BD115: =BC115*BD111+(1-BD111)*BD$110*K_PCoef1 -> 0 | BE115: 0 | BF115: 0 | BG115: 0 | BH115: 0 | BI115: 0 | BJ115: 0 | BK115: 0 | BL115: 0 | BM115: 0 | BN115: 0 | BO115: 0 | BP115: 0 | BQ115: 0 | BR115: 0 | BS115: 0 | BT115: 0 | BU115: 0 | BV115: 0 | BW115: 0 | BX115: 0 | BY115: 0 | BZ115: 0 | CA115: 0 | CB115: 0 | CC115: 0 | CD115: 0
S116: PState2 | T116: PState2 | V116: 0 | W116: =L109 -> 0 | X116: =W116*X112+(1-X112)*X$110*K_PCoef2 -> 0 | Y116: 0 | Z116: 0 | AA116: 0 | AB116: 0 | AC116: 0 | AD116: 0 | AE116: 0 | AF116: 0 | AG116: 0 | AH116: 0 | AI116: 0 | AJ116: 0 | AK116: 0 | AL116: 0 | AM116: 0 | AN116: 0 | AO116: 0 | AP116: 0 | AQ116: 0 | AR116: 0 | AS116: 0 | AT116: 0 | AU116: 0 | AV116: 0 | AW116: 0 | AX116: 0 | AY116: 0 | AZ116: 0 | BA116: 0 | BB116: 0 | BC116: 0 | BD116: =BC116*BD112+(1-BD112)*BD$110*K_PCoef2 -> 0 | BE116: 0 | BF116: 0 | BG116: 0 | BH116: 0 | BI116: 0 | BJ116: 0 | BK116: 0 | BL116: 0 | BM116: 0 | BN116: 0 | BO116: 0 | BP116: 0 | BQ116: 0 | BR116: 0 | BS116: 0 | BT116: 0 | BU116: 0 | BV116: 0 | BW116: 0 | BX116: 0 | BY116: 0 | BZ116: 0 | CA116: 0 | CB116: 0 | CC116: 0 | CD116: 0
S117: PState3 | T117: PState3 | V117: 0 | W117: =M109 -> 0 | X117: =W117*X113+(1-X113)*X$110*K_PCoef3 -> 0 | Y117: 0 | Z117: 0 | AA117: 0 | AB117: 0 | AC117: 0 | AD117: 0 | AE117: 0 | AF117: 0 | AG117: 0 | AH117: 0 | AI117: 0 | AJ117: 0 | AK117: 0 | AL117: 0 | AM117: 0 | AN117: 0 | AO117: 0 | AP117: 0 | AQ117: 0 | AR117: 0 | AS117: 0 | AT117: 0 | AU117: 0 | AV117: 0 | AW117: 0 | AX117: 0 | AY117: 0 | AZ117: 0 | BA117: 0 | BB117: 0 | BC117: 0 | BD117: =BC117*BD113+(1-BD113)*BD$110*K_PCoef3 -> 0 | BE117: 0 | BF117: 0 | BG117: 0 | BH117: 0 | BI117: 0 | BJ117: 0 | BK117: 0 | BL117: 0 | BM117: 0 | BN117: 0 | BO117: 0 | BP117: 0 | BQ117: 0 | BR117: 0 | BS117: 0 | BT117: 0 | BU117: 0 | BV117: 0 | BW117: 0 | BX117: 0 | BY117: 0 | BZ117: 0 | CA117: 0 | CB117: 0 | CC117: 0 | CD117: 0
S118: eState1 | T118: eState1 | V118: 0 | W118: =N109 -> 0 | X118: =W118*X111+(1-X111)*X$110*K_ECoef1 -> 0 | Y118: 0 | Z118: 0 | AA118: 0 | AB118: 0 | AC118: 0 | AD118: 0 | AE118: 0 | AF118: 0 | AG118: 0 | AH118: 0 | AI118: 0 | AJ118: 0 | AK118: 0 | AL118: 0 | AM118: 0 | AN118: 0 | AO118: 0 | AP118: 0 | AQ118: 0 | AR118: 0 | AS118: 0 | AT118: 0 | AU118: 0 | AV118: 0 | AW118: 0 | AX118: 0 | AY118: 0 | AZ118: 0 | BA118: 0 | BB118: 0 | BC118: 0 | BD118: =BC118*BD111+(1-BD111)*BD$110*K_ECoef1 -> 0 | BE118: 0 | BF118: 0 | BG118: 0 | BH118: 0 | BI118: 0 | BJ118: 0 | BK118: 0 | BL118: 0 | BM118: 0 | BN118: 0 | BO118: 0 | BP118: 0 | BQ118: 0 | BR118: 0 | BS118: 0 | BT118: 0 | BU118: 0 | BV118: 0 | BW118: 0 | BX118: 0 | BY118: 0 | BZ118: 0 | CA118: 0 | CB118: 0 | CC118: 0 | CD118: 0
S119: eState2 | T119: eState2 | V119: 0 | W119: =O109 -> 0 | X119: =W119*X112+(1-X112)*X$110*K_ECoef2 -> 0 | Y119: 0 | Z119: 0 | AA119: 0 | AB119: 0 | AC119: 0 | AD119: 0 | AE119: 0 | AF119: 0 | AG119: 0 | AH119: 0 | AI119: 0 | AJ119: 0 | AK119: 0 | AL119: 0 | AM119: 0 | AN119: 0 | AO119: 0 | AP119: 0 | AQ119: 0 | AR119: 0 | AS119: 0 | AT119: 0 | AU119: 0 | AV119: 0 | AW119: 0 | AX119: 0 | AY119: 0 | AZ119: 0 | BA119: 0 | BB119: 0 | BC119: 0 | BD119: =BC119*BD112+(1-BD112)*BD$110*K_ECoef2 -> 0 | BE119: 0 | BF119: 0 | BG119: 0 | BH119: 0 | BI119: 0 | BJ119: 0 | BK119: 0 | BL119: 0 | BM119: 0 | BN119: 0 | BO119: 0 | BP119: 0 | BQ119: 0 | BR119: 0 | BS119: 0 | BT119: 0 | BU119: 0 | BV119: 0 | BW119: 0 | BX119: 0 | BY119: 0 | BZ119: 0 | CA119: 0 | CB119: 0 | CC119: 0 | CD119: 0
S120: eState3 | T120: eState3 | V120: 0 | W120: =P109 -> 0 | X120: =W120*X113+(1-X113)*X$110*K_ECoef3 -> 0 | Y120: 0 | Z120: 0 | AA120: 0 | AB120: 0 | AC120: 0 | AD120: 0 | AE120: 0 | AF120: 0 | AG120: 0 | AH120: 0 | AI120: 0 | AJ120: 0 | AK120: 0 | AL120: 0 | AM120: 0 | AN120: 0 | AO120: 0 | AP120: 0 | AQ120: 0 | AR120: 0 | AS120: 0 | AT120: 0 | AU120: 0 | AV120: 0 | AW120: 0 | AX120: 0 | AY120: 0 | AZ120: 0 | BA120: 0 | BB120: 0 | BC120: 0 | BD120: =BC120*BD113+(1-BD113)*BD$110*K_ECoef3 -> 0 | BE120: 0 | BF120: 0 | BG120: 0 | BH120: 0 | BI120: 0 | BJ120: 0 | BK120: 0 | BL120: 0 | BM120: 0 | BN120: 0 | BO120: 0 | BP120: 0 | BQ120: 0 | BR120: 0 | BS120: 0 | BT120: 0 | BU120: 0 | BV120: 0 | BW120: 0 | BX120: 0 | BY120: 0 | BZ120: 0 | CA120: 0 | CB120: 0 | CC120: 0 | CD120: 0
S121: eState4 | T121: eState4 | V121: 0 | W121: =Q109 -> 0 | X121: =W121*X114+(1-X114)*X$110*K_ECoef4 -> 0 | Y121: 0 | Z121: 0 | AA121: 0 | AB121: 0 | AC121: 0 | AD121: 0 | AE121: 0 | AF121: 0 | AG121: 0 | AH121: 0 | AI121: 0 | AJ121: 0 | AK121: 0 | AL121: 0 | AM121: 0 | AN121: 0 | AO121: 0 | AP121: 0 | AQ121: 0 | AR121: 0 | AS121: 0 | AT121: 0 | AU121: 0 | AV121: 0 | AW121: 0 | AX121: 0 | AY121: 0 | AZ121: 0 | BA121: 0 | BB121: 0 | BC121: 0 | BD121: =BC121*BD114+(1-BD114)*BD$110*K_ECoef4 -> 0 | BE121: 0 | BF121: 0 | BG121: 0 | BH121: 0 | BI121: 0 | BJ121: 0 | BK121: 0 | BL121: 0 | BM121: 0 | BN121: 0 | BO121: 0 | BP121: 0 | BQ121: 0 | BR121: 0 | BS121: 0 | BT121: 0 | BU121: 0 | BV121: 0 | BW121: 0 | BX121: 0 | BY121: 0 | BZ121: 0 | CA121: 0 | CB121: 0 | CC121: 0 | CD121: 0

Sheet ProFA (hidden)
C4: Document n. | F4: 001/006 002 001 | K4: Revision | M4: 1.01
A6: Rugloop II© Propofol calculations validation
A7: Drug model: Propofol Schnider
A9: This spreadsheet will calculate the resulting Cp & Ce, starting from the Vc-k41, and the infused volume. Fill in the boxed rectangles, and you are ready to compare the concentration as calculated by your program with the values as calculated by the spreadsheet.
A12: REMARK: this spreadsheet is for information purpose only, and should NOT be used to derive therapeutical decisions! This file is delivered AS IS, without guarantee for reliability.
A15: Reference from the literature : Schnider et al.: Anesthesiology 1998, 88, 1170-1182 Adjustment tpeak = 1.6min: Schnider et al.: “The influence of age on propofol pharmacodynamics”, Anesthesiology, 1999, 90,1502-1516
A19: Revision history
D20: Rev. | E20: Description | I20: ORG | J20: CHK | K20: APP | L20: Date (dd/mm/yy)
D21: 1 | E21: Release | I21: TDS | L21: 2002-02-01
D22: 1.01 | E22: Update with references | I22: TDS | L22: 2002-02-07
A35: Procedure: | C35: * Fill in the yellow-colored boxes with your patient's weight, age,… REMEMBER: press the CalculateK41 button after entering your patient's data to match the k41 with the specified patient data.
C38: * Fill in the orange boxes with the Time, infused volume, cp & ce series from your RGL file for remifentanil. You can use either the time column in 25ms units (RGLII format) or the time column. Only the latter one will be used, and contains by default the formula to calculate the time from the first column.
C41: * The time intervals do not have to be constant. The only relevant thing is that the time entered and the infused volume entered match. E.g. : Time 0s -> infused volume 0ml ; T = 10s-> infused volume 1.5ml; T = 15s -> infused volume 2ml; … The spreadsheet will recalculate the corresponding infusion rates to get Cp & Ce
C44: * Important remark: when entering time, … data, make sure to leave the first row (which is read-only) and that your first entered line has infused volume zero. This will give the correct offset; otherwise, the first interval will not be correct, and the calculations will be wrong as well.
C47: * The spreadsheet will calculate the realised Cp & Ce values at the entered time, using the model specified. Use the columns Cp, calculated & Ce, calculated to read the calculated Cp & Ce for this specific model.
C50: * if you also have the already calculated Cp & Ce but, for example, if you wanted to verify two different models for the same drug, you can enter them as well in the specified orange columns for Cp & Ce. The spreadsheet will then immedicately give you the procentual difference between your own calculations & the results calculated by this model in the green columns.
C53: * the fields input table, root calculation, Pcoeff calculation, Root verification & Modelling results are only for information.
A58: Model: | C58: Unit of concentration : µg/ml
C60: Vc = 4.27
C61: V2 = 18.9 – 0.391 * (age – 53) | L61: k10 = Cl 1/ Vc
C62: V3 = 238 | L62: k12 = Cl 2/Vc
C63: Cl 1 = 1.89 + 0.0456 * (mass – 77) – 0.0681 * (lbm – 59) + 0.0264 * (height – 177) | L63: k13 = Cl 3/Vc
C64: Cl 2 = 1.29 – 0.024 * (age – 53) | L64: k21 = Cl 2/ V2
C65: Cl 3 = 0.836 | L65: k31 = Cl 3/V3
A68: Patient data | F68: Les entrées viennent de OFA
A70: Enter patient age | F70: =OFA!E14 -> 40 | G70: years
A71: Enter patient weight | F71: =OFA!Poids -> 60 | G71: kg
A72: Enter patient height | F72: =OFA!E18 -> 160 | G72: cm
A73: Enter patient gender | F73: =OFA!E22 -> 2 | G73: (1 = MALE, 2 = FEMALE)
A74: Enter drug conc | F74: =OFA!Concentration_propofol -> 10 | G74: mg/ml
A76: Schnider model covariates | G76: ------> | J76: Schnider model K-values
E77: Male | F77: Female | K77: 0.5
A78: Lbm | C78: =IF((F73=1),E78,IF((F73=2),F78,1/0)) -> 43.3875 | E78: =1.1*F71-128*F71/F72*F71/F72 -> 48 | F78: =1.07*F71-148*F71/F72*F71/F72 -> 43.3875 | J78: Vc | K78: 4.27
A79: BSA | C79: =POWER(F71,0.425)*POWER(F72,0.725)*0.007184 -> 1.622062531 | J79: K10 | K79: =$C$82/P_Vc -> 0.4049675059 | L79: 1/min
A80: v2 | C80: =18.9-0.391*(F70-53) -> 23.983 | J80: K12 | K80: =$C$83/P_Vc -> 0.375175644 | L80: 1/min
A81: v3 | C81: 238 | J81: K13 | K81: =$C$84/P_Vc -> 0.1957845433 | L81: 1/min
A82: cl1 | C82: =1.89+0.0456*(F71-77)-0.0681*(C78-59)+0.0264*(F72-177) -> 1.72921125 | J82: K21 | K82: =$C$83/$C$80 -> 0.06679731476 | L82: 1/min
A83: cl2 | C83: =1.29-0.024*(F70-53) -> 1.602 | J83: K31 | K83: =$C$84/$C$81 -> 0.003512605042 | L83: 1/min
A84: cl3 | C84: 0.836 | J84: K41 | K84: 0.3387794495 | L84: 1/min
A85: Vc | C85: 4.27
A86: Tpeak | C86: 1.6 | D86: min
A87: Drug conc[mg/ml] | C87: =F74 -> 10
A89: Input table | E89: Root calculation | L89: Pcoeff calculation | Q89: K41 determinations - estimate for tpeak.
D90: Value | E90: K31>0 | F90: K21>0 | G90: Else | I90: K31>0 | J90: K21>0 | K90: Else | M90: K31>0 | N90: K21>0 | O90: Else
A91: Vc | C91: =K78 -> 4.27 | D91: a0 | E91: =P_K10*P_K21*P_K31 -> 4.39900799e-10 | F91: =P_K10*P_K21 -> 7.514094988e-06 | G91: _ | H91: PCoef1 | I91: =(P_K21-P_Lambda1)*(P_K31-P_Lambda1)/(P_Lambda1-P_Lambda2)/(P_Lambda1-P_Lambda3)/P_Vc/P_Lambda1 -> 13.60619499 | J91: =(P_K21-P_Lambda1)/(P_Lambda2-P_Lambda1)/P_Vc/P_Lambda1 -> 13.62219742 | K91: =1/P_Vc/P_Lambda1 -> 14.00428138 | L91: ECoef1 | M91: =P_PCoef1/(P_K41-P_Lambda1)*P_K41 -> -6.935813706 | N91: =J91/(P_K41-P_Lambda1)*P_K41 -> -6.943971012 | O91: =K91/(P_K41-P_Lambda1)*P_K41 -> -7.138739879 | Q91: Table calculating dirac-impulse concentration result at time tpeak for a certain set of Kvalues
A92: K10 | C92: =K79/60 -> 0.006749458431 | D92: a1 | E92: =P_K10*P_K31+P_K21*P_K31+P_K21*P_K13+P_K10*P_K21+P_K31*P_K12 -> 1.197321974e-05 | F92: =(P_K10+P_K12+P_K21) -> 0.01411567441 | G92: _ | H92: PCoef2 | I92: =(P_K21-P_Lambda2)*(P_K31-P_Lambda2)/(P_Lambda2-P_Lambda1)/(P_Lambda2-P_Lambda3)/P_Vc/P_Lambda2 -> 9.168268533 | J92: =(P_K21-P_Lambda2)/(P_Lambda1-P_Lambda2)/P_Vc/P_Lambda2 -> 9.459540012 | K92: 0 | L92: ECoef2 | M92: =P_PCoef2/(P_K41-P_Lambda2)*P_K41 -> 10.41408933 | N92: =J92/(P_K41-P_Lambda2)*P_K41 -> 10.74493994 | O92: 0 | Q92: When the results Ceff have a peak it is what we want.
A93: K12 | C93: 0.0062529274 | D93: a2 | E93: =P_K10+P_K12+P_K13+P_K31+P_K21 -> 0.01743729355 | F93: _ | G93: _ | H93: PCoef3 | I93: =(P_K21-P_Lambda3)*(P_K31-P_Lambda3)/(P_Lambda3-P_Lambda2)/(P_Lambda3-P_Lambda1)/P_Vc/P_Lambda3 -> 11.92343704 | J93: 0 | K93: 0 | L93: ECoef3 | M93: =P_PCoef3/(P_K41-P_Lambda3)*P_K41 -> 12.00624743 | N93: 0 | O93: 0 | Q93: If the values keep increasing, k41 must increase.
A94: K13 | C94: 0.003263075722 | D94: p | E94: =P_a1-(P_a2*P_a2/3) -> -8.937984904e-05 | F94: _ | G94: _ | L94: ECoef4 | M94: =(P_K41-P_K21)*(P_K41-P_K31)/(P_Lambda1-P_K41)/(P_Lambda2-P_K41)/(P_Lambda3-P_K41)/P_Vc -> 19.2133775 | N94: =(P_K21-P_K41)/(P_Lambda1-P_K41)/(P_Lambda2-P_K41)/P_Vc -> 19.28076851 | O94: =1/(P_Lambda1-P_K41)/P_Vc -> 21.14302126 | Q94: If the values keep decreasing, k41 must decrease.
A95: K21 | C95: 0.001113288579 | D95: q | E95: =(2*P_a2*P_a2*P_a2/27)-(P_a1*P_a2/3)+P_a0 -> 3.235848767e-07 | F95: _ | G95: _ | T95: E1' | U95: E2' | V95: E3' | W95: E4'
A96: K31 | C96: 5.854341737e-05 | D96: r1 | E96: =SQRT(-(P_p*P_p*P_p)/27) -> 1.626213429e-07 | F96: _ | G96: _ | T96: =P_ECoef1*P_Lambda1 -> -0.1159868399 | U96: =P_ECoef2*P_Lambda2 -> 0.007034308071 | V96: =P_ECoef3*P_Lambda3 -> 0.0004675743273 | W96: =P_ECoef4*P_Lambda4 -> 0.1084849575
A97: K41 | C97: 0.005646324158 | E97: =(MIN(MAX(-P_q/2/P_r1,-1),1)) -> -0.9949028549 | J97: Modelling results | S97: Ceff | T97: I1' | U97: I2' | V97: I3' | W97: I4'
D98: Phi | E98: =(ACOS(MIN(MAX((-P_q/2)/P_r1,-1),1)))/3 -> 1.013527647 | F98: _ | G98: _ | J98: Lambda1 | K98: =IF(P_K31>0,E103,IF(P_K21>0,F103,G103)) -> 0.0167228886 | Q98: T1 | R98: =C86*60*0.99 -> 95.04 | S98: =T98*$T$96+U98*$U$96+V98*$V$96+W98*$W$96 -> 0.04682758789 | T98: =EXP(-P_Lambda1*$R$98) -> 0.2040595671 | U98: =EXP(-P_Lambda2*$R$98) -> 0.9378213703 | V98: =EXP(-P_Lambda3*$R$98) -> 0.9963055795 | W98: =EXP(-P_Lambda4*$R$98) -> 0.5847173868
A99: Root verification | D99: r1_Use | E99: =2*EXP(LN(P_r1)/3) -> 0.01091664473 | F99: _ | G99: _ | J99: Lambda2 | K99: =IF(P_K31>0,E104,IF(P_K21>0,F104,G104)) -> 0.0006754607001 | Q99: T2 | R99: =C86*60 -> 96 | S99: =T99*$T$96+U99*$U$96+V99*$V$96+W99*$W$96 -> 0.04685732264 | T99: =EXP(-P_Lambda1*$R$99) -> 0.2008097563 | U99: =EXP(-P_Lambda2*$R$99) -> 0.9372134444 | V99: =EXP(-P_Lambda3*$R$99) -> 0.9962683318 | W99: =EXP(-P_Lambda4*$R$99) -> 0.5815565175
A100: L1 | B100: =(POWER(-E100,3)+POWER(E100,2)*P_a2-E100*P_a1+P_a0)<0.000000000000001 -> TRUE | C100: =POWER(F100,2)-P__a1*F100+P__a0 -> 0 | D100: L1 | E100: =-(COS(P_Phi)*P_r1_Use-P_a2/3) -> 3.894425214e-05 | F100: =-(-P__a1+SQRT(P__a1*P__a1-4*P__a0))/2 -> 0.0005540712941 | G100: =P_K10 -> 0.006749458431 | J100: Lambda3 | K100: =IF(P_K31>0,E105,IF(P_K21>0,F105,G105)) -> 3.894425214e-05 | Q100: T3 | R100: =C86*60*1.01 -> 96.96 | S100: =T100*$T$96+U100*$U$96+V100*$V$96+W100*$W$96 -> 0.04688291087 | T100: =EXP(-P_Lambda1*$R$100) -> 0.1976117013 | U100: =EXP(-P_Lambda2*$R$100) -> 0.9366059125 | V100: =EXP(-P_Lambda3*$R$100) -> 0.9962310856 | W100: =EXP(-P_Lambda4*$R$100) -> 0.5784127352
A101: L2 | B101: =(POWER(-E101,3)+POWER(E101,2)*P_a2-E101*P_a1+P_a0)<0.000000000000001 -> TRUE | C101: =POWER(F101,2)-F101*P__a1+P__a0 -> -1.43995601e-20 | D101: L2 | E101: =-(COS(P_Phi+PI()*2/3)*P_r1_Use-P_a2/3) -> 0.0167228886 | F101: =-(-P__a1-SQRT(P__a1*P__a1-4*P__a0))/2 -> 0.01356160312 | G101: 0 | J101: Lambda4 | K101: =P_K41 -> 0.005646324158 | X101: Colonne des zéros
A102: L3 | B102: =(POWER(-E102,3)+POWER(E102,2)*P_a2-E102*P_a1+P_a0)<0.000000000000001 -> TRUE | D102: L3 | E102: =-(COS(P_Phi+PI()*4/3)*P_r1_Use-P_a2/3) -> 0.0006754607001 | F102: 0 | G102: 0 | J102: PCoef1 | K102: =IF(P_K31>0,I91,IF(P_K21>0,J91,K91)) -> 13.60619499
D103: L1_SORT | E103: =MAX(MAX(E100,E101),E102) -> 0.0167228886 | F103: =MAX(MAX(F100,F101),F102) -> 0.01356160312 | G103: =MAX(MAX(G100,G101),G102) -> 0.006749458431 | J103: PCoef2 | K103: =IF(P_K31>0,I92,IF(P_K21>0,J92,K92)) -> 9.168268533 | X103: Colonne liée à la première ligne de formules
D104: L2_SORT | E104: =IF(AND(E103<>E100,E105<>E100),E100,IF(AND(E103<>E101,E105<>E101),E101,E102)) -> 0.0006754607001 | F104: =IF(AND(F103<>F100,F105<>F100),F100,IF(AND(F103<>F101,F105<>F101),F101,F102)) -> 0.0005540712941 | G104: =IF(AND(G103<>G100,G105<>G100),G100,IF(AND(G103<>G101,G105<>G101),G101,G102)) -> 0 | J104: PCoef3 | K104: =IF(P_K31>0,I93,IF(P_K21>0,J93,K93)) -> 11.92343704
D105: L3_SORT | E105: =MIN(MIN(E100,E101),E102) -> 3.894425214e-05 | F105: =MIN(MIN(F100,F101),F102) -> 0 | G105: =MIN(MIN(G100,G101),G102) -> 0 | J105: ECoef1 | K105: =IF(P_K31>0,M91,IF(P_K21>0,N91,O91)) -> -6.935813706 | M105: Ctrl F3 | N105: permet de renommer tous les noms d'une feuille | X105: Première colonne de formules copiée par transposition de l'horizontale bleue
J106: ECoef2 | K106: =IF(P_K31>0,M92,IF(P_K21>0,N92,O92)) -> 10.41408933
J107: ECoef3 | K107: =IF(P_K31>0,M93,IF(P_K21>0,N93,O93)) -> 12.00624743 | X107: Les autres colonnes sont des recopies à dte
J108: ECoef4 | K108: =IF(P_K31>0,M94,IF(P_K21>0,N94,O94)) -> 19.2133775
A110: Time | B110: Time | C110: Infused volume | D110: Cp, calculated | E110: Ce,calculated | F110: DeltaTime | G110: InfusionRate | H110: I1 | I110: I2 | J110: I3 | K110: I4 | L110: PState1 | M110: PState2 | N110: PState3 | O110: eState1 | P110: eState2 | Q110: eState3 | R110: eState4 | T110: Time | U110: MINUTES | V110: 0 | W110: 5 | X110: 10 | Y110: 15 | Z110: 20 | AA110: 25 | AB110: 30 | AC110: 35 | AD110: 40 | AE110: 45 | AF110: 50 | AG110: 55 | AH110: 60 | AI110: 65 | AJ110: 70 | AK110: 75 | AL110: 80 | AM110: 85 | AN110: 90 | AO110: 95 | AP110: 100 | AQ110: 105 | AR110: 110 | AS110: 115 | AT110: 120 | AU110: 125 | AV110: 130 | AW110: 135 | AX110: 140 | AY110: 145 | AZ110: 150 | BA110: 155 | BB110: 160 | BC110: 165 | BD110: 170 | BE110: 175 | BF110: 180 | BG110: 185 | BH110: 190 | BI110: 195 | BJ110: 200 | BK110: 205 | BL110: 210 | BM110: 215 | BN110: 220 | BO110: 225 | BP110: 230 | BQ110: 235 | BR110: 240 | BS110: 245 | BT110: 250 | BU110: 255 | BV110: 260 | BW110: 265 | BX110: 270 | BY110: 275 | BZ110: 280 | CA110: 285 | CB110: 290 | CC110: 295 | CD110: 300
A111: MINUTES | B111: s | C111: mls | D111: µg/ml | E111: µg/ml | F111: DeltaTime,s | G111: InfusionRate, amt/s | H111: I1 | I111: I2 | J111: I3 | K111: I4 | L111: PState1 | M111: PState2 | N111: PState3 | O111: eState1 | P111: eState2 | Q111: eState3 | R111: eState4 | T111: Time | U111: s | V111: 0 | W111: =W110*60 -> 300 | X111: =X110*60 -> 600 | Y111: 900 | Z111: 1200 | AA111: 1500 | AB111: 1800 | AC111: 2100 | AD111: 2400 | AE111: 2700 | AF111: 3000 | AG111: 3300 | AH111: 3600 | AI111: 3900 | AJ111: 4200 | AK111: 4500 | AL111: 4800 | AM111: 5100 | AN111: 5400 | AO111: 5700 | AP111: 6000 | AQ111: 6300 | AR111: 6600 | AS111: 6900 | AT111: 7200 | AU111: 7500 | AV111: 7800 | AW111: 8100 | AX111: 8400 | AY111: 8700 | AZ111: 9000 | BA111: 9300 | BB111: 9600 | BC111: 9900 | BD111: 10200 | BE111: 10500 | BF111: 10800 | BG111: 11100 | BH111: 11400 | BI111: 11700 | BJ111: 12000 | BK111: 12300 | BL111: 12600 | BM111: 12900 | BN111: 13200 | BO111: 13500 | BP111: 13800 | BQ111: 14100 | BR111: 14400 | BS111: 14700 | BT111: 15000 | BU111: 15300 | BV111: 15600 | BW111: 15900 | BX111: 16200 | BY111: 16500 | BZ111: 16800 | CA111: 17100 | CB111: 17400 | CC111: 17700 | CD111: 18000
T112: Infused volume | U112: mls | V112: 0 | W112: =OFA!K37 -> 0 | X112: =OFA!L37 -> 0 | Y112: =OFA!M37 -> 0 | Z112: =OFA!N37 -> 0 | AA112: =OFA!O37 -> 0 | AB112: =OFA!P37 -> 0 | AC112: =OFA!Q37 -> 0 | AD112: =OFA!R37 -> 0 | AE112: =OFA!S37 -> 0 | AF112: =OFA!T37 -> 0 | AG112: =OFA!U37 -> 0 | AH112: =OFA!V37 -> 0 | AI112: =OFA!W37 -> 0 | AJ112: =OFA!X37 -> 0 | AK112: =OFA!Y37 -> 0 | AL112: =OFA!Z37 -> 0 | AM112: =OFA!AA37 -> 0 | AN112: =OFA!AB37 -> 0 | AO112: =OFA!AC37 -> 0 | AP112: =OFA!AD37 -> 0 | AQ112: =OFA!AE37 -> 0 | AR112: =OFA!AF37 -> 0 | AS112: =OFA!AG37 -> 0 | AT112: =OFA!AH37 -> 0 | AU112: =OFA!AI37 -> 0 | AV112: =OFA!AJ37 -> 0 | AW112: =OFA!AK37 -> 0 | AX112: =OFA!AL37 -> 0 | AY112: =OFA!AM37 -> 0 | AZ112: =OFA!AN37 -> 0 | BA112: =OFA!AO37 -> 0 | BB112: =OFA!AP37 -> 0 | BC112: =OFA!AQ37 -> 0 | BD112: =OFA!AR37 -> 0 | BE112: =OFA!AS37 -> 0 | BF112: =OFA!AT37 -> 0 | BG112: =OFA!AU37 -> 0 | BH112: =OFA!AV37 -> 0 | BI112: =OFA!AW37 -> 0 | BJ112: =OFA!AX37 -> 0 | BK112: =OFA!AY37 -> 0 | BL112: =OFA!AZ37 -> 0 | BM112: =OFA!BA37 -> 0 | BN112: =OFA!BB37 -> 0 | BO112: =OFA!BC37 -> 0 | BP112: =OFA!BD37 -> 0 | BQ112: =OFA!BE37 -> 0 | BR112: =OFA!BF37 -> 0 | BS112: =OFA!BG37 -> 0 | BT112: =OFA!BH37 -> 0 | BU112: =OFA!BI37 -> 0 | BV112: =OFA!BJ37 -> 0 | BW112: =OFA!BK37 -> 0 | BX112: =OFA!BL37 -> 0 | BY112: =OFA!BM37 -> 0 | BZ112: =OFA!BN37 -> 0 | CA112: =OFA!BO37 -> 0 | CB112: =OFA!BP37 -> 0 | CC112: =OFA!BQ37 -> 0 | CD112: =OFA!BR37 -> 0
A113: 0 | B113: 0 | C113: 0 | D113: 0 | E113: 0 | F113: 0 | G113: 0 | H113: 0 | I113: 0 | J113: 0 | K113: 0 | L113: 0 | M113: 0 | N113: 0 | O113: 0 | P113: 0 | Q113: 0 | R113: 0 | T113: Cp, calculated | U113: µg/ml | V113: 0 | W113: =D114 -> 0 | X113: =X121+X122+X123 -> 0 | Y113: =Y121+Y122+Y123 -> 0 | Z113: 0 | AA113: 0 | AB113: 0 | AC113: 0 | AD113: 0 | AE113: 0 | AF113: 0 | AG113: 0 | AH113: 0 | AI113: 0 | AJ113: 0 | AK113: 0 | AL113: 0 | AM113: 0 | AN113: 0 | AO113: 0 | AP113: 0 | AQ113: 0 | AR113: 0 | AS113: 0 | AT113: 0 | AU113: 0 | AV113: 0 | AW113: 0 | AX113: 0 | AY113: 0 | AZ113: 0 | BA113: 0 | BB113: 0 | BC113: 0 | BD113: 0 | BE113: 0 | BF113: 0 | BG113: 0 | BH113: 0 | BI113: 0 | BJ113: 0 | BK113: 0 | BL113: 0 | BM113: 0 | BN113: 0 | BO113: 0 | BP113: 0 | BQ113: 0 | BR113: 0 | BS113: 0 | BT113: 0 | BU113: 0 | BV113: 0 | BW113: 0 | BX113: 0 | BY113: 0 | BZ113: 0 | CA113: 0 | CB113: 0 | CC113: 0 | CD113: 0
A114: 5 | B114: =A114*60 -> 300 | C114: =OFA!K37 -> 0 | D114: =L114+M114+N114 -> 0 | E114: =O114+P114+Q114+R114 -> 0 | F114: =B114-B113 -> 300 | G114: =(C114-C113)/F114*$C$87 -> 0 | H114: =EXP(-P_Lambda1*$F114) -> 0.006625253926 | I114: =EXP(-P_Lambda2*$F114) -> 0.8165736161 | J114: =EXP(-P_Lambda3*$F114) -> 0.9883847088 | K114: =EXP(-P_Lambda4*$F114) -> 0.1838018052 | L114: =L113*H114+(1-H114)*$G114*P_PCoef1 -> 0 | M114: =M113*I114+(1-I114)*$G114*P_PCoef2 -> 0 | N114: =N113*J114+(1-J114)*$G114*P_PCoef3 -> 0 | O114: =O113*H114+(1-H114)*$G114*P_ECoef1 -> 0 | P114: =P113*I114+(1-I114)*$G114*P_ECoef2 -> 0 | Q114: =Q113*J114+(1-J114)*$G114*P_ECoef3 -> 0 | R114: =R113*K114+(1-K114)*$G114*P_ECoef4 -> 0 | T114: Ce,calculated | U114: µg/ml | V114: 0 | W114: =E114 -> 0 | X114: =X124+X125+X126+X127 -> 0 | Y114: =Y124+Y125+Y126+Y127 -> 0 | Z114: 0 | AA114: 0 | AB114: 0 | AC114: 0 | AD114: 0 | AE114: 0 | AF114: 0 | AG114: 0 | AH114: 0 | AI114: 0 | AJ114: 0 | AK114: 0 | AL114: 0 | AM114: 0 | AN114: 0 | AO114: 0 | AP114: 0 | AQ114: 0 | AR114: 0 | AS114: 0 | AT114: 0 | AU114: 0 | AV114: 0 | AW114: 0 | AX114: 0 | AY114: 0 | AZ114: 0 | BA114: 0 | BB114: 0 | BC114: 0 | BD114: 0 | BE114: 0 | BF114: 0 | BG114: 0 | BH114: 0 | BI114: 0 | BJ114: 0 | BK114: 0 | BL114: 0 | BM114: 0 | BN114: 0 | BO114: 0 | BP114: 0 | BQ114: 0 | BR114: 0 | BS114: 0 | BT114: 0 | BU114: 0 | BV114: 0 | BW114: 0 | BX114: 0 | BY114: 0 | BZ114: 0 | CA114: 0 | CB114: 0 | CC114: 0 | CD114: 0
A115: 10 | B115: =A115*60 -> 600 | C115: 20 | D115: =L115+M115+N115 -> 10.22416469 | E115: 7.227824441 | F115: =B115-B114 -> 300 | G115: =(C115-C114)/F115*$C$87 -> 0.6666666667 | H115: 0.006625253926 | I115: 0.8165736161 | J115: 0.9883847088 | K115: 0.1838018052 | L115: =L114*H115+(1-H115)*$G115*P_PCoef1 -> 9.010700328 | M115: 1.121134896 | N115: 0.09232946216 | O115: -4.593241453 | P115: 1.273479165 | Q115: 0.09297070672 | R115: 10.45461602 | T115: DeltaTime | U115: DeltaTime,s | V115: 0 | W115: =F114 -> 300 | X115: =X111-W111 -> 300 | Y115: =Y111-X111 -> 300 | Z115: 300 | AA115: 300 | AB115: 300 | AC115: 300 | AD115: 300 | AE115: 300 | AF115: 300 | AG115: 300 | AH115: 300 | AI115: 300 | AJ115: 300 | AK115: 300 | AL115: 300 | AM115: 300 | AN115: 300 | AO115: 300 | AP115: 300 | AQ115: 300 | AR115: 300 | AS115: 300 | AT115: 300 | AU115: 300 | AV115: 300 | AW115: 300 | AX115: 300 | AY115: 300 | AZ115: 300 | BA115: 300 | BB115: 300 | BC115: 300 | BD115: 300 | BE115: 300 | BF115: 300 | BG115: 300 | BH115: 300 | BI115: 300 | BJ115: 300 | BK115: 300 | BL115: 300 | BM115: 300 | BN115: 300 | BO115: 300 | BP115: 300 | BQ115: 300 | BR115: 300 | BS115: 300 | BT115: 300 | BU115: 300 | BV115: 300 | BW115: 300 | BX115: 300 | BY115: 300 | BZ115: 300 | CA115: 300 | CB115: 300 | CC115: 300 | CD115: 300
T116: InfusionRate | U116: InfusionRate, amt/s | V116: 0 | W116: =G114 -> 0 | X116: =(X112-W112)/X115*$C$87 -> 0 | Y116: =(Y112-X112)/Y115*$C$87 -> 0 | Z116: 0 | AA116: 0 | AB116: 0 | AC116: 0 | AD116: 0 | AE116: 0 | AF116: 0 | AG116: 0 | AH116: 0 | AI116: 0 | AJ116: 0 | AK116: 0 | AL116: 0 | AM116: 0 | AN116: 0 | AO116: 0 | AP116: 0 | AQ116: 0 | AR116: 0 | AS116: 0 | AT116: 0 | AU116: 0 | AV116: 0 | AW116: 0 | AX116: 0 | AY116: 0 | AZ116: 0 | BA116: 0 | BB116: 0 | BC116: 0 | BD116: 0 | BE116: 0 | BF116: 0 | BG116: 0 | BH116: 0 | BI116: 0 | BJ116: 0 | BK116: 0 | BL116: 0 | BM116: 0 | BN116: 0 | BO116: 0 | BP116: 0 | BQ116: 0 | BR116: 0 | BS116: 0 | BT116: 0 | BU116: 0 | BV116: 0 | BW116: 0 | BX116: 0 | BY116: 0 | BZ116: 0 | CA116: 0 | CB116: 0 | CC116: 0 | CD116: 0
T117: I1 | U117: I1 | V117: 0 | W117: =H114 -> 0.006625253926 | X117: =EXP(-P_Lambda1*X$115) -> 0.006625253926 | Y117: 0.006625253926 | Z117: 0.006625253926 | AA117: 0.006625253926 | AB117: 0.006625253926 | AC117: 0.006625253926 | AD117: 0.006625253926 | AE117: 0.006625253926 | AF117: 0.006625253926 | AG117: 0.006625253926 | AH117: 0.006625253926 | AI117: 0.006625253926 | AJ117: 0.006625253926 | AK117: 0.006625253926 | AL117: 0.006625253926 | AM117: 0.006625253926 | AN117: 0.006625253926 | AO117: 0.006625253926 | AP117: 0.006625253926 | AQ117: 0.006625253926 | AR117: 0.006625253926 | AS117: 0.006625253926 | AT117: 0.006625253926 | AU117: 0.006625253926 | AV117: 0.006625253926 | AW117: 0.006625253926 | AX117: 0.006625253926 | AY117: 0.006625253926 | AZ117: 0.006625253926 | BA117: 0.006625253926 | BB117: 0.006625253926 | BC117: 0.006625253926 | BD117: =EXP(-P_Lambda1*BD$115) -> 0.006625253926 | BE117: 0.006625253926 | BF117: 0.006625253926 | BG117: 0.006625253926 | BH117: 0.006625253926 | BI117: 0.006625253926 | BJ117: 0.006625253926 | BK117: 0.006625253926 | BL117: 0.006625253926 | BM117: 0.006625253926 | BN117: 0.006625253926 | BO117: 0.006625253926 | BP117: 0.006625253926 | BQ117: 0.006625253926 | BR117: 0.006625253926 | BS117: 0.006625253926 | BT117: 0.006625253926 | BU117: 0.006625253926 | BV117: 0.006625253926 | BW117: 0.006625253926 | BX117: 0.006625253926 | BY117: 0.006625253926 | BZ117: 0.006625253926 | CA117: 0.006625253926 | CB117: 0.006625253926 | CC117: 0.006625253926 | CD117: 0.006625253926
B118: 4 colonnes ont été retirées (comparaisons) | T118: I2 | U118: I2 | V118: 0 | W118: =I114 -> 0.8165736161 | X118: =EXP(-P_Lambda2*X$115) -> 0.8165736161 | Y118: 0.8165736161 | Z118: 0.8165736161 | AA118: 0.8165736161 | AB118: 0.8165736161 | AC118: 0.8165736161 | AD118: 0.8165736161 | AE118: 0.8165736161 | AF118: 0.8165736161 | AG118: 0.8165736161 | AH118: 0.8165736161 | AI118: 0.8165736161 | AJ118: 0.8165736161 | AK118: 0.8165736161 | AL118: 0.8165736161 | AM118: 0.8165736161 | AN118: 0.8165736161 | AO118: 0.8165736161 | AP118: 0.8165736161 | AQ118: 0.8165736161 | AR118: 0.8165736161 | AS118: 0.8165736161 | AT118: 0.8165736161 | AU118: 0.8165736161 | AV118: 0.8165736161 | AW118: 0.8165736161 | AX118: 0.8165736161 | AY118: 0.8165736161 | AZ118: 0.8165736161 | BA118: 0.8165736161 | BB118: 0.8165736161 | BC118: 0.8165736161 | BD118: =EXP(-P_Lambda2*BD$115) -> 0.8165736161 | BE118: 0.8165736161 | BF118: 0.8165736161 | BG118: 0.8165736161 | BH118: 0.8165736161 | BI118: 0.8165736161 | BJ118: 0.8165736161 | BK118: 0.8165736161 | BL118: 0.8165736161 | BM118: 0.8165736161 | BN118: 0.8165736161 | BO118: 0.8165736161 | BP118: 0.8165736161 | BQ118: 0.8165736161 | BR118: 0.8165736161 | BS118: 0.8165736161 | BT118: 0.8165736161 | BU118: 0.8165736161 | BV118: 0.8165736161 | BW118: 0.8165736161 | BX118: 0.8165736161 | BY118: 0.8165736161 | BZ118: 0.8165736161 | CA118: 0.8165736161 | CB118: 0.8165736161 | CC118: 0.8165736161 | CD118: 0.8165736161
T119: I3 | U119: I3 | V119: 0 | W119: =J114 -> 0.9883847088 | X119: =EXP(-P_Lambda3*X$115) -> 0.9883847088 | Y119: 0.9883847088 | Z119: 0.9883847088 | AA119: 0.9883847088 | AB119: 0.9883847088 | AC119: 0.9883847088 | AD119: 0.9883847088 | AE119: 0.9883847088 | AF119: 0.9883847088 | AG119: 0.9883847088 | AH119: 0.9883847088 | AI119: 0.9883847088 | AJ119: 0.9883847088 | AK119: 0.9883847088 | AL119: 0.9883847088 | AM119: 0.9883847088 | AN119: 0.9883847088 | AO119: 0.9883847088 | AP119: 0.9883847088 | AQ119: 0.9883847088 | AR119: 0.9883847088 | AS119: 0.9883847088 | AT119: 0.9883847088 | AU119: 0.9883847088 | AV119: 0.9883847088 | AW119: 0.9883847088 | AX119: 0.9883847088 | AY119: 0.9883847088 | AZ119: 0.9883847088 | BA119: 0.9883847088 | BB119: 0.9883847088 | BC119: 0.9883847088 | BD119: =EXP(-P_Lambda3*BD$115) -> 0.9883847088 | BE119: 0.9883847088 | BF119: 0.9883847088 | BG119: 0.9883847088 | BH119: 0.9883847088 | BI119: 0.9883847088 | BJ119: 0.9883847088 | BK119: 0.9883847088 | BL119: 0.9883847088 | BM119: 0.9883847088 | BN119: 0.9883847088 | BO119: 0.9883847088 | BP119: 0.9883847088 | BQ119: 0.9883847088 | BR119: 0.9883847088 | BS119: 0.9883847088 | BT119: 0.9883847088 | BU119: 0.9883847088 | BV119: 0.9883847088 | BW119: 0.9883847088 | BX119: 0.9883847088 | BY119: 0.9883847088 | BZ119: 0.9883847088 | CA119: 0.9883847088 | CB119: 0.9883847088 | CC119: 0.9883847088 | CD119: 0.9883847088
T120: I4 | U120: I4 | V120: 0 | W120: =K114 -> 0.1838018052 | X120: =EXP(-P_Lambda4*X$115) -> 0.1838018052 | Y120: 0.1838018052 | Z120: 0.1838018052 | AA120: 0.1838018052 | AB120: 0.1838018052 | AC120: 0.1838018052 | AD120: 0.1838018052 | AE120: 0.1838018052 | AF120: 0.1838018052 | AG120: 0.1838018052 | AH120: 0.1838018052 | AI120: 0.1838018052 | AJ120: 0.1838018052 | AK120: 0.1838018052 | AL120: 0.1838018052 | AM120: 0.1838018052 | AN120: 0.1838018052 | AO120: 0.1838018052 | AP120: 0.1838018052 | AQ120: 0.1838018052 | AR120: 0.1838018052 | AS120: 0.1838018052 | AT120: 0.1838018052 | AU120: 0.1838018052 | AV120: 0.1838018052 | AW120: 0.1838018052 | AX120: 0.1838018052 | AY120: 0.1838018052 | AZ120: 0.1838018052 | BA120: 0.1838018052 | BB120: 0.1838018052 | BC120: 0.1838018052 | BD120: =EXP(-P_Lambda4*BD$115) -> 0.1838018052 | BE120: 0.1838018052 | BF120: 0.1838018052 | BG120: 0.1838018052 | BH120: 0.1838018052 | BI120: 0.1838018052 | BJ120: 0.1838018052 | BK120: 0.1838018052 | BL120: 0.1838018052 | BM120: 0.1838018052 | BN120: 0.1838018052 | BO120: 0.1838018052 | BP120: 0.1838018052 | BQ120: 0.1838018052 | BR120: 0.1838018052 | BS120: 0.1838018052 | BT120: 0.1838018052 | BU120: 0.1838018052 | BV120: 0.1838018052 | BW120: 0.1838018052 | BX120: 0.1838018052 | BY120: 0.1838018052 | BZ120: 0.1838018052 | CA120: 0.1838018052 | CB120: 0.1838018052 | CC120: 0.1838018052 | CD120: 0.1838018052
T121: PState1 | U121: PState1 | V121: 0 | W121: =L114 -> 0 | X121: =W121*X117+(1-X117)*X$116*P_PCoef1 -> 0 | Y121: 0 | Z121: 0 | AA121: 0 | AB121: 0 | AC121: 0 | AD121: 0 | AE121: 0 | AF121: 0 | AG121: 0 | AH121: 0 | AI121: 0 | AJ121: 0 | AK121: 0 | AL121: 0 | AM121: 0 | AN121: 0 | AO121: 0 | AP121: 0 | AQ121: 0 | AR121: 0 | AS121: 0 | AT121: 0 | AU121: 0 | AV121: 0 | AW121: 0 | AX121: 0 | AY121: 0 | AZ121: 0 | BA121: 0 | BB121: 0 | BC121: 0 | BD121: =BC121*BD117+(1-BD117)*BD$116*P_PCoef1 -> 0 | BE121: 0 | BF121: 0 | BG121: 0 | BH121: 0 | BI121: 0 | BJ121: 0 | BK121: 0 | BL121: 0 | BM121: 0 | BN121: 0 | BO121: 0 | BP121: 0 | BQ121: 0 | BR121: 0 | BS121: 0 | BT121: 0 | BU121: 0 | BV121: 0 | BW121: 0 | BX121: 0 | BY121: 0 | BZ121: 0 | CA121: 0 | CB121: 0 | CC121: 0 | CD121: 0
T122: PState2 | U122: PState2 | V122: 0 | W122: =M114 -> 0 | X122: =W122*X118+(1-X118)*X$116*P_PCoef2 -> 0 | Y122: 0 | Z122: 0 | AA122: 0 | AB122: 0 | AC122: 0 | AD122: 0 | AE122: 0 | AF122: 0 | AG122: 0 | AH122: 0 | AI122: 0 | AJ122: 0 | AK122: 0 | AL122: 0 | AM122: 0 | AN122: 0 | AO122: 0 | AP122: 0 | AQ122: 0 | AR122: 0 | AS122: 0 | AT122: 0 | AU122: 0 | AV122: 0 | AW122: 0 | AX122: 0 | AY122: 0 | AZ122: 0 | BA122: 0 | BB122: 0 | BC122: 0 | BD122: =BC122*BD118+(1-BD118)*BD$116*P_PCoef2 -> 0 | BE122: 0 | BF122: 0 | BG122: 0 | BH122: 0 | BI122: 0 | BJ122: 0 | BK122: 0 | BL122: 0 | BM122: 0 | BN122: 0 | BO122: 0 | BP122: 0 | BQ122: 0 | BR122: 0 | BS122: 0 | BT122: 0 | BU122: 0 | BV122: 0 | BW122: 0 | BX122: 0 | BY122: 0 | BZ122: 0 | CA122: 0 | CB122: 0 | CC122: 0 | CD122: 0
T123: PState3 | U123: PState3 | V123: 0 | W123: =N114 -> 0 | X123: =W123*X119+(1-X119)*X$116*P_PCoef3 -> 0 | Y123: 0 | Z123: 0 | AA123: 0 | AB123: 0 | AC123: 0 | AD123: 0 | AE123: 0 | AF123: 0 | AG123: 0 | AH123: 0 | AI123: 0 | AJ123: 0 | AK123: 0 | AL123: 0 | AM123: 0 | AN123: 0 | AO123: 0 | AP123: 0 | AQ123: 0 | AR123: 0 | AS123: 0 | AT123: 0 | AU123: 0 | AV123: 0 | AW123: 0 | AX123: 0 | AY123: 0 | AZ123: 0 | BA123: 0 | BB123: 0 | BC123: 0 | BD123: =BC123*BD119+(1-BD119)*BD$116*P_PCoef3 -> 0 | BE123: 0 | BF123: 0 | BG123: 0 | BH123: 0 | BI123: 0 | BJ123: 0 | BK123: 0 | BL123: 0 | BM123: 0 | BN123: 0 | BO123: 0 | BP123: 0 | BQ123: 0 | BR123: 0 | BS123: 0 | BT123: 0 | BU123: 0 | BV123: 0 | BW123: 0 | BX123: 0 | BY123: 0 | BZ123: 0 | CA123: 0 | CB123: 0 | CC123: 0 | CD123: 0
T124: eState1 | U124: eState1 | V124: 0 | W124: =O114 -> 0 | X124: =W124*X117+(1-X117)*X$116*P_ECoef1 -> 0 | Y124: 0 | Z124: 0 | AA124: 0 | AB124: 0 | AC124: 0 | AD124: 0 | AE124: 0 | AF124: 0 | AG124: 0 | AH124: 0 | AI124: 0 | AJ124: 0 | AK124: 0 | AL124: 0 | AM124: 0 | AN124: 0 | AO124: 0 | AP124: 0 | AQ124: 0 | AR124: 0 | AS124: 0 | AT124: 0 | AU124: 0 | AV124: 0 | AW124: 0 | AX124: 0 | AY124: 0 | AZ124: 0 | BA124: 0 | BB124: 0 | BC124: 0 | BD124: =BC124*BD117+(1-BD117)*BD$116*P_ECoef1 -> 0 | BE124: 0 | BF124: 0 | BG124: 0 | BH124: 0 | BI124: 0 | BJ124: 0 | BK124: 0 | BL124: 0 | BM124: 0 | BN124: 0 | BO124: 0 | BP124: 0 | BQ124: 0 | BR124: 0 | BS124: 0 | BT124: 0 | BU124: 0 | BV124: 0 | BW124: 0 | BX124: 0 | BY124: 0 | BZ124: 0 | CA124: 0 | CB124: 0 | CC124: 0 | CD124: 0
T125: eState2 | U125: eState2 | V125: 0 | W125: =P114 -> 0 | X125: =W125*X118+(1-X118)*X$116*P_ECoef2 -> 0 | Y125: 0 | Z125: 0 | AA125: 0 | AB125: 0 | AC125: 0 | AD125: 0 | AE125: 0 | AF125: 0 | AG125: 0 | AH125: 0 | AI125: 0 | AJ125: 0 | AK125: 0 | AL125: 0 | AM125: 0 | AN125: 0 | AO125: 0 | AP125: 0 | AQ125: 0 | AR125: 0 | AS125: 0 | AT125: 0 | AU125: 0 | AV125: 0 | AW125: 0 | AX125: 0 | AY125: 0 | AZ125: 0 | BA125: 0 | BB125: 0 | BC125: 0 | BD125: =BC125*BD118+(1-BD118)*BD$116*P_ECoef2 -> 0 | BE125: 0 | BF125: 0 | BG125: 0 | BH125: 0 | BI125: 0 | BJ125: 0 | BK125: 0 | BL125: 0 | BM125: 0 | BN125: 0 | BO125: 0 | BP125: 0 | BQ125: 0 | BR125: 0 | BS125: 0 | BT125: 0 | BU125: 0 | BV125: 0 | BW125: 0 | BX125: 0 | BY125: 0 | BZ125: 0 | CA125: 0 | CB125: 0 | CC125: 0 | CD125: 0
T126: eState3 | U126: eState3 | V126: 0 | W126: =Q114 -> 0 | X126: =W126*X119+(1-X119)*X$116*P_ECoef3 -> 0 | Y126: 0 | Z126: 0 | AA126: 0 | AB126: 0 | AC126: 0 | AD126: 0 | AE126: 0 | AF126: 0 | AG126: 0 | AH126: 0 | AI126: 0 | AJ126: 0 | AK126: 0 | AL126: 0 | AM126: 0 | AN126: 0 | AO126: 0 | AP126: 0 | AQ126: 0 | AR126: 0 | AS126: 0 | AT126: 0 | AU126: 0 | AV126: 0 | AW126: 0 | AX126: 0 | AY126: 0 | AZ126: 0 | BA126: 0 | BB126: 0 | BC126: 0 | BD126: =BC126*BD119+(1-BD119)*BD$116*P_ECoef3 -> 0 | BE126: 0 | BF126: 0 | BG126: 0 | BH126: 0 | BI126: 0 | BJ126: 0 | BK126: 0 | BL126: 0 | BM126: 0 | BN126: 0 | BO126: 0 | BP126: 0 | BQ126: 0 | BR126: 0 | BS126: 0 | BT126: 0 | BU126: 0 | BV126: 0 | BW126: 0 | BX126: 0 | BY126: 0 | BZ126: 0 | CA126: 0 | CB126: 0 | CC126: 0 | CD126: 0
T127: eState4 | U127: eState4 | V127: 0 | W127: =R114 -> 0 | X127: =W127*X120+(1-X120)*X$116*P_ECoef4 -> 0 | Y127: 0 | Z127: 0 | AA127: 0 | AB127: 0 | AC127: 0 | AD127: 0 | AE127: 0 | AF127: 0 | AG127: 0 | AH127: 0 | AI127: 0 | AJ127: 0 | AK127: 0 | AL127: 0 | AM127: 0 | AN127: 0 | AO127: 0 | AP127: 0 | AQ127: 0 | AR127: 0 | AS127: 0 | AT127: 0 | AU127: 0 | AV127: 0 | AW127: 0 | AX127: 0 | AY127: 0 | AZ127: 0 | BA127: 0 | BB127: 0 | BC127: 0 | BD127: =BC127*BD120+(1-BD120)*BD$116*P_ECoef4 -> 0 | BE127: 0 | BF127: 0 | BG127: 0 | BH127: 0 | BI127: 0 | BJ127: 0 | BK127: 0 | BL127: 0 | BM127: 0 | BN127: 0 | BO127: 0 | BP127: 0 | BQ127: 0 | BR127: 0 | BS127: 0 | BT127: 0 | BU127: 0 | BV127: 0 | BW127: 0 | BX127: 0 | BY127: 0 | BZ127: 0 | CA127: 0 | CB127: 0 | CC127: 0 | CD127: 0

Sheet Dexmed (hidden)
C4: Document n. | F4: 001/006 002 012 | K4: Revision | M4: 1
A6: Rugloop II© calculations validation
A7: Drug model: Dexmedetomidine Dyck (weight adjusted)
A9: This spreadsheet will calculate the resulting Cp & Ce, starting from the Vc-k41, and the infused volume. Fill in the boxed rectangles, and you are ready to compare the concentration as calculated by your program with the values as calculated by the spreadsheet.
A12: REMARK: this spreadsheet is for information purpose only, and should NOT be used to derive therapeutical decisions! This file is delivered AS IS, without guarantee for reliability.
A15: Reference from the literature : J.B. Dyck et al.: Anesthesiology 78:821-828, 1993
A19: Revision history
D20: Rev. | E20: Description | I20: ORG | J20: CHK | K20: APP | L20: Date (dd/mm/yy)
D21: 1 | E21: Release | I21: TDS | L21: 2004-01-31
A35: Procedure: | C35: * Fill in the yellow-colored boxes with your patient's weight, age,…
C38: * Fill in the orange boxes with the Time, infused volume, cp & ce series from your RGL file for remifentanil. You can use either the time column in 25ms units (RGLII format) or the time column. Only the latter one will be used, and contains by default the formula to calculate the time from the first column.
C41: * The time intervals do not have to be constant. The only relevant thing is that the time entered and the infused volume entered match. E.g. : Time 0s -> infused volume 0ml ; T = 10s-> infused volume 1.5ml; T = 15s -> infused volume 2ml; … The spreadsheet will recalculate the corresponding infusion rates to get Cp & Ce
C44: * Important remark: when entering time, … data, make sure to leave the first row (which is read-only) and that your first entered line has infused volume zero. This will give the correct offset; otherwise, the first interval will not be correct, and the calculations will be wrong as well.
C47: * The spreadsheet will calculate the realised Cp & Ce values at the entered time, using the model specified. Use the columns Cp, calculated & Ce, calculated to read the calculated Cp & Ce for this specific model.
C50: * if you also have the already calculated Cp & Ce but, for example, if you wanted to verify two different models for the same drug, you can enter them as well in the specified orange columns for Cp & Ce. The spreadsheet will then immedicately give you the procentual difference between your own calculations & the results calculated by this model in the green columns.
C53: * the fields input table, root calculation, Pcoeff calculation, Root verification & Modelling results are only for information.
A58: Model: | C58: Unit of concentration : ng/ml
C60: Vc = 7.99l
C61: V2 = 13.8l
C62: V3 = 187 l
C63: Cl1 = 0.00791*height-0.927
C64: Cl2 = 2.26l/min
C65: Cl3 = 1.99l/min
A68: Patient data
A70: Enter patient age | F70: =OFA!E14 -> 40 | G70: years
A71: Enter patient weight | F71: 71 | G71: kg
A72: Enter patient height | F72: =OFA!E18 -> 160 | G72: cm
A73: Enter patient gender | F73: =OFA!E22 -> 2 | G73: (1 = MALE, 2 = FEMALE)
A74: Enter drug conc | F74: =OFA!Concentration_Sufenta -> 10 | G74: µg/ml
A76: Model covariates | G76: ------> | J76: Model K-values
E77: Male | F77: Female | K77: 0.5
A78: Lbm | C78: =IF((F73=1),E78,IF((F73=2),F78,1/0)) -> 46.82671875 | E78: =1.1*F71-128*F71/F72*F71/F72 -> 52.895 | F78: =1.07*F71-148*F71/F72*F71/F72 -> 46.82671875 | H78: Vc | I78: =7.99 -> 7.99 | J78: Vc | K78: =I78 -> 7.99
A79: BSA | C79: =POWER(F71,0.425)*POWER(F72,0.725)*0.007184 -> 1.742360871 | H79: V2 | I79: =13.8 -> 13.8 | J79: K10 | K79: =I81/I78 -> 0.04237797247 | L79: 1/min
H80: V3 | I80: 187 | J80: K12 | K80: =I82/I78 -> 0.282853567 | L80: 1/min
H81: Cl1 | I81: =0.00791*F72-0.927 -> 0.3386 | J81: K13 | K81: =I83/I78 -> 0.2490613267 | L81: 1/min
H82: Cl2 | I82: 2.26 | J82: K21 | K82: =I82/I79 -> 0.1637681159 | L82: 1/min
H83: Cl3 | I83: 1.99 | J83: K31 | K83: =I83/I80 -> 0.01064171123 | L83: 1/min
J84: K41 | K84: 0 | L84: 1/min
A86: Tpeak | C86: 0 | D86: min
A87: Drug conc[µg/ml] | C87: =F74 -> 10
A89: Input table | E89: Root calculation | L89: Pcoeff calculation | Q89: K41 determinations - estimate for tpeak.
D90: Value | E90: K31>0 | F90: K21>0 | G90: Else | I90: K31>0 | J90: K21>0 | K90: Else | M90: K31>0 | N90: K21>0 | O90: Else
A91: Vc | C91: =K78 -> 7.99 | D91: a0 | E91: =D_K10*D_K21*D_K31 -> 3.419221581e-10 | F91: =D_K10*D_K21 -> 1.927822419e-06 | G91: _ | H91: PCoef1 | I91: =(D_K21-D_Lambda1)*(D_K31-D_Lambda1)/(D_Lambda1-D_Lambda2)/(D_Lambda1-D_Lambda3)/D_Vc/D_Lambda1 -> 9.444776649 | J91: =(D_K21-D_Lambda1)/(D_Lambda2-D_Lambda1)/D_Vc/D_Lambda1 -> 9.576845261 | K91: =1/D_Vc/D_Lambda1 -> 11.21062121 | L91: ECoef1 | M91: =D_PCoef1/(D_K41-D_Lambda1)*D_K41 -> 0 | N91: =J91/(D_K41-D_Lambda1)*D_K41 -> 0 | O91: =K91/(D_K41-D_Lambda1)*D_K41 -> 0 | Q91: Table calculating dirac-impulse concentration result at time tpeak for a certain set of Kvalues
A92: K10 | C92: =K79/60 -> 0.0007062995411 | D92: a1 | E92: =D_K10*D_K31+D_K21*D_K31+D_K21*D_K13+D_K10*D_K21+D_K31*D_K12 -> 1.470340501e-05 | F92: =(D_K10+D_K12+D_K21) -> 0.008149994256 | G92: _ | H92: PCoef2 | I92: =(D_K21-D_Lambda2)*(D_K31-D_Lambda2)/(D_Lambda2-D_Lambda1)/(D_Lambda2-D_Lambda3)/D_Vc/D_Lambda2 -> 12.41924333 | J92: =(D_K21-D_Lambda2)/(D_Lambda1-D_Lambda2)/D_Vc/D_Lambda2 -> 14.13321116 | K92: 0 | L92: ECoef2 | M92: =D_PCoef2/(D_K41-D_Lambda2)*D_K41 -> 0 | N92: =J92/(D_K41-D_Lambda2)*D_K41 -> 0 | O92: 0 | Q92: When the results Ceff have a peak it is what we want.
A93: K12 | C93: 0.004714226116 | D93: a2 | E93: =D_K10+D_K12+D_K13+D_K31+D_K21 -> 0.01247837822 | F93: _ | G93: _ | H93: PCoef3 | I93: =(D_K21-D_Lambda3)*(D_K31-D_Lambda3)/(D_Lambda3-D_Lambda2)/(D_Lambda3-D_Lambda1)/D_Vc/D_Lambda3 -> 155.3362163 | J93: 0 | K93: 0 | L93: ECoef3 | M93: =D_PCoef3/(D_K41-D_Lambda3)*D_K41 -> 0 | N93: 0 | O93: 0 | Q93: If the values keep increasing, k41 must increase.
A94: K13 | C94: 0.004151022111 | D94: p | E94: =D_a1-(D_a2*D_a2/3) -> -3.719990266e-05 | F94: _ | G94: _ | L94: ECoef4 | M94: =(D_K41-D_K21)*(D_K41-D_K31)/(D_Lambda1-D_K41)/(D_Lambda2-D_K41)/(D_Lambda3-D_K41)/D_Vc -> 177.2002363 | N94: =(D_K21-D_K41)/(D_Lambda1-D_K41)/(D_Lambda2-D_K41)/D_Vc -> 23.71005642 | O94: =1/(D_Lambda1-D_K41)/D_Vc -> 11.21062121 | Q94: If the values keep decreasing, k41 must decrease.
A95: K21 | C95: 0.002729468599 | D95: q | E95: =(2*D_a2*D_a2*D_a2/27)-(D_a1*D_a2/3)+D_a0_2 -> 8.311017343e-08 | F95: _ | G95: _ | T95: E1' | U95: E2' | V95: E3' | W95: E4'
A96: K31 | C96: 0.0001773618538 | D96: r1 | E96: =SQRT(-(D_p*D_p*D_p)/27) -> 4.366473443e-08 | F96: _ | G96: _ | T96: =D_ECoef1*D_Lambda1 -> 0 | U96: =D_ECoef2*D_Lambda2 -> 0 | V96: =D_ECoef3*D_Lambda3 -> 0 | W96: =D_ECoef4*D_Lambda4 -> 0
A97: K41 | C97: 0 | E97: =(MIN(MAX(-D_q/2/D_r1,-1),1)) -> -0.9516853189 | J97: Modelling results | S97: Ceff | T97: I1' | U97: I2' | V97: I3' | W97: I4'
D98: Phi | E98: =(ACOS(MIN(MAX((-D_q/2)/D_r1,-1),1)))/3 -> 0.9431582166 | F98: _ | G98: _ | J98: Lambda1 | K98: =IF(D_K31>0,E103,IF(D_K21>0,F103,G103)) -> 0.01116409547 | Q98: T1 | R98: =C86*60*0.99 -> 0 | S98: =T98*$T$96+U98*$U$96+V98*$V$96+W98*$W$96 -> 0 | T98: =EXP(-D_Lambda1*$R$98) -> 1 | U98: =EXP(-D_Lambda2*$R$98) -> 1 | V98: =EXP(-D_Lambda3*$R$98) -> 1 | W98: =EXP(-D_Lambda4*$R$98) -> 1
A99: Root verification | D99: r1_Use | E99: =2*EXP(LN(D_r1)/3) -> 0.00704271753 | F99: _ | G99: _ | J99: Lambda2 | K99: =IF(D_K31>0,E104,IF(D_K21>0,F104,G104)) -> 0.001290551066 | Q99: T2 | R99: =C86*60 -> 0 | S99: =T99*$T$96+U99*$U$96+V99*$V$96+W99*$W$96 -> 0 | T99: =EXP(-D_Lambda1*$R$99) -> 1 | U99: =EXP(-D_Lambda2*$R$99) -> 1 | V99: =EXP(-D_Lambda3*$R$99) -> 1 | W99: =EXP(-D_Lambda4*$R$99) -> 1
A100: L1 | B100: =(POWER(-E100,3)+POWER(E100,2)*D_a2-E100*D_a1+D_a0_2)<0.000000000000001 -> TRUE | C100: =POWER(F100,2)-D__a1*F100+D__a0 -> 0 | D100: L1 | E100: =-(COS(D_Phi)*D_r1_Use-D_a2/3) -> 2.373168146e-05 | F100: =-(-D__a1+SQRT(D__a1*D__a1-4*D__a0))/2 -> 0.0002438381422 | G100: =D_K10 -> 0.0007062995411 | J100: Lambda3 | K100: =IF(D_K31>0,E105,IF(D_K21>0,F105,G105)) -> 2.373168146e-05 | Q100: T3 | R100: =C86*60*1.01 -> 0 | S100: =T100*$T$96+U100*$U$96+V100*$V$96+W100*$W$96 -> 0 | T100: =EXP(-D_Lambda1*$R$100) -> 1 | U100: =EXP(-D_Lambda2*$R$100) -> 1 | V100: =EXP(-D_Lambda3*$R$100) -> 1 | W100: =EXP(-D_Lambda4*$R$100) -> 1
A101: L2 | B101: =(POWER(-E101,3)+POWER(E101,2)*D_a2-E101*D_a1+D_a0_2)<0.000000000000001 -> TRUE | C101: =POWER(F101,2)-F101*D__a1+D__a0 -> 0 | D101: L2 | E101: =-(COS(D_Phi+PI()*2/3)*D_r1_Use-D_a2/3) -> 0.01116409547 | F101: =-(-D__a1-SQRT(D__a1*D__a1-4*D__a0))/2 -> 0.007906156114 | G101: 0 | J101: Lambda4 | K101: =D_K41 -> 0
A102: L3 | B102: =(POWER(-E102,3)+POWER(E102,2)*D_a2-E102*D_a1+D_a0_2)<0.000000000000001 -> TRUE | D102: L3 | E102: =-(COS(D_Phi+PI()*4/3)*D_r1_Use-D_a2/3) -> 0.001290551066 | F102: 0 | G102: 0 | J102: PCoef1 | K102: =IF(D_K31>0,I91,IF(D_K21>0,J91,K91)) -> 9.444776649
D103: L1_SORT | E103: =MAX(MAX(E100,E101),E102) -> 0.01116409547 | F103: =MAX(MAX(F100,F101),F102) -> 0.007906156114 | G103: =MAX(MAX(G100,G101),G102) -> 0.0007062995411 | J103: PCoef2 | K103: =IF(D_K31>0,I92,IF(D_K21>0,J92,K92)) -> 12.41924333 | V103: Colonne des zéros
D104: L2_SORT | E104: =IF(AND(E103<>E100,E105<>E100),E100,IF(AND(E103<>E101,E105<>E101),E101,E102)) -> 0.001290551066 | F104: =IF(AND(F103<>F100,F105<>F100),F100,IF(AND(F103<>F101,F105<>F101),F101,F102)) -> 0.0002438381422 | G104: =IF(AND(G103<>G100,G105<>G100),G100,IF(AND(G103<>G101,G105<>G101),G101,G102)) -> 0 | J104: PCoef3 | K104: =IF(D_K31>0,I93,IF(D_K21>0,J93,K93)) -> 155.3362163
D105: L3_SORT | E105: =MIN(MIN(E100,E101),E102) -> 2.373168146e-05 | F105: =MIN(MIN(F100,F101),F102) -> 0 | G105: =MIN(MIN(G100,G101),G102) -> 0 | J105: ECoef1 | K105: =IF(D_K31>0,M91,IF(D_K21>0,N91,O91)) -> 0 | V105: Colonne liée à la première ligne de formules | W105: chaque = est fait cellule a cellule pour la ligne verte
J106: ECoef2 | K106: =IF(D_K31>0,M92,IF(D_K21>0,N92,O92)) -> 0
J107: ECoef3 | K107: =IF(D_K31>0,M93,IF(D_K21>0,N93,O93)) -> 0 | V107: colonne bleue: c'est un copié collé spécial transposé des formules
J108: ECoef4 | K108: =IF(D_K31>0,M94,IF(D_K21>0,N94,O94)) -> 177.2002363
A110: Time | B110: Time | C110: Infused volume | D110: Cp, calculated | E110: Ce,calculated | F110: DeltaTime | G110: InfusionRate | H110: I1 | I110: I2 | J110: I3 | K110: I4 | L110: PState1 | M110: PState2 | N110: PState3 | O110: eState1 | P110: eState2 | Q110: eState3 | R110: eState4 | T110: Time | U110: 25ms | V110: 0 | W110: 5 | X110: 10 | Y110: 15 | Z110: 20 | AA110: 25 | AB110: 30 | AC110: 35 | AD110: 40 | AE110: 45 | AF110: 50 | AG110: 55 | AH110: 60 | AI110: 65 | AJ110: 70 | AK110: 75 | AL110: 80 | AM110: 85 | AN110: 90 | AO110: 95 | AP110: 100 | AQ110: 105 | AR110: 110 | AS110: 115 | AT110: 120 | AU110: 125 | AV110: 130 | AW110: 135 | AX110: 140 | AY110: 145 | AZ110: 150 | BA110: 155 | BB110: 160 | BC110: 165 | BD110: 170 | BE110: 175 | BF110: 180 | BG110: 185 | BH110: 190 | BI110: 195 | BJ110: 200 | BK110: 205 | BL110: 210 | BM110: 215 | BN110: 220 | BO110: 225 | BP110: 230 | BQ110: 235 | BR110: 240 | BS110: 245 | BT110: 250 | BU110: 255 | BV110: 260 | BW110: 265 | BX110: 270 | BY110: 275 | BZ110: 280 | CA110: 285 | CB110: 290 | CC110: 295 | CD110: 300
A111: MIN | B111: s | C111: mls | D111: ng/ml | E111: ng/ml | F111: DeltaTime,s | G111: InfusionRate, amt/s | H111: I1 | I111: I2 | J111: I3 | K111: I4 | L111: PState1 | M111: PState2 | N111: PState3 | O111: eState1 | P111: eState2 | Q111: eState3 | R111: eState4 | T111: Time | U111: s | V111: 0 | W111: =W110*60 -> 300 | X111: =X110*60 -> 600 | Y111: =Y110*60 -> 900 | Z111: 1200 | AA111: 1500 | AB111: 1800 | AC111: 2100 | AD111: 2400 | AE111: 2700 | AF111: 3000 | AG111: 3300 | AH111: 3600 | AI111: 3900 | AJ111: 4200 | AK111: 4500 | AL111: 4800 | AM111: 5100 | AN111: 5400 | AO111: 5700 | AP111: 6000 | AQ111: 6300 | AR111: 6600 | AS111: 6900 | AT111: 7200 | AU111: 7500 | AV111: 7800 | AW111: 8100 | AX111: 8400 | AY111: 8700 | AZ111: 9000 | BA111: 9300 | BB111: 9600 | BC111: 9900 | BD111: 10200 | BE111: 10500 | BF111: 10800 | BG111: 11100 | BH111: 11400 | BI111: 11700 | BJ111: 12000 | BK111: 12300 | BL111: 12600 | BM111: 12900 | BN111: 13200 | BO111: 13500 | BP111: 13800 | BQ111: 14100 | BR111: 14400 | BS111: 14700 | BT111: 15000 | BU111: 15300 | BV111: 15600 | BW111: 15900 | BX111: 16200 | BY111: 16500 | BZ111: 16800 | CA111: 17100 | CB111: 17400 | CC111: 17700 | CD111: 18000
T112: Infused volume | U112: mls | V112: 0 | W112: =C114 -> 0 | X112: =OFA!L43 -> 0 | Y112: =OFA!M43 -> 0 | Z112: =OFA!N43 -> 0 | AA112: =OFA!O43 -> 0 | AB112: =OFA!P43 -> 0 | AC112: =OFA!Q43 -> 0 | AD112: =OFA!R43 -> 0 | AE112: =OFA!S43 -> 0 | AF112: =OFA!T43 -> 0 | AG112: =OFA!U43 -> 0 | AH112: =OFA!V43 -> 0 | AI112: =OFA!W43 -> 0 | AJ112: =OFA!X43 -> 0 | AK112: =OFA!Y43 -> 0 | AL112: =OFA!Z43 -> 0 | AM112: =OFA!AA43 -> 0 | AN112: =OFA!AB43 -> 0 | AO112: =OFA!AC43 -> 0 | AP112: =OFA!AD43 -> 0 | AQ112: =OFA!AE43 -> 0 | AR112: =OFA!AF43 -> 0 | AS112: =OFA!AG43 -> 0 | AT112: =OFA!AH43 -> 0 | AU112: =OFA!AI43 -> 0 | AV112: =OFA!AJ43 -> 0 | AW112: =OFA!AK43 -> 0 | AX112: =OFA!AL43 -> 0 | AY112: =OFA!AM43 -> 0 | AZ112: =OFA!AN43 -> 0 | BA112: =OFA!AO43 -> 0 | BB112: =OFA!AP43 -> 0 | BC112: =OFA!AQ43 -> 0 | BD112: =OFA!AR43 -> 0 | BE112: =OFA!AS43 -> 0 | BF112: =OFA!AT43 -> 0 | BG112: =OFA!AU43 -> 0 | BH112: =OFA!AV43 -> 0 | BI112: =OFA!AW43 -> 0 | BJ112: =OFA!AX43 -> 0 | BK112: =OFA!AY43 -> 0 | BL112: =OFA!AZ43 -> 0 | BM112: =OFA!BA43 -> 0 | BN112: =OFA!BB43 -> 0 | BO112: =OFA!BC43 -> 0 | BP112: =OFA!BD43 -> 0 | BQ112: =OFA!BE43 -> 0 | BR112: =OFA!BF43 -> 0 | BS112: =OFA!BG43 -> 0 | BT112: =OFA!BH43 -> 0 | BU112: =OFA!BI43 -> 0 | BV112: =OFA!BJ43 -> 0 | BW112: =OFA!BK43 -> 0 | BX112: =OFA!BL43 -> 0 | BY112: =OFA!BM43 -> 0 | BZ112: =OFA!BN43 -> 0 | CA112: =OFA!BO43 -> 0 | CB112: =OFA!BP43 -> 0 | CC112: =OFA!BQ43 -> 0 | CD112: =OFA!BR43 -> 0
A113: 0 | B113: 0 | C113: 0 | D113: 0 | E113: 0 | F113: 0 | G113: 0 | H113: 0 | I113: 0 | J113: 0 | K113: 0 | L113: 0 | M113: 0 | N113: 0 | O113: 0 | P113: 0 | Q113: 0 | R113: 0 | T113: Cp, calculated | U113: ng/ml | V113: 0 | W113: =D114 -> 0 | X113: =X121+X122+X123 -> 0 | Y113: =Y121+Y122+Y123 -> 0 | Z113: 0 | AA113: 0 | AB113: 0 | AC113: 0 | AD113: 0 | AE113: 0 | AF113: 0 | AG113: 0 | AH113: 0 | AI113: 0 | AJ113: 0 | AK113: 0 | AL113: 0 | AM113: 0 | AN113: 0 | AO113: 0 | AP113: 0 | AQ113: 0 | AR113: 0 | AS113: 0 | AT113: 0 | AU113: 0 | AV113: 0 | AW113: 0 | AX113: 0 | AY113: 0 | AZ113: 0 | BA113: 0 | BB113: 0 | BC113: 0 | BD113: 0 | BE113: 0 | BF113: 0 | BG113: 0 | BH113: 0 | BI113: 0 | BJ113: 0 | BK113: 0 | BL113: 0 | BM113: 0 | BN113: 0 | BO113: 0 | BP113: 0 | BQ113: 0 | BR113: 0 | BS113: 0 | BT113: 0 | BU113: 0 | BV113: 0 | BW113: 0 | BX113: 0 | BY113: 0 | BZ113: 0 | CA113: 0 | CB113: 0 | CC113: 0 | CD113: 0
A114: 5 | B114: =A114*60 -> 300 | C114: =OFA!K43 -> 0 | D114: =L114+M114+N114 -> 0 | E114: =O114+P114+Q114+R114 -> 0 | F114: =B114-B113 -> 300 | G114: =IF(F114>0,(C114-C113)/F114*$C$87,#N/A) -> 0 | H114: =EXP(-D_Lambda1*$F114) -> 0.03511142713 | I114: =EXP(-D_Lambda2*$F114) -> 0.6789788371 | J114: =EXP(-D_Lambda3*$F114) -> 0.9929057792 | K114: =EXP(-D_Lambda4*$F114) -> 1 | L114: =L113*H114+(1-H114)*$G114*D_PCoef1 -> 0 | M114: =M113*I114+(1-I114)*$G114*D_PCoef2 -> 0 | N114: =N113*J114+(1-J114)*$G114*D_PCoef3 -> 0 | O114: =O113*H114+(1-H114)*$G114*D_ECoef1 -> 0 | P114: =P113*I114+(1-I114)*$G114*D_ECoef2 -> 0 | Q114: =Q113*J114+(1-J114)*$G114*D_ECoef3 -> 0 | R114: =R113*K114+(1-K114)*$G114*D_ECoef4 -> 0 | T114: Ce,calculated | U114: ng/ml | V114: 0 | W114: =E114 -> 0 | X114: =X124+X125+X126+X127 -> 0 | Y114: =Y124+Y125+Y126+Y127 -> 0 | Z114: 0 | AA114: 0 | AB114: 0 | AC114: 0 | AD114: 0 | AE114: 0 | AF114: 0 | AG114: 0 | AH114: 0 | AI114: 0 | AJ114: 0 | AK114: 0 | AL114: 0 | AM114: 0 | AN114: 0 | AO114: 0 | AP114: 0 | AQ114: 0 | AR114: 0 | AS114: 0 | AT114: 0 | AU114: 0 | AV114: 0 | AW114: 0 | AX114: 0 | AY114: 0 | AZ114: 0 | BA114: 0 | BB114: 0 | BC114: 0 | BD114: 0 | BE114: 0 | BF114: 0 | BG114: 0 | BH114: 0 | BI114: 0 | BJ114: 0 | BK114: 0 | BL114: 0 | BM114: 0 | BN114: 0 | BO114: 0 | BP114: 0 | BQ114: 0 | BR114: 0 | BS114: 0 | BT114: 0 | BU114: 0 | BV114: 0 | BW114: 0 | BX114: 0 | BY114: 0 | BZ114: 0 | CA114: 0 | CB114: 0 | CC114: 0 | CD114: 0
A115: 10 | B115: 600 | D115: 0 | E115: 0 | F115: =B115-B114 -> 300 | G115: =IF(F115>0,(C115-C114)/F115*$C$87,#N/A) -> 0 | H115: 0.03511142713 | I115: 0.6789788371 | J115: 0.9929057792 | K115: 1 | L115: 0 | M115: 0 | N115: 0 | O115: 0 | P115: 0 | Q115: 0 | R115: 0 | T115: DeltaTime | U115: DeltaTime,s | V115: 0 | W115: =F114 -> 300 | X115: =X111-W111 -> 300 | Y115: =Y111-X111 -> 300 | Z115: 300 | AA115: 300 | AB115: 300 | AC115: 300 | AD115: 300 | AE115: 300 | AF115: 300 | AG115: 300 | AH115: 300 | AI115: 300 | AJ115: 300 | AK115: 300 | AL115: 300 | AM115: 300 | AN115: 300 | AO115: 300 | AP115: 300 | AQ115: 300 | AR115: 300 | AS115: 300 | AT115: 300 | AU115: 300 | AV115: 300 | AW115: 300 | AX115: 300 | AY115: 300 | AZ115: 300 | BA115: 300 | BB115: 300 | BC115: 300 | BD115: 300 | BE115: 300 | BF115: 300 | BG115: 300 | BH115: 300 | BI115: 300 | BJ115: 300 | BK115: 300 | BL115: 300 | BM115: 300 | BN115: 300 | BO115: 300 | BP115: 300 | BQ115: 300 | BR115: 300 | BS115: 300 | BT115: 300 | BU115: 300 | BV115: 300 | BW115: 300 | BX115: 300 | BY115: 300 | BZ115: 300 | CA115: 300 | CB115: 300 | CC115: 300 | CD115: 300
T116: InfusionRate | U116: InfusionRate, amt/s | V116: 0 | W116: =G114 -> 0 | X116: =IF(X115>0,(X112-W112)/X115*$C$87,#N/A) -> 0 | Y116: =IF(Y115>0,(Y112-X112)/Y115*$C$87,#N/A) -> 0 | Z116: 0 | AA116: 0 | AB116: 0 | AC116: 0 | AD116: 0 | AE116: 0 | AF116: 0 | AG116: 0 | AH116: 0 | AI116: 0 | AJ116: 0 | AK116: 0 | AL116: 0 | AM116: 0 | AN116: 0 | AO116: 0 | AP116: 0 | AQ116: 0 | AR116: 0 | AS116: 0 | AT116: 0 | AU116: 0 | AV116: 0 | AW116: 0 | AX116: 0 | AY116: 0 | AZ116: 0 | BA116: 0 | BB116: 0 | BC116: 0 | BD116: 0 | BE116: 0 | BF116: 0 | BG116: 0 | BH116: 0 | BI116: 0 | BJ116: 0 | BK116: 0 | BL116: 0 | BM116: 0 | BN116: 0 | BO116: 0 | BP116: 0 | BQ116: 0 | BR116: 0 | BS116: 0 | BT116: 0 | BU116: 0 | BV116: 0 | BW116: 0 | BX116: 0 | BY116: 0 | BZ116: 0 | CA116: 0 | CB116: 0 | CC116: 0 | CD116: 0
T117: I1 | U117: I1 | V117: 0 | W117: =H114 -> 0.03511142713 | X117: =EXP(-D_Lambda1*X$115) -> 0.03511142713 | Y117: 0.03511142713 | Z117: 0.03511142713 | AA117: 0.03511142713 | AB117: 0.03511142713 | AC117: 0.03511142713 | AD117: 0.03511142713 | AE117: 0.03511142713 | AF117: 0.03511142713 | AG117: 0.03511142713 | AH117: 0.03511142713 | AI117: 0.03511142713 | AJ117: 0.03511142713 | AK117: 0.03511142713 | AL117: 0.03511142713 | AM117: 0.03511142713 | AN117: 0.03511142713 | AO117: 0.03511142713 | AP117: 0.03511142713 | AQ117: 0.03511142713 | AR117: 0.03511142713 | AS117: 0.03511142713 | AT117: 0.03511142713 | AU117: 0.03511142713 | AV117: 0.03511142713 | AW117: 0.03511142713 | AX117: 0.03511142713 | AY117: 0.03511142713 | AZ117: 0.03511142713 | BA117: 0.03511142713 | BB117: 0.03511142713 | BC117: 0.03511142713 | BD117: =EXP(-D_Lambda1*BD$115) -> 0.03511142713 | BE117: 0.03511142713 | BF117: 0.03511142713 | BG117: 0.03511142713 | BH117: 0.03511142713 | BI117: 0.03511142713 | BJ117: 0.03511142713 | BK117: 0.03511142713 | BL117: 0.03511142713 | BM117: 0.03511142713 | BN117: 0.03511142713 | BO117: 0.03511142713 | BP117: 0.03511142713 | BQ117: 0.03511142713 | BR117: 0.03511142713 | BS117: 0.03511142713 | BT117: 0.03511142713 | BU117: 0.03511142713 | BV117: 0.03511142713 | BW117: 0.03511142713 | BX117: 0.03511142713 | BY117: 0.03511142713 | BZ117: 0.03511142713 | CA117: 0.03511142713 | CB117: 0.03511142713 | CC117: 0.03511142713 | CD117: 0.03511142713
T118: I2 | U118: I2 | V118: 0 | W118: =I114 -> 0.6789788371 | X118: =EXP(-D_Lambda2*X$115) -> 0.6789788371 | Y118: 0.6789788371 | Z118: 0.6789788371 | AA118: 0.6789788371 | AB118: 0.6789788371 | AC118: 0.6789788371 | AD118: 0.6789788371 | AE118: 0.6789788371 | AF118: 0.6789788371 | AG118: 0.6789788371 | AH118: 0.6789788371 | AI118: 0.6789788371 | AJ118: 0.6789788371 | AK118: 0.6789788371 | AL118: 0.6789788371 | AM118: 0.6789788371 | AN118: 0.6789788371 | AO118: 0.6789788371 | AP118: 0.6789788371 | AQ118: 0.6789788371 | AR118: 0.6789788371 | AS118: 0.6789788371 | AT118: 0.6789788371 | AU118: 0.6789788371 | AV118: 0.6789788371 | AW118: 0.6789788371 | AX118: 0.6789788371 | AY118: 0.6789788371 | AZ118: 0.6789788371 | BA118: 0.6789788371 | BB118: 0.6789788371 | BC118: 0.6789788371 | BD118: =EXP(-D_Lambda2*BD$115) -> 0.6789788371 | BE118: 0.6789788371 | BF118: 0.6789788371 | BG118: 0.6789788371 | BH118: 0.6789788371 | BI118: 0.6789788371 | BJ118: 0.6789788371 | BK118: 0.6789788371 | BL118: 0.6789788371 | BM118: 0.6789788371 | BN118: 0.6789788371 | BO118: 0.6789788371 | BP118: 0.6789788371 | BQ118: 0.6789788371 | BR118: 0.6789788371 | BS118: 0.6789788371 | BT118: 0.6789788371 | BU118: 0.6789788371 | BV118: 0.6789788371 | BW118: 0.6789788371 | BX118: 0.6789788371 | BY118: 0.6789788371 | BZ118: 0.6789788371 | CA118: 0.6789788371 | CB118: 0.6789788371 | CC118: 0.6789788371 | CD118: 0.6789788371
T119: I3 | U119: I3 | V119: 0 | W119: =J114 -> 0.9929057792 | X119: =EXP(-D_Lambda3*X$115) -> 0.9929057792 | Y119: 0.9929057792 | Z119: 0.9929057792 | AA119: 0.9929057792 | AB119: 0.9929057792 | AC119: 0.9929057792 | AD119: 0.9929057792 | AE119: 0.9929057792 | AF119: 0.9929057792 | AG119: 0.9929057792 | AH119: 0.9929057792 | AI119: 0.9929057792 | AJ119: 0.9929057792 | AK119: 0.9929057792 | AL119: 0.9929057792 | AM119: 0.9929057792 | AN119: 0.9929057792 | AO119: 0.9929057792 | AP119: 0.9929057792 | AQ119: 0.9929057792 | AR119: 0.9929057792 | AS119: 0.9929057792 | AT119: 0.9929057792 | AU119: 0.9929057792 | AV119: 0.9929057792 | AW119: 0.9929057792 | AX119: 0.9929057792 | AY119: 0.9929057792 | AZ119: 0.9929057792 | BA119: 0.9929057792 | BB119: 0.9929057792 | BC119: 0.9929057792 | BD119: =EXP(-D_Lambda3*BD$115) -> 0.9929057792 | BE119: 0.9929057792 | BF119: 0.9929057792 | BG119: 0.9929057792 | BH119: 0.9929057792 | BI119: 0.9929057792 | BJ119: 0.9929057792 | BK119: 0.9929057792 | BL119: 0.9929057792 | BM119: 0.9929057792 | BN119: 0.9929057792 | BO119: 0.9929057792 | BP119: 0.9929057792 | BQ119: 0.9929057792 | BR119: 0.9929057792 | BS119: 0.9929057792 | BT119: 0.9929057792 | BU119: 0.9929057792 | BV119: 0.9929057792 | BW119: 0.9929057792 | BX119: 0.9929057792 | BY119: 0.9929057792 | BZ119: 0.9929057792 | CA119: 0.9929057792 | CB119: 0.9929057792 | CC119: 0.9929057792 | CD119: 0.9929057792
T120: I4 | U120: I4 | V120: 0 | W120: =K114 -> 1 | X120: =EXP(-D_Lambda4*X$115) -> 1 | Y120: 1 | Z120: 1 | AA120: 1 | AB120: 1 | AC120: 1 | AD120: 1 | AE120: 1 | AF120: 1 | AG120: 1 | AH120: 1 | AI120: 1 | AJ120: 1 | AK120: 1 | AL120: 1 | AM120: 1 | AN120: 1 | AO120: 1 | AP120: 1 | AQ120: 1 | AR120: 1 | AS120: 1 | AT120: 1 | AU120: 1 | AV120: 1 | AW120: 1 | AX120: 1 | AY120: 1 | AZ120: 1 | BA120: 1 | BB120: 1 | BC120: 1 | BD120: =EXP(-D_Lambda4*BD$115) -> 1 | BE120: 1 | BF120: 1 | BG120: 1 | BH120: 1 | BI120: 1 | BJ120: 1 | BK120: 1 | BL120: 1 | BM120: 1 | BN120: 1 | BO120: 1 | BP120: 1 | BQ120: 1 | BR120: 1 | BS120: 1 | BT120: 1 | BU120: 1 | BV120: 1 | BW120: 1 | BX120: 1 | BY120: 1 | BZ120: 1 | CA120: 1 | CB120: 1 | CC120: 1 | CD120: 1
T121: PState1 | U121: PState1 | V121: 0 | W121: =L114 -> 0 | X121: =W121*X117+(1-X117)*X$116*D_PCoef1 -> 0 | Y121: 0 | Z121: 0 | AA121: 0 | AB121: 0 | AC121: 0 | AD121: 0 | AE121: 0 | AF121: 0 | AG121: 0 | AH121: 0 | AI121: 0 | AJ121: 0 | AK121: 0 | AL121: 0 | AM121: 0 | AN121: 0 | AO121: 0 | AP121: 0 | AQ121: 0 | AR121: 0 | AS121: 0 | AT121: 0 | AU121: 0 | AV121: 0 | AW121: 0 | AX121: 0 | AY121: 0 | AZ121: 0 | BA121: 0 | BB121: 0 | BC121: 0 | BD121: =BC121*BD117+(1-BD117)*BD$116*D_PCoef1 -> 0 | BE121: 0 | BF121: 0 | BG121: 0 | BH121: 0 | BI121: 0 | BJ121: 0 | BK121: 0 | BL121: 0 | BM121: 0 | BN121: 0 | BO121: 0 | BP121: 0 | BQ121: 0 | BR121: 0 | BS121: 0 | BT121: 0 | BU121: 0 | BV121: 0 | BW121: 0 | BX121: 0 | BY121: 0 | BZ121: 0 | CA121: 0 | CB121: 0 | CC121: 0 | CD121: 0
T122: PState2 | U122: PState2 | V122: 0 | W122: =M114 -> 0 | X122: =W122*X118+(1-X118)*X$116*D_PCoef2 -> 0 | Y122: 0 | Z122: 0 | AA122: 0 | AB122: 0 | AC122: 0 | AD122: 0 | AE122: 0 | AF122: 0 | AG122: 0 | AH122: 0 | AI122: 0 | AJ122: 0 | AK122: 0 | AL122: 0 | AM122: 0 | AN122: 0 | AO122: 0 | AP122: 0 | AQ122: 0 | AR122: 0 | AS122: 0 | AT122: 0 | AU122: 0 | AV122: 0 | AW122: 0 | AX122: 0 | AY122: 0 | AZ122: 0 | BA122: 0 | BB122: 0 | BC122: 0 | BD122: =BC122*BD118+(1-BD118)*BD$116*D_PCoef2 -> 0 | BE122: 0 | BF122: 0 | BG122: 0 | BH122: 0 | BI122: 0 | BJ122: 0 | BK122: 0 | BL122: 0 | BM122: 0 | BN122: 0 | BO122: 0 | BP122: 0 | BQ122: 0 | BR122: 0 | BS122: 0 | BT122: 0 | BU122: 0 | BV122: 0 | BW122: 0 | BX122: 0 | BY122: 0 | BZ122: 0 | CA122: 0 | CB122: 0 | CC122: 0 | CD122: 0
T123: PState3 | U123: PState3 | V123: 0 | W123: =N114 -> 0 | X123: =W123*X119+(1-X119)*X$116*D_PCoef3 -> 0 | Y123: 0 | Z123: 0 | AA123: 0 | AB123: 0 | AC123: 0 | AD123: 0 | AE123: 0 | AF123: 0 | AG123: 0 | AH123: 0 | AI123: 0 | AJ123: 0 | AK123: 0 | AL123: 0 | AM123: 0 | AN123: 0 | AO123: 0 | AP123: 0 | AQ123: 0 | AR123: 0 | AS123: 0 | AT123: 0 | AU123: 0 | AV123: 0 | AW123: 0 | AX123: 0 | AY123: 0 | AZ123: 0 | BA123: 0 | BB123: 0 | BC123: 0 | BD123: =BC123*BD119+(1-BD119)*BD$116*D_PCoef3 -> 0 | BE123: 0 | BF123: 0 | BG123: 0 | BH123: 0 | BI123: 0 | BJ123: 0 | BK123: 0 | BL123: 0 | BM123: 0 | BN123: 0 | BO123: 0 | BP123: 0 | BQ123: 0 | BR123: 0 | BS123: 0 | BT123: 0 | BU123: 0 | BV123: 0 | BW123: 0 | BX123: 0 | BY123: 0 | BZ123: 0 | CA123: 0 | CB123: 0 | CC123: 0 | CD123: 0
T124: eState1 | U124: eState1 | V124: 0 | W124: =O114 -> 0 | X124: =W124*X117+(1-X117)*X$116*D_ECoef1 -> 0 | Y124: 0 | Z124: 0 | AA124: 0 | AB124: 0 | AC124: 0 | AD124: 0 | AE124: 0 | AF124: 0 | AG124: 0 | AH124: 0 | AI124: 0 | AJ124: 0 | AK124: 0 | AL124: 0 | AM124: 0 | AN124: 0 | AO124: 0 | AP124: 0 | AQ124: 0 | AR124: 0 | AS124: 0 | AT124: 0 | AU124: 0 | AV124: 0 | AW124: 0 | AX124: 0 | AY124: 0 | AZ124: 0 | BA124: 0 | BB124: 0 | BC124: 0 | BD124: =BC124*BD117+(1-BD117)*BD$116*D_ECoef1 -> 0 | BE124: 0 | BF124: 0 | BG124: 0 | BH124: 0 | BI124: 0 | BJ124: 0 | BK124: 0 | BL124: 0 | BM124: 0 | BN124: 0 | BO124: 0 | BP124: 0 | BQ124: 0 | BR124: 0 | BS124: 0 | BT124: 0 | BU124: 0 | BV124: 0 | BW124: 0 | BX124: 0 | BY124: 0 | BZ124: 0 | CA124: 0 | CB124: 0 | CC124: 0 | CD124: 0
T125: eState2 | U125: eState2 | V125: 0 | W125: =P114 -> 0 | X125: =W125*X118+(1-X118)*X$116*D_ECoef2 -> 0 | Y125: 0 | Z125: 0 | AA125: 0 | AB125: 0 | AC125: 0 | AD125: 0 | AE125: 0 | AF125: 0 | AG125: 0 | AH125: 0 | AI125: 0 | AJ125: 0 | AK125: 0 | AL125: 0 | AM125: 0 | AN125: 0 | AO125: 0 | AP125: 0 | AQ125: 0 | AR125: 0 | AS125: 0 | AT125: 0 | AU125: 0 | AV125: 0 | AW125: 0 | AX125: 0 | AY125: 0 | AZ125: 0 | BA125: 0 | BB125: 0 | BC125: 0 | BD125: =BC125*BD118+(1-BD118)*BD$116*D_ECoef2 -> 0 | BE125: 0 | BF125: 0 | BG125: 0 | BH125: 0 | BI125: 0 | BJ125: 0 | BK125: 0 | BL125: 0 | BM125: 0 | BN125: 0 | BO125: 0 | BP125: 0 | BQ125: 0 | BR125: 0 | BS125: 0 | BT125: 0 | BU125: 0 | BV125: 0 | BW125: 0 | BX125: 0 | BY125: 0 | BZ125: 0 | CA125: 0 | CB125: 0 | CC125: 0 | CD125: 0
